Workbook

Sheet Apresentação
B2: =+Titulo_01 -> PREFEITURA MUNICIPAL DE CHAPECO
B3: =+Titulo_02 -> CONTROLADORIA GERAL DO MUNICÍPIO
B4: =+Titulo_03 -> SISTEMA DE TRANSPORTE PÚBLICO DE PASSAGEIROS
B6: Apresentação do sistema
C9: A apuração do valor da tarifa do SISTEMA DE TRANSPORTE PÚBLICO DE PASSAGEIROS DE CHAPECÓ - STPP/Chapecó será efetuado com a elaboração da presente planilha como segue:
C12: O sistema esta elaborado para, além de apuração da tarifa, fazer a comparação entre cenários diferentes. Como por exemplo:
C15: Cenário | D15: =+Cenario!D11 -> 1 | E15: =+Cenario!E11 -> Prefeitura Chapecó - Base Edital - base 10/17
C16: Cenário | D16: =+Cenario!D12 -> 2 | E16: =+Cenario!E12 -> Prefeitura Chapecó - Base Edital - base 10/17 - PROPOSTA
C17: Cenário | D17: =+Cenario!D13 -> 3 | E17: =+Cenario!E13 -> Prefeitura Chapecó - Base Edital - base 10/17 - NÃO USAR
C18: Cenário | D18: =+Cenario!D14 -> 4 | E18: =+Cenario!E14 -> Prefeitura Chapecó - Base Edital - base 10/17 - NÃO USAR
C20: O objetivo é possibilitar a comparação entre os valores da composição da tarifa de um período em utilização e os reajustes ou reequilíbrios que poderão advir ao longo da concessão.
C23: Por questão de segurança todas as pastas estão bloqueadas, mas não impede de fazer o preenchimento. Recomenda-se sempre utilizar a pasta bloqueada para evitar erros. As informações a serem preenchidas todas estão desbloqueadas. Não existe senha para desbloqueio.
C27: Para facilitar a dinâmica e o preenchimento das informações necessárias para cálculo da tarifa, foram elaborados padrão de cores, como segue:
E30: Laranja | F30: =+Inicio!K5 -> Referência de dados
E31: Verde água | F31: =+Inicio!K6 -> Cabeçalho / Entrada dados
E32: Verde oliva | F32: =+Inicio!K7 -> Referência à outra pasta
E33: Azul claro | F33: =+Inicio!K8 -> Entrada de dados - Indicação da linha
E34: Verde escuro | F34: =+Inicio!K9 -> Area útil
E35: Verde claro | F35: =+Inicio!K10 -> Resultado - Tarifa e Fluxo de Caixa
E36: Vinho | F36: =+Inicio!K11 -> Realce e teste
C38: Atalhos
E40: =+Inicio!J13 -> Ctrl = O | F40: =+Inicio!K13 -> Bloqueio da Pasta
E41: =+Inicio!J14 -> Ctrl = D | F41: =+Inicio!K14 -> Desbloqueio da Pasta
E42: =+Inicio!J15 -> Ctrl = I | F42: =+Inicio!K15 -> Link pasta "Início"
E43: =+Inicio!J16 -> Ctrl = Y | F43: =+Inicio!K16 -> Visualização das pastas
E44: =+Inicio!J17 -> Ctrl = S | F44: =+Inicio!K17 -> Link pasta "Cenário"
E45: =+Inicio!J18 -> Ctrl = H | F45: =+Inicio!K18 -> Aumenta o "ZOON"
E46: =+Inicio!J19 -> Ctrl = J | F46: =+Inicio!K19 -> Diminui o "ZOON"
C49: Ajuste do zoon de visualização = botões (+) e (-) =
C51: Digitação de informações
C53: Quando houver a necessidade de preenchimento de informações, principalmente na pasta "CONSUMO" e todos os campos estão identificados com (?) assim como segue:
C61: A informações de coeficientes ou valores de referência que são fixos e não devem ser alterados estão assim demonstrados:
C67: A distribuição das pastas da planilha estão assim organizadas com o seu conteúdo e forma de preenchimento e utilização:
C69: Pastas | D69: Descrição | J69: LINK
C71: Inicio | D71: Informações gerais das planilhas
D73: Informações gerais das pastas e sua utilização. Cada pasta terá um link para se deslocar e em todas as pasta também um link para voltar ao ínicio. Por regra geral todas as pasta se ajustam ao tamanho do monitor.
D77: Nesta pasta não tem nenhuma informação a preencher
C79: Capa | D79: Capa da Planilha
D81: Capa da Planilha - Anexo IX
D83: Nesta pasta não tem nenhuma informação a preencher
C85: Resumo | D85: Resumo da apuração do Custo e da Taxa de Retorno
D87: Informações dos dados Apurados Custo da Tarifa, Nova Tarifa e Taxa de Retorno
D89: Nesta pasta não tem nenhuma informação a preencher
C91: Cenário | D91: Escolha do CENÁRIO
D93: Nesta pasta deve ser escolhido o CENÁRIO, a tarifa base e o método de depreciação a ser utilizado . Digite o número conforme abaixo:
D104: Demonstração da escolha da tarifa base
D106: Com a escolha da tarifa base, automaticamente será alterado o cálculo de passageiros equivalentes e IPK.
D109: Os coeficientes de depreciação e remuneração são automaticamente calculados conforme as informações de vida útil e valor residual e o críterio é aquele indicado na pasta "CENÁRIO". (Depreciação linear ou Depreciação acelerada - método COLE).
C113: Apura | D113: Apuração dos Custos do Sistema (km, Veiculo e Mensal)
D115: Nesta pasta serão efetuadas todos os cálculo do custo da tarifa conforme as informações de todas as outras pastas identificadas nas referências, considerando cada CENÁRIO e o seu resultado "Valor custo por KM", "Valor custo por Veiculo" e "Valor custo Mensal".
D119: Nesta pasta não tem nenhuma informação a preencher
C121: Tarifa | D121: Definição da Tarifa e resultado do Fluxo de caixa
D123: Nesta pasta será deferida a nova tarifa a ser utilizadas (quadro em verde) e fazer a digitação do resultado do fluxo de caixa (cor amarelo) também no quadro verde: taxa de desconto, VPL - valor presente líquido e TIR - taxa de retorno, conforme abaixo:
C145: Consumo | D145: Dados, Consumo, Coeficientes e Valores de Referência
D147: Esta pasta é uma das mais importantes da planilha, é onde são lançadas a maioria das informações necessárias para fazer os cálculos da tarifa, conforme segue:
D150: 1 | E150: Quilometragem
E151: Informações do percurso operacional e ocioso dos últimos 12 meses (mês a mês).
D153: 2 | E153: Passageiros
E154: Informações da tarifa atual e quantidade de passageiros transportados nos últimos 12 meses (mês a mês), antecipado, embarcado, estudante, vale transporte e gratuidades.
D157: 3 | E157: Combustíveis
E158: Informações do preço do combustível, coeficiente de consumo de combustível e coeficiente de consumo de lubrificantes.
D161: 4 | E161: Despesas de Pessoal
E162: Informações do salário base e fator de utilização de: motorista, cobrador, fiscal/despachante e bilheteiro/agente terminal.
E165: Informações do percentual de encargos sociais.
E167: Informações de percentual de pessoal indireto: pessoal de manutenção, pessoal de administração, controle e venda, benefícios sociais e honorários da diretoria.
D170: 5 | E170: Despesas Administrativas
E171: Informações das despesas mensais correspondentes aos Serviços de Bilhetagem; Serviço de atendimento ao passageiros SAC; e Serviço de manutenção de abrigos e terminais. Nestas despesas não poderão incluír despesas de pessoal.
E175: Informações do percentual atribuído às Despesas Aadministrativas Gerias, que inclui: Veículo de Apoio, treinamento, atualização tecnológica, assessoria técnica, manutenção e segurança, material de consumo. O percentual é sobre Valor do Veiculo Novo Leve.
E179: Informações das despesas mensais de: outras e despesas bancárias.
E181: Informações das despesas anuais por veiculo correspondentes a Gerenciamento de Riscos: Seguro de responsabilidade civil; Seguro obrigatório; Despesa com emplacamento de veículos e IPVA.
D185: 6 | E185: Custo dos Veículos
E186: Informações por categoria de veículo (Micro onibus, Leve, Pesado e Articulado ) para: valor veiculo novo com rodagem; Valor residual do veículo; Vida útil do veículo; Valor dos Pneus; Valor do protetor; Valor da camara; Quantidade de recapagem; Coeficiente de peças e assessórios sobre veículo novo.
D191: 7 | E191: Equipamentos
E192: Informações do valor por veículo referente a: Sistema de bilhetagem, monitoramento e validação, máquinas instalações e equipamentos; Valor residual de equipamentos; e Vida útil de equipamentos.
D196: 8 | E196: Investimentos Iniciais
E197: Informações do valor de investimentos iniciais, valor residual e a vida útil dos itens terrenos, construções e outorga.
D200: 9 | E200: Receitas Complementares
E201: Informações do valor por veículo das receitas complementares referente a publicidade.
D203: 10 | E203: Alíquotas
E204: Informações dos percentuais das alíquotas de impostos sobre a receita,(PIS, COFINS, ISS e CPRB-contribuição previdenciária sobre a receita bruta).
E207: Informações dos percentuais das alíquotas de impostos sobre o resultado,(CSLL - contribuição social sobre o lucro líquido, imposto de renda, adicional de imposto de renda e valor do limite adicional do imposto de renda.
E211: Informações dos percentuais da remuneração de capital (anual) e taxa de desconto - TIR - taxa interna de retorno mínima.
C214: DR_Frota | D214: Dados da Frota - Depreciação e Amortização
D216: Nesta pasta deve ser informado a quantidade de Veículos da frota, por idade, conforme a categoria. (micro ônibus, leve, pesado e articulado.
D219: Os cálculos de depreciação e remuneração serão automáticos.
C221: DR_Equip | D221: Dados de Equipamentos - Depreciação e Amortização
D223: Nesta pasta deve ser informado a quantidade total de veículos da frota, por idade, e que se utilizam do sistema de bilhetagem. Monitoramento e validação.
D226: Esta informação deve levar em conta a data de instalação em cada veículo.
D228: Os cálculos de depreciação e remuneração serão automáticos.
C230: DR_Invest | D230: Dados Investimentos iniciais - Depreciação e Amortização
D232: Nesta pasta não tem nenhuma informação para ser preenchida. Os cálculos da depreciação e remuneração serão autimáticos e levam em conta o valor dos investimentos iniciais, a vida útil, o valor residual e o ano do cálculo, conforme dados da pasta "Consumo".
C236: Renov_Frota | D236: Movimento de Renovção da Frota
D238: Nesta pasta será demonstrado a movimentação da frota de veiculos até o final da concessão. Os cálculo são automaticos e serão base para a confecção do "Fluxo de Caixa".
D241: Nesta pasta não tem nenhuma informação a preencher
C243: Fluxo_Caixa | D243: Demonstração do Fluxo de Caixa
D245: Nesta pasta será feita automaticamente a "Demonstração do Resultado Economico" e a "Demonstração do Fluxo de Caixa", ambas com base da informações de outras pastas.
D248: Nesta pasta não tem nenhuma informação a preencher
C250: Reajuste | D250: Demonstração do cálculo de reajuste da tarifa
D252: Nesta pasta será feito o preenchimento de informações para a reajuste anual da tarifa.
C254: Encargos | D254: Composição do Encargos sociais sobre folha
D256: Nesta pasta é demonstrado o encargos sobre a folha de pagamento.
C258: Custo_capital | D258: Apuração do Custo médio ponderado de capital
D260: Nesta pasta é demonstrado o custo médio ponderado de capital.
C262: Coeficientes | D262: Cálculo Coeficientes de Depreciação e Remuneração
D264: Nesta pasta é demonstrado como é cálculado os coeficientes de Depreciação e Remuneração de ambos os métodos, Linear e Acelerado (cole).
C267: No final da planilha encontran-se as pastas com o histórico de várias informações:
D269: 1 | E269: Histórico de passageiros - gráfico.
D270: 2 | E270: Histórico de passageiros - Consolidado.
D271: 3 | E271: Histórico de passageiros - Empresa AVC
D272: 4 | E272: Histórico de passageiros - Empresa TTT
D273: 5 | E273: Histórico de Viagens
D274: 6 | E274: Histórico Valores da Frota.
D275: 7 | E275: Histórico Salarial por departamento.
D276: 8 | E276: Histórico Remuneração motorista.
D277: 9 | E277: Histórico valores total da folha.
D278: 10 | E278: Histórico das tarifas
D279: 11 | E279: Histórico Combustíveis.
D281: ELABORADO PELA CONTROLADORIA GERAL DO MUNICÍPIO
D282: Pedro Milton Golfe

Sheet Inicio
A1: pedro milton golfe | B1: pedro milton golfe | C1: pedro milton golfe | D1: pedro milton golfe | E1: pedro milton golfe | F1: pedro milton golfe | G1: pedro milton golfe | H1: pedro milton golfe | I1: pedro milton golfe | J1: pedro milton golfe | K1: pedro milton golfe | L1: pedro milton golfe | M1: pedro milton golfe
A2: pedro milton golfe | B2: Informações das pastas da planilha | M2: pedro milton golfe
A3: pedro milton golfe | M3: pedro milton golfe
A4: pedro milton golfe | C4: Pastas | E4: Descrição | G4: "LINK" | J4: Cores | K4: Descrição | M4: pedro milton golfe
A5: pedro milton golfe | C5: 1 | D5: Apresentação | E5: Descrição das pastas da planilha | J5: Laranja | K5: Referência de dados | M5: pedro milton golfe
A6: pedro milton golfe | C6: 2 | D6: Inicio | E6: Informações gerais das pastas e link | J6: Verde água | K6: Cabeçalho / Entrada dados | M6: pedro milton golfe
A7: pedro milton golfe | C7: 3 | D7: Capa | E7: Capa da Planilha | J7: Verde oliva | K7: Referência à outra pasta | M7: pedro milton golfe
A8: pedro milton golfe | C8: 4 | D8: Resumo | E8: Resumo da apuração do Custo e da Taxa de Retorno | J8: Azul claro | K8: Entrada de dados - Indicação da linha | M8: pedro milton golfe
A9: pedro milton golfe | C9: 5 | D9: Cenário | E9: Escolha do CENÁRIO a ser Utilizado | J9: Verde escuro | K9: Area útil | M9: pedro milton golfe
A10: pedro milton golfe | C10: 6 | D10: Apura | E10: Apuração dos Custos do Sistema (km, Veiculo e Mensal) | J10: Verde claro | K10: Resultado - Tarifa e Fluxo de Caixa | M10: pedro milton golfe
A11: pedro milton golfe | C11: 7 | D11: Tarifa | E11: Definição da Tarifa e do Fluxo de Caixa | J11: Vinho | K11: Realce e teste | M11: pedro milton golfe
A12: pedro milton golfe | C12: 8 | D12: Consumo | E12: Dados, Consumo, Coeficientes e Valores de Referência | M12: pedro milton golfe
A13: pedro milton golfe | C13: 9 | D13: DR_Frota | E13: Dados da Frota - Depreciação e Amortização | J13: Ctrl = O | K13: Bloqueio da Pasta | M13: pedro milton golfe
A14: pedro milton golfe | C14: 10 | D14: DR_Equip | E14: Dados de Equipamentos - Depreciação e Amortização | J14: Ctrl = D | K14: Desbloqueio da Pasta | M14: pedro milton golfe
A15: pedro milton golfe | C15: 11 | D15: DR_Invest | E15: Dados de Investimentos Iniciais - Depreciação e Amortização | J15: Ctrl = I | K15: Link pasta "Início" | M15: pedro milton golfe
A16: pedro milton golfe | C16: 12 | D16: Renov_Frota | E16: Movimento de Renovção da Frota | J16: Ctrl = Y | K16: Visualização das pastas | M16: pedro milton golfe
A17: pedro milton golfe | C17: 13 | D17: Fluxo_Caixa | E17: Demonstração do Fluxo de Caixa | J17: Ctrl = S | K17: Link pasta "Cenário" | M17: pedro milton golfe
A18: pedro milton golfe | C18: 14 | D18: Reajuste | E18: Demonstração do cálculo de reajuste da tarifa | J18: Ctrl = H | K18: Aumenta o "ZOON" | M18: pedro milton golfe
A19: pedro milton golfe | C19: 15 | D19: Encargos | E19: Composição do Encargos sociais sobre folha | J19: Ctrl = J | K19: Diminui o "ZOON" | M19: pedro milton golfe
A20: pedro milton golfe | C20: 16 | D20: Custo_capital | E20: Apuração do Custo médio ponderado de capital | J20: Ctrl = T | K20: Ajuste de Imprissão | M20: pedro milton golfe
A21: pedro milton golfe | C21: 17 | D21: Coeficientes | E21: Cálculo Coeficientes de Depreciação e Remuneração | M21: pedro milton golfe
A22: pedro milton golfe | C22: 18 | D22: Gráficos | E22: Passageiros, Demanda e IPK | M22: pedro milton golfe
A23: pedro milton golfe | C23: 19 a 25 | D23: Históricos | E23: Historico de Passageiros por Empresa e Linhas, Historico de Gastos de Pessoal Combustível, Histórico Frota e Histórico da tarifa. | J23: Elaborado pela Controladoria Geral do Município | M23: pedro milton golfe
A24: pedro milton golfe | J24: Pedro Milton Golfe | M24: pedro milton golfe
A25: pedro milton golfe | M25: pedro milton golfe
A26: pedro milton golfe | M26: pedro milton golfe
A27: pedro milton golfe | M27: pedro milton golfe
A28: pedro milton golfe | B28: pedro milton golfe | C28: pedro milton golfe | D28: pedro milton golfe | E28: pedro milton golfe | F28: pedro milton golfe | G28: pedro milton golfe | H28: pedro milton golfe | I28: pedro milton golfe | J28: pedro milton golfe | K28: pedro milton golfe | L28: pedro milton golfe | M28: pedro milton golfe

Sheet Capa
A3: pedro milton golfe | E3: =+Titulo_01 -> PREFEITURA MUNICIPAL DE CHAPECO
A4: pedro milton golfe | E4: =+Titulo_02 -> CONTROLADORIA GERAL DO MUNICÍPIO
D15: SISTEMA DE TRANSPORTE PÚBLICO DE PASSAGEIROS DE CHAPECÓ
D22: ANEXO IX - Edital 207/2018
A24: pedro milton golfe
C36: Elaborado Pela Controladoria Geral do Município

Sheet Resumo_proposta
B2: =+Titulo_01 -> PREFEITURA MUNICIPAL DE CHAPECO | K2: =+Titulo_01 -> PREFEITURA MUNICIPAL DE CHAPECO
B3: =+Titulo_02 -> CONTROLADORIA GERAL DO MUNICÍPIO | K3: =+Titulo_02 -> CONTROLADORIA GERAL DO MUNICÍPIO
B4: =+Titulo_03 -> SISTEMA DE TRANSPORTE PÚBLICO DE PASSAGEIROS | K4: =+Titulo_03 -> SISTEMA DE TRANSPORTE PÚBLICO DE PASSAGEIROS
C7: =+Capa!D15 -> SISTEMA DE TRANSPORTE PÚBLICO DE PASSAGEIROS DE CHAPECÓ
L8: PROPOSTA FINANCEIRA
C11: RESUMO | L11: PROPONENTE: | N11: Nome da empresa
L12: CNPJ: | N12: 00.000.00/0001-00
C14: Discriminação | E14: unidade | F14: Valor
M15: Valores Propostos
C16: =+Tarifa!P10 -> Cenário 02 | D16: =Cenario!E18 -> Prefeitura Chapecó - Base Edital - base 10/17 - PROPOSTA
M17: Valor da Outorga | Q17: 5610618
C18: Passageiros Equivalentes | E18: pass/mês | F18: =+Apura!AB21 -> 745168 | M18: Tarifas propostas (1)
C19: Percurso Médio | E19: km/mês | F19: =+Apura!AB17 -> 402640 | N19: Tarifa base - Embarcada: | Q19: 3.25 | R19: 0
C20: Frota Total | E20: veículos | F20: =+Apura!AB32 -> 88 | N20: Tarifa Antecipada: | Q20: 2.98 | R20: =1-Q20/Q19 -> 0.08307692308 | S20: ="(2)" -> (2)
C21: Idade Média da Frota | E21: anos | F21: =+Apura!AB53 -> 4.454545455 | N21: Tarifa Estudante: | Q21: 1.49 | R21: =1-Q21/Q20 -> 0.5 | S21: ="(3)" -> (3)
C22: PMM | E22: km/veículo.mês | F22: =+Apura!AB19 -> 5033
C23: IPK | E23: passageiros/km | F23: =+Apura!AB23 -> 1.850705345 | M23: (1) Valores lançados na pasta "tarifa" item 1.04 - Nova tarifa.
C24: Custo por Quilômetro | E24: R$/km | F24: =+Apura!Z326 -> 6.014830017 | M24: (2) Desconto da Tarifa Antecipada cálculada sobre a embarcada
C25: Custo por Passageiro | E25: R$/passageiro | F25: =+Apura!Z330 -> 3.250020342 | M25: (3) Desconto Tarifa Estudante mínimo 50% da Antecipada
C27: TARIFA BASE | F27: =+Tarifa!P44 -> 3.25
C29: Embarcado e Vale Transporte | E29: R$/passageiro | F29: =+Tarifa!P45 -> 2.98 | N29: Chapecó, SC 00 de xxxxxxxxxxxx de 2018
C30: Antecipado | E30: R$/passageiro | F30: =+Tarifa!P46 -> 3.25
C31: Estudante | E31: R$/passageiro | F31: =+Tarifa!P47 -> 1.49
C33: Taxa de Desconto VPL - (% ao ano | F33: =+Fx_caixa!K121 -> 0.08
C34: VPL | F34: =+Fx_caixa!K122 -> 5783896.114 | N34: Assinatura do representante Legal:
C35: TIR | F35: =+Fx_caixa!K123 -> 0.1080474313
C37: PMM - Percurso Médio Mensal
C38: IPK - Indice de Passageiros por Quilômetro

Sheet Cenario
C2: CENÁRIO
A3: pedro milton golfe | C3: =+Titulo_01 -> PREFEITURA MUNICIPAL DE CHAPECO | T3: =+Titulo_01 -> PREFEITURA MUNICIPAL DE CHAPECO
A4: pedro milton golfe | C4: =+Titulo_02 -> CONTROLADORIA GERAL DO MUNICÍPIO | T4: =+Titulo_02 -> CONTROLADORIA GERAL DO MUNICÍPIO
A5: pedro milton golfe | C5: =+Titulo_03 -> SISTEMA DE TRANSPORTE PÚBLICO DE PASSAGEIROS | T5: =+Titulo_03 -> SISTEMA DE TRANSPORTE PÚBLICO DE PASSAGEIROS
C6: Escolha dos Cenários | T6: Demonstração da escolha da tarifa base
D8: Informações dos Cenários | L8: Data base | T8: Descrição | V8: Referência | Z8: Valores
D10: Cenário | T10: Passageiros | Y10: =CONCATENATE("Y",ROW()) -> Y10 | Z10: Quant
D11: 1 | E11: Prefeitura Chapecó - Base Edital - base 10/17 | L11: 2017-10-31 | T11: Antecipado | V11: CONSUMO | W11: =+Consumo!I83 -> B83 | Y11: =CONCATENATE("Y",ROW()) -> Y11 | Z11: =+Consumo!P83 -> 88911
D12: 2 | E12: Prefeitura Chapecó - Base Edital - base 10/17 - PROPOSTA | L12: 2017-10-31 | T12: Embarcado | V12: CONSUMO | W12: =+Consumo!I84 -> B84 | Y12: Y12 | Z12: =+Consumo!P84 -> 228790
D13: 3 | E13: Prefeitura Chapecó - Base Edital - base 10/17 - NÃO USAR | L13: 2018-08-31 | T13: Estudante | V13: CONSUMO | W13: =+Consumo!I85 -> B85 | Y13: Y13 | Z13: =+Consumo!P85 -> 152867
D14: 4 | E14: Prefeitura Chapecó - Base Edital - base 10/17 - NÃO USAR | L14: 2018-08-31 | T14: Vale transporte | V14: CONSUMO | W14: =+Consumo!I86 -> B86 | Y14: Y14 | Z14: =+Consumo!P86 -> 397819
T15: Total de pagantes | V15: =CONCATENATE("Soma de ",Y11,"..",Y14) -> Soma de Y11..Y14 | Y15: Y15 | Z15: =SUM(Z11:Z14) -> 868387
D16: Escolha do Cenário | K16: 2 | T16: Gratuidades | V16: CONSUMO | W16: =+Consumo!I89 -> B89 | Y16: Y16 | Z16: =+Consumo!K89 -> 149085
T17: Total de passageiros | V17: =CONCATENATE("+",Y15," + ",Y16) -> +Y15 + Y16 | Y17: Y17 | Z17: =SUM(Z15:Z16) -> 1017472
E18: =VLOOKUP(K16,Esc_Cenario,2) -> Prefeitura Chapecó - Base Edital - base 10/17 - PROPOSTA | Y18: Y18
E19: Area de Cálculo "a" - Por KM | J19: =+K16+2 -> 4 | T19: Passageiros | Y19: Y19 | Z19: %
E20: Area de Cálculo "b" - Por Veiculo | J20: =+K16+7 -> 9 | T20: Antecipado | Y20: Y20 | Z20: =+Z11/Z$15 -> 0.1023863784
E21: Area de Cálculo "c" - Valor Mensal | J21: =+K16+12 -> 14 | T21: Embarcado | Y21: Y21 | Z21: 0.2634654826
E22: Area de Cálculo "d" - Dados DP | J22: =+K16+2 -> 4 | T22: Estudante | Y22: Y22 | Z22: 0.1760355694
E23: Area de Cálculo "t" - Dados tarifa | J23: =+K16+2 -> 4 | T23: Vale transporte | Y23: Y23 | Z23: 0.4581125696
T24: Total de pagantes | Y24: Y24 | Z24: 1
D25: Tarifa base = 1 - Antecipado - 2 Embarcado | K25: 2 | T25: Gratuidades | Y25: Y25 | Z25: 0.1716803683
T26: Total de passageiros | Y26: Y26 | Z26: 1.171680368
D27: Depreciação = 1 - Linear 2 - Acelerada (cole) | K27: 1 | Y27: Y27
T28: TARIFA BASE | Y28: Y28 | Z28: Antecipado (1) | AA28: Embarcado (2)
Y29: Y29
T30: Valor da tarifa base | W30: ? | Y30: Y30 | Z30: 2.98 | AA30: 3.25 | AE30: 2.98 | AF30: 3.25 | AG30: 3.3 | AH30: 3.2 | AI30: 3.1
Y31: Y31
T32: Antecipado e Vale transporte | V32: CONSUMO | W32: =+Consumo!I76 -> B76 | Y32: Y32 | Z32: =+Consumo!P76 -> 2.98 | AA32: =+Consumo!P76 -> 2.98
T33: Embarcado | V33: CONSUMO | W33: =+Consumo!I77 -> B77 | Y33: Y33 | Z33: =+Consumo!P77 -> 3.25 | AA33: =+Consumo!P77 -> 3.25
T34: Estudante | V34: CONSUMO | W34: =+Consumo!I78 -> B78 | Y34: Y34 | Z34: =+Consumo!P78 -> 1.49 | AA34: =+Consumo!P78 -> 1.49
Y35: Y35
T36: Percentual sobre a tarifa base | Y36: Y36
T37: Antecipado e Vale transporte | V37: =CONCATENATE(Y32," / ",Y$30," - 1") -> Y32 / Y30 - 1 | Y37: Y37 | Z37: =+Z32/Z$30-1 -> 0 | AA37: -0.08307692308
T38: Embarcado | V38: =CONCATENATE(Y33," / ",Y$30," - 1") -> Y33 / Y30 - 1 | Y38: Y38 | Z38: 0.09060402685 | AA38: 0
T39: Estudante | V39: =CONCATENATE(Y34," / ",Y$30," - 1") -> Y34 / Y30 - 1 | Y39: Y39 | Z39: -0.5 | AA39: -0.5415384615
Y40: Y40
T41: Passageiros equivalentes | V41: =CONCATENATE("(",Y11,"x",Y32,")+","(",Y12,"x",Y33,")+","(",Y13,"x",Y34,")+","(",Y14,"x",Y32,"/",Y30) -> (Y11xY32)+(Y12xY33)+(Y13xY34)+(Y14xY32/Y30 | Y41: Y41 | Z41: =(+$Z11*$Z32+$Z12*$Z33+$Z13*$Z34+$Z14*$Z32)/Z30 -> 812682.7953 | AA41: =(+$Z11*$Z32+$Z12*$Z33+$Z13*$Z34+$Z14*$Z32)/AA30 -> 745167.6092
Y42: Y42
T43: Percurso mensal programado em KM | V43: CONSUMO | W43: =+Consumo!I14 -> B14 | Y43: Y43 | Z43: =+Consumo!P14 -> 402640 | AA43: =+Z43 -> 402640
T44: IPK - Indice de passageiro por KM | V44: =CONCATENATE(Y41," / ",Y43) -> Y41 / Y43 | Y44: Y44 | Z44: =+Z41/Z43 -> 2.018385643 | AA44: =+AA41/AA43 -> 1.850704374
T45: Custo da tarifa | V45: =CONCATENATE(Y46," / ",Y44) -> Y46 / Y44 | Y45: Y45 | Z45: =+Z46/Z44 -> 2.980020214 | AA45: =+AA46/AA44 -> 3.250022046
T46: Custo por Quilometro | V46: =CONCATENATE(Y47," / ",Y43) -> Y47 / Y43 | Y46: Y46 | Z46: =+Z47/Z43 -> 6.014830017 | AA46: =+AA47/AA43 -> 6.014830017
T47: Custo total | V47: APURA | W47: =+Apura!I326 -> A326 | Y47: Y47 | Z47: =+Apura!AB326 -> 2421811.158 | AA47: =+Apura!AB326 -> 2421811.158
Y48: Y48
Y49: Y49

Sheet Tarifa
K1: =+K31 -> 3.25 | L1: =+L31 -> 3.25 | M1: =+M31 -> 0.0043 | N1: =+N31 -> 0.0035
B2: TARIFA | I2: ÁREA DE DADOS E CÁLCULOS - NÃO INCLUIR COLUNA
A3: pedro milton golfe | B3: PREFEITURA MUNICIPAL DE CHAPECO
A4: pedro milton golfe | B4: SECRETARIA DE DEFESA DO CIDADÃO
A5: pedro milton golfe | B5: SISTEMA DE TRANSPORTE PÚBLICO DE PASSAGEIROS
B6: Apuração da tarifa e fluxo de caixa
B7: =CONCATENATE(+Cenario!$D$10," - ",+Cenario!$E$18) -> Cenário - Prefeitura Chapecó - Base Edital - base 10/17 - PROPOSTA | F7: =+Apura!$Z$11 -> Cenário 02 | K7: Tarifa base | L7: =IF(Esc_tarifa_base=1,"Antecipado","Embarcado") -> Embarcado
B9: ITEM | C9: DISCRIMINAÇÃO | F9: Referência | K9: VALOR MENSAL | P9: Dados para Fluxo de Caixa
K10: =+Consumo!K10 -> 2017-10-31 | L10: =+Consumo!L10 -> 2017-10-31 | M10: =+Consumo!M10 -> 2018-08-31 | N10: =+Consumo!N10 -> 2018-08-31 | P10: =VLOOKUP($I11,Base_t,Calc_t,0) -> Cenário 02
I11: =CONCATENATE("T",ROW()) -> T11 | K11: Cenário 01 | L11: Cenário 02 | M11: Cenário 03 | N11: Cenário 04 | P11: Valor mensal | R11: Teste | T11: Descrição
I12: =CONCATENATE("T",ROW()) -> T12
C13: TARIFAS e FLUXO DE CAIXA | I13: T13
I14: T14
C15: 101 | D15: Tarifa Atual | I15: T15
D16: Tarifa base | F16: =IF(Esc_tarifa_base=1,"Antecipado","Embarcado") -> Embarcado | I16: T16 | K16: =IF(Esc_tarifa_base=1,K17,K18) -> 3.25 | L16: =IF(Esc_tarifa_base=1,L17,L18) -> 3.25 | M16: =IF(Esc_tarifa_base=1,M17,M18) -> 3.25 | N16: =IF(Esc_tarifa_base=1,N17,N18) -> 3.25
D17: Antecipado e Vale transporte | F17: CONSUMO | G17: =+Consumo!I76 -> B76 | I17: T17 | K17: =+Consumo!K76 -> 2.98 | L17: =+Consumo!L76 -> 2.98 | M17: =+Consumo!M76 -> 2.98 | N17: =+Consumo!N76 -> 2.98
D18: Embarcado | F18: CONSUMO | G18: =+Consumo!I77 -> B77 | I18: T18 | K18: =+Consumo!K77 -> 3.25 | L18: =+Consumo!L77 -> 3.25 | M18: =+Consumo!M77 -> 3.25 | N18: =+Consumo!N77 -> 3.25
D19: Estudante | F19: CONSUMO | G19: =+Consumo!I78 -> B78 | I19: T19 | K19: =+Consumo!K78 -> 1.49 | L19: =+Consumo!L78 -> 1.49 | M19: =+Consumo!M78 -> 1.49 | N19: =+Consumo!N78 -> 1.49
I20: T20
D21: Percentuais Tarifa Atual | I21: T21
D22: Tarifa base | F22: =IF(Esc_tarifa_base=1,"Antecipado","Embarcado") -> Embarcado | I22: T22 | K22: =+K16/K$16 -> 1 | L22: =+L16/L$16 -> 1 | M22: =+M16/M$16 -> 1 | N22: =+N16/N$16 -> 1
D23: Antecipado e Vale transporte | F23: =CONCATENATE(I17," / ",I$16) -> T17 / T16 | I23: T23 | K23: =+K17/K$16-1 -> -0.08307692308 | L23: -0.08307692308 | M23: -0.08307692308 | N23: -0.08307692308
D24: Embarcado | F24: =CONCATENATE(I18," / ",I$16) -> T18 / T16 | I24: T24 | K24: 0 | L24: 0 | M24: 0 | N24: 0
D25: Estudante | F25: =CONCATENATE(I19," / ",I$16) -> T19 / T16 | I25: T25 | K25: -0.5415384615 | L25: -0.5415384615 | M25: -0.5415384615 | N25: -0.5415384615
I26: T26
C27: 102 | D27: Tarifa apurada | F27: APURA | G27: =+Apura!I330 -> A330 | I27: T27 | K27: =+Apura!K330 -> 3.250020342 | L27: =+Apura!L330 -> 3.250020342 | M27: =+Apura!M330 -> 0.004320741671 | N27: =+Apura!N330 -> 0.003509621155 | P27: =VLOOKUP($I27,Base_t,Calc_t,0) -> 3.250020342 | R27: =+P27*Apura!AB21 -> 2421811.158 | T27: Receita necessária
D28: Variação Percentual em relação a atual | F28: =CONCATENATE(I27," / ",I$17) -> T27 / T17 | I28: T28 | K28: =+K27/K16-1 -> 6.258934181e-06 | L28: =+L27/L16-1 -> 6.258934181e-06 | M28: =+M27/M16-1 -> -0.998670541 | N28: =+N27/N16-1 -> -0.9989201166
I29: T29
C30: 103 | D30: Tarifa apurada equivalente (somente referência) | I30: T30
D31: Tarifa base | F31: =IF(Esc_tarifa_base=1,"Antecipado","Embarcado") -> Embarcado | I31: T31 | K31: =IF(Esc_tarifa_base=1,K32,K33) -> 3.25 | L31: =IF(Esc_tarifa_base=1,L32,L33) -> 3.25 | M31: =IF(Esc_tarifa_base=1,M32,M33) -> 0.0043 | N31: =IF(Esc_tarifa_base=1,N32,N33) -> 0.0035
D32: Antecipado e Vale transporte | F32: =CONCATENATE(I$27," x ",I23) -> T27 x T23 | I32: T32 | K32: =ROUND(+K$27*(K23+1),4) -> 2.98 | L32: 2.98 | M32: 0.004 | N32: 0.0032
D33: Embarcado | F33: =CONCATENATE(I$27," x ",I24) -> T27 x T24 | I33: T33 | K33: 3.25 | L33: 3.25 | M33: 0.0043 | N33: 0.0035
D34: Estudante | F34: =CONCATENATE(I$27," x ",I25) -> T27 x T25 | I34: T34 | K34: 1.49 | L34: 1.49 | M34: 0.002 | N34: 0.0016
I35: T35
D36: Percentuais Tarifa Apurada equivalente | I36: T36
D37: Tarifa base | F37: =IF(Esc_tarifa_base=1,"Antecipado","Embarcado") -> Embarcado | I37: T37 | K37: =+K31/K$31 -> 1 | L37: =+L31/L$31 -> 1 | M37: =+M31/M$31 -> 1 | N37: =+N31/N$31 -> 1
D38: Antecipado e Vale transporte | F38: =CONCATENATE(I32," / ",I$31) -> T32 / T31 | I38: T38 | K38: =+K32/K$31-1 -> -0.08307692308 | L38: -0.08307692308 | M38: -0.06976744186 | N38: -0.08571428571
D39: Embarcado | F39: =CONCATENATE(I33," / ",I$31) -> T33 / T31 | I39: T39 | K39: 0 | L39: 0 | M39: 0 | N39: 0
D40: Estudante | F40: =CONCATENATE(I34," / ",I$31) -> T34 / T31 | I40: T40 | K40: -0.5415384615 | L40: -0.5415384615 | M40: -0.5348837209 | N40: -0.5428571429
I41: T41
I42: T42 | K42: =+K44/K27 -> 0.9999937411 | L42: =+L44/L27 -> 0.9999937411 | M42: =+M44/M27 -> 2.314417469 | N42: =+N44/N27 -> 2.849310384
C43: 104 | D43: Nova Tarifa | I43: T43
D44: Tarifa base | F44: =IF(Esc_tarifa_base=1,"Antecipado","Embarcado") -> Embarcado | I44: T44 | K44: =IF(Esc_tarifa_base=1,K45,K46) -> 3.25 | L44: =IF(Esc_tarifa_base=1,L45,L46) -> 3.25 | M44: =IF(Esc_tarifa_base=1,M45,M46) -> 0.01 | N44: =IF(Esc_tarifa_base=1,N45,N46) -> 0.01 | P44: =VLOOKUP($I44,Base_t,Calc_t,0) -> 3.25
D45: Antecipado e Vale transporte | G45: ? | I45: T45 | K45: 2.98 | L45: 2.98 | M45: 0.01 | N45: 0.01 | P45: =VLOOKUP($I45,Base_t,Calc_t,0) -> 2.98 | R45: =+R82/R27 -> 0 | T45: Percentual receita projetada x receita necessária
D46: Embarcado | G46: ? | I46: T46 | K46: 3.25 | L46: 3.25 | M46: 0.01 | N46: 0.01 | P46: =VLOOKUP($I46,Base_t,Calc_t,0) -> 3.25
D47: Base tarifa Estudante | F47: =CONCATENATE(" 50 % de ",I45) -> 50 % de T45 | I47: T47 | K47: =ROUND(K45*0.5,2) -> 1.49 | L47: 1.49 | M47: 0.01 | N47: 0.01 | P47: =VLOOKUP($I47,Base_t,Calc_t,0) -> 1.49
I48: T48
D49: Percentual ajuda estudante | G49: ? | I49: T49 | K49: 0.265 | L49: 0.265 | M49: 0 | N49: 0
D50: Tarifa Efetiva do Estudante | G50: ? | I50: T50 | K50: =ROUND(+K47*(1-K49),2) -> 1.1 | L50: =ROUND(+L47*(1-L49),2) -> 1.1 | M50: =ROUND(+M47*(1-M49),2) -> 0.01 | N50: =ROUND(+N47*(1-N49),2) -> 0.01 | P50: =VLOOKUP($I50,Base_t,Calc_t,0) -> 1.1
I51: T51
D52: Percentual de Reajuste | I52: T52
D53: Antecipado e Vale transporte | F53: =CONCATENATE(I45," / ",I17) -> T45 / T17 | I53: T53 | K53: =+K45/K17-1 -> 0 | L53: 0 | M53: -0.9966442953 | N53: -0.9966442953
D54: Embarcado | F54: =CONCATENATE(I46," / ",I18) -> T46 / T18 | I54: T54 | K54: 0 | L54: 0 | M54: -0.9969230769 | N54: -0.9969230769
D55: Estudante | F55: =CONCATENATE(I47," / ",I19) -> T47 / T19 | I55: T55 | K55: 0 | L55: 0 | M55: -0.9932885906 | N55: -0.9932885906
I56: T56
D57: Novos percentuais de Equivalencia | I57: T57
D58: Tarifa base | F58: =IF(Esc_tarifa_base=1,"Antecipado","Embarcado") -> Embarcado | I58: T58 | K58: =+K44/K$44 -> 1 | L58: =+L44/L$44 -> 1 | M58: =+M44/M$44 -> 1 | N58: =+N44/N$44 -> 1
D59: Antecipado e Vale transporte | F59: =CONCATENATE(I45," / ",I$31) -> T45 / T31 | I59: T59 | K59: =+K45/K$44-1 -> -0.08307692308 | L59: -0.08307692308 | M59: 0 | N59: 0
D60: Embarcado | F60: =CONCATENATE(I46," / ",I$31) -> T46 / T31 | I60: T60 | K60: 0 | L60: 0 | M60: 0 | N60: 0
D61: Estudante | F61: =CONCATENATE(I47," / ",I$31) -> T47 / T31 | I61: T61 | K61: =+K47/K$45-1 -> -0.5 | L61: =+L47/L$45-1 -> -0.5 | M61: =+M47/M$45-1 -> 0 | N61: =+N47/N$45-1 -> 0
I62: T62
C63: 105 | D63: Resultado do Fluxo de Caixa | I63: T63
D64: Taxa de desconto | G64: ? | I64: T64 | K64: 0.08 | L64: 0.08 | M64: 0.08 | N64: 0 | P64: =+Fx_caixa!K121 -> 0.08 | R64: =VLOOKUP($I64,Base_t,Calc_t,0)-P64 -> 0 | T64: Resultado do fluxo de caixa (amarelo)- Deve ser digitado na coluna do cenário correspondente
D65: VPL - Valor presente Liquido | G65: ? | I65: T65 | K65: 5783896.11 | L65: 5783896.11 | M65: 0 | N65: 0 | P65: =+Fx_caixa!K122 -> 5783896.114 | R65: =VLOOKUP($I65,Base_t,Calc_t,0)-P65 -> -0.003749394789
D66: TIR - Taxa de Retorno | G66: ? | I66: T66 | K66: 0.108 | L66: 0.108 | M66: 0 | N66: 0 | P66: =+Fx_caixa!K123 -> 0.1080474313 | R66: =VLOOKUP($I66,Base_t,Calc_t,0)-P66 -> -4.74312525e-05
I67: T67
D68: Saldo final de caixa | G68: ? | I68: T68 | K68: 46853217.78 | L68: 46853217.78 | M68: 0 | N68: 0 | P68: =+Fx_caixa!AE115 -> 46853217.78 | R68: =VLOOKUP($I68,Base_t,Calc_t,0)-P68 -> -0.00211173296
I69: T69
D70: Receita de tarifa | F70: =CONCATENATE("(",I78," x ",I45,") + (",I79," x ",I46,") + (",I80," x ",I47," + (",I81," x ",I45,")") -> (T78 x T45) + (T79 x T46) + (T80 x T47 + (T81 x T45) | I70: T70 | K70: =+K78*K45+K79*K46+K80*K47+K81*K45 -> 2421794.73 | L70: =+L78*L45+L79*L46+L80*L47+L81*L45 -> 2421794.73 | M70: =+M78*M45+M79*M46+M80*M47+M81*M45 -> 8683.87 | N70: =+N78*N45+N79*N46+N80*N47+N81*N45 -> 8683.87
D71: Receita compl de publicidade | F71: APURA | G71: =+Apura!I293 -> A293 | I71: T71 | K71: =-Apura!U293 -> 8800 | L71: =-Apura!V293 -> 8800 | M71: =-Apura!W293 -> 88 | N71: =-Apura!X293 -> 88
D72: Total das Receitas | F72: =CONCATENATE("Soma de ",I70,"..",I71) -> Soma de T70..T71 | I72: T72 | K72: =SUM(K70:K71) -> 2430594.73 | L72: =SUM(L70:L71) -> 2430594.73 | M72: =SUM(M70:M71) -> 8771.87 | N72: =SUM(N70:N71) -> 8771.87
I73: T73
D74: Valor tarifa Auxilio Estudante | F74: =CONCATENATE(I$47," - ",I50) -> T47 - T50 | I74: T74 | K74: =+K47-K50 -> 0.39 | L74: =+L47-L50 -> 0.39 | M74: =+M47-M50 -> 0 | N74: =+N47-N50 -> 0
D75: Valor mensal auxilio Estudante | F75: =CONCATENATE(I$74," x ",I80) -> T74 x T80 | I75: T75 | K75: =+K74*K80 -> 59618.13 | L75: =+L74*L80 -> 59618.13 | M75: =+M74*M80 -> 0 | N75: =+N74*N80 -> 0
I76: T76
C77: 106 | D77: Media Passageiros (Ultimos 12 meses) | I77: T77
D78: Antecipado | F78: CONSUMO | G78: =+Consumo!I83 -> B83 | I78: T78 | K78: =+Consumo!K83 -> 88911 | L78: =+Consumo!L83 -> 88911 | M78: =+Consumo!M83 -> 88911 | N78: =+Consumo!N83 -> 88911
D79: Embarcado | F79: CONSUMO | G79: =+Consumo!I84 -> B84 | I79: T79 | K79: =+Consumo!K84 -> 228790 | L79: =+Consumo!L84 -> 228790 | M79: =+Consumo!M84 -> 228790 | N79: =+Consumo!N84 -> 228790
D80: Estudante | F80: CONSUMO | G80: =+Consumo!I85 -> B85 | I80: T80 | K80: =+Consumo!K85 -> 152867 | L80: =+Consumo!L85 -> 152867 | M80: =+Consumo!M85 -> 152867 | N80: =+Consumo!N85 -> 152867
D81: Vale transporte | F81: CONSUMO | G81: =+Consumo!I86 -> B86 | I81: T81 | K81: =+Consumo!K86 -> 397819 | L81: =+Consumo!L86 -> 397819 | M81: =+Consumo!M86 -> 397819 | N81: =+Consumo!N86 -> 397819
D82: Total | F82: =CONCATENATE("Soma de ",I78,"..",I81) -> Soma de T78..T81 | I82: T82 | K82: =SUM(K78:K81) -> 868387 | L82: =SUM(L78:L81) -> 868387 | M82: =SUM(M78:M81) -> 868387 | N82: =SUM(N78:N81) -> 868387
I83: T83
C84: 107 | D84: Projeção Passageiros Equivalente | F84: =CONCATENATE("(",I78," x ",I45,") + (",I79," x ",I46,") + (",I80, " x ",I47," + (",I81," x ",I45,") / ",I44) -> (T78 x T45) + (T79 x T46) + (T80 x T47 + (T81 x T45) / T44 | I84: T84 | K84: =ROUND((+K78*K45+K79*K46+K80*K47+K81*K45)/K44,0) -> 745168 | L84: =ROUND((+L78*L45+L79*L46+L80*L47+L81*L45)/L44,0) -> 745168 | M84: =ROUND((+M78*M45+M79*M46+M80*M47+M81*M45)/M44,0) -> 868387 | N84: =ROUND((+N78*N45+N79*N46+N80*N47+N81*N45)/N44,0) -> 868387 | P84: =VLOOKUP($I84,Base_t,Calc_t,0) -> 745168

Sheet Apura
U1: =+Tarifa!K31 -> 3.25 | V1: =+Tarifa!L31 -> 3.25 | W1: =+Tarifa!M31 -> 0.0043 | X1: =+Tarifa!N31 -> 0.0035
B2: APURA | I2: ÁREA DE DADOS E CÁLCULOS - NÃO INCLUIR COLUNA
A3: pedro milton golfe | B3: PREFEITURA MUNICIPAL DE CHAPECO
A4: pedro milton golfe | B4: CONTROLADORIA GERAL DO MUNICÍPIO
A5: pedro milton golfe | B5: SISTEMA DE TRANSPORTE PÚBLICO DE PASSAGEIROS
B6: Apuração do Custo do Sistema
B7: =CONCATENATE(+Cenario!$D$10," - ",+Cenario!$E$18) -> Cenário - Prefeitura Chapecó - Base Edital - base 10/17 - PROPOSTA | F7: =+Apura!$Z$11 -> Cenário 02 | K7: Tarifa base | L7: =IF(Esc_tarifa_base=1,"Antecipado","Embarcado") -> Embarcado | Z7: Dados Para Fluxo de Caixa
B9: ITEM | C9: DISCRIMINAÇÃO | F9: Referência | K9: VALOR CUSTO POR KM | P9: VALOR CUSTO POR VEICULO | U9: VALOR CUSTO MENSAL | Z9: Custo por KM | AA9: Custo por Veiculo | AB9: Custo Mensal
K10: =+Cenario!L11 -> 2017-10-31 | L10: =+Cenario!L12 -> 2017-10-31 | M10: =+Cenario!L13 -> 2018-08-31 | N10: =+Cenario!L14 -> 2018-08-31 | P10: =+K10 -> 2017-10-31 | Q10: =+L10 -> 2017-10-31 | R10: =+M10 -> 2018-08-31 | S10: =+N10 -> 2018-08-31 | U10: =+P10 -> 2017-10-31 | V10: =+Q10 -> 2017-10-31 | W10: =+R10 -> 2018-08-31 | X10: =+S10 -> 2018-08-31
I11: =CONCATENATE("A",ROW()) -> A11 | K11: Cenário 01 | L11: Cenário 02 | M11: Cenário 03 | N11: Cenário 04 | P11: Cenário 01 | Q11: Cenário 02 | R11: Cenário 03 | S11: Cenário 04 | U11: Cenário 01 | V11: Cenário 02 | W11: Cenário 03 | X11: Cenário 04 | Z11: =VLOOKUP($I11,Base_a,calc_c,0) -> Cenário 02
I12: A12
B13: APURAÇÃO DO CUSTO | I13: A13
I14: A14
B15: 1 | C15: QUILOMETRAGEM E PASSAGEIROS | I15: A15
I16: A16
C17: 101 | D17: Percuso Mensal em KM | F17: CONSUMO | G17: =+Consumo!I14 -> B14 | I17: A17 | U17: =+Consumo!K14 -> 402640 | V17: =+Consumo!L14 -> 402640 | W17: =+Consumo!M14 -> 402640 | X17: =+Consumo!N14 -> 402640 | AB17: =VLOOKUP($I17,Base_a,calc_c,0) -> 402640
I18: A18
C19: 102 | D19: PMM - Percurso Médio Mensal por Veiculo | F19: CONSUMO | G19: =+Consumo!I70 -> B70 | I19: A19 | U19: =+Consumo!K70 -> 5033 | V19: =+Consumo!L70 -> 5033 | W19: =+Consumo!M70 -> 5033 | X19: =+Consumo!N70 -> 5033 | AB19: =VLOOKUP($I19,Base_a,calc_c,0) -> 5033
I20: A20
C21: 103 | D21: Passageiros Equivalentes - Média Mensal | F21: CONSUMO | G21: =+Consumo!I80 -> B80 | I21: A21 | U21: =+Consumo!K80 -> 745168 | V21: =+Consumo!L80 -> 745168 | W21: =+Consumo!M80 -> 745168 | X21: =+Consumo!N80 -> 745168 | AB21: =VLOOKUP($I21,Base_a,calc_c,0) -> 745168
I22: A22
C23: 104 | D23: IPK | F23: =CONCATENATE(I21," / ",I$17) -> A21 / A17 | I23: A23 | U23: =+U21/U17 -> 1.850705345 | V23: =+V21/V17 -> 1.850705345 | W23: =+W21/W17 -> 1.850705345 | X23: =+X21/X17 -> 1.850705345 | AB23: =VLOOKUP($I23,Base_a,calc_c,0) -> 1.850705345
I24: A24
B25: 2 | C25: FROTA | I25: A25
I26: A26
C27: 201 | D27: Frota Total | I27: A27 | U27: Quantidade | V27: Quantidade | W27: Quantidade | X27: Quantidade | AB27: =VLOOKUP($I27,Base_a,calc_c,0) -> Quantidade
D28: Micro | F28: DR_FROTA | G28: =+DR_Frota!I97 -> C97 | I28: A28 | U28: =+DR_Frota!K97 -> 1 | V28: =+DR_Frota!L97 -> 1 | W28: =+DR_Frota!M97 -> 1 | X28: =+DR_Frota!N97 -> 1 | AB28: 1
D29: Leve | F29: DR_FROTA | G29: =+DR_Frota!I98 -> C98 | I29: A29 | U29: =+DR_Frota!K98 -> 14 | V29: =+DR_Frota!L98 -> 14 | W29: =+DR_Frota!M98 -> 14 | X29: =+DR_Frota!N98 -> 14 | AB29: 14
D30: Pesado | F30: DR_FROTA | G30: =+DR_Frota!I99 -> C99 | I30: A30 | U30: =+DR_Frota!K99 -> 72 | V30: =+DR_Frota!L99 -> 72 | W30: =+DR_Frota!M99 -> 72 | X30: =+DR_Frota!N99 -> 72 | AB30: 72
D31: Articulado | F31: DR_FROTA | G31: =+DR_Frota!I100 -> C100 | I31: A31 | U31: =+DR_Frota!K100 -> 1 | V31: =+DR_Frota!L100 -> 1 | W31: =+DR_Frota!M100 -> 1 | X31: =+DR_Frota!N100 -> 1 | AB31: 1
D32: Total | F32: =CONCATENATE("Soma de ",I28,"..",I31) -> Soma de A28..A31 | I32: A32 | U32: =SUM(U28:U31) -> 88 | V32: =SUM(V28:V31) -> 88 | W32: =SUM(W28:W31) -> 88 | X32: =SUM(X28:X31) -> 88 | AB32: 88
I33: A33
C34: 202 | D34: Frota Não Operante | I34: A34 | U34: Quantidade | V34: Quantidade | W34: Quantidade | X34: Quantidade | AB34: =VLOOKUP($I34,Base_a,calc_c,0) -> Quantidade
D35: Micro | F35: DR_FROTA | G35: =+DR_Frota!I106 -> C106 | I35: A35 | U35: =+DR_Frota!K106 -> 0 | V35: =+DR_Frota!L106 -> 0 | W35: =+DR_Frota!M106 -> 0 | X35: =+DR_Frota!N106 -> 0 | AB35: 0
D36: Leve | F36: DR_FROTA | G36: =+DR_Frota!I107 -> C107 | I36: A36 | U36: =+DR_Frota!K107 -> 0 | V36: =+DR_Frota!L107 -> 0 | W36: =+DR_Frota!M107 -> 0 | X36: =+DR_Frota!N107 -> 0 | AB36: 0
D37: Pesado | F37: DR_FROTA | G37: =+DR_Frota!I108 -> C108 | I37: A37 | U37: =+DR_Frota!K108 -> 8 | V37: =+DR_Frota!L108 -> 8 | W37: =+DR_Frota!M108 -> 8 | X37: =+DR_Frota!N108 -> 8 | AB37: 8
D38: Articulado | F38: DR_FROTA | G38: =+DR_Frota!I109 -> C109 | I38: A38 | U38: =+DR_Frota!K109 -> 0 | V38: =+DR_Frota!L109 -> 0 | W38: =+DR_Frota!M109 -> 0 | X38: =+DR_Frota!N109 -> 0 | AB38: 0
D39: Total | F39: =CONCATENATE("Soma de ",I35,"..",I38) -> Soma de A35..A38 | I39: A39 | U39: =SUM(U35:U38) -> 8 | V39: =SUM(V35:V38) -> 8 | W39: =SUM(W35:W38) -> 8 | X39: =SUM(X35:X38) -> 8 | AB39: 8
I40: A40
C41: 203 | D41: Frota Operante | I41: A41 | U41: Quantidade | V41: Quantidade | W41: Quantidade | X41: Quantidade | AB41: =VLOOKUP($I41,Base_a,calc_c,0) -> Quantidade
D42: Micro | F42: DR_FROTA | G42: =+DR_Frota!I113 -> C113 | I42: A42 | U42: =+DR_Frota!K113 -> 1 | V42: =+DR_Frota!L113 -> 1 | W42: =+DR_Frota!M113 -> 1 | X42: =+DR_Frota!N113 -> 1 | AB42: 1
D43: Leve | F43: DR_FROTA | G43: =+DR_Frota!I114 -> C114 | I43: =CONCATENATE("A",ROW()) -> A43 | U43: =+DR_Frota!K114 -> 14 | V43: =+DR_Frota!L114 -> 14 | W43: =+DR_Frota!M114 -> 14 | X43: =+DR_Frota!N114 -> 14 | AB43: 14
D44: Pesado | F44: DR_FROTA | G44: =+DR_Frota!I115 -> C115 | I44: A44 | U44: =+DR_Frota!K115 -> 64 | V44: =+DR_Frota!L115 -> 64 | W44: =+DR_Frota!M115 -> 64 | X44: =+DR_Frota!N115 -> 64 | AB44: 64
D45: Articulado | F45: DR_FROTA | G45: =+DR_Frota!I116 -> C116 | I45: A45 | U45: =+DR_Frota!K116 -> 1 | V45: =+DR_Frota!L116 -> 1 | W45: =+DR_Frota!M116 -> 1 | X45: =+DR_Frota!N116 -> 1 | AB45: 1
D46: Total | F46: =CONCATENATE("Soma de ",I42,"..",I45) -> Soma de A42..A45 | I46: A46 | U46: =SUM(U42:U45) -> 80 | V46: =SUM(V42:V45) -> 80 | W46: =SUM(W42:W45) -> 80 | X46: =SUM(X42:X45) -> 80 | AB46: 80
I47: A47
C48: 204 | D48: Idade Média da Frota | I48: A48 | U48: Idade | V48: Idade | W48: Idade | X48: Idade | AB48: =VLOOKUP($I48,Base_a,calc_c,0) -> Idade
D49: Micro | F49: DR_FROTA | G49: =+DR_Frota!I127 -> C127 | I49: A49 | U49: =+DR_Frota!K127 -> 6 | V49: =+DR_Frota!L127 -> 6 | W49: =+DR_Frota!M127 -> 6 | X49: =+DR_Frota!N127 -> 6 | AB49: 6
D50: Leve | F50: DR_FROTA | G50: =+DR_Frota!I128 -> C128 | I50: A50 | U50: =+DR_Frota!K128 -> 4.142857143 | V50: =+DR_Frota!L128 -> 4.142857143 | W50: =+DR_Frota!M128 -> 4.142857143 | X50: =+DR_Frota!N128 -> 4.142857143 | AB50: 4.142857143
D51: Pesado | F51: DR_FROTA | G51: =+DR_Frota!I129 -> C129 | I51: A51 | U51: =+DR_Frota!K129 -> 4.5 | V51: =+DR_Frota!L129 -> 4.5 | W51: =+DR_Frota!M129 -> 4.5 | X51: =+DR_Frota!N129 -> 4.5 | AB51: 4.5
D52: Articulado | F52: DR_FROTA | G52: =+DR_Frota!I130 -> C130 | I52: A52 | U52: =+DR_Frota!K130 -> 4 | V52: =+DR_Frota!L130 -> 4 | W52: =+DR_Frota!M130 -> 4 | X52: =+DR_Frota!N130 -> 4 | AB52: 4
D53: Total | F53: =CONCATENATE("Soma de ",I49,"..",I52) -> Soma de A49..A52 | I53: A53 | U53: =+DR_Frota!K131 -> 4.454545455 | V53: =+DR_Frota!L131 -> 4.454545455 | W53: =+DR_Frota!M131 -> 4.454545455 | X53: =+DR_Frota!N131 -> 4.454545455 | AB53: 4.454545455
I54: A54
C55: 205 | D55: Valor - Onibus com Rodagem | I55: A55
D56: Micro | F56: CONSUMO | G56: =+Consumo!I261 -> B261 | I56: A56 | U56: =+Consumo!K261 -> 274000 | V56: =+Consumo!L261 -> 274000 | W56: =+Consumo!M261 -> 1000 | X56: =+Consumo!N261 -> 1000 | AB56: =VLOOKUP($I56,Base_a,calc_c,0) -> 274000
D57: Leve | F57: CONSUMO | G57: =+Consumo!I262 -> B262 | I57: A57 | U57: =+Consumo!K262 -> 278340 | V57: =+Consumo!L262 -> 278340 | W57: =+Consumo!M262 -> 1000 | X57: =+Consumo!N262 -> 1000 | AB57: =VLOOKUP($I57,Base_a,calc_c,0) -> 278340
D58: Pesado | F58: CONSUMO | G58: =+Consumo!I263 -> B263 | I58: A58 | U58: =+Consumo!K263 -> 303890 | V58: =+Consumo!L263 -> 303890 | W58: =+Consumo!M263 -> 1000 | X58: =+Consumo!N263 -> 1000 | AB58: =VLOOKUP($I58,Base_a,calc_c,0) -> 303890
D59: Articulado | F59: CONSUMO | G59: =+Consumo!I264 -> B264 | I59: A59 | U59: =+Consumo!K264 -> 362700 | V59: =+Consumo!L264 -> 362700 | W59: =+Consumo!M264 -> 1000 | X59: =+Consumo!N264 -> 1000 | AB59: =VLOOKUP($I59,Base_a,calc_c,0) -> 362700
I60: A60
C61: 206 | D61: Valor - Onibus sem Rodagem | I61: A61
D62: Micro | F62: CONSUMO | G62: =+Consumo!I279 -> B279 | I62: A62 | U62: =+Consumo!K279 -> 270708.94 | V62: =+Consumo!L279 -> 270708.94 | W62: =+Consumo!M279 -> 999.94 | X62: =+Consumo!N279 -> 999.94 | AB62: =VLOOKUP($I62,Base_a,calc_c,0) -> 270708.94
D63: Leve | F63: CONSUMO | G63: =+Consumo!I280 -> B280 | I63: A63 | U63: =+Consumo!K280 -> 269795.82 | V63: =+Consumo!L280 -> 269795.82 | W63: =+Consumo!M280 -> 999.94 | X63: =+Consumo!N280 -> 999.94 | AB63: =VLOOKUP($I63,Base_a,calc_c,0) -> 269795.82
D64: Pesado | F64: CONSUMO | G64: =+Consumo!I281 -> B281 | I64: A64 | U64: =+Consumo!K281 -> 294624.2 | V64: =+Consumo!L281 -> 294624.2 | W64: =+Consumo!M281 -> 999.94 | X64: =+Consumo!N281 -> 999.94 | AB64: =VLOOKUP($I64,Base_a,calc_c,0) -> 294624.2
D65: Articulado | F65: CONSUMO | G65: =+Consumo!I282 -> B282 | I65: A65 | U65: =+Consumo!K282 -> 347758.2 | V65: =+Consumo!L282 -> 347758.2 | W65: =+Consumo!M282 -> 999.9 | X65: =+Consumo!N282 -> 999.9 | AB65: =VLOOKUP($I65,Base_a,calc_c,0) -> 347758.2
I66: A66
C67: 207 | D67: Valor Total da Frota | I67: A67
D68: Micro | F68: DR_FROTA | G68: =+DR_Frota!I146 -> C146 | I68: A68 | U68: =+DR_Frota!K146 -> 274000 | V68: =+DR_Frota!L146 -> 274000 | W68: =+DR_Frota!M146 -> 1000 | X68: =+DR_Frota!N146 -> 1000 | AB68: =VLOOKUP($I68,Base_a,calc_c,0) -> 274000
D69: Leve | F69: DR_FROTA | G69: =+DR_Frota!I147 -> C147 | I69: A69 | U69: =+DR_Frota!K147 -> 3896760 | V69: =+DR_Frota!L147 -> 3896760 | W69: =+DR_Frota!M147 -> 14000 | X69: =+DR_Frota!N147 -> 14000 | AB69: =VLOOKUP($I69,Base_a,calc_c,0) -> 3896760
D70: Pesado | F70: DR_FROTA | G70: =+DR_Frota!I148 -> C148 | I70: =CONCATENATE("A",ROW()) -> A70 | U70: =+DR_Frota!K148 -> 21880080 | V70: =+DR_Frota!L148 -> 21880080 | W70: =+DR_Frota!M148 -> 72000 | X70: =+DR_Frota!N148 -> 72000 | AB70: =VLOOKUP($I70,Base_a,calc_c,0) -> 21880080
D71: Articulado | F71: DR_FROTA | G71: =+DR_Frota!I149 -> C149 | I71: A71 | U71: =+DR_Frota!K149 -> 362700 | V71: =+DR_Frota!L149 -> 362700 | W71: =+DR_Frota!M149 -> 1000 | X71: =+DR_Frota!N149 -> 1000 | AB71: =VLOOKUP($I71,Base_a,calc_c,0) -> 362700
D72: Total | F72: =CONCATENATE("Soma de ",I68,"..",I71) -> Soma de A68..A71 | I72: A72 | U72: =SUM(U68:U71) -> 26413540 | V72: =SUM(V68:V71) -> 26413540 | W72: =SUM(W68:W71) -> 88000 | X72: =SUM(X68:X71) -> 88000 | AB72: =VLOOKUP($I72,Base_a,calc_c,0) -> 26413540
I73: A73
B74: 3 | C74: CAPITAL - DEPRECIAÇÃO e REMUNERAÇÃO | I74: A74
I75: A75
C76: Os cálculo da Depreciação e Remuneração são efetuados considerando a Frota Total | I76: A76 | K76: =CONCATENATE("Valor custo por km = Custo Mensal / Percurso Mensal (",I$17,")") -> Valor custo por km = Custo Mensal / Percurso Mensal (A17) | P76: =CONCATENATE("Valor custo por Veiculo = Custo Mensal / Frota Total (",I$32,")") -> Valor custo por Veiculo = Custo Mensal / Frota Total (A32)
I77: A77
I78: A78
C79: VEICULOS | I79: A79
I80: A80
C81: 301 | D81: Depreciação Mensal da Frota | I81: A81
D82: Micro | F82: DR_FROTA | G82: =+DR_Frota!I415 -> C415 | I82: A82 | K82: =+U82/U$17 -> 0.005952960461 | L82: 0.005952960461 | M82: 2.197993245e-05 | N82: 2.197993245e-05 | P82: =+U82/U$32 -> 27.2375 | Q82: 27.2375 | R82: 0.1005681818 | S82: 0.1005681818 | U82: =+DR_Frota!K415 -> 2396.9 | V82: =+DR_Frota!L415 -> 2396.9 | W82: =+DR_Frota!M415 -> 8.85 | X82: =+DR_Frota!N415 -> 8.85 | AA82: =VLOOKUP($I82,Base_a,calc_b,0) -> 27.2375 | AB82: =VLOOKUP($I82,Base_a,calc_c,0) -> 2396.9
D83: Leve | F83: DR_FROTA | G83: =+DR_Frota!I416 -> C416 | I83: A83 | K83: 0.08306040135 | L83: 0.08306040135 | M83: 0.0003078432347 | N83: 0.0003078432347 | P83: 380.0390909 | Q83: 380.0390909 | R83: 1.408522727 | S83: 1.408522727 | U83: =+DR_Frota!K416 -> 33443.44 | V83: =+DR_Frota!L416 -> 33443.44 | W83: =+DR_Frota!M416 -> 123.95 | X83: =+DR_Frota!N416 -> 123.95 | AA83: =VLOOKUP($I83,Base_a,calc_b,0) -> 380.0390909 | AB83: =VLOOKUP($I83,Base_a,calc_c,0) -> 33443.44
D84: Pesado | F84: DR_FROTA | G84: =+DR_Frota!I417 -> C417 | I84: A84 | K84: 0.3951347854 | L84: 0.3951347854 | M84: 0.001341073912 | N84: 0.001341073912 | P84: 1807.92125 | Q84: 1807.92125 | R84: 6.136022727 | S84: 6.136022727 | U84: =+DR_Frota!K417 -> 159097.07 | V84: =+DR_Frota!L417 -> 159097.07 | W84: =+DR_Frota!M417 -> 539.97 | X84: =+DR_Frota!N417 -> 539.97 | AA84: =VLOOKUP($I84,Base_a,calc_b,0) -> 1807.92125 | AB84: =VLOOKUP($I84,Base_a,calc_c,0) -> 159097.07
D85: Articulado | F85: DR_FROTA | G85: =+DR_Frota!I418 -> C418 | I85: A85 | K85: 0.006477722035 | L85: 0.006477722035 | M85: 1.862706139e-05 | N85: 1.862706139e-05 | P85: 29.63852273 | Q85: 29.63852273 | R85: 0.08522727273 | S85: 0.08522727273 | U85: =+DR_Frota!K418 -> 2608.19 | V85: =+DR_Frota!L418 -> 2608.19 | W85: =+DR_Frota!M418 -> 7.5 | X85: =+DR_Frota!N418 -> 7.5 | AA85: =VLOOKUP($I85,Base_a,calc_b,0) -> 29.63852273 | AB85: =VLOOKUP($I85,Base_a,calc_c,0) -> 2608.19
D86: Total | F86: =CONCATENATE("Soma de ",I82,"..",I85) -> Soma de A82..A85 | I86: A86 | K86: 0.4906258693 | L86: 0.4906258693 | M86: 0.001689524141 | N86: 0.001689524141 | P86: =SUM(P82:P85) -> 2244.836364 | Q86: =SUM(Q82:Q85) -> 2244.836364 | R86: =SUM(R82:R85) -> 7.730340909 | S86: =SUM(S82:S85) -> 7.730340909 | U86: =SUM(U82:U85) -> 197545.6 | V86: =SUM(V82:V85) -> 197545.6 | W86: =SUM(W82:W85) -> 680.27 | X86: =SUM(X82:X85) -> 680.27 | Z86: =VLOOKUP($I86,Base_a,calc_a,0) -> 0.4906258693 | AA86: =VLOOKUP($I86,Base_a,calc_b,0) -> 2244.836364 | AB86: =VLOOKUP($I86,Base_a,calc_c,0) -> 197545.6
I87: A87
C88: 302 | D88: Remuneração Mensal da Frota | I88: A88
D89: Micro | F89: DR_FROTA | G89: =+DR_Frota!I581 -> C581 | I89: A89 | K89: =+U89/U$17 -> 0.002437214385 | L89: 0.002437214385 | M89: 9.015497715e-06 | N89: 9.015497715e-06 | P89: =+U89/U$32 -> 11.15136364 | Q89: 11.15136364 | R89: 0.04125 | S89: 0.04125 | U89: =+DR_Frota!K581 -> 981.32 | V89: =+DR_Frota!L581 -> 981.32 | W89: =+DR_Frota!M581 -> 3.63 | X89: =+DR_Frota!N581 -> 3.63 | Z89: =VLOOKUP($I89,Base_a,calc_a,0) -> 0.002437214385 | AA89: =VLOOKUP($I89,Base_a,calc_b,0) -> 11.15136364 | AB89: =VLOOKUP($I89,Base_a,calc_c,0) -> 981.32
D90: Leve | F90: DR_FROTA | G90: =+DR_Frota!I582 -> C582 | I90: A90 | K90: 0.05251651599 | L90: 0.05251651599 | M90: 0.0001946403735 | N90: 0.0001946403735 | P90: 240.2869318 | Q90: 240.2869318 | R90: 0.8905681818 | S90: 0.8905681818 | U90: =+DR_Frota!K582 -> 21145.25 | V90: =+DR_Frota!L582 -> 21145.25 | W90: =+DR_Frota!M582 -> 78.37 | X90: =+DR_Frota!N582 -> 78.37 | Z90: =VLOOKUP($I90,Base_a,calc_a,0) -> 0.05251651599 | AA90: =VLOOKUP($I90,Base_a,calc_b,0) -> 240.2869318 | AB90: =VLOOKUP($I90,Base_a,calc_c,0) -> 21145.25
D91: Pesado | F91: DR_FROTA | G91: =+DR_Frota!I583 -> C583 | I91: A91 | K91: 0.3134735992 | L91: 0.3134735992 | M91: 0.001063903239 | N91: 0.001063903239 | P91: 1434.284205 | Q91: 1434.284205 | R91: 4.867840909 | S91: 4.867840909 | U91: =+DR_Frota!K583 -> 126217.01 | V91: =+DR_Frota!L583 -> 126217.01 | W91: =+DR_Frota!M583 -> 428.37 | X91: =+DR_Frota!N583 -> 428.37 | Z91: =VLOOKUP($I91,Base_a,calc_a,0) -> 0.3134735992 | AA91: =VLOOKUP($I91,Base_a,calc_b,0) -> 1434.284205 | AB91: =VLOOKUP($I91,Base_a,calc_c,0) -> 126217.01
D92: Articulado | F92: DR_FROTA | G92: =+DR_Frota!I584 -> C584 | I92: A92 | K92: 0.005527642559 | L92: 0.005527642559 | M92: 1.589509239e-05 | N92: 1.589509239e-05 | P92: 25.29147727 | Q92: 25.29147727 | R92: 0.07272727273 | S92: 0.07272727273 | U92: =+DR_Frota!K584 -> 2225.65 | V92: =+DR_Frota!L584 -> 2225.65 | W92: =+DR_Frota!M584 -> 6.4 | X92: =+DR_Frota!N584 -> 6.4 | Z92: =VLOOKUP($I92,Base_a,calc_a,0) -> 0.005527642559 | AA92: =VLOOKUP($I92,Base_a,calc_b,0) -> 25.29147727 | AB92: =VLOOKUP($I92,Base_a,calc_c,0) -> 2225.65
D93: Total | F93: =CONCATENATE("Soma de ",I89,"..",I92) -> Soma de A89..A92 | I93: A93 | K93: 0.3739549722 | L93: 0.3739549722 | M93: 0.001283454202 | N93: 0.001283454202 | P93: =SUM(P89:P92) -> 1711.013977 | Q93: =SUM(Q89:Q92) -> 1711.013977 | R93: =SUM(R89:R92) -> 5.872386364 | S93: =SUM(S89:S92) -> 5.872386364 | U93: =SUM(U89:U92) -> 150569.23 | V93: =SUM(V89:V92) -> 150569.23 | W93: =SUM(W89:W92) -> 516.77 | X93: =SUM(X89:X92) -> 516.77 | Z93: =VLOOKUP($I93,Base_a,calc_a,0) -> 0.3739549722 | AA93: =VLOOKUP($I93,Base_a,calc_b,0) -> 1711.013977 | AB93: =VLOOKUP($I93,Base_a,calc_c,0) -> 150569.23
I94: A94
D95: Total Depreciação e Remuneração de Veiculos | F95: =CONCATENATE(" ",I86,"+",I93) -> A86+A93 | I95: A95 | K95: =+K86+K93 -> 0.8645808414 | L95: =+L86+L93 -> 0.8645808414 | M95: =+M86+M93 -> 0.002972978343 | N95: =+N86+N93 -> 0.002972978343 | P95: =+P86+P93 -> 3955.850341 | Q95: =+Q86+Q93 -> 3955.850341 | R95: =+R86+R93 -> 13.60272727 | S95: =+S86+S93 -> 13.60272727 | U95: =+U86+U93 -> 348114.83 | V95: =+V86+V93 -> 348114.83 | W95: =+W86+W93 -> 1197.04 | X95: =+X86+X93 -> 1197.04 | Z95: =VLOOKUP($I95,Base_a,calc_a,0) -> 0.8645808414 | AA95: =VLOOKUP($I95,Base_a,calc_b,0) -> 3955.850341 | AB95: =VLOOKUP($I95,Base_a,calc_c,0) -> 348114.83
I96: A96
C97: EQUIPAMENTOS | I97: A97
I98: A98
C99: 311 | D99: Depreciação Mensal de Equipamentos | I99: A99
D100: Sistema de Monitoramento e Bilhetagem | F100: DR_EQUIP | G100: =+DR_Equip!I20 -> D20 | I100: A100 | K100: =+U100/U$17 -> 0.02549837738 | L100: 0.02549837738 | M100: 0.0003642625339 | N100: 0.0003642625339 | P100: =+U100/U$32 -> 116.6666667 | Q100: 116.6666667 | R100: 1.666666667 | S100: 1.666666667 | U100: =+DR_Equip!K20 -> 10266.66667 | V100: =+DR_Equip!L20 -> 10266.66667 | W100: =+DR_Equip!M20 -> 146.6666667 | X100: =+DR_Equip!N20 -> 146.6666667 | Z100: =VLOOKUP($I100,Base_a,calc_a,0) -> 0.02549837738 | AA100: =VLOOKUP($I100,Base_a,calc_b,0) -> 116.6666667 | AB100: =VLOOKUP($I100,Base_a,calc_c,0) -> 10266.66667
D101: Maquinas, Instalações e Equipamentos | F101: DR_EQUIP | G101: =+DR_Equip!I21 -> D21 | I101: A101 | K101: 0.006083184317 | L101: 0.006083184317 | M101: 2.185575204e-05 | N101: 2.185575204e-05 | P101: 27.83333333 | Q101: 27.83333333 | R101: 0.1 | S101: 0.1 | U101: =+DR_Equip!K21 -> 2449.333333 | V101: =+DR_Equip!L21 -> 2449.333333 | W101: =+DR_Equip!M21 -> 8.8 | X101: =+DR_Equip!N21 -> 8.8 | Z101: =VLOOKUP($I101,Base_a,calc_a,0) -> 0.006083184317 | AA101: =VLOOKUP($I101,Base_a,calc_b,0) -> 27.83333333 | AB101: =VLOOKUP($I101,Base_a,calc_c,0) -> 2449.333333
D102: Total | F102: =CONCATENATE("Soma de ",I100,"..",I100) -> Soma de A100..A100 | I102: A102 | K102: =SUM(K100:K101) -> 0.03158156169 | L102: =SUM(L100:L101) -> 0.03158156169 | M102: =SUM(M100:M101) -> 0.000386118286 | N102: =SUM(N100:N101) -> 0.000386118286 | P102: =SUM(P100:P101) -> 144.5 | Q102: =SUM(Q100:Q101) -> 144.5 | R102: =SUM(R100:R101) -> 1.766666667 | S102: =SUM(S100:S101) -> 1.766666667 | U102: =SUM(U100:U101) -> 12716 | V102: =SUM(V100:V101) -> 12716 | W102: =SUM(W100:W101) -> 155.4666667 | X102: =SUM(X100:X101) -> 155.4666667 | Z102: =VLOOKUP($I102,Base_a,calc_a,0) -> 0.03158156169 | AA102: =VLOOKUP($I102,Base_a,calc_b,0) -> 144.5 | AB102: =VLOOKUP($I102,Base_a,calc_c,0) -> 12716
I103: A103
C104: 312 | D104: Remuneração Mensal de Equipamentos | I104: A104
D105: Sistema de Monitoramento e Bilhetagem | F105: DR_EQUIP | G105: =+DR_Equip!I25 -> D25 | I105: A105 | K105: =+U105/U$17 -> 0.01529902643 | L105: 0.01529902643 | M105: 0.0002185575204 | N105: 0.0002185575204 | P105: =+U105/U$32 -> 70 | Q105: 70 | R105: 1 | S105: 1 | U105: =+DR_Equip!K25 -> 6160 | V105: =+DR_Equip!L25 -> 6160 | W105: =+DR_Equip!M25 -> 88 | X105: =+DR_Equip!N25 -> 88 | Z105: =VLOOKUP($I105,Base_a,calc_a,0) -> 0.01529902643 | AA105: =VLOOKUP($I105,Base_a,calc_b,0) -> 70 | AB105: =VLOOKUP($I105,Base_a,calc_c,0) -> 6160
D106: Maquinas, Instalações e Equipamentos | F106: DR_EQUIP | G106: =+DR_Equip!I26 -> D26 | I106: A106 | K106: 0.00729982118 | L106: 0.00729982118 | M106: 2.622690244e-05 | N106: 2.622690244e-05 | P106: 33.4 | Q106: 33.4 | R106: 0.12 | S106: 0.12 | U106: =+DR_Equip!K26 -> 2939.2 | V106: =+DR_Equip!L26 -> 2939.2 | W106: =+DR_Equip!M26 -> 10.56 | X106: =+DR_Equip!N26 -> 10.56 | Z106: =VLOOKUP($I106,Base_a,calc_a,0) -> 0.00729982118 | AA106: =VLOOKUP($I106,Base_a,calc_b,0) -> 33.4 | AB106: =VLOOKUP($I106,Base_a,calc_c,0) -> 2939.2
D107: Total | F107: =CONCATENATE("Soma de ",I105,"..",I106) -> Soma de A105..A106 | I107: A107 | K107: =SUM(K105:K106) -> 0.02259884761 | L107: =SUM(L105:L106) -> 0.02259884761 | M107: =SUM(M105:M106) -> 0.0002447844228 | N107: =SUM(N105:N106) -> 0.0002447844228 | P107: =SUM(P105:P106) -> 103.4 | Q107: =SUM(Q105:Q106) -> 103.4 | R107: =SUM(R105:R106) -> 1.12 | S107: =SUM(S105:S106) -> 1.12 | U107: =SUM(U105:U106) -> 9099.2 | V107: =SUM(V105:V106) -> 9099.2 | W107: =SUM(W105:W106) -> 98.56 | X107: =SUM(X105:X106) -> 98.56 | Z107: =VLOOKUP($I107,Base_a,calc_a,0) -> 0.02259884761 | AA107: =VLOOKUP($I107,Base_a,calc_b,0) -> 103.4 | AB107: =VLOOKUP($I107,Base_a,calc_c,0) -> 9099.2
I108: A108
D109: Total Depreciação e Remuneração de Equipamentos | F109: =CONCATENATE(I102,"+",I107,"+") -> A102+A107+ | I109: A109 | K109: =+K102+K107 -> 0.0541804093 | L109: =+L102+L107 -> 0.0541804093 | M109: =+M102+M107 -> 0.0006309027088 | N109: =+N102+N107 -> 0.0006309027088 | P109: =+P102+P107 -> 247.9 | Q109: =+Q102+Q107 -> 247.9 | R109: =+R102+R107 -> 2.886666667 | S109: =+S102+S107 -> 2.886666667 | U109: =+U102+U107 -> 21815.2 | V109: =+V102+V107 -> 21815.2 | W109: =+W102+W107 -> 254.0266667 | X109: =+X102+X107 -> 254.0266667 | Z109: =VLOOKUP($I109,Base_a,calc_a,0) -> 0.0541804093 | AA109: =VLOOKUP($I109,Base_a,calc_b,0) -> 247.9 | AB109: =VLOOKUP($I109,Base_a,calc_c,0) -> 21815.2
I110: A110
C111: INVESTIMENTOS | I111: A111
I112: A112
C113: 331 | D113: Depreciação Mensal de Investimentos | I113: A113
D114: Terrenos | F114: DR_INVEST | G114: =+DR_Invest!F12 -> 0 | I114: A114 | K114: =+U114/U$17 -> 0 | L114: 0 | M114: =+W114/W$17 -> 0 | N114: 0 | U114: =+DR_Invest!K15 -> 0 | V114: =+DR_Invest!L15 -> 0 | W114: =+DR_Invest!M15 -> 0 | X114: =+DR_Invest!N15 -> 0 | AB114: =VLOOKUP($I114,Base_a,calc_c,0) -> 0
D115: Construções | F115: DR_INVEST | G115: =+DR_Invest!I16 -> E16 | I115: A115 | K115: 0.01397029605 | L115: 0.01397029605 | M115: 5.174183721e-05 | N115: =+X115/X$17 -> 5.174183721e-05 | U115: =+DR_Invest!K16 -> 5625 | V115: =+DR_Invest!L16 -> 5625 | W115: =+DR_Invest!M16 -> 20.83333333 | X115: =+DR_Invest!N16 -> 20.83333333 | AB115: =VLOOKUP($I115,Base_a,calc_c,0) -> 5625
D116: Outorga | F116: DR_INVEST | G116: =+DR_Invest!I17 -> E17 | I116: A116 | K116: 0.05806073664 | L116: 0.05806073664 | M116: 0.0001034836744 | N116: =+X116/X$17 -> 0.0001034836744 | U116: =+DR_Invest!K17 -> 23377.575 | V116: =+DR_Invest!L17 -> 23377.575 | W116: =+DR_Invest!M17 -> 41.66666667 | X116: =+DR_Invest!N17 -> 41.66666667 | AB116: =VLOOKUP($I116,Base_a,calc_c,0) -> 23377.575
D117: Total | F117: =CONCATENATE("Soma de ",I114,"..",I116) -> Soma de A114..A116 | I117: A117 | K117: =SUM(K114:K116) -> 0.07203103268 | L117: =SUM(L114:L116) -> 0.07203103268 | M117: =SUM(M114:M116) -> 0.0001552255116 | N117: =SUM(N114:N116) -> 0.0001552255116 | P117: =SUM(P114:P116) -> 0 | Q117: =SUM(Q114:Q116) -> 0 | R117: =SUM(R114:R116) -> 0 | S117: =SUM(S114:S116) -> 0 | U117: =SUM(U114:U116) -> 29002.575 | V117: =SUM(V114:V116) -> 29002.575 | W117: =SUM(W114:W116) -> 62.5 | X117: =SUM(X114:X116) -> 62.5 | Z117: =VLOOKUP($I117,Base_a,calc_a,0) -> 0.07203103268 | AA117: =VLOOKUP($I117,Base_a,calc_b,0) -> 0 | AB117: =VLOOKUP($I117,Base_a,calc_c,0) -> 29002.575
I118: A118
C119: 332 | D119: Remuneração Mensal de Investimentos | I119: A119
D120: Terrenos | F120: DR_INVEST | G120: =+DR_Invest!I21 -> E21 | I120: A120 | K120: =+U120/U$17 -> 0.1241804093 | L120: 0.1241804093 | M120: =+W120/W$17 -> 0.0002483608186 | N120: 0.0002483608186 | P120: =+U120/U$32 -> 568.1818182 | Q120: 568.1818182 | R120: =+W120/W$32 -> 1.136363636 | S120: 1.136363636 | U120: =+DR_Invest!K21 -> 50000 | V120: =+DR_Invest!L21 -> 50000 | W120: =+DR_Invest!M21 -> 100 | X120: =+DR_Invest!N21 -> 100 | Z120: =VLOOKUP($I120,Base_a,calc_a,0) -> 0.1241804093 | AA120: =VLOOKUP($I120,Base_a,calc_b,0) -> 568.1818182 | AB120: =VLOOKUP($I120,Base_a,calc_c,0) -> 50000
D121: Construções | F121: DR_INVEST | G121: =+DR_Invest!I22 -> E22 | I121: A121 | K121: 0.06705742102 | L121: 0.06705742102 | M121: 0.0002483608186 | N121: 0.0002483608186 | P121: 306.8181818 | Q121: 306.8181818 | R121: 1.136363636 | S121: 1.136363636 | U121: =+DR_Invest!K22 -> 27000 | V121: =+DR_Invest!L22 -> 27000 | W121: =+DR_Invest!M22 -> 100 | X121: =+DR_Invest!N22 -> 100 | Z121: =VLOOKUP($I121,Base_a,calc_a,0) -> 0.06705742102 | AA121: =VLOOKUP($I121,Base_a,calc_b,0) -> 306.8181818 | AB121: =VLOOKUP($I121,Base_a,calc_c,0) -> 27000
D122: Outorga | F122: DR_INVEST | G122: =+DR_Invest!I23 -> E23 | I122: A122 | K122: 0.1393457679 | L122: 0.1393457679 | M122: 0.0002483608186 | N122: 0.0002483608186 | P122: 637.5702273 | Q122: 637.5702273 | R122: 1.136363636 | S122: 1.136363636 | U122: =+DR_Invest!K23 -> 56106.18 | V122: =+DR_Invest!L23 -> 56106.18 | W122: =+DR_Invest!M23 -> 100 | X122: =+DR_Invest!N23 -> 100 | Z122: =VLOOKUP($I122,Base_a,calc_a,0) -> 0.1393457679 | AA122: =VLOOKUP($I122,Base_a,calc_b,0) -> 637.5702273 | AB122: =VLOOKUP($I122,Base_a,calc_c,0) -> 56106.18
D123: Total | F123: =CONCATENATE("Soma de ",I120,"..",I122) -> Soma de A120..A122 | I123: A123 | K123: =SUM(K120:K122) -> 0.3305835983 | L123: =SUM(L120:L122) -> 0.3305835983 | M123: =SUM(M120:M122) -> 0.0007450824558 | N123: =SUM(N120:N122) -> 0.0007450824558 | P123: =SUM(P120:P122) -> 1512.570227 | Q123: =SUM(Q120:Q122) -> 1512.570227 | R123: =SUM(R120:R122) -> 3.409090909 | S123: =SUM(S120:S122) -> 3.409090909 | U123: =SUM(U120:U122) -> 133106.18 | V123: =SUM(V120:V122) -> 133106.18 | W123: =SUM(W120:W122) -> 300 | X123: =SUM(X120:X122) -> 300 | Z123: =VLOOKUP($I123,Base_a,calc_a,0) -> 0.3305835983 | AA123: =VLOOKUP($I123,Base_a,calc_b,0) -> 1512.570227 | AB123: =VLOOKUP($I123,Base_a,calc_c,0) -> 133106.18
I124: A124
D125: Total Depreciação e Remuneração Investimentos | F125: =CONCATENATE(I117,"+",I123) -> A117+A123 | I125: =CONCATENATE("A",ROW()) -> A125 | K125: =+K117+K123 -> 0.4026146309 | L125: =+L117+L123 -> 0.4026146309 | M125: =+M117+M123 -> 0.0009003079674 | N125: =+N117+N123 -> 0.0009003079674 | P125: =+P117+P123 -> 1512.570227 | Q125: =+Q117+Q123 -> 1512.570227 | R125: =+R117+R123 -> 3.409090909 | S125: =+S117+S123 -> 3.409090909 | U125: =+U117+U123 -> 162108.755 | V125: =+V117+V123 -> 162108.755 | W125: =+W117+W123 -> 362.5 | X125: =+X117+X123 -> 362.5 | Z125: =VLOOKUP($I125,Base_a,calc_a,0) -> 0.4026146309 | AA125: =VLOOKUP($I125,Base_a,calc_b,0) -> 1512.570227 | AB125: =VLOOKUP($I125,Base_a,calc_c,0) -> 162108.755
I126: A126 | Z126: =VLOOKUP($I126,Base_a,calc_a,0) -> 0 | AA126: =VLOOKUP($I126,Base_a,calc_b,0) -> 0 | AB126: =VLOOKUP($I126,Base_a,calc_c,0) -> 0
D127: Total Mensal Depreciação e Remuneração | F127: =CONCATENATE(I95,"+",I109,"+",I125) -> A95+A109+A125 | I127: A127 | K127: =+K95+K109+K125 -> 1.321375882 | L127: =+L95+L109+L125 -> 1.321375882 | M127: =+M95+M109+M125 -> 0.004504189019 | N127: =+N95+N109+N125 -> 0.004504189019 | P127: =+P95+P109+P125 -> 5716.320568 | Q127: =+Q95+Q109+Q125 -> 5716.320568 | R127: =+R95+R109+R125 -> 19.89848485 | S127: =+S95+S109+S125 -> 19.89848485 | U127: =+U95+U109+U125 -> 532038.785 | V127: =+V95+V109+V125 -> 532038.785 | W127: =+W95+W109+W125 -> 1813.566667 | X127: =+X95+X109+X125 -> 1813.566667 | Z127: =VLOOKUP($I127,Base_a,calc_a,0) -> 1.321375882 | AA127: =VLOOKUP($I127,Base_a,calc_b,0) -> 5716.320568 | AB127: =VLOOKUP($I127,Base_a,calc_c,0) -> 532038.785
I128: A128
B129: 4 | C129: GASTOS VARIÁVEIS | I129: A129
I130: A130
C131: Os cálculo de Gastos Variaeis são efetuados considerando a Frota Operante | I131: A131 | K131: =CONCATENATE("Valor custo por km = Custo Mensal / Percurso Mensal (",I$17,")") -> Valor custo por km = Custo Mensal / Percurso Mensal (A17) | P131: =CONCATENATE("Valor custo por Veiculo = Custo Mensal / Frota Operante (",I$46,")") -> Valor custo por Veiculo = Custo Mensal / Frota Operante (A46)
I132: A132
I133: A133
C134: 401 | D134: Valor combustível | F134: CONSUMO | G134: =+Consumo!I173 -> B173 | I134: A134 | U134: =+Consumo!K173 -> 3.3 | V134: =+Consumo!L173 -> 3.3 | W134: =+Consumo!M173 -> 0.0001 | X134: =+Consumo!N173 -> 0.0001 | AB134: =VLOOKUP($I134,Base_a,calc_c,0) -> 3.3
I135: A135
C136: 402 | D136: Frota Operante | I136: A136 | U136: Quantidade | V136: Quantidade | W136: Quantidade | X136: Quantidade | AB136: =VLOOKUP($I136,Base_a,calc_c,0) -> Quantidade
D137: Micro | G137: =+I42 -> A42 | I137: A137 | U137: =+U42 -> 1 | V137: 1 | W137: 1 | X137: 1 | AB137: 1
D138: Leve | G138: =+I43 -> A43 | I138: A138 | U138: 14 | V138: 14 | W138: 14 | X138: 14 | AB138: 14
D139: Pesado | G139: =+I44 -> A44 | I139: A139 | U139: 64 | V139: 64 | W139: 64 | X139: 64 | AB139: 64
D140: Articulado | G140: =+I45 -> A45 | I140: A140 | U140: 1 | V140: 1 | W140: 1 | X140: 1 | AB140: 1
D141: Total | F141: =CONCATENATE("Soma de ",I137,"..",I140) -> Soma de A137..A140 | I141: A141 | U141: =SUM(U137:U140) -> 80 | V141: =SUM(V137:V140) -> 80 | W141: =SUM(W137:W140) -> 80 | X141: =SUM(X137:X140) -> 80 | AB141: 80
I142: A142
C143: 403 | D143: Coeficiente Consumo Combustivel (L/Km) | I143: A143
D144: Micro | F144: CONSUMO | G144: =+Consumo!I183 -> B183 | I144: A144 | U144: =+Consumo!K183 -> 0.25 | V144: =+Consumo!L183 -> 0.25 | W144: =+Consumo!M183 -> 0.25 | X144: =+Consumo!N183 -> 0.25 | AB144: =VLOOKUP($I144,Base_a,calc_c,0) -> 0.25
D145: Leve | F145: CONSUMO | G145: =+Consumo!I184 -> B184 | I145: A145 | U145: =+Consumo!K184 -> 0.35 | V145: =+Consumo!L184 -> 0.35 | W145: =+Consumo!M184 -> 0.35 | X145: =+Consumo!N184 -> 0.35 | AB145: =VLOOKUP($I145,Base_a,calc_c,0) -> 0.35
D146: Pesado | F146: CONSUMO | G146: =+Consumo!I185 -> B185 | I146: A146 | U146: =+Consumo!K185 -> 0.42 | V146: =+Consumo!L185 -> 0.42 | W146: =+Consumo!M185 -> 0.42 | X146: =+Consumo!N185 -> 0.42 | AB146: =VLOOKUP($I146,Base_a,calc_c,0) -> 0.42
D147: Articulado | F147: CONSUMO | G147: =+Consumo!I186 -> B186 | I147: A147 | U147: =+Consumo!K186 -> 0.55 | V147: =+Consumo!L186 -> 0.55 | W147: =+Consumo!M186 -> 0.55 | X147: =+Consumo!N186 -> 0.55 | AB147: =VLOOKUP($I147,Base_a,calc_c,0) -> 0.55
I148: A148
C149: 404 | D149: Litros de Combustivel Mensal | I149: A149 | U149: Quantidade | V149: Quantidade | W149: Quantidade | X149: Quantidade | AB149: ={"Quantidade"} -> Quantidade
D150: Micro | F150: =CONCATENATE(I$19," x ",I137," x ",I144) -> A19 x A137 x A144 | I150: A150 | U150: =+U$19*U137*U144 -> 1258.25 | V150: 1258.25 | W150: 1258.25 | X150: 1258.25 | AB150: =VLOOKUP($I150,Base_a,calc_c,0) -> 1258.25
D151: Leve | F151: =CONCATENATE(I$19," x ",I138," x ",I145) -> A19 x A138 x A145 | I151: A151 | U151: 24661.7 | V151: 24661.7 | W151: 24661.7 | X151: 24661.7 | AB151: =VLOOKUP($I151,Base_a,calc_c,0) -> 24661.7
D152: Pesado | F152: =CONCATENATE(I$19," x ",I139," x ",I146) -> A19 x A139 x A146 | I152: A152 | U152: 135287.04 | V152: 135287.04 | W152: 135287.04 | X152: 135287.04 | AB152: =VLOOKUP($I152,Base_a,calc_c,0) -> 135287.04
D153: Articulado | F153: =CONCATENATE(I$19," x ",I140," x ",I147) -> A19 x A140 x A147 | I153: A153 | U153: 2768.15 | V153: 2768.15 | W153: 2768.15 | X153: 2768.15 | AB153: =VLOOKUP($I153,Base_a,calc_c,0) -> 2768.15
D154: Total | F154: =CONCATENATE("Soma de ",I150,"..",I153) -> Soma de A150..A153 | I154: A154 | U154: =SUM(U150:U153) -> 163975.14 | V154: =SUM(V150:V153) -> 163975.14 | W154: =SUM(W150:W153) -> 163975.14 | X154: =SUM(X150:X153) -> 163975.14 | AB154: =VLOOKUP($I154,Base_a,calc_c,0) -> 163975.14
I155: A155
C156: 405 | D156: Custo Combustível Mensal | I156: A156
D157: Micro | F157: =CONCATENATE(I$134," x ",I150) -> A134 x A150 | I157: A157 | K157: =+U157/U$17 -> 0.01031251242 | L157: 0.01031251242 | M157: 3.228690642e-07 | N157: 3.228690642e-07 | P157: =+U157/U$46 -> 51.902875 | Q157: 51.902875 | R157: 0.001625 | S157: 0.001625 | U157: =ROUND(+U150*U$134,2) -> 4152.23 | V157: 4152.23 | W157: 0.13 | X157: 0.13 | AB157: =VLOOKUP($I157,Base_a,calc_c,0) -> 4152.23
D158: Leve | F158: =CONCATENATE(I$134," x ",I151) -> A134 x A151 | I158: A158 | K158: 0.202125 | L158: 0.202125 | M158: 6.134512219e-06 | N158: 6.134512219e-06 | P158: 1017.295125 | Q158: 1017.295125 | R158: 0.030875 | S158: 0.030875 | U158: 81383.61 | V158: 81383.61 | W158: 2.47 | X158: 2.47 | AB158: =VLOOKUP($I158,Base_a,calc_c,0) -> 81383.61
D159: Pesado | F159: =CONCATENATE(I$134," x ",I152) -> A134 x A152 | I159: A159 | K159: 1.108799995 | L159: 1.108799995 | M159: 3.360321876e-05 | N159: 3.360321876e-05 | P159: 5580.590375 | Q159: 5580.590375 | R159: 0.169125 | S159: 0.169125 | U159: 446447.23 | V159: 446447.23 | W159: 13.53 | X159: 13.53 | AB159: =VLOOKUP($I159,Base_a,calc_c,0) -> 446447.23
D160: Articulado | F160: =CONCATENATE(I$134," x ",I153) -> A134 x A153 | I160: A160 | K160: 0.02268751242 | L160: 0.02268751242 | M160: 6.954102921e-07 | N160: 6.954102921e-07 | P160: 114.18625 | Q160: 114.18625 | R160: 0.0035 | S160: 0.0035 | U160: 9134.9 | V160: 9134.9 | W160: 0.28 | X160: 0.28 | AB160: =VLOOKUP($I160,Base_a,calc_c,0) -> 9134.9
D161: Total | F161: =CONCATENATE("Soma de ",I157,"..",I160) -> Soma de A157..A160 | I161: A161 | K161: 1.34392502 | L161: 1.34392502 | M161: 4.075601033e-05 | N161: 4.075601033e-05 | P161: 6763.974625 | Q161: 6763.974625 | R161: 0.205125 | S161: 0.205125 | U161: =SUM(U157:U160) -> 541117.97 | V161: =SUM(V157:V160) -> 541117.97 | W161: =SUM(W157:W160) -> 16.41 | X161: =SUM(X157:X160) -> 16.41 | Z161: =VLOOKUP($I161,Base_a,calc_a,0) -> 1.34392502 | AA161: =VLOOKUP($I161,Base_a,calc_b,0) -> 6763.974625 | AB161: =VLOOKUP($I161,Base_a,calc_c,0) -> 541117.97
I162: A162
C163: 406 | D163: LUBRIFICANTES | I163: A163
I164: A164
D165: =+Consumo!C189 -> Litros de combustivel por km | F165: CONSUMO | G165: =+Consumo!I189 -> B189 | I165: A165 | U165: =+Consumo!K189 -> 0.03 | V165: =+Consumo!L189 -> 0.03 | W165: =+Consumo!M189 -> 0.03 | X165: =+Consumo!N189 -> 0.03
I166: A166
D167: Custo Lubrificantes por KM | F167: =CONCATENATE(I$134," x ",I$165) -> A134 x A165 | I167: A167 | U167: =+U165*U134 -> 0.099 | V167: =+V165*V134 -> 0.099 | W167: =+W165*W134 -> 3e-06 | X167: =+X165*X134 -> 3e-06 | AB167: =VLOOKUP($I167,Base_a,calc_c,0) -> 0.099
I168: A168
D169: Custo Lubrificantes Mensal | I169: A169
D170: Micro | F170: =CONCATENATE(I$19," x ",I47," x ",I167) -> A19 x A47 x A167 | I170: A170 | U170: =ROUND(+U$167*U137*U$19,2) -> 498.27 | V170: 498.27 | W170: 0.02 | X170: 0.02 | AB170: =VLOOKUP($I170,Base_a,calc_c,0) -> 498.27
D171: Leve | F171: =CONCATENATE(I$19," x ",I48," x ",I168) -> A19 x A48 x A168 | I171: A171 | U171: 6975.74 | V171: 6975.74 | W171: 0.21 | X171: 0.21 | AB171: =VLOOKUP($I171,Base_a,calc_c,0) -> 6975.74
D172: Pesado | F172: =CONCATENATE(I$19," x ",I49," x ",I169) -> A19 x A49 x A169 | I172: A172 | U172: 31889.09 | V172: 31889.09 | W172: 0.97 | X172: 0.97 | AB172: =VLOOKUP($I172,Base_a,calc_c,0) -> 31889.09
D173: Articulado | F173: =CONCATENATE(I$19," x ",I50," x ",I170) -> A19 x A50 x A170 | I173: A173 | U173: 498.27 | V173: 498.27 | W173: 0.02 | X173: 0.02 | AB173: =VLOOKUP($I173,Base_a,calc_c,0) -> 498.27
D174: Total | F174: =CONCATENATE("Soma de ",I170,"..",I173) -> Soma de A170..A173 | I174: A174 | K174: =+U174/U$17 -> 0.09900002484 | L174: =+V174/V$17 -> 0.09900002484 | M174: =+W174/W$17 -> 3.030001987e-06 | N174: =+X174/X$17 -> 3.030001987e-06 | P174: =+U174/U$46 -> 498.267125 | Q174: =+V174/V$46 -> 498.267125 | R174: =+W174/W$46 -> 0.01525 | S174: =+X174/X$46 -> 0.01525 | U174: =SUM(U170:U173) -> 39861.37 | V174: =SUM(V170:V173) -> 39861.37 | W174: =SUM(W170:W173) -> 1.22 | X174: =SUM(X170:X173) -> 1.22 | Z174: =VLOOKUP($I174,Base_a,calc_a,0) -> 0.09900002484 | AA174: =VLOOKUP($I174,Base_a,calc_b,0) -> 498.267125 | AB174: =VLOOKUP($I174,Base_a,calc_c,0) -> 39861.37
I175: A175
C176: 407 | D176: RODAGEM | I176: A176
I177: A177
D178: Custo Rodagem KM por Veiculo | I178: A178
D179: Micro | F179: CONSUMO | G179: =+Consumo!I351 -> B351 | I179: A179 | U179: =+Consumo!K351 -> 0.0609404 | V179: =+Consumo!L351 -> 0.0609404 | W179: =+Consumo!M351 -> 1.4e-06 | X179: =+Consumo!N351 -> 1.4e-06 | AB179: =VLOOKUP($I179,Base_a,calc_c,0) -> 0.0609404
D180: Leve | F180: CONSUMO | G180: =+Consumo!I352 -> B352 | I180: A180 | U180: =+Consumo!K352 -> 0.0989612 | V180: =+Consumo!L352 -> 0.0989612 | W180: =+Consumo!M352 -> 1.4e-06 | X180: =+Consumo!N352 -> 1.4e-06 | AB180: =VLOOKUP($I180,Base_a,calc_c,0) -> 0.0989612
D181: Pesado | F181: CONSUMO | G181: =+Consumo!I353 -> B353 | I181: A181 | U181: =+Consumo!K353 -> 0.106772 | V181: =+Consumo!L353 -> 0.106772 | W181: =+Consumo!M353 -> 1.4e-06 | X181: =+Consumo!N353 -> 1.4e-06 | AB181: =VLOOKUP($I181,Base_a,calc_c,0) -> 0.106772
D182: Articulado | F182: CONSUMO | G182: =+Consumo!I354 -> B354 | I182: A182 | U182: =+Consumo!K354 -> 0.174612 | V182: =+Consumo!L354 -> 0.174612 | W182: =+Consumo!M354 -> 2.333333333e-06 | X182: =+Consumo!N354 -> 2.333333333e-06 | AB182: =VLOOKUP($I182,Base_a,calc_c,0) -> 0.174612
I183: A183
D184: Custo Rodagem Mensal | I184: =CONCATENATE("A",ROW()) -> A184
D185: Micro | F185: =CONCATENATE(I$19," x ",I137," x ",I179) -> A19 x A137 x A179 | I185: A185 | K185: =+U185/U$17 -> 0.0007617474667 | L185: 0.0007617474667 | M185: 2.483608186e-08 | N185: 2.483608186e-08 | P185: =+U185/U$46 -> 3.833875 | Q185: 3.833875 | R185: 0.000125 | S185: 0.000125 | U185: =ROUND(+U179*U137*U$19,2) -> 306.71 | V185: 306.71 | W185: 0.01 | X185: 0.01 | AB185: =VLOOKUP($I185,Base_a,calc_c,0) -> 306.71
D186: Leve | F186: =CONCATENATE(I$19," x ",I138," x ",I180) -> A19 x A138 x A180 | I186: A186 | K186: 0.01731819988 | L186: 0.01731819988 | M186: 2.483608186e-07 | N186: 2.483608186e-07 | P186: 87.1625 | Q186: 87.1625 | R186: 0.00125 | S186: 0.00125 | U186: 6973 | V186: 6973 | W186: 0.1 | X186: 0.1 | AB186: =VLOOKUP($I186,Base_a,calc_c,0) -> 6973
D187: Pesado | F187: =CONCATENATE(I$19," x ",I139," x ",I181) -> A19 x A139 x A181 | I187: A187 | K187: 0.08541759388 | L187: 0.08541759388 | M187: 1.117623684e-06 | N187: 1.117623684e-06 | P187: 429.90675 | Q187: 429.90675 | R187: 0.005625 | S187: 0.005625 | U187: 34392.54 | V187: 34392.54 | W187: 0.45 | X187: 0.45 | AB187: =VLOOKUP($I187,Base_a,calc_c,0) -> 34392.54
D188: Articulado | F188: =CONCATENATE(I$19," x ",I140," x ",I182) -> A19 x A140 x A182 | I188: A188 | K188: 0.002182644546 | L188: 0.002182644546 | M188: 2.483608186e-08 | N188: 2.483608186e-08 | P188: 10.98525 | Q188: 10.98525 | R188: 0.000125 | S188: 0.000125 | U188: 878.82 | V188: 878.82 | W188: 0.01 | X188: 0.01 | AB188: =VLOOKUP($I188,Base_a,calc_c,0) -> 878.82
D189: Total | F189: =CONCATENATE("Soma de ",I185,"..",I188) -> Soma de A185..A188 | I189: A189 | K189: 0.1056801858 | L189: 0.1056801858 | M189: 1.415656666e-06 | N189: 1.415656666e-06 | P189: 531.888375 | Q189: 531.888375 | R189: 0.007125 | S189: 0.007125 | U189: =SUM(U185:U188) -> 42551.07 | V189: =SUM(V185:V188) -> 42551.07 | W189: =SUM(W185:W188) -> 0.57 | X189: =SUM(X185:X188) -> 0.57 | Z189: =VLOOKUP($I189,Base_a,calc_a,0) -> 0.1056801858 | AA189: =VLOOKUP($I189,Base_a,calc_b,0) -> 531.888375 | AB189: =VLOOKUP($I189,Base_a,calc_c,0) -> 42551.07
I190: A190
C191: 408 | D191: PEÇAS E ACESSÓRIOS | I191: A191
I192: A192
D193: =+Consumo!C332 -> Coeficiente de Peças e Acessorios s/veiculo novo | I193: A193
D194: Micro | F194: CONSUMO | G194: =+Consumo!I333 -> B333 | I194: A194 | U194: =+Consumo!K333 -> 0.0058 | V194: =+Consumo!L333 -> 0.0058 | W194: =+Consumo!M333 -> 0.0058 | X194: =+Consumo!N333 -> 0.0058 | AB194: =VLOOKUP($I194,Base_a,calc_c,0) -> 0.0058
D195: Leve | F195: CONSUMO | G195: =+Consumo!I334 -> B334 | I195: A195 | U195: =+Consumo!K334 -> 0.0058 | V195: =+Consumo!L334 -> 0.0058 | W195: =+Consumo!M334 -> 0.0058 | X195: =+Consumo!N334 -> 0.0058 | AB195: =VLOOKUP($I195,Base_a,calc_c,0) -> 0.0058
D196: Pesado | F196: CONSUMO | G196: =+Consumo!I335 -> B335 | I196: A196 | U196: =+Consumo!K335 -> 0.0058 | V196: =+Consumo!L335 -> 0.0058 | W196: =+Consumo!M335 -> 0.0058 | X196: =+Consumo!N335 -> 0.0058 | AB196: =VLOOKUP($I196,Base_a,calc_c,0) -> 0.0058
D197: Articulado | F197: CONSUMO | G197: =+Consumo!I336 -> B336 | I197: A197 | U197: =+Consumo!K336 -> 0.0058 | V197: =+Consumo!L336 -> 0.0058 | W197: =+Consumo!M336 -> 0.58 | X197: =+Consumo!N336 -> 0.0058 | AB197: =VLOOKUP($I197,Base_a,calc_c,0) -> 0.0058
I198: A198
D199: Custo Peças e acessórios por Veiculo | I199: A199
D200: Micro | F200: =CONCATENATE(I56," x ",I137," x ",I194) -> A56 x A137 x A194 | I200: A200 | K200: =+U200/U$17 -> 0.003946950129 | L200: 0.003946950129 | M200: 1.440492748e-05 | N200: 1.440492748e-05 | P200: =+U200/U$46 -> 19.865 | Q200: 19.865 | R200: 0.0725 | S200: 0.0725 | U200: =+U56*U137*U194 -> 1589.2 | V200: 1589.2 | W200: 5.8 | X200: 5.8 | AB200: =VLOOKUP($I200,Base_a,calc_c,0) -> 1589.2
D201: Leve | F201: =CONCATENATE(I57," x ",I138," x ",I195) -> A57 x A138 x A195 | I201: A201 | K201: 0.0561325452 | L201: 0.0561325452 | M201: 0.0002016689847 | N201: 0.0002016689847 | P201: 282.5151 | Q201: 282.5151 | R201: 1.015 | S201: 1.015 | U201: 22601.208 | V201: 22601.208 | W201: 81.2 | X201: 81.2 | AB201: =VLOOKUP($I201,Base_a,calc_c,0) -> 22601.208
... 180 more rows

Sheet Consumo
K1: =+Tarifa!K27 -> 3.250020342 | L1: =+Tarifa!L27 -> 3.250020342 | M1: =+Tarifa!M27 -> 0.004320741671 | N1: =+Tarifa!N27 -> 0.003509621155
B2: CONSUMO | I2: ÁREA DE DADOS E CÁLCULOS - NÃO INCLUIR COLUNA
A3: pedro milton golfe | B3: =+Titulo_01 -> PREFEITURA MUNICIPAL DE CHAPECO
A4: pedro milton golfe | B4: =+Titulo_02 -> CONTROLADORIA GERAL DO MUNICÍPIO
A5: pedro milton golfe | B5: =+Titulo_03 -> SISTEMA DE TRANSPORTE PÚBLICO DE PASSAGEIROS
B6: Dados de Consumo Coeficientes e Valores de Referência | R6: REFERÊNCIA EXTERNA
B7: =CONCATENATE(+Cenario!$D$10," - ",+Cenario!$E$18) -> Cenário - Prefeitura Chapecó - Base Edital - base 10/17 - PROPOSTA | F7: =+Apura!$Z$11 -> Cenário 02 | K7: Tarifa base | L7: =IF(Esc_tarifa_base=1,"Antecipado","Embarcado") -> Embarcado
B9: ITEM | C9: DISCRIMINAÇÃO | F9: Referência | K9: =+Apura!U11 -> Cenário 01 | L9: =+Apura!V11 -> Cenário 02 | M9: =+Apura!W11 -> Cenário 03 | N9: =+Apura!X11 -> Cenário 04 | P9: CALC FC | R9: ANTP | T9: GEIPOT | W9: Descrição e Informações
F10: Data | I10: =CONCATENATE("B",ROW()) -> B10 | K10: =+Cenario!L11 -> 2017-10-31 | L10: =+Cenario!L12 -> 2017-10-31 | M10: =+Cenario!L13 -> 2018-08-31 | N10: =+Cenario!L14 -> 2018-08-31 | P10: =VLOOKUP(I10,Base_b,calc_d,0) -> 2017-10-31 | R10: mínimo | S10: máximo | T10: mínimo | U10: máximo
I11: =CONCATENATE("B",ROW()) -> B11
B12: QUILOMETRAGEM | I12: =CONCATENATE("B",ROW()) -> B12
I13: =CONCATENATE("B",ROW()) -> B13
B14: 101 | C14: Percurso Mensal Programado em KM | F14: =CONCATENATE("+",I16,"+",I18) -> +B16+B18 | I14: =CONCATENATE("B",ROW()) -> B14 | K14: =+K16+K18 -> 402640 | L14: =+L16+L18 -> 402640 | M14: =+M16+M18 -> 402640 | N14: =+N16+N18 -> 402640 | P14: =VLOOKUP(I14,Base_b,calc_d,0) -> 402640 | W14: Percurso Mensal Programado em KM = Percurso médio mensal dos Veiculos durante o mês
I15: B15
C16: Percurso Operacional | F16: =CONCATENATE("+",I35,"+",12) -> +B35+12 | I16: B16 | K16: =ROUND(+K35/12,0) -> 383467 | L16: =ROUND(+L35/12,0) -> 383467 | M16: =ROUND(+M35/12,0) -> 383467 | N16: =ROUND(+N35/12,0) -> 383467 | P16: =VLOOKUP(I16,Base_b,calc_d,0) -> 383467 | W16: PMM Percurso Médio Mensal = Km/veeiculo mês
I17: B17
B18: 102 | C18: Percurso Osioso | F18: =CONCATENATE("+",I16," x ",I20) -> +B16 x B20 | I18: B18 | K18: =ROUND(+K16*K20,0) -> 19173 | L18: =ROUND(+L16*L20,0) -> 19173 | M18: =ROUND(+M16*M20,0) -> 19173 | N18: =ROUND(+N16*N20,0) -> 19173 | P18: =VLOOKUP(I18,Base_b,calc_d,0) -> 19173 | W18: Percurso Ocioso = Percuro sem passageiro
I19: B19
B20: 103 | C20: Percentual Percurso Ocioso | G20: ? | I20: B20 | K20: 0.05 | L20: 0.05 | M20: 0.05 | N20: 0.05 | P20: =VLOOKUP(I20,Base_b,calc_d,0) -> 0.05 | W20: Percurso Ocioso = Percuro sem passageiro
I21: B21
B22: 104 | C22: Percurso operacional mensal (ultimos 12 meses) | I22: B22
C23: ="Data Referência ( - ) 11" -> Data Referência ( - ) 11 | F23: =+F24-DAY(F24) -> 2016-11-30 | I23: B23 | K23: =+Hist_Passageiros!S157 -> 372405 | L23: =+$K23 -> 372405 | M23: =+$K23 -> 372405 | N23: =+$K23 -> 372405 | P23: =VLOOKUP(I23,Base_b,calc_d,0) -> 372405 | W23: Percurso Mensal Programado em KM conforme histórico de passagens das concessionárias
C24: ="Data Referência ( - ) 10" -> Data Referência ( - ) 10 | F24: 2016-12-31 | I24: B24 | K24: =+Hist_Passageiros!S158 -> 386009 | L24: =+$K24 -> 386009 | M24: 386009 | N24: 386009 | P24: 386009
C25: ="Data Referência ( - ) 09" -> Data Referência ( - ) 09 | F25: 2017-01-31 | I25: B25 | K25: =+Hist_Passageiros!S159 -> 376223 | L25: 376223 | M25: 376223 | N25: 376223 | P25: 376223
C26: ="Data Referência ( - ) 08" -> Data Referência ( - ) 08 | F26: 2017-02-28 | I26: B26 | K26: =+Hist_Passageiros!S160 -> 349697 | L26: 349697 | M26: 349697 | N26: 349697 | P26: 349697
C27: ="Data Referência ( - ) 07" -> Data Referência ( - ) 07 | F27: 2017-03-31 | I27: B27 | K27: =+Hist_Passageiros!S161 -> 403808 | L27: 403808 | M27: 403808 | N27: 403808 | P27: 403808
C28: ="Data Referência ( - ) 06" -> Data Referência ( - ) 06 | F28: 2017-04-30 | I28: B28 | K28: =+Hist_Passageiros!S162 -> 354842 | L28: 354842 | M28: 354842 | N28: 354842 | P28: 354842
C29: ="Data Referência ( - ) 05" -> Data Referência ( - ) 05 | F29: 2017-05-31 | I29: B29 | K29: =+Hist_Passageiros!S163 -> 405134 | L29: 405134 | M29: 405134 | N29: 405134 | P29: 405134
C30: ="Data Referência ( - ) 04" -> Data Referência ( - ) 04 | F30: 2017-06-30 | I30: B30 | K30: =+Hist_Passageiros!S164 -> 391247 | L30: 391247 | M30: 391247 | N30: 391247 | P30: 391247
C31: ="Data Referência ( - ) 03" -> Data Referência ( - ) 03 | F31: 2017-07-31 | I31: B31 | K31: =+Hist_Passageiros!S165 -> 386960 | L31: 386960 | M31: 386960 | N31: 386960 | P31: 386960
C32: ="Data Referência ( - ) 02" -> Data Referência ( - ) 02 | F32: =+F33-DAY(F33) -> 2017-08-31 | I32: B32 | K32: =+Hist_Passageiros!S166 -> 404711 | L32: 404711 | M32: 404711 | N32: 404711 | P32: 404711
C33: ="Data Referência ( - ) 01" -> Data Referência ( - ) 01 | F33: =+F34-DAY(F34) -> 2017-09-30 | I33: B33 | K33: =+Hist_Passageiros!S167 -> 375785 | L33: 375785 | M33: 375785 | N33: 375785 | P33: 375785
C34: ="Data Referência" -> Data Referência | F34: =+Cenario!L$11 -> 2017-10-31 | I34: B34 | K34: =394778+0 -> 394778 | L34: 394778 | M34: 394778 | N34: 394778 | P34: 394778
C35: Total | F35: =CONCATENATE("Soma de ",I23,"..",I34) -> Soma de B23..B34 | I35: B35 | K35: =SUM(K23:K34) -> 4601599 | L35: =SUM(L23:L34) -> 4601599 | M35: =SUM(M23:M34) -> 4601599 | N35: =SUM(N23:N34) -> 4601599 | P35: 4601599
I36: B36
B37: 105 | C37: Percentual Hist Percurso Osioso Mensal Média | F37: =CONCATENATE("+",I39," / ",I16) -> +B39 / B16 | I37: B37 | K37: =+K39/K16 -> 0.04999908727 | L37: =+L39/L16 -> 0.04999908727 | M37: =+M39/M16 -> 0.04999908727 | N37: =+N39/N16 -> 0.04999908727 | P37: =VLOOKUP(I37,Base_b,calc_d,0) -> 0.04999908727 | W37: Percentual de Percuso Ocioso
I38: B38
B39: 106 | C39: Historico Percurso Osioso Mensal Média | F39: =CONCATENATE("+",I54," / 12") -> +B54 / 12 | I39: B39 | K39: =ROUND(+K54/12,0) -> 19173 | L39: =ROUND(+L54/12,0) -> 19173 | M39: =ROUND(+M54/12,0) -> 19173 | N39: =ROUND(+N54/12,0) -> 19173 | P39: =VLOOKUP(I39,Base_b,calc_d,0) -> 19173 | W39: Percurso Ocioso = Percuro sem passageiro
I40: B40
B41: 107 | C41: Historio Percurso Osioso Mensal | I41: B41 | W41: Percurso Ocioso ( Percuro sem passageiro ).
C42: ="Data Referência ( - ) 11" -> Data Referência ( - ) 11 | F42: =+F43-DAY(F43) -> 2016-11-30 | I42: B42 | K42: =+Hist_Passageiros!V157 -> 18620 | L42: =+$K42 -> 18620 | M42: 18620 | N42: 18620 | P42: =VLOOKUP(I42,Base_b,calc_d,0) -> 18620
C43: ="Data Referência ( - ) 10" -> Data Referência ( - ) 10 | F43: 2016-12-31 | I43: B43 | K43: =+Hist_Passageiros!V158 -> 19300 | L43: 19300 | M43: 19300 | N43: 19300 | P43: 19300
C44: ="Data Referência ( - ) 09" -> Data Referência ( - ) 09 | F44: 2017-01-31 | I44: B44 | K44: =+Hist_Passageiros!V159 -> 18811 | L44: 18811 | M44: 18811 | N44: 18811 | P44: 18811
C45: ="Data Referência ( - ) 08" -> Data Referência ( - ) 08 | F45: 2017-02-28 | I45: B45 | K45: =+Hist_Passageiros!V160 -> 17485 | L45: 17485 | M45: 17485 | N45: 17485 | P45: 17485
C46: ="Data Referência ( - ) 07" -> Data Referência ( - ) 07 | F46: 2017-03-31 | I46: B46 | K46: =+Hist_Passageiros!V161 -> 20190 | L46: 20190 | M46: 20190 | N46: 20190 | P46: 20190
C47: ="Data Referência ( - ) 06" -> Data Referência ( - ) 06 | F47: 2017-04-30 | I47: B47 | K47: =+Hist_Passageiros!V162 -> 17742 | L47: 17742 | M47: 17742 | N47: 17742 | P47: 17742
C48: ="Data Referência ( - ) 05" -> Data Referência ( - ) 05 | F48: 2017-05-31 | I48: B48 | K48: =+Hist_Passageiros!V163 -> 20256 | L48: 20256 | M48: 20256 | N48: 20256 | P48: 20256
C49: ="Data Referência ( - ) 04" -> Data Referência ( - ) 04 | F49: 2017-06-30 | I49: B49 | K49: =+Hist_Passageiros!V164 -> 19562 | L49: 19562 | M49: 19562 | N49: 19562 | P49: 19562
C50: ="Data Referência ( - ) 03" -> Data Referência ( - ) 03 | F50: 2017-07-31 | I50: B50 | K50: =+Hist_Passageiros!V165 -> 19348 | L50: 19348 | M50: 19348 | N50: 19348 | P50: 19348
C51: ="Data Referência ( - ) 02" -> Data Referência ( - ) 02 | F51: =+F52-DAY(F52) -> 2017-08-31 | I51: B51 | K51: =+Hist_Passageiros!V166 -> 20235 | L51: 20235 | M51: 20235 | N51: 20235 | P51: 20235
C52: ="Data Referência ( - ) 01" -> Data Referência ( - ) 01 | F52: =+F53-DAY(F53) -> 2017-09-30 | I52: B52 | K52: =+Hist_Passageiros!V167 -> 18789 | L52: 18789 | M52: 18789 | N52: 18789 | P52: 18789
C53: ="Data Referência" -> Data Referência | F53: =+Cenario!L$11 -> 2017-10-31 | I53: B53 | K53: =+Hist_Passageiros!V168 -> 19739 | L53: 19739 | M53: 19739 | N53: 19739 | P53: 19739
C54: Total | F54: =CONCATENATE("Soma de ",I42,"..",I53) -> Soma de B42..B53 | I54: B54 | K54: =SUM(K42:K53) -> 230077 | L54: =SUM(L42:L53) -> 230077 | M54: =SUM(M42:M53) -> 230077 | N54: =SUM(N42:N53) -> 230077 | P54: 230077
I55: B55
B56: 111 | C56: Frota Total | I56: B56
C57: Micro Onibus | F57: DR_FROTA | G57: =+DR_Frota!I97 -> C97 | I57: B57 | K57: =+DR_Frota!K97 -> 1 | L57: =+DR_Frota!L97 -> 1 | M57: =+DR_Frota!M97 -> 1 | N57: =+DR_Frota!N97 -> 1 | P57: =VLOOKUP(I57,Base_b,calc_d,0) -> 1 | W57: Frota Total
C58: Leve | F58: DR_FROTA | G58: =+DR_Frota!I98 -> C98 | I58: B58 | K58: =+DR_Frota!K98 -> 14 | L58: =+DR_Frota!L98 -> 14 | M58: =+DR_Frota!M98 -> 14 | N58: =+DR_Frota!N98 -> 14 | P58: =VLOOKUP(I58,Base_b,calc_d,0) -> 14
C59: Pesado | F59: DR_FROTA | G59: =+DR_Frota!I99 -> C99 | I59: B59 | K59: =+DR_Frota!K99 -> 72 | L59: =+DR_Frota!L99 -> 72 | M59: =+DR_Frota!M99 -> 72 | N59: =+DR_Frota!N99 -> 72 | P59: =VLOOKUP(I59,Base_b,calc_d,0) -> 72
C60: Articulado | F60: DR_FROTA | G60: =+DR_Frota!I100 -> C100 | I60: B60 | K60: =+DR_Frota!K100 -> 1 | L60: =+DR_Frota!L100 -> 1 | M60: =+DR_Frota!M100 -> 1 | N60: =+DR_Frota!N100 -> 1 | P60: =VLOOKUP(I60,Base_b,calc_d,0) -> 1
C61: Total | F61: =CONCATENATE("Soma de ",I57,"..",I60) -> Soma de B57..B60 | I61: B61 | K61: =SUM(K57:K60) -> 88 | L61: =SUM(L57:L60) -> 88 | M61: =SUM(M57:M60) -> 88 | N61: =SUM(N57:N60) -> 88 | P61: =VLOOKUP(I61,Base_b,calc_d,0) -> 88
I62: B62
B63: 112 | C63: Frota Operante | I63: B63
C64: Micro Onibus | F64: DR_FROTA | G64: =+DR_Frota!I113 -> C113 | I64: B64 | K64: =+DR_Frota!K113 -> 1 | L64: =+DR_Frota!L113 -> 1 | M64: =+DR_Frota!M113 -> 1 | N64: =+DR_Frota!N113 -> 1 | P64: =VLOOKUP(I64,Base_b,calc_d,0) -> 1 | W64: Frota Operante = Frota Total (-) Frota não Operante
C65: Leve | F65: DR_FROTA | G65: =+DR_Frota!I114 -> C114 | I65: B65 | K65: =+DR_Frota!K114 -> 14 | L65: =+DR_Frota!L114 -> 14 | M65: =+DR_Frota!M114 -> 14 | N65: =+DR_Frota!N114 -> 14 | P65: =VLOOKUP(I65,Base_b,calc_d,0) -> 14
C66: Pesado | F66: DR_FROTA | G66: =+DR_Frota!I115 -> C115 | I66: B66 | K66: =+DR_Frota!K115 -> 64 | L66: =+DR_Frota!L115 -> 64 | M66: =+DR_Frota!M115 -> 64 | N66: =+DR_Frota!N115 -> 64 | P66: =VLOOKUP(I66,Base_b,calc_d,0) -> 64
C67: Articulado | F67: DR_FROTA | G67: =+DR_Frota!I116 -> C116 | I67: B67 | K67: =+DR_Frota!K116 -> 1 | L67: =+DR_Frota!L116 -> 1 | M67: =+DR_Frota!M116 -> 1 | N67: =+DR_Frota!N116 -> 1 | P67: =VLOOKUP(I67,Base_b,calc_d,0) -> 1
C68: Total | F68: =CONCATENATE("Soma de ",I64,"..",I67) -> Soma de B64..B67 | I68: B68 | K68: =SUM(K64:K67) -> 80 | L68: =SUM(L64:L67) -> 80 | M68: =SUM(M64:M67) -> 80 | N68: =SUM(N64:N67) -> 80 | P68: =VLOOKUP(I68,Base_b,calc_d,0) -> 80
I69: B69
B70: 113 | C70: PMM - Percurso Médio Mensal por Veiculo | F70: =CONCATENATE(I14,"/",I68) -> B14/B68 | I70: B70 | K70: =+K14/K68 -> 5033 | L70: =+L14/L68 -> 5033 | M70: =+M14/M68 -> 5033 | N70: =+N14/N68 -> 5033 | P70: =VLOOKUP(I70,Base_b,calc_d,0) -> 5033 | R70: 6500 | S70: 6500 | W70: PMM - Percurso Médio Mensal por Veiculo = Percurso Mensal (KM) / Prota Operante
I71: B71
B72: PASSAGEIROS | I72: B72
I73: B73
B74: 201 | C74: Valor da Tarifa atual | I74: B74
C75: Tarifa base | F75: =IF(Esc_tarifa_base=1,"Antecipado","Embarcado") -> Embarcado | I75: B75 | K75: =IF(Esc_tarifa_base=1,K76,K77) -> 3.25 | L75: =IF(Esc_tarifa_base=1,L76,L77) -> 3.25 | M75: =IF(Esc_tarifa_base=1,M76,M77) -> 3.25 | N75: =IF(Esc_tarifa_base=1,N76,N77) -> 3.25 | P75: =VLOOKUP(I75,Base_b,calc_d,0) -> 3.25
C76: Antecipado e vale transporte | G76: ? | I76: B76 | K76: 2.98 | L76: 2.98 | M76: 2.98 | N76: 2.98 | P76: =VLOOKUP(I76,Base_b,calc_d,0) -> 2.98 | W76: Valor da Tarifa atual
C77: Embarcado | G77: ? | I77: B77 | K77: 3.25 | L77: 3.25 | M77: 3.25 | N77: 3.25 | P77: =VLOOKUP(I77,Base_b,calc_d,0) -> 3.25
C78: Estudante | G78: ? | I78: B78 | K78: 1.49 | L78: 1.49 | M78: 1.49 | N78: 1.49 | P78: =VLOOKUP(I78,Base_b,calc_d,0) -> 1.49
I79: B79
B80: 202 | C80: Cálculo Passageiros Equivalentes | F80: =CONCATENATE("((",I83,"x",I76,") + ","(",I84,"x",I77,") + ","(",I85,"x",I78,") + ",,I86,"x",I76,")) / ",I75) -> ((B83xB76) + (B84xB77) + (B85xB78) + B86xB76)) / B75 | I80: B80 | K80: =ROUND((+K83*K76+K84*K77+K85*K78+K86*K76)/K75,0) -> 745168 | L80: =ROUND((+L83*L76+L84*L77+L85*L78+L86*L76)/L75,0) -> 745168 | M80: =ROUND((+M83*M76+M84*M77+M85*M78+M86*M76)/M75,0) -> 745168 | N80: =ROUND((+N83*N76+N84*N77+N85*N78+N86*N76)/N75,0) -> 745168 | P80: =VLOOKUP(I80,Base_b,calc_d,0) -> 745168 | W80: Cálculo Passageiros Equivalentes = Valor da Tarifa x Passageiros
I81: B81
B82: 203 | C82: Media Passageiros (Ultimos 12 meses) | I82: B82
C83: Antecipado | F83: =CONCATENATE(I108,"/","12") -> B108/12 | I83: B83 | K83: =ROUND(+K108/12,0) -> 88911 | L83: =ROUND(+L108/12,0) -> 88911 | M83: =ROUND(+M108/12,0) -> 88911 | N83: =ROUND(+N108/12,0) -> 88911 | P83: =VLOOKUP(I83,Base_b,calc_d,0) -> 88911 | W83: Média de Passageiros Transportado por Tipo de Tarifa
C84: Embarcado | F84: =CONCATENATE(I123,"/","12") -> B123/12 | I84: B84 | K84: =ROUND(+K123/12,0) -> 228790 | L84: =ROUND(+L123/12,0) -> 228790 | M84: =ROUND(+M123/12,0) -> 228790 | N84: =ROUND(+N123/12,0) -> 228790 | P84: =VLOOKUP(I84,Base_b,calc_d,0) -> 228790
C85: Estudante | F85: =CONCATENATE(I138,"/","12") -> B138/12 | I85: B85 | K85: =ROUND(+K138/12,0) -> 152867 | L85: =ROUND(+L138/12,0) -> 152867 | M85: =ROUND(+M138/12,0) -> 152867 | N85: =ROUND(+N138/12,0) -> 152867 | P85: =VLOOKUP(I85,Base_b,calc_d,0) -> 152867
C86: Vale transporte | F86: =CONCATENATE(I153,"/","12") -> B153/12 | I86: B86 | K86: =ROUND(+K153/12,0) -> 397819 | L86: =ROUND(+L153/12,0) -> 397819 | M86: =ROUND(+M153/12,0) -> 397819 | N86: =ROUND(+N153/12,0) -> 397819 | P86: =VLOOKUP(I86,Base_b,calc_d,0) -> 397819
C87: Total | F87: =CONCATENATE("Soma de ",I83,"..",I86) -> Soma de B83..B86 | I87: B87 | K87: =SUM(K83:K86) -> 868387 | L87: =SUM(L83:L86) -> 868387 | M87: =SUM(M83:M86) -> 868387 | N87: =SUM(N83:N86) -> 868387 | P87: =VLOOKUP(I87,Base_b,calc_d,0) -> 868387
I88: B88
B89: 204 | C89: Gratuidades | F89: =CONCATENATE(I168,"/","12") -> B168/12 | I89: B89 | K89: =ROUND(+K168/12,0) -> 149085 | L89: =ROUND(+L168/12,0) -> 149085 | M89: =ROUND(+M168/12,0) -> 149085 | N89: =ROUND(+N168/12,0) -> 149085 | P89: =VLOOKUP(I89,Base_b,calc_d,0) -> 149085 | W89: Média de passageiros Gratuidades
I90: B90
B91: 205 | C91: Total de Passageiros | F91: =CONCATENATE("+",I87,"+",I89) -> +B87+B89 | I91: B91 | K91: =+K87+K89 -> 1017472 | L91: =+L87+L89 -> 1017472 | M91: =+M87+M89 -> 1017472 | N91: =+N87+N89 -> 1017472 | P91: =VLOOKUP(I91,Base_b,calc_d,0) -> 1017472 | W91: Média Total de Passageiros Transportados
I92: B92
B93: HISTÓRICO DE PASSAGEIROS | I93: B93
I94: B94
B95: 211 | C95: Passageiros Antecipado | I95: B95
C96: ="Data Referência ( - ) 11" -> Data Referência ( - ) 11 | F96: =+F97-DAY(F97) -> 2016-11-30 | I96: B96 | K96: =+Hist_Passageiros!G157 -> 84374 | L96: =+$K96 -> 84374 | M96: 84374 | N96: 84374 | P96: =VLOOKUP(I96,Base_b,calc_d,0) -> 84374
C97: ="Data Referência ( - ) 10" -> Data Referência ( - ) 10 | F97: 2016-12-31 | I97: B97 | K97: =+Hist_Passageiros!G158 -> 83703 | L97: 83703 | M97: 83703 | N97: 83703 | P97: 83703
C98: ="Data Referência ( - ) 09" -> Data Referência ( - ) 09 | F98: 2017-01-31 | I98: B98 | K98: =+Hist_Passageiros!G159 -> 88745 | L98: 88745 | M98: 88745 | N98: 88745 | P98: 88745
C99: ="Data Referência ( - ) 08" -> Data Referência ( - ) 08 | F99: 2017-02-28 | I99: B99 | K99: =+Hist_Passageiros!G160 -> 82804 | L99: 82804 | M99: 82804 | N99: 82804 | P99: 82804
C100: ="Data Referência ( - ) 07" -> Data Referência ( - ) 07 | F100: 2017-03-31 | I100: B100 | K100: =+Hist_Passageiros!G161 -> 100363 | L100: 100363 | M100: 100363 | N100: 100363 | P100: 100363
C101: ="Data Referência ( - ) 06" -> Data Referência ( - ) 06 | F101: 2017-04-30 | I101: B101 | K101: =+Hist_Passageiros!G162 -> 77237 | L101: 77237 | M101: 77237 | N101: 77237 | P101: 77237
C102: ="Data Referência ( - ) 05" -> Data Referência ( - ) 05 | F102: 2017-05-31 | I102: B102 | K102: =+Hist_Passageiros!G163 -> 89983 | L102: 89983 | M102: 89983 | N102: 89983 | P102: 89983
C103: ="Data Referência ( - ) 04" -> Data Referência ( - ) 04 | F103: 2017-06-30 | I103: B103 | K103: =+Hist_Passageiros!G164 -> 88766 | L103: 88766 | M103: 88766 | N103: 88766 | P103: 88766
C104: ="Data Referência ( - ) 03" -> Data Referência ( - ) 03 | F104: 2017-07-31 | I104: B104 | K104: =+Hist_Passageiros!G165 -> 91019 | L104: 91019 | M104: 91019 | N104: 91019 | P104: 91019
C105: ="Data Referência ( - ) 02" -> Data Referência ( - ) 02 | F105: =+F106-DAY(F106) -> 2017-08-31 | I105: B105 | K105: =+Hist_Passageiros!G166 -> 97576 | L105: 97576 | M105: 97576 | N105: 97576 | P105: 97576
C106: ="Data Referência ( - ) 01" -> Data Referência ( - ) 01 | F106: =+F107-DAY(F107) -> 2017-09-30 | I106: B106 | K106: =+Hist_Passageiros!G167 -> 90412 | L106: 90412 | M106: 90412 | N106: 90412 | P106: 90412
C107: ="Data Referência" -> Data Referência | F107: =+Cenario!L$11 -> 2017-10-31 | I107: B107 | K107: =+Hist_Passageiros!G168 -> 91954 | L107: 91954 | M107: 91954 | N107: 91954 | P107: 91954
C108: Total | F108: =CONCATENATE("Soma de ",I96,"..",I107) -> Soma de B96..B107 | I108: B108 | K108: =SUM(K96:K107) -> 1066936 | L108: =SUM(L96:L107) -> 1066936 | M108: =SUM(M96:M107) -> 1066936 | N108: =SUM(N96:N107) -> 1066936 | P108: 1066936
I109: B109
B110: 207 | C110: Passageiros Embarcado | I110: B110
C111: ="Data Referência ( - ) 11" -> Data Referência ( - ) 11 | F111: =+F112-DAY(F112) -> 2016-11-30 | I111: =CONCATENATE("B",ROW()) -> B111 | K111: =+Hist_Passageiros!H157 -> 218297 | L111: =+$K111 -> 218297 | M111: 218297 | N111: 218297 | P111: =VLOOKUP(I111,Base_b,calc_d,0) -> 218297
C112: ="Data Referência ( - ) 10" -> Data Referência ( - ) 10 | F112: 2016-12-31 | I112: B112 | K112: =+Hist_Passageiros!H158 -> 224514 | L112: 224514 | M112: 224514 | N112: 224514 | P112: 224514
C113: ="Data Referência ( - ) 09" -> Data Referência ( - ) 09 | F113: 2017-01-31 | I113: B113 | K113: =+Hist_Passageiros!H159 -> 215583 | L113: 215583 | M113: 215583 | N113: 215583 | P113: 215583
C114: ="Data Referência ( - ) 08" -> Data Referência ( - ) 08 | F114: 2017-02-28 | I114: B114 | K114: =+Hist_Passageiros!H160 -> 228001 | L114: 228001 | M114: 228001 | N114: 228001 | P114: 228001
C115: ="Data Referência ( - ) 07" -> Data Referência ( - ) 07 | F115: 2017-03-31 | I115: B115 | K115: =+Hist_Passageiros!H161 -> 251071 | L115: 251071 | M115: 251071 | N115: 251071 | P115: 251071
C116: ="Data Referência ( - ) 06" -> Data Referência ( - ) 06 | F116: 2017-04-30 | I116: B116 | K116: =+Hist_Passageiros!H162 -> 210687 | L116: 210687 | M116: 210687 | N116: 210687 | P116: 210687
C117: ="Data Referência ( - ) 05" -> Data Referência ( - ) 05 | F117: 2017-05-31 | I117: B117 | K117: =+Hist_Passageiros!H163 -> 234066 | L117: 234066 | M117: 234066 | N117: 234066 | P117: 234066
C118: ="Data Referência ( - ) 04" -> Data Referência ( - ) 04 | F118: 2017-06-30 | I118: B118 | K118: =+Hist_Passageiros!H164 -> 219596 | L118: 219596 | M118: 219596 | N118: 219596 | P118: 219596
C119: ="Data Referência ( - ) 03" -> Data Referência ( - ) 03 | F119: 2017-07-31 | I119: B119 | K119: =+Hist_Passageiros!H165 -> 228387 | L119: 228387 | M119: 228387 | N119: 228387 | P119: 228387
C120: ="Data Referência ( - ) 02" -> Data Referência ( - ) 02 | F120: =+F121-DAY(F121) -> 2017-08-31 | I120: B120 | K120: =+Hist_Passageiros!H166 -> 242970 | L120: 242970 | M120: 242970 | N120: 242970 | P120: 242970
C121: ="Data Referência ( - ) 01" -> Data Referência ( - ) 01 | F121: =+F122-DAY(F122) -> 2017-09-30 | I121: B121 | K121: =+Hist_Passageiros!H167 -> 228374 | L121: 228374 | M121: 228374 | N121: 228374 | P121: 228374
C122: ="Data Referência" -> Data Referência | F122: =+Cenario!L$11 -> 2017-10-31 | I122: B122 | K122: =+Hist_Passageiros!H168 -> 243935 | L122: 243935 | M122: 243935 | N122: 243935 | P122: 243935
C123: Total | F123: =CONCATENATE("Soma de ",I111,"..",I122) -> Soma de B111..B122 | I123: B123 | K123: =SUM(K111:K122) -> 2745481 | L123: =SUM(L111:L122) -> 2745481 | M123: =SUM(M111:M122) -> 2745481 | N123: =SUM(N111:N122) -> 2745481 | P123: 2745481
I124: B124 | P124: 0
B125: 208 | C125: Passageiros Estudante | I125: B125 | P125: 0
C126: ="Data Referência ( - ) 11" -> Data Referência ( - ) 11 | F126: =+F127-DAY(F127) -> 2016-11-30 | I126: B126 | K126: =+Hist_Passageiros!I157 -> 144875 | L126: =+$K126 -> 144875 | M126: 144875 | N126: 144875 | P126: 144875
C127: ="Data Referência ( - ) 10" -> Data Referência ( - ) 10 | F127: 2016-12-31 | I127: B127 | K127: =+Hist_Passageiros!I158 -> 72894 | L127: 72894 | M127: 72894 | N127: 72894 | P127: 72894
C128: ="Data Referência ( - ) 09" -> Data Referência ( - ) 09 | F128: 2017-01-31 | I128: B128 | K128: =+Hist_Passageiros!I159 -> 7045 | L128: 7045 | M128: 7045 | N128: 7045 | P128: 7045
C129: ="Data Referência ( - ) 08" -> Data Referência ( - ) 08 | F129: 2017-02-28 | I129: B129 | K129: =+Hist_Passageiros!I160 -> 90342 | L129: 90342 | M129: 90342 | N129: 90342 | P129: 90342
C130: ="Data Referência ( - ) 07" -> Data Referência ( - ) 07 | F130: 2017-03-31 | I130: B130 | K130: =+Hist_Passageiros!I161 -> 203220 | L130: 203220 | M130: 203220 | N130: 203220 | P130: 203220
C131: ="Data Referência ( - ) 06" -> Data Referência ( - ) 06 | F131: 2017-04-30 | I131: B131 | K131: =+Hist_Passageiros!I162 -> 173109 | L131: 173109 | M131: 173109 | N131: 173109 | P131: 173109
C132: ="Data Referência ( - ) 05" -> Data Referência ( - ) 05 | F132: 2017-05-31 | I132: B132 | K132: =+Hist_Passageiros!I163 -> 220510 | L132: 220510 | M132: 220510 | N132: 220510 | P132: 220510
C133: ="Data Referência ( - ) 04" -> Data Referência ( - ) 04 | F133: 2017-06-30 | I133: B133 | K133: =+Hist_Passageiros!I164 -> 195642 | L133: 195642 | M133: 195642 | N133: 195642 | P133: 195642
C134: ="Data Referência ( - ) 03" -> Data Referência ( - ) 03 | F134: 2017-07-31 | I134: B134 | K134: =+Hist_Passageiros!I165 -> 118665 | L134: 118665 | M134: 118665 | N134: 118665 | P134: 118665
C135: ="Data Referência ( - ) 02" -> Data Referência ( - ) 02 | F135: =+F136-DAY(F136) -> 2017-08-31 | I135: B135 | K135: =+Hist_Passageiros!I166 -> 202159 | L135: 202159 | M135: 202159 | N135: 202159 | P135: 202159
C136: ="Data Referência ( - ) 01" -> Data Referência ( - ) 01 | F136: =+F137-DAY(F137) -> 2017-09-30 | I136: B136 | K136: =+Hist_Passageiros!I167 -> 208470 | L136: 208470 | M136: 208470 | N136: 208470 | P136: 208470
C137: ="Data Referência" -> Data Referência | F137: =+Cenario!L$11 -> 2017-10-31 | I137: B137 | K137: =+Hist_Passageiros!I168 -> 197477 | L137: 197477 | M137: 197477 | N137: 197477 | P137: 197477
C138: Total | F138: =CONCATENATE("Soma de ",I126,"..",I137) -> Soma de B126..B137 | I138: B138 | K138: =SUM(K126:K137) -> 1834408 | L138: =SUM(L126:L137) -> 1834408 | M138: =SUM(M126:M137) -> 1834408 | N138: =SUM(N126:N137) -> 1834408 | P138: 1834408
I139: B139
B140: 209 | C140: Passageiros Vale Transporte | I140: B140
C141: ="Data Referência ( - ) 11" -> Data Referência ( - ) 11 | F141: =+F142-DAY(F142) -> 2016-11-30 | I141: B141 | K141: =+Hist_Passageiros!J157 -> 383877 | L141: =+$K141 -> 383877 | M141: 383877 | N141: 383877 | P141: =VLOOKUP(I141,Base_b,calc_d,0) -> 383877
C142: ="Data Referência ( - ) 10" -> Data Referência ( - ) 10 | F142: 2016-12-31 | I142: B142 | K142: =+Hist_Passageiros!J158 -> 367570 | L142: 367570 | M142: 367570 | N142: 367570 | P142: 367570
C143: ="Data Referência ( - ) 09" -> Data Referência ( - ) 09 | F143: 2017-01-31 | I143: B143 | K143: =+Hist_Passageiros!J159 -> 354673 | L143: 354673 | M143: 354673 | N143: 354673 | P143: 354673
C144: ="Data Referência ( - ) 08" -> Data Referência ( - ) 08 | F144: 2017-02-28 | I144: B144 | K144: =+Hist_Passageiros!J160 -> 355333 | L144: 355333 | M144: 355333 | N144: 355333 | P144: 355333
C145: ="Data Referência ( - ) 07" -> Data Referência ( - ) 07 | F145: 2017-03-31 | I145: B145 | K145: =+Hist_Passageiros!J161 -> 439785 | L145: 439785 | M145: 439785 | N145: 439785 | P145: 439785
C146: ="Data Referência ( - ) 06" -> Data Referência ( - ) 06 | F146: 2017-04-30 | I146: B146 | K146: =+Hist_Passageiros!J162 -> 349972 | L146: 349972 | M146: 349972 | N146: 349972 | P146: 349972
C147: ="Data Referência ( - ) 05" -> Data Referência ( - ) 05 | F147: 2017-05-31 | I147: B147 | K147: =+Hist_Passageiros!J163 -> 428500 | L147: 428500 | M147: 428500 | N147: 428500 | P147: 428500
C148: ="Data Referência ( - ) 04" -> Data Referência ( - ) 04 | F148: 2017-06-30 | I148: B148 | K148: =+Hist_Passageiros!J164 -> 407711 | L148: 407711 | M148: 407711 | N148: 407711 | P148: 407711
C149: ="Data Referência ( - ) 03" -> Data Referência ( - ) 03 | F149: 2017-07-31 | I149: B149 | K149: =+Hist_Passageiros!J165 -> 403396 | L149: 403396 | M149: 403396 | N149: 403396 | P149: 403396
C150: ="Data Referência ( - ) 02" -> Data Referência ( - ) 02 | F150: =+F151-DAY(F151) -> 2017-08-31 | I150: B150 | K150: =+Hist_Passageiros!J166 -> 439823 | L150: 439823 | M150: 439823 | N150: 439823 | P150: 439823
C151: ="Data Referência ( - ) 01" -> Data Referência ( - ) 01 | F151: =+F152-DAY(F152) -> 2017-09-30 | I151: B151 | K151: =+Hist_Passageiros!J167 -> 413493 | L151: 413493 | M151: 413493 | N151: 413493 | P151: 413493
C152: ="Data Referência" -> Data Referência | F152: =+Cenario!L$11 -> 2017-10-31 | I152: B152 | K152: =+Hist_Passageiros!J168 -> 429691 | L152: 429691 | M152: 429691 | N152: 429691 | P152: 429691
C153: Total | F153: =CONCATENATE("Soma de ",I141,"..",I152) -> Soma de B141..B152 | I153: B153 | K153: =SUM(K141:K152) -> 4773824 | L153: =SUM(L141:L152) -> 4773824 | M153: =SUM(M141:M152) -> 4773824 | N153: =SUM(N141:N152) -> 4773824 | P153: 4773824
I154: B154
B155: 210 | C155: Passageiros Gratuidades | I155: B155
C156: ="Data Referência ( - ) 11" -> Data Referência ( - ) 11 | F156: =+F157-DAY(F157) -> 2016-11-30 | I156: B156 | K156: =+Hist_Passageiros!M157 -> 153148 | L156: =+$K156 -> 153148 | M156: 153148 | N156: 153148 | P156: =VLOOKUP(I156,Base_b,calc_d,0) -> 153148
C157: ="Data Referência ( - ) 10" -> Data Referência ( - ) 10 | F157: 2016-12-31 | I157: B157 | K157: =+Hist_Passageiros!M158 -> 143207 | L157: 143207 | M157: 143207 | N157: 143207 | P157: 143207
C158: ="Data Referência ( - ) 09" -> Data Referência ( - ) 09 | F158: 2017-01-31 | I158: B158 | K158: =+Hist_Passageiros!M159 -> 139903 | L158: 139903 | M158: 139903 | N158: 139903 | P158: 139903
C159: ="Data Referência ( - ) 08" -> Data Referência ( - ) 08 | F159: 2017-02-28 | I159: B159 | K159: =+Hist_Passageiros!M160 -> 136795 | L159: 136795 | M159: 136795 | N159: 136795 | P159: 136795
C160: ="Data Referência ( - ) 07" -> Data Referência ( - ) 07 | F160: 2017-03-31 | I160: B160 | K160: =+Hist_Passageiros!M161 -> 173034 | L160: 173034 | M160: 173034 | N160: 173034 | P160: 173034
C161: ="Data Referência ( - ) 06" -> Data Referência ( - ) 06 | F161: 2017-04-30 | I161: B161 | K161: =+Hist_Passageiros!M162 -> 140126 | L161: 140126 | M161: 140126 | N161: 140126 | P161: 140126
C162: ="Data Referência ( - ) 05" -> Data Referência ( - ) 05 | F162: 2017-05-31 | I162: B162 | K162: =+Hist_Passageiros!M163 -> 153100 | L162: 153100 | M162: 153100 | N162: 153100 | P162: 153100
C163: ="Data Referência ( - ) 04" -> Data Referência ( - ) 04 | F163: 2017-06-30 | I163: B163 | K163: =+Hist_Passageiros!M164 -> 144215 | L163: 144215 | M163: 144215 | N163: 144215 | P163: 144215
C164: ="Data Referência ( - ) 03" -> Data Referência ( - ) 03 | F164: 2017-07-31 | I164: B164 | K164: =+Hist_Passageiros!M165 -> 147340 | L164: 147340 | M164: 147340 | N164: 147340 | P164: 147340
C165: ="Data Referência ( - ) 02" -> Data Referência ( - ) 02 | F165: =+F166-DAY(F166) -> 2017-08-31 | I165: B165 | K165: =+Hist_Passageiros!M166 -> 160740 | L165: 160740 | M165: 160740 | N165: 160740 | P165: 160740
C166: ="Data Referência ( - ) 01" -> Data Referência ( - ) 01 | F166: =+F167-DAY(F167) -> 2017-09-30 | I166: B166 | K166: =+Hist_Passageiros!M167 -> 145797 | L166: 145797 | M166: 145797 | N166: 145797 | P166: 145797
C167: ="Data Referência" -> Data Referência | F167: =+Cenario!L$11 -> 2017-10-31 | I167: B167 | K167: =+Hist_Passageiros!M168 -> 151612 | L167: 151612 | M167: 151612 | N167: 151612 | P167: 151612
C168: Total | F168: =CONCATENATE("Soma de ",I156,"..",I167) -> Soma de B156..B167 | I168: B168 | K168: =SUM(K156:K167) -> 1789017 | L168: =SUM(L156:L167) -> 1789017 | M168: =SUM(M156:M167) -> 1789017 | N168: =SUM(N156:N167) -> 1789017 | P168: 1789017
I169: B169
B170: COMBUSTÍVEIS | I170: B170
I171: B171
B172: 301 | C172: Combustivel | I172: B172
C173: Preço Médio Litro de Combustivel | G173: ? | I173: B173 | K173: 3.3 | L173: 3.3 | M173: 0.0001 | N173: 0.0001 | P173: =VLOOKUP(I173,Base_b,calc_d,0) -> 3.3 | R173: www.seguradoralider.com.br | W173: Valor do Preço Médio do Combustivel
I174: B174
C175: Média ponderada | I175: B175 | K175: =+K176*(1-K178)+K177*K178 -> 3.291496 | L175: =+L176*(1-L178)+L177*L178 -> 3.291496 | M175: =+M176*(1-M178)+M177*M178 -> 3.291496 | N175: =+N176*(1-N178)+N177*N178 -> 3.291496 | P175: =VLOOKUP(I175,Base_b,calc_d,0) -> 3.291496 | R175: https://www.anp.gov.br/preco/prc/Resumo_Por_Municipio_Index.asp
C176: Diesel S-10 - ANP | I176: B176 | K176: 3.327 | L176: 3.327 | M176: 3.327 | N176: 3.327 | P176: =VLOOKUP(I176,Base_b,calc_d,0) -> 3.327
C177: Diesel S-500 - ANP | I177: =CONCATENATE("B",ROW()) -> B177 | K177: 3.2002 | L177: 3.2002 | M177: 3.2002 | N177: 3.2002 | P177: =VLOOKUP(I177,Base_b,calc_d,0) -> 3.2002
C178: % Consumo S-500 | I178: =CONCATENATE("B",ROW()) -> B178 | K178: 0.28 | L178: 0.28 | M178: 0.28 | N178: 0.28 | P178: =VLOOKUP(I178,Base_b,calc_d,0) -> 0.28
I179: =CONCATENATE("B",ROW()) -> B179
C180: Previsão mensal de consumo (litros) | I180: =CONCATENATE("B",ROW()) -> B180 | K180: =+K14*K182 -> 163975.14 | L180: =+L14*L182 -> 163975.14 | M180: =+M14*M182 -> 163975.14 | N180: =+N14*N182 -> 163975.14 | P180: =VLOOKUP(I180,Base_b,calc_d,0) -> 163975.14
I181: =CONCATENATE("B",ROW()) -> B181
B182: 302 | C182: Coeficiente Consumo Combustivel (Litros/Km) | I182: =CONCATENATE("B",ROW()) -> B182 | K182: =(+K64*K183+K65*K184+K66*K185+K67*K186)/K68 -> 0.40725 | L182: =(+L64*L183+L65*L184+L66*L185+L67*L186)/L68 -> 0.40725 | M182: =(+M64*M183+M65*M184+M66*M185+M67*M186)/M68 -> 0.40725 | N182: =(+N64*N183+N65*N184+N66*N185+N67*N186)/N68 -> 0.40725
C183: Micro Onibus | G183: F | I183: B183 | K183: 0.25 | L183: 0.25 | M183: 0.25 | N183: 0.25 | P183: =VLOOKUP(I183,Base_b,calc_d,0) -> 0.25 | R183: 0.24 | S183: 0.29 | W183: Coeficiente de Consumo de Combustível (Litros por Km percorido) de cada tipo de Veiculo
C184: Leve | G184: F | I184: B184 | K184: 0.35 | L184: 0.35 | M184: 0.35 | N184: 0.35 | P184: =VLOOKUP(I184,Base_b,calc_d,0) -> 0.35 | R184: 0.34 | S184: 0.38 | T184: 0.35 | U184: 0.39
C185: Pesado | G185: F | I185: B185 | K185: 0.42 | L185: 0.42 | M185: 0.42 | N185: 0.42 | P185: =VLOOKUP(I185,Base_b,calc_d,0) -> 0.42 | R185: 0.45 | S185: 0.65 | T185: 0.45 | U185: 0.5
C186: Articulado | G186: F | I186: B186 | K186: 0.55 | L186: 0.55 | M186: 0.55 | N186: 0.55 | P186: =VLOOKUP(I186,Base_b,calc_d,0) -> 0.55 | R186: 0.65 | S186: 0.85 | T186: 0.53 | U186: 0.65
I187: B187
B188: 303 | C188: Coeficiente Consumo Lubrificante | I188: B188
C189: Litros de combustivel por km | G189: F | I189: B189 | K189: 0.03 | L189: 0.03 | M189: 0.03 | N189: 0.03 | P189: =VLOOKUP(I189,Base_b,calc_d,0) -> 0.03 | R189: 0.024 | S189: 0.029 | T189: 0.04 | U189: 0.06 | W189: Coeficiente de Consumo de Lubrificante - Litros de Combustível por Km
B190: DESPESAS DE PESSOAL | I190: B190
I191: B191
C192: Despesa com Pessoal por Veiculo apurada | F192: APURA | G192: =+Apura!I258 -> A258 | I192: B192 | K192: =+Apura!P258 -> 10106.51178 | L192: =+Apura!Q258 -> 10106.51178 | M192: =+Apura!R258 -> 0.09293161603 | N192: =+Apura!S258 -> 0.09293161603 | W192: Despesa Apurada Comparada com o Histórico de Despesa de Pessoal Efetiva
C193: HDP - Despesa de Pessoal por Veiculo | F193: =+Hist_salarial!S18 -> 9443.459412 | G193: ? | I193: B193 | K193: =+F193*1.0327 -> 9752.260535 | L193: =+K193*(1+L196) -> 9752.260535 | M193: 54 | N193: 54
C194: Variação Percentual | I194: B194 | K194: =+K192/K193-1 -> 0.03632503953 | L194: =+L192/L193-1 -> 0.03632503953 | M194: =+M192/M193-1 -> -0.9982790441 | N194: =+N192/N193-1 -> -0.9982790441
I195: B195
B196: 401 | C196: Salário Médio Mensal | I196: B196
C197: Salário base Motorista | G197: ? | I197: B197 | K197: 1777 | L197: 1777 | M197: 0.01 | N197: 0.01 | P197: =VLOOKUP(I197,Base_b,calc_d,0) -> 1777 | R197: 1720.78 | S197: =ROUND(+R197*1.0325,0) -> 1777 | T197: =+S197/R197-1 -> 0.03267123049 | W197: Salário médio mensal do Pessoal de Operação.
C198: Adicionais | G198: ? | I198: B198 | K198: 310 | L198: 310 | M198: 0.01 | N198: 0.01 | P198: 310 | R198: 300 | S198: =ROUND(+R198*1.0325,0) -> 310 | T198: =+S198/R198-1 -> 0.03333333333
C199: Total salário do Motorista | F199: =CONCATENATE(I197," + ",I198) -> B197 + B198 | I199: B199 | K199: =+K197+K198 -> 2087 | L199: =+L197+L198 -> 2087 | M199: =+M197+M198 -> 0.02 | N199: =+N197+N198 -> 0.02 | P199: 2087 | R199: =+R197+R198 -> 2020.78 | S199: =+S197+S198 -> 2087 | T199: =+T197+T198 -> 0.06600456382
C200: Cobrador | G200: ? | I200: B200 | K200: 1113 | L200: 1113 | M200: 0.01 | N200: 0.01 | P200: 1113 | R200: 1078 | S200: =ROUND(+R200*1.0325,0) -> 1113 | T200: =+S200/R200-1 -> 0.03246753247
C201: Fiscal/Despachante | G201: ? | I201: B201 | K201: 1707 | L201: 1707 | M201: 0.01 | N201: 0.01 | P201: 1707 | R201: 1653.2 | S201: =ROUND(+R201*1.0325,0) -> 1707 | T201: =+S201/R201-1 -> 0.03254294701
... 210 more rows

Sheet DR_Frota
K1: =+Tarifa!K27 -> 3.250020342 | L1: =+Tarifa!L27 -> 3.250020342 | M1: =+Tarifa!M27 -> 0.004320741671 | N1: =+Tarifa!N27 -> 0.003509621155
B2: DR_FROTA | I2: ÁREA DE DADOS E CÁLCULOS - NÃO INCLUIR COLUNA
A3: pedro milton golfe | B3: =+Titulo_01 -> PREFEITURA MUNICIPAL DE CHAPECO
A4: pedro milton golfe | B4: =+Titulo_02 -> CONTROLADORIA GERAL DO MUNICÍPIO
A5: pedro milton golfe | B5: =+Titulo_03 -> SISTEMA DE TRANSPORTE PÚBLICO DE PASSAGEIROS
B6: Cálculo Depreciação/Remuneração da Frota
B7: =CONCATENATE(+Cenario!$D$10," - ",+Cenario!$E$18) -> Cenário - Prefeitura Chapecó - Base Edital - base 10/17 - PROPOSTA | F7: =+Apura!$Z$11 -> Cenário 02 | K7: Tarifa base | L7: =IF(Esc_tarifa_base=1,"Antecipado","Embarcado") -> Embarcado
B9: ITEM | C9: DISCRIMINAÇÃO | F9: Referência | K9: =+Apura!U11 -> Cenário 01 | L9: =+Apura!V11 -> Cenário 02 | M9: =+Apura!W11 -> Cenário 03 | N9: =+Apura!X11 -> Cenário 04 | P9: CALC FC | T9: Informação Coeficientes
F10: Data | I10: =CONCATENATE("C",ROW()) -> C10 | K10: =+Consumo!K10 -> 2017-10-31 | L10: =+Consumo!L10 -> 2017-10-31 | M10: =+Consumo!M10 -> 2018-08-31 | N10: =+Consumo!N10 -> 2018-08-31 | P10: =VLOOKUP(I10,Base_c,calc_d,0) -> 2017-10-31 | T10: Depr acelerada | U10: Depr Linear
I11: =CONCATENATE("C",ROW()) -> C11
B12: FROTA DE VEICULOS | I12: =CONCATENATE("C",ROW()) -> C12
I13: =CONCATENATE("C",ROW()) -> C13
B14: 101 | C14: Distribuição da Frota por Ano | I14: =CONCATENATE("C",ROW()) -> C14
I15: =CONCATENATE("C",ROW()) -> C15
B16: 10101 | C16: MICRO ONIBUS | D16: Anos | I16: C16
B17: =+B16 -> 10101 | C17: 0 a 1 ano | D17: 0 | G17: ? | I17: C17 | K17: 0 | L17: 0 | M17: 0 | N17: 0 | P17: =VLOOKUP(I17,Base_c,calc_d,0) -> 0
B18: =+B17 -> 10101 | C18: 1 a 2 anos | D18: =+D17+1 -> 1 | G18: ? | I18: C18 | K18: 0 | L18: 0 | M18: 0 | N18: 0 | P18: 0
B19: 10101 | C19: 2 a 3 anos | D19: =+D18+1 -> 2 | G19: ? | I19: C19 | K19: 0 | L19: 0 | M19: 0 | N19: 0 | P19: 0
B20: 10101 | C20: 3 a 4 anos | D20: 3 | G20: ? | I20: C20 | K20: 0 | L20: 0 | M20: 0 | N20: 0 | P20: 0
B21: 10101 | C21: 4 a 5 anos | D21: 4 | G21: ? | I21: C21 | K21: 0 | L21: 0 | M21: 0 | N21: 0 | P21: 0
B22: 10101 | C22: 5 a 6 anos | D22: 5 | G22: ? | I22: C22 | K22: 0 | L22: 0 | M22: 0 | N22: 0 | P22: 0
B23: 10101 | C23: 6 a 7 anos | D23: 6 | G23: ? | I23: C23 | K23: 1 | L23: 1 | M23: 1 | N23: 1 | P23: 1
B24: 10101 | C24: 7 a 8 anos | D24: 7 | G24: ? | I24: C24 | K24: 0 | L24: 0 | M24: 0 | N24: 0 | P24: 0
B25: 10101 | C25: 8 a 9 anos | D25: 8 | G25: ? | I25: C25 | K25: 0 | L25: 0 | M25: 0 | N25: 0 | P25: 0
B26: 10101 | C26: 9 a 10 anos | D26: 9 | G26: ? | I26: C26 | K26: 0 | L26: 0 | M26: 0 | N26: 0 | P26: 0
B27: 10101 | C27: 10 a 11 anos | D27: 10 | G27: ? | I27: C27 | K27: 0 | L27: 0 | M27: 0 | N27: 0 | P27: 0
B28: 10101 | C28: 11 a 12 anos | D28: 11 | G28: ? | I28: C28 | K28: 0 | L28: 0 | M28: 0 | N28: 0 | P28: 0
B29: 10101 | C29: 12 a 13 anos | D29: 12 | G29: ? | I29: C29 | K29: 0 | L29: 0 | M29: 0 | N29: 0 | P29: 0
B30: 10101 | C30: 13 a 14 anos | D30: 13 | G30: ? | I30: C30 | K30: 0 | L30: 0 | M30: 0 | N30: 0 | P30: 0
B31: 10101 | C31: 14 a 15 anos | D31: 14 | G31: ? | I31: C31 | K31: 0 | L31: 0 | M31: 0 | N31: 0 | P31: 0
B32: 10101 | C32: + de 15 anos | D32: 15 | G32: ? | I32: C32 | K32: 0 | L32: 0 | M32: 0 | N32: 0 | P32: 0
B33: 10101 | C33: TOTAL | F33: =CONCATENATE("Soma de ",I17,"..",I32) -> Soma de C17..C32 | I33: C33 | K33: =SUM(K17:K32) -> 1 | L33: =SUM(L17:L32) -> 1 | M33: =SUM(M17:M32) -> 1 | N33: =SUM(N17:N32) -> 1 | P33: 1
B34: 10101 | C34: TOTAL DE ANOS | F34: =CONCATENATE("Soma Produtos de ",I17,"..",I32," x anos ") -> Soma Produtos de C17..C32 x anos | I34: C34 | K34: =SUMPRODUCT($D17:$D32,K17:K32) -> 6 | L34: =SUMPRODUCT($D17:$D32,L17:L32) -> 6 | M34: =SUMPRODUCT($D17:$D32,M17:M32) -> 6 | N34: =SUMPRODUCT($D17:$D32,N17:N32) -> 6 | P34: 6
I35: C35
B36: 10102 | C36: ONIBUS LEVE | D36: Anos | I36: C36
B37: =+B36 -> 10102 | C37: 0 a 1 ano | D37: 0 | G37: ? | I37: C37 | K37: 0 | L37: 0 | M37: 0 | N37: 0 | P37: =VLOOKUP(I37,Base_c,calc_d,0) -> 0 | U37: 0
B38: =+B37 -> 10102 | C38: 1 a 2 anos | D38: =+D37+1 -> 1 | G38: ? | I38: C38 | K38: 0 | L38: 0 | M38: 0 | N38: 0 | P38: 0 | U38: 0
B39: 10102 | C39: 2 a 3 anos | D39: =+D38+1 -> 2 | G39: ? | I39: C39 | K39: 2 | L39: 2 | M39: 2 | N39: 2 | P39: 2 | U39: 0
B40: 10102 | C40: 3 a 4 anos | D40: 3 | G40: ? | I40: C40 | K40: 3 | L40: 3 | M40: 3 | N40: 3 | P40: 3 | U40: 0
B41: 10102 | C41: 4 a 5 anos | D41: 4 | G41: ? | I41: C41 | K41: 3 | L41: 3 | M41: 3 | N41: 3 | P41: 3 | U41: 3
B42: 10102 | C42: 5 a 6 anos | D42: 5 | G42: ? | I42: C42 | K42: 3 | L42: 3 | M42: 3 | N42: 3 | P42: 3 | U42: 11
B43: 10102 | C43: 6 a 7 anos | D43: 6 | G43: ? | I43: C43 | K43: 3 | L43: 3 | M43: 3 | N43: 3 | P43: 3 | U43: 0
B44: 10102 | C44: 7 a 8 anos | D44: 7 | G44: ? | I44: C44 | K44: 0 | L44: 0 | M44: 0 | N44: 0 | P44: 0 | U44: 0
B45: 10102 | C45: 8 a 9 anos | D45: 8 | G45: ? | I45: C45 | K45: 0 | L45: 0 | M45: 0 | N45: 0 | P45: 0 | U45: 0
B46: 10102 | C46: 9 a 10 anos | D46: 9 | G46: ? | I46: C46 | K46: 0 | L46: 0 | M46: 0 | N46: 0 | P46: 0 | U46: 0
B47: 10102 | C47: 10 a 11 anos | D47: 10 | G47: ? | I47: C47 | K47: 0 | L47: 0 | M47: 0 | N47: 0 | P47: 0 | U47: 0
B48: 10102 | C48: 11 a 12 anos | D48: 11 | G48: ? | I48: C48 | K48: 0 | L48: 0 | M48: 0 | N48: 0 | P48: 0 | U48: 0
B49: 10102 | C49: 12 a 13 anos | D49: 12 | G49: ? | I49: C49 | K49: 0 | L49: 0 | M49: 0 | N49: 0 | P49: 0 | U49: 0
B50: 10102 | C50: 13 a 14 anos | D50: 13 | G50: ? | I50: C50 | K50: 0 | L50: 0 | M50: 0 | N50: 0 | P50: 0 | U50: 0
B51: 10102 | C51: 14 a 15 anos | D51: 14 | G51: ? | I51: C51 | K51: 0 | L51: 0 | M51: 0 | N51: 0 | P51: 0 | U51: 0
B52: 10102 | C52: + de 15 anos | D52: 15 | G52: ? | I52: C52 | K52: 0 | L52: 0 | M52: 0 | N52: 0 | P52: 0 | U52: 0
B53: 10102 | C53: TOTAL | F53: =CONCATENATE("Soma de ",I37,"..",I52) -> Soma de C37..C52 | I53: C53 | K53: =SUM(K37:K52) -> 14 | L53: =SUM(L37:L52) -> 14 | M53: =SUM(M37:M52) -> 14 | N53: =SUM(N37:N52) -> 14 | P53: 14 | U53: =SUM(U37:U52) -> 14
B54: 10102 | C54: TOTAL DE ANOS | F54: =CONCATENATE("Soma Produtos de ",I37,"..",I52," x anos ") -> Soma Produtos de C37..C52 x anos | I54: C54 | K54: =SUMPRODUCT($D37:$D52,K37:K52) -> 58 | L54: =SUMPRODUCT($D37:$D52,L37:L52) -> 58 | M54: =SUMPRODUCT($D37:$D52,M37:M52) -> 58 | N54: =SUMPRODUCT($D37:$D52,N37:N52) -> 58 | P54: 58
I55: C55
B56: 10103 | C56: ONIBUS PESADO | D56: Anos | I56: C56
B57: =+B56 -> 10103 | C57: 0 a 1 ano | D57: 0 | G57: ? | I57: C57 | K57: 0 | L57: 0 | M57: 0 | N57: 0 | P57: =VLOOKUP(I57,Base_c,calc_d,0) -> 0 | U57: 15
B58: =+B57 -> 10103 | C58: 1 a 2 anos | D58: =+D57+1 -> 1 | G58: ? | I58: C58 | K58: 0 | L58: 0 | M58: 0 | N58: 0 | P58: 0 | U58: 0
B59: 10103 | C59: 2 a 3 anos | D59: =+D58+1 -> 2 | G59: ? | I59: C59 | K59: 12 | L59: 12 | M59: 12 | N59: 12 | P59: 12 | U59: 0
B60: 10103 | C60: 3 a 4 anos | D60: 3 | G60: ? | I60: C60 | K60: 12 | L60: 12 | M60: 12 | N60: 12 | P60: 12 | U60: 21
B61: 10103 | C61: 4 a 5 anos | D61: 4 | G61: ? | I61: C61 | K61: 12 | L61: 12 | M61: 12 | N61: 12 | P61: 12 | U61: 0
B62: 10103 | C62: 5 a 6 anos | D62: 5 | G62: ? | I62: C62 | K62: 12 | L62: 12 | M62: 12 | N62: 12 | P62: 12 | U62: 3
B63: 10103 | C63: 6 a 7 anos | D63: 6 | G63: ? | I63: C63 | K63: 12 | L63: 12 | M63: 12 | N63: 12 | P63: 12 | U63: 14
B64: 10103 | C64: 7 a 8 anos | D64: 7 | G64: ? | I64: C64 | K64: 12 | L64: 12 | M64: 12 | N64: 12 | P64: 12 | U64: 3
B65: 10103 | C65: 8 a 9 anos | D65: 8 | G65: ? | I65: C65 | K65: 0 | L65: 0 | M65: 0 | N65: 0 | P65: 0 | U65: 2
B66: 10103 | C66: 9 a 10 anos | D66: 9 | G66: ? | I66: C66 | K66: 0 | L66: 0 | M66: 0 | N66: 0 | P66: 0 | U66: 10
B67: 10103 | C67: 10 a 11 anos | D67: 10 | G67: ? | I67: C67 | K67: 0 | L67: 0 | M67: 0 | N67: 0 | P67: 0 | U67: 4
B68: 10103 | C68: 11 a 12 anos | D68: 11 | G68: ? | I68: C68 | K68: 0 | L68: 0 | M68: 0 | N68: 0 | P68: 0 | U68: 0
B69: 10103 | C69: 12 a 13 anos | D69: 12 | G69: ? | I69: C69 | K69: 0 | L69: 0 | M69: 0 | N69: 0 | P69: 0 | U69: 0
B70: 10103 | C70: 13 a 14 anos | D70: 13 | G70: ? | I70: C70 | K70: 0 | L70: 0 | M70: 0 | N70: 0 | P70: 0 | U70: 0
B71: 10103 | C71: 14 a 15 anos | D71: 14 | G71: ? | I71: C71 | K71: 0 | L71: 0 | M71: 0 | N71: 0 | P71: 0 | U71: 0
B72: 10103 | C72: + de 15 anos | D72: 15 | G72: ? | I72: C72 | K72: 0 | L72: 0 | M72: 0 | N72: 0 | P72: 0 | U72: 0
B73: 10103 | C73: TOTAL | F73: =CONCATENATE("Soma de ",I57,"..",I72) -> Soma de C57..C72 | I73: C73 | K73: =SUM(K57:K72) -> 72 | L73: =SUM(L57:L72) -> 72 | M73: =SUM(M57:M72) -> 72 | N73: =SUM(N57:N72) -> 72 | P73: 72 | U73: =SUM(U57:U72) -> 72
B74: 10103 | C74: TOTAL DE ANOS | F74: =CONCATENATE("Soma Produtos de ",I57,"..",I72," x anos ") -> Soma Produtos de C57..C72 x anos | I74: C74 | K74: =SUMPRODUCT($D57:$D72,K57:K72) -> 324 | L74: =SUMPRODUCT($D57:$D72,L57:L72) -> 324 | M74: =SUMPRODUCT($D57:$D72,M57:M72) -> 324 | N74: =SUMPRODUCT($D57:$D72,N57:N72) -> 324 | P74: 324
I75: =CONCATENATE("C",ROW()) -> C75
B76: 10104 | C76: ONIBUS ARTICULADO | D76: Anos | I76: C76
B77: =+B76 -> 10104 | C77: 0 a 1 ano | D77: 0 | G77: ? | I77: C77 | K77: 0 | L77: 0 | M77: 0 | N77: 0 | P77: =VLOOKUP(I77,Base_c,calc_d,0) -> 0
B78: =+B77 -> 10104 | C78: 1 a 2 anos | D78: =+D77+1 -> 1 | G78: ? | I78: C78 | K78: 0 | L78: 0 | M78: 0 | N78: 0 | P78: 0
B79: 10104 | C79: 2 a 3 anos | D79: =+D78+1 -> 2 | G79: ? | I79: C79 | K79: 0 | L79: 0 | M79: 0 | N79: 0 | P79: 0
B80: 10104 | C80: 3 a 4 anos | D80: 3 | G80: ? | I80: C80 | K80: 0 | L80: 0 | M80: 0 | N80: 0 | P80: 0
B81: 10104 | C81: 4 a 5 anos | D81: 4 | G81: ? | I81: C81 | K81: 1 | L81: 1 | M81: 1 | N81: 1 | P81: 1
B82: 10104 | C82: 5 a 6 anos | D82: 5 | G82: ? | I82: C82 | K82: 0 | L82: 0 | M82: 0 | N82: 0 | P82: 0
B83: 10104 | C83: 6 a 7 anos | D83: 6 | G83: ? | I83: C83 | K83: 0 | L83: 0 | M83: 0 | N83: 0 | P83: 0
B84: 10104 | C84: 7 a 8 anos | D84: 7 | G84: ? | I84: C84 | K84: 0 | L84: 0 | M84: 0 | N84: 0 | P84: 0
B85: 10104 | C85: 8 a 9 anos | D85: 8 | G85: ? | I85: C85 | K85: 0 | L85: 0 | M85: 0 | N85: 0 | P85: 0
B86: 10104 | C86: 9 a 10 anos | D86: 9 | G86: ? | I86: C86 | K86: 0 | L86: 0 | M86: 0 | N86: 0 | P86: 0
B87: 10104 | C87: 10 a 11 anos | D87: 10 | G87: ? | I87: C87 | K87: 0 | L87: 0 | M87: 0 | N87: 0 | P87: 0
B88: 10104 | C88: 11 a 12 anos | D88: 11 | G88: ? | I88: C88 | K88: 0 | L88: 0 | M88: 0 | N88: 0 | P88: 0
B89: 10104 | C89: 12 a 13 anos | D89: 12 | G89: ? | I89: C89 | K89: 0 | L89: 0 | M89: 0 | N89: 0 | P89: 0
B90: 10104 | C90: 13 a 14 anos | D90: 13 | G90: ? | I90: C90 | K90: 0 | L90: 0 | M90: 0 | N90: 0 | P90: 0
B91: 10104 | C91: 14 a 15 anos | D91: 14 | G91: ? | I91: C91 | K91: 0 | L91: 0 | M91: 0 | N91: 0 | P91: 0
B92: 10104 | C92: + de 15 anos | D92: 15 | G92: ? | I92: C92 | K92: 0 | L92: 0 | M92: 0 | N92: 0 | P92: 0
B93: 10104 | C93: TOTAL | F93: =CONCATENATE("Soma de ",I77,"..",I92) -> Soma de C77..C92 | I93: C93 | K93: =SUM(K77:K92) -> 1 | L93: =SUM(L77:L92) -> 1 | M93: =SUM(M77:M92) -> 1 | N93: =SUM(N77:N92) -> 1 | P93: 1
B94: 10104 | C94: TOTAL DE ANOS | F94: =CONCATENATE("Soma Produtos de ",I77,"..",I92," x anos ") -> Soma Produtos de C77..C92 x anos | I94: C94 | K94: =SUMPRODUCT($D77:$D92,K77:K92) -> 4 | L94: =SUMPRODUCT($D77:$D92,L77:L92) -> 4 | M94: =SUMPRODUCT($D77:$D92,M77:M92) -> 4 | N94: =SUMPRODUCT($D77:$D92,N77:N92) -> 4 | P94: 4
I95: C95
B96: 102 | C96: Frota Total | I96: =CONCATENATE("C",ROW()) -> C96
C97: Mircro Onibus | F97: =CONCATENATE("+",I33) -> +C33 | I97: C97 | K97: =+K33 -> 1 | L97: =SUM(L17:L32) -> 1 | M97: =SUM(M17:M32) -> 1 | N97: =SUM(N17:N32) -> 1 | P97: =VLOOKUP(I97,Base_c,calc_d,0) -> 1
C98: Leve | F98: =CONCATENATE("+",I53) -> +C53 | I98: C98 | K98: =+K53 -> 14 | L98: =SUM(L37:L52) -> 14 | M98: =SUM(M37:M52) -> 14 | N98: =SUM(N37:N52) -> 14 | P98: =VLOOKUP(I98,Base_c,calc_d,0) -> 14
C99: Pesado | F99: =CONCATENATE("+",I73) -> +C73 | I99: C99 | K99: =+K73 -> 72 | L99: =SUM(L57:L72) -> 72 | M99: =SUM(M57:M72) -> 72 | N99: =SUM(N57:N72) -> 72 | P99: =VLOOKUP(I99,Base_c,calc_d,0) -> 72
C100: Articulado | F100: =CONCATENATE("+",I93) -> +C93 | I100: C100 | K100: =+K93 -> 1 | L100: =+L93 -> 1 | M100: =+M93 -> 1 | N100: =+N93 -> 1 | P100: =VLOOKUP(I100,Base_c,calc_d,0) -> 1
C101: TOTAL | F101: =CONCATENATE("Soma de ",I97,"..",I100) -> Soma de C97..C100 | I101: C101 | K101: =SUM(K97:K100) -> 88 | L101: =SUM(L97:L100) -> 88 | M101: =SUM(M97:M100) -> 88 | N101: =SUM(N97:N100) -> 88 | P101: =VLOOKUP(I101,Base_c,calc_d,0) -> 88
I102: C102
B103: 103 | C103: Percentual Frota Não operante | F103: =CONCATENATE("+",I110," / ",I101) -> +C110 / C101 | I103: C103 | K103: =K110/K101 -> 0.09090909091 | L103: =L110/L101 -> 0.09090909091 | M103: =M110/M101 -> 0.09090909091 | N103: =N110/N101 -> 0.09090909091 | P103: =VLOOKUP(I103,Base_c,calc_d,0) -> 0.09090909091
I104: C104
B105: 104 | C105: Frota Não Operante | I105: C105
C106: Mircro Onibus | G106: ? | I106: C106 | K106: 0 | L106: 0 | M106: 0 | N106: 0 | P106: =VLOOKUP(I106,Base_c,calc_d,0) -> 0
C107: Leve | G107: ? | I107: C107 | K107: 0 | L107: 0 | M107: 0 | N107: 0 | P107: =VLOOKUP(I107,Base_c,calc_d,0) -> 0
C108: Pesado | G108: ? | I108: C108 | K108: 8 | L108: 8 | M108: 8 | N108: 8 | P108: =VLOOKUP(I108,Base_c,calc_d,0) -> 8
C109: Articulado | G109: ? | I109: C109 | K109: 0 | L109: 0 | M109: 0 | N109: 0 | P109: =VLOOKUP(I109,Base_c,calc_d,0) -> 0
C110: TOTAL | F110: =CONCATENATE("Soma de ",I106,"..",I109) -> Soma de C106..C109 | I110: C110 | K110: =SUM(K106:K109) -> 8 | L110: =SUM(L106:L109) -> 8 | M110: =SUM(M106:M109) -> 8 | N110: =SUM(N106:N109) -> 8 | P110: =VLOOKUP(I110,Base_c,calc_d,0) -> 8
I111: C111
B112: 105 | C112: Frota Operante | I112: C112
C113: Mircro Onibus | F113: =CONCATENATE("+",I97," - ",I106) -> +C97 - C106 | I113: C113 | K113: =+K97-K106 -> 1 | L113: 1 | M113: 1 | N113: 1 | P113: =VLOOKUP(I113,Base_c,calc_d,0) -> 1
C114: Leve | F114: =CONCATENATE("+",I98," - ",I107) -> +C98 - C107 | I114: C114 | K114: 14 | L114: 14 | M114: 14 | N114: 14 | P114: =VLOOKUP(I114,Base_c,calc_d,0) -> 14
C115: Pesado | F115: =CONCATENATE("+",I99," - ",I108) -> +C99 - C108 | I115: C115 | K115: 64 | L115: 64 | M115: 64 | N115: 64 | P115: =VLOOKUP(I115,Base_c,calc_d,0) -> 64
C116: Articulado | F116: =CONCATENATE("+",I100," - ",I109) -> +C100 - C109 | I116: C116 | K116: 1 | L116: 1 | M116: 1 | N116: 1 | P116: =VLOOKUP(I116,Base_c,calc_d,0) -> 1
C117: TOTAL | F117: =CONCATENATE("Soma de ",I113,"..",I116) -> Soma de C113..C116 | I117: C117 | K117: =SUM(K113:K116) -> 80 | L117: =SUM(L113:L116) -> 80 | M117: =SUM(M113:M116) -> 80 | N117: =SUM(N113:N116) -> 80 | P117: =VLOOKUP(I117,Base_c,calc_d,0) -> 80
I118: C118
B119: 106 | C119: Idade Total dos Veiculos (anos) | I119: =CONCATENATE("C",ROW()) -> C119
C120: Mircro Onibus | F120: =CONCATENATE("+",I34) -> +C34 | I120: C120 | K120: =+K34 -> 6 | L120: =+L34 -> 6 | M120: =+M34 -> 6 | N120: =+N34 -> 6 | P120: =VLOOKUP(I120,Base_c,calc_d,0) -> 6
C121: Leve | F121: =CONCATENATE("+",I54) -> +C54 | I121: C121 | K121: =+K54 -> 58 | L121: =+L54 -> 58 | M121: =+M54 -> 58 | N121: =+N54 -> 58 | P121: =VLOOKUP(I121,Base_c,calc_d,0) -> 58
C122: Pesado | F122: =CONCATENATE("+",I74) -> +C74 | I122: C122 | K122: =+K74 -> 324 | L122: =+L74 -> 324 | M122: =+M74 -> 324 | N122: =+N74 -> 324 | P122: =VLOOKUP(I122,Base_c,calc_d,0) -> 324
C123: Articulado | F123: =CONCATENATE("+",I94) -> +C94 | I123: C123 | K123: =+K94 -> 4 | L123: =+L94 -> 4 | M123: =+M94 -> 4 | N123: =+N94 -> 4 | P123: =VLOOKUP(I123,Base_c,calc_d,0) -> 4
C124: TOTAL | F124: =CONCATENATE("Soma de ",I120,"..",I123) -> Soma de C120..C123 | I124: C124 | K124: =SUM(K120:K123) -> 392 | L124: =SUM(L120:L123) -> 392 | M124: =SUM(M120:M123) -> 392 | N124: =SUM(N120:N123) -> 392 | P124: =VLOOKUP(I124,Base_c,calc_d,0) -> 392
I125: C125
B126: 107 | C126: Idade Média dos Veiculos (anos) | I126: C126
C127: Mircro Onibus | F127: =CONCATENATE("+",I120," / ",I97) -> +C120 / C97 | I127: C127 | K127: =IF(K120=0,0,+K120/K97) -> 6 | L127: 6 | M127: 6 | N127: 6 | P127: =VLOOKUP(I127,Base_c,calc_d,0) -> 6
C128: Leve | F128: =CONCATENATE("+",I121," / ",I98) -> +C121 / C98 | I128: C128 | K128: 4.142857143 | L128: 4.142857143 | M128: 4.142857143 | N128: 4.142857143 | P128: =VLOOKUP(I128,Base_c,calc_d,0) -> 4.142857143
C129: Pesado | F129: =CONCATENATE("+",I122," / ",I99) -> +C122 / C99 | I129: C129 | K129: 4.5 | L129: 4.5 | M129: 4.5 | N129: 4.5 | P129: =VLOOKUP(I129,Base_c,calc_d,0) -> 4.5
C130: Articulado | F130: =CONCATENATE("+",I123," / ",I100) -> +C123 / C100 | I130: C130 | K130: 4 | L130: 4 | M130: 4 | N130: 4 | P130: =VLOOKUP(I130,Base_c,calc_d,0) -> 4
C131: TOTAL | F131: =CONCATENATE("+",I124," / ",I101) -> +C124 / C101 | I131: C131 | K131: =+K124/K101 -> 4.454545455 | L131: =+L124/L101 -> 4.454545455 | M131: =+M124/M101 -> 4.454545455 | N131: =+N124/N101 -> 4.454545455 | P131: =VLOOKUP(I131,Base_c,calc_d,0) -> 4.454545455
I132: =CONCATENATE("C",ROW()) -> C132
B133: 108 | C133: Preço do Veiculo Com Rodagem | I133: C133
C134: Mircro Onibus | F134: CONSUMO | G134: =+Consumo!I261 -> B261 | I134: C134 | K134: =+Consumo!K261 -> 274000 | L134: =+Consumo!L261 -> 274000 | M134: =+Consumo!M261 -> 1000 | N134: =+Consumo!N261 -> 1000 | P134: =VLOOKUP(I134,Base_c,calc_d,0) -> 274000
C135: Leve | F135: CONSUMO | G135: =+Consumo!I262 -> B262 | I135: C135 | K135: =+Consumo!K262 -> 278340 | L135: =+Consumo!L262 -> 278340 | M135: =+Consumo!M262 -> 1000 | N135: =+Consumo!N262 -> 1000 | P135: =VLOOKUP(I135,Base_c,calc_d,0) -> 278340
C136: Pesado | F136: CONSUMO | G136: =+Consumo!I263 -> B263 | I136: C136 | K136: =+Consumo!K263 -> 303890 | L136: =+Consumo!L263 -> 303890 | M136: =+Consumo!M263 -> 1000 | N136: =+Consumo!N263 -> 1000 | P136: =VLOOKUP(I136,Base_c,calc_d,0) -> 303890
C137: Articulado | F137: CONSUMO | G137: =+Consumo!I264 -> B264 | I137: C137 | K137: =+Consumo!K264 -> 362700 | L137: =+Consumo!L264 -> 362700 | M137: =+Consumo!M264 -> 1000 | N137: =+Consumo!N264 -> 1000 | P137: =VLOOKUP(I137,Base_c,calc_d,0) -> 362700
I138: C138
B139: 109 | C139: Valor do Veiculo sem Rodagem | I139: C139
C140: Mircro Onibus | F140: CONSUMO | G140: =+Consumo!I279 -> B279 | I140: C140 | K140: =+Consumo!K279 -> 270708.94 | L140: =+Consumo!L279 -> 270708.94 | M140: =+Consumo!M279 -> 999.94 | N140: =+Consumo!N279 -> 999.94 | P140: =VLOOKUP(I140,Base_c,calc_d,0) -> 270708.94
C141: Leve | F141: CONSUMO | G141: =+Consumo!I280 -> B280 | I141: C141 | K141: =+Consumo!K280 -> 269795.82 | L141: =+Consumo!L280 -> 269795.82 | M141: =+Consumo!M280 -> 999.94 | N141: =+Consumo!N280 -> 999.94 | P141: =VLOOKUP(I141,Base_c,calc_d,0) -> 269795.82
C142: Pesado | F142: CONSUMO | G142: =+Consumo!I281 -> B281 | I142: C142 | K142: =+Consumo!K281 -> 294624.2 | L142: =+Consumo!L281 -> 294624.2 | M142: =+Consumo!M281 -> 999.94 | N142: =+Consumo!N281 -> 999.94 | P142: =VLOOKUP(I142,Base_c,calc_d,0) -> 294624.2
C143: Articulado | F143: CONSUMO | G143: =+Consumo!I282 -> B282 | I143: C143 | K143: =+Consumo!K282 -> 347758.2 | L143: =+Consumo!L282 -> 347758.2 | M143: =+Consumo!M282 -> 999.9 | N143: =+Consumo!N282 -> 999.9 | P143: =VLOOKUP(I143,Base_c,calc_d,0) -> 347758.2
I144: C144
B145: 110 | C145: Valor Total da Frota Com Rodagem | I145: C145
C146: Mircro Onibus | F146: =CONCATENATE("+",I97," x ",I134) -> +C97 x C134 | I146: C146 | K146: =+K134*K97 -> 274000 | L146: 274000 | M146: 1000 | N146: 1000 | P146: =VLOOKUP(I146,Base_c,calc_d,0) -> 274000
C147: Leve | F147: =CONCATENATE("+",I98," x ",I135) -> +C98 x C135 | I147: C147 | K147: 3896760 | L147: 3896760 | M147: 14000 | N147: 14000 | P147: =VLOOKUP(I147,Base_c,calc_d,0) -> 3896760
C148: Pesado | F148: =CONCATENATE("+",I99," x ",I136) -> +C99 x C136 | I148: C148 | K148: 21880080 | L148: 21880080 | M148: 72000 | N148: 72000 | P148: =VLOOKUP(I148,Base_c,calc_d,0) -> 21880080
C149: Articulado | F149: =CONCATENATE("+",I100," x ",I137) -> +C100 x C137 | I149: C149 | K149: 362700 | L149: 362700 | M149: 1000 | N149: 1000 | P149: =VLOOKUP(I149,Base_c,calc_d,0) -> 362700
C150: TOTAL | F150: =CONCATENATE("Soma de ",I146,"..",I149) -> Soma de C146..C149 | I150: C150 | K150: =SUM(K146:K149) -> 26413540 | L150: =SUM(L146:L149) -> 26413540 | M150: =SUM(M146:M149) -> 88000 | N150: =SUM(N146:N149) -> 88000 | P150: =VLOOKUP(I150,Base_c,calc_d,0) -> 26413540
I151: C151
B152: 111 | C152: Valor Médio do Veiculo Completo | F152: =CONCATENATE("+",I150," / ",I101) -> +C150 / C101 | I152: C152 | K152: =+K150/K101 -> 300153.8636 | L152: =+L150/L101 -> 300153.8636 | M152: =+M150/M101 -> 1000 | N152: =+N150/N101 -> 1000 | P152: =VLOOKUP(I152,Base_c,calc_d,0) -> 300153.8636
I153: C153
B154: 112 | C154: Valor Total da Frota sem Rodagem | I154: C154
C155: Mircro Onibus | F155: =CONCATENATE("+",I240) -> +C240 | I155: C155 | K155: =+K240 -> 270708.94 | L155: 270708.94 | M155: 999.94 | N155: 999.94 | P155: =VLOOKUP(I155,Base_c,calc_d,0) -> 270708.94
C156: Leve | F156: =CONCATENATE("+",I241) -> +C241 | I156: C156 | K156: 3777141.48 | L156: 3777141.48 | M156: 13999.16 | N156: 13999.16 | P156: =VLOOKUP(I156,Base_c,calc_d,0) -> 3777141.48
C157: Pesado | F157: =CONCATENATE("+",I242) -> +C242 | I157: C157 | K157: 21212942.4 | L157: 21212942.4 | M157: 71995.68 | N157: 71995.68 | P157: =VLOOKUP(I157,Base_c,calc_d,0) -> 21212942.4
C158: Articulado | F158: =CONCATENATE("+",I243) -> +C243 | I158: C158 | K158: 347758.2 | L158: 347758.2 | M158: 999.9 | N158: 999.9 | P158: =VLOOKUP(I158,Base_c,calc_d,0) -> 347758.2
C159: TOTAL | F159: =CONCATENATE("Soma de ",I155,"..",I158) -> Soma de C155..C158 | I159: C159 | K159: =SUM(K155:K158) -> 25608551.02 | L159: =SUM(L155:L158) -> 25608551.02 | M159: =SUM(M155:M158) -> 87994.68 | N159: =SUM(N155:N158) -> 87994.68 | P159: =VLOOKUP(I159,Base_c,calc_d,0) -> 25608551.02
I160: C160
B161: 200 | C161: Valor da Frota sem Rodagem por ano | I161: =CONCATENATE("C",ROW()) -> C161
I162: C162
B163: 201 | C163: MICRO ONIBUS | D163: Anos | I163: C163
B164: =+B163 -> 201 | C164: 0 a 1 ano | D164: 0 | F164: =CONCATENATE(I17," x ",I$140) -> C17 x C140 | I164: C164 | K164: =+K17*K$140 -> 0 | L164: 0 | M164: 0 | N164: 0 | P164: =VLOOKUP(I164,Base_c,calc_d,0) -> 0
B165: =+B164 -> 201 | C165: 1 a 2 anos | D165: =+D164+1 -> 1 | F165: C18 x C140 | I165: C165 | K165: 0 | L165: 0 | M165: 0 | N165: 0 | P165: 0
B166: 201 | C166: 2 a 3 anos | D166: =+D165+1 -> 2 | F166: C19 x C140 | I166: C166 | K166: 0 | L166: 0 | M166: 0 | N166: 0 | P166: 0
B167: 201 | C167: 3 a 4 anos | D167: 3 | F167: C20 x C140 | I167: =CONCATENATE("C",ROW()) -> C167 | K167: 0 | L167: 0 | M167: 0 | N167: 0 | P167: 0
B168: 201 | C168: 4 a 5 anos | D168: 4 | F168: C21 x C140 | I168: C168 | K168: 0 | L168: 0 | M168: 0 | N168: 0 | P168: 0
B169: 201 | C169: 5 a 6 anos | D169: 5 | F169: C22 x C140 | I169: C169 | K169: 0 | L169: 0 | M169: 0 | N169: 0 | P169: 0
B170: 201 | C170: 6 a 7 anos | D170: 6 | F170: C23 x C140 | I170: C170 | K170: 270708.94 | L170: 270708.94 | M170: 999.94 | N170: 999.94 | P170: 270708.94
B171: 201 | C171: 7 a 8 anos | D171: 7 | F171: C24 x C140 | I171: C171 | K171: 0 | L171: 0 | M171: 0 | N171: 0 | P171: 0
B172: 201 | C172: 8 a 9 anos | D172: 8 | F172: C25 x C140 | I172: C172 | K172: 0 | L172: 0 | M172: 0 | N172: 0 | P172: 0
B173: 201 | C173: 9 a 10 anos | D173: 9 | F173: C26 x C140 | I173: C173 | K173: 0 | L173: 0 | M173: 0 | N173: 0 | P173: 0
B174: 201 | C174: 10 a 11 anos | D174: 10 | F174: C27 x C140 | I174: C174 | K174: 0 | L174: 0 | M174: 0 | N174: 0 | P174: 0
B175: 201 | C175: 11 a 12 anos | D175: 11 | F175: C28 x C140 | I175: C175 | K175: 0 | L175: 0 | M175: 0 | N175: 0 | P175: 0
B176: 201 | C176: 12 a 13 anos | D176: 12 | F176: C29 x C140 | I176: C176 | K176: 0 | L176: 0 | M176: 0 | N176: 0 | P176: 0
B177: 201 | C177: 13 a 14 anos | D177: 13 | F177: C30 x C140 | I177: C177 | K177: 0 | L177: 0 | M177: 0 | N177: 0 | P177: 0
B178: 201 | C178: 14 a 15 anos | D178: 14 | F178: C31 x C140 | I178: C178 | K178: 0 | L178: 0 | M178: 0 | N178: 0 | P178: 0
B179: 201 | C179: + de 15 anos | D179: 15 | F179: C32 x C140 | I179: C179 | K179: 0 | L179: 0 | M179: 0 | N179: 0 | P179: 0
B180: 201 | C180: TOTAL | F180: =CONCATENATE("Soma de ",I164,"..",I179) -> Soma de C164..C179 | I180: C180 | K180: =SUM(K164:K179) -> 270708.94 | L180: =SUM(L164:L179) -> 270708.94 | M180: =SUM(M164:M179) -> 999.94 | N180: =SUM(N164:N179) -> 999.94 | P180: 270708.94
I181: C181
B182: 202 | C182: ONIBUS LEVE | D182: Anos | I182: C182
B183: =+B182 -> 202 | C183: 0 a 1 ano | D183: 0 | F183: =CONCATENATE(I37," x ",I$141) -> C37 x C141 | I183: C183 | K183: =+K37*K$141 -> 0 | L183: 0 | M183: 0 | N183: 0 | P183: =VLOOKUP(I183,Base_c,calc_d,0) -> 0
B184: =+B183 -> 202 | C184: 1 a 2 anos | D184: =+D183+1 -> 1 | F184: C38 x C141 | I184: C184 | K184: 0 | L184: 0 | M184: 0 | N184: 0 | P184: 0
B185: 202 | C185: 2 a 3 anos | D185: =+D184+1 -> 2 | F185: C39 x C141 | I185: C185 | K185: 539591.64 | L185: 539591.64 | M185: 1999.88 | N185: 1999.88 | P185: 539591.64
B186: 202 | C186: 3 a 4 anos | D186: 3 | F186: C40 x C141 | I186: C186 | K186: 809387.46 | L186: 809387.46 | M186: 2999.82 | N186: 2999.82 | P186: 809387.46
B187: 202 | C187: 4 a 5 anos | D187: 4 | F187: C41 x C141 | I187: C187 | K187: 809387.46 | L187: 809387.46 | M187: 2999.82 | N187: 2999.82 | P187: 809387.46
B188: 202 | C188: 5 a 6 anos | D188: 5 | F188: C42 x C141 | I188: C188 | K188: 809387.46 | L188: 809387.46 | M188: 2999.82 | N188: 2999.82 | P188: 809387.46
B189: 202 | C189: 6 a 7 anos | D189: 6 | F189: C43 x C141 | I189: C189 | K189: 809387.46 | L189: 809387.46 | M189: 2999.82 | N189: 2999.82 | P189: 809387.46
B190: 202 | C190: 7 a 8 anos | D190: 7 | F190: C44 x C141 | I190: C190 | K190: 0 | L190: 0 | M190: 0 | N190: 0 | P190: 0
B191: 202 | C191: 8 a 9 anos | D191: 8 | F191: C45 x C141 | I191: C191 | K191: 0 | L191: 0 | M191: 0 | N191: 0 | P191: 0
B192: 202 | C192: 9 a 10 anos | D192: 9 | F192: C46 x C141 | I192: C192 | K192: 0 | L192: 0 | M192: 0 | N192: 0 | P192: 0
B193: 202 | C193: 10 a 11 anos | D193: 10 | F193: C47 x C141 | I193: C193 | K193: 0 | L193: 0 | M193: 0 | N193: 0 | P193: 0
B194: 202 | C194: 11 a 12 anos | D194: 11 | F194: C48 x C141 | I194: C194 | K194: 0 | L194: 0 | M194: 0 | N194: 0 | P194: 0
B195: 202 | C195: 12 a 13 anos | D195: 12 | F195: C49 x C141 | I195: C195 | K195: 0 | L195: 0 | M195: 0 | N195: 0 | P195: 0
B196: 202 | C196: 13 a 14 anos | D196: 13 | F196: C50 x C141 | I196: C196 | K196: 0 | L196: 0 | M196: 0 | N196: 0 | P196: 0
B197: 202 | C197: 14 a 15 anos | D197: 14 | F197: C51 x C141 | I197: =CONCATENATE("C",ROW()) -> C197 | K197: 0 | L197: 0 | M197: 0 | N197: 0 | P197: 0
B198: 202 | C198: + de 15 anos | D198: 15 | F198: C52 x C141 | I198: C198 | K198: 0 | L198: 0 | M198: 0 | N198: 0 | P198: 0
B199: 202 | C199: TOTAL | F199: =CONCATENATE("Soma de ",I183,"..",I198) -> Soma de C183..C198 | I199: C199 | K199: =SUM(K183:K198) -> 3777141.48 | L199: =SUM(L183:L198) -> 3777141.48 | M199: =SUM(M183:M198) -> 13999.16 | N199: =SUM(N183:N198) -> 13999.16 | P199: 3777141.48
I200: C200
B201: 203 | C201: ONIBUS PESADO | D201: Anos | I201: C201
... 384 more rows

Sheet DR_Equip
K1: =+Tarifa!K27 -> 3.250020342 | L1: =+Tarifa!L27 -> 3.250020342 | M1: =+Tarifa!M27 -> 0.004320741671 | N1: =+Tarifa!N27 -> 0.003509621155
B2: DR_EQUIP | I2: ÁREA DE DADOS E CÁLCULOS - NÃO INCLUIR COLUNA
A3: pedro milton golfe | B3: =+Titulo_01 -> PREFEITURA MUNICIPAL DE CHAPECO
A4: pedro milton golfe | B4: =+Titulo_02 -> CONTROLADORIA GERAL DO MUNICÍPIO
A5: pedro milton golfe | B5: =+Titulo_03 -> SISTEMA DE TRANSPORTE PÚBLICO DE PASSAGEIROS
B6: Cálculo Depreciação/Remuneração de Equipamentos
B7: =CONCATENATE(+Cenario!$D$10," - ",+Cenario!$E$18) -> Cenário - Prefeitura Chapecó - Base Edital - base 10/17 - PROPOSTA | F7: =+Apura!$Z$11 -> Cenário 02 | K7: Tarifa base | L7: =IF(Esc_tarifa_base=1,"Antecipado","Embarcado") -> Embarcado
B9: ITEM | C9: DISCRIMINAÇÃO | F9: Referência | K9: =+Apura!U11 -> Cenário 01 | L9: =+Apura!V11 -> Cenário 02 | M9: =+Apura!W11 -> Cenário 03 | N9: =+Apura!X11 -> Cenário 04 | P9: CALC FC | T9: Informação Coeficientes
F10: Data | I10: =CONCATENATE("D",ROW()) -> D10 | K10: =+Consumo!K10 -> 2017-10-31 | L10: =+Consumo!L10 -> 2017-10-31 | M10: =+Consumo!M10 -> 2018-08-31 | N10: =+Consumo!N10 -> 2018-08-31 | P10: =VLOOKUP(I10,Base_d,calc_d,0) -> 2017-10-31 | T10: Depr acelerada | U10: Depr Linear
I11: =CONCATENATE("D",ROW()) -> D11
B12: EQUIPAMENTOS | I12: D12
I13: D13
B14: 100 | C14: EQUIPAMENTOS | I14: D14
C15: Sistema de Monitoramento e Bilhetagem | F15: =CONCATENATE(" + ",I75) -> + D75 | I15: D15 | K15: =+K75 -> 616000 | L15: =+L75 -> 616000 | M15: =+M75 -> 8800 | N15: =+N75 -> 8800 | P15: =VLOOKUP(I15,Base_d,calc_d,0) -> 616000
C16: Maquinas, Instalações e Equipamentos | F16: =CONCATENATE(" + ",I88) -> + D88 | I16: D16 | K16: =+K88 -> 293920 | L16: =+L88 -> 293920 | M16: =+M88 -> 1056 | N16: =+N88 -> 1056 | P16: =VLOOKUP(I16,Base_d,calc_d,0) -> 293920
C17: TOTAL | F17: =CONCATENATE("Soma de ",I15,"..",I16) -> Soma de D15..D16 | I17: D17 | K17: =SUM(K15:K16) -> 909920 | L17: =SUM(L15:L16) -> 909920 | M17: =SUM(M15:M16) -> 9856 | N17: =SUM(N15:N16) -> 9856 | P17: =SUM(P15:P16) -> 909920
I18: D18
B19: 200 | C19: DEPRECIAÇÃO MENSAL DE EQUIPAMENTOS | I19: D19
C20: Sistema de Monitoramento e Bilhetagem | F20: =CONCATENATE(I147," / 12") -> D147 / 12 | I20: D20 | K20: =+K147/12 -> 10266.66667 | L20: 10266.66667 | M20: 146.6666667 | N20: 146.6666667 | P20: =VLOOKUP(I20,Base_d,calc_d,0) -> 10266.66667
C21: Maquinas, Instalações e Equipamentos | F21: =CONCATENATE(I148," / 12") -> D148 / 12 | I21: D21 | K21: 2449.333333 | L21: 2449.333333 | M21: 8.8 | N21: 8.8 | P21: =VLOOKUP(I21,Base_d,calc_d,0) -> 2449.333333
C22: TOTAL | F22: =CONCATENATE("Soma de ",I20,"..",I21) -> Soma de D20..D21 | I22: D22 | K22: =SUM(K20:K21) -> 12716 | L22: =SUM(L20:L21) -> 12716 | M22: =SUM(M20:M21) -> 155.4666667 | N22: =SUM(N20:N21) -> 155.4666667 | P22: =SUM(P20:P21) -> 12716
I23: D23
B24: 300 | C24: REMUNERAÇÃO MENSAL DE EQUIPAMENTOS | I24: D24
C25: Sistema de Monitoramento e Bilhetagem | F25: =CONCATENATE(I206," / 12") -> D206 / 12 | I25: D25 | K25: =+K206/12 -> 6160 | L25: 6160 | M25: 88 | N25: 88 | P25: =VLOOKUP(I25,Base_d,calc_d,0) -> 6160
C26: Maquinas, Instalações e Equipamentos | F26: =CONCATENATE(I207," / 12") -> D207 / 12 | I26: D26 | K26: 2939.2 | L26: 2939.2 | M26: 10.56 | N26: 10.56 | P26: =VLOOKUP(I26,Base_d,calc_d,0) -> 2939.2
C27: TOTAL | F27: =CONCATENATE("Soma de ",I25,"..",I26) -> Soma de D25..D26 | I27: D27 | K27: =SUM(K25:K26) -> 9099.2 | L27: =SUM(L25:L26) -> 9099.2 | M27: =SUM(M25:M26) -> 98.56 | N27: =SUM(N25:N26) -> 98.56 | P27: =SUM(P25:P26) -> 9099.2
I28: D28
B29: 400 | C29: DADOS DOS EQUIPAMENTOS | I29: D29
I30: D30
B31: 401 | C31: Sist. de Bilhetagem monitoramento/validação | D31: Anos | I31: D31 | K31: Quantidade | L31: Quantidade | M31: Quantidade | N31: Quantidade | P31: =VLOOKUP(I31,Base_d,calc_d,0) -> Quantidade
B32: 401 | C32: 0 a 1 ano | D32: 1 | G32: ? | I32: D32 | K32: 88 | L32: 88 | M32: 88 | N32: 88 | P32: 88
B33: 401 | C33: =CONCATENATE(D32," a ",D33," anos") -> 1 a 2 anos | D33: =+D32+1 -> 2 | G33: ? | I33: D33 | K33: 0 | L33: 0 | M33: 0 | N33: 0 | P33: 0
B34: 401 | C34: =CONCATENATE(D33," a ",D34," anos") -> 2 a 3 anos | D34: 3 | G34: ? | I34: D34 | K34: 0 | L34: 0 | M34: 0 | N34: 0 | P34: 0
B35: 401 | C35: 3 a 4 anos | D35: 4 | G35: ? | I35: D35 | K35: 0 | L35: 0 | M35: 0 | N35: 0 | P35: 0
B36: 401 | C36: 4 a 5 anos | D36: 5 | G36: ? | I36: D36 | K36: 0 | L36: 0 | M36: 0 | N36: 0 | P36: 0
B37: 401 | C37: 5 a 6 anos | D37: 6 | G37: ? | I37: D37 | K37: 0 | L37: 0 | M37: 0 | N37: 0 | P37: 0
B38: 401 | C38: 6 a 7 anos | D38: 7 | G38: ? | I38: D38 | K38: 0 | L38: 0 | M38: 0 | N38: 0 | P38: 0
B39: 401 | C39: 7 a 8 anos | D39: 8 | G39: ? | I39: D39 | K39: 0 | L39: 0 | M39: 0 | N39: 0 | P39: 0
B40: 401 | C40: 8 a 9 anos | D40: 9 | G40: ? | I40: D40 | K40: 0 | L40: 0 | M40: 0 | N40: 0 | P40: 0
B41: 401 | C41: acima de 10 anos | D41: 10 | G41: ? | I41: D41 | K41: 0 | L41: 0 | M41: 0 | N41: 0 | P41: 0
C42: TOTAL | F42: =CONCATENATE("Soma de ",I32,"..",I41) -> Soma de D32..D41 | I42: D42 | K42: =SUM(K32:K41) -> 88 | L42: =SUM(L32:L41) -> 88 | M42: =SUM(M32:M41) -> 88 | N42: =SUM(N32:N41) -> 88 | P42: 88
I43: D43
B44: 402 | C44: Maquinas, Instalações e Equipamentos | D44: Anos | G44: ? | I44: D44 | K44: Quantidade | L44: Quantidade | M44: Quantidade | N44: Quantidade | P44: =VLOOKUP(I44,Base_d,calc_d,0) -> Quantidade
B45: 402 | C45: 0 a 1 ano | D45: 1 | G45: ? | I45: D45 | K45: 88 | L45: 88 | M45: 88 | N45: 88 | P45: 88
B46: 402 | C46: =CONCATENATE(D45," a ",D46," anos") -> 1 a 2 anos | D46: =+D45+1 -> 2 | G46: ? | I46: D46 | K46: 0 | L46: 0 | M46: 0 | N46: 0 | P46: 0
B47: 402 | C47: =CONCATENATE(D46," a ",D47," anos") -> 2 a 3 anos | D47: 3 | G47: ? | I47: D47 | K47: 0 | L47: 0 | M47: 0 | N47: 0 | P47: 0
B48: 402 | C48: 3 a 4 anos | D48: 4 | G48: ? | I48: D48 | K48: 0 | L48: 0 | M48: 0 | N48: 0 | P48: 0
B49: 402 | C49: 4 a 5 anos | D49: 5 | G49: ? | I49: D49 | K49: 0 | L49: 0 | M49: 0 | N49: 0 | P49: 0
B50: 402 | C50: 5 a 6 anos | D50: 6 | G50: ? | I50: D50 | K50: 0 | L50: 0 | M50: 0 | N50: 0 | P50: 0
B51: 402 | C51: 6 a 7 anos | D51: 7 | G51: ? | I51: D51 | K51: 0 | L51: 0 | M51: 0 | N51: 0 | P51: 0
B52: 402 | C52: 7 a 8 anos | D52: 8 | G52: ? | I52: D52 | K52: 0 | L52: 0 | M52: 0 | N52: 0 | P52: 0
B53: 402 | C53: 8 a 9 anos | D53: 9 | G53: ? | I53: D53 | K53: 0 | L53: 0 | M53: 0 | N53: 0 | P53: 0
B54: 402 | C54: acima de 10 anos | D54: 10 | G54: ? | I54: D54 | K54: 0 | L54: 0 | M54: 0 | N54: 0 | P54: 0
C55: TOTAL | I55: D55 | K55: =SUM(K45:K54) -> 88 | L55: =SUM(L45:L54) -> 88 | M55: =SUM(M45:M54) -> 88 | N55: =SUM(N45:N54) -> 88 | P55: 88
I56: D56
B57: 402 | C57: VALOR EQUIPAMENTOS POR VEICULO | I57: D57
C58: Sist. de Bilhetagem monitoramento/validação | F58: CONSUMO | G58: =+Consumo!I359 -> B359 | I58: D58 | K58: =+Consumo!K359 -> 7000 | L58: =+Consumo!L359 -> 7000 | M58: =+Consumo!M359 -> 100 | N58: =+Consumo!N359 -> 100 | P58: =VLOOKUP(I58,Base_d,calc_d,0) -> 7000
C59: Maquinas, Instalações e Equipamentos | F59: CONSUMO | G59: =+Consumo!I360 -> B360 | I59: D59 | K59: =+Consumo!K360 -> 3340 | L59: =+Consumo!L360 -> 3340 | M59: =+Consumo!M360 -> 12 | N59: =+Consumo!N360 -> 12 | P59: =VLOOKUP(I59,Base_d,calc_d,0) -> 3340
C60: TOTAL | F60: =CONCATENATE("Soma de ",I58,"..",I59) -> Soma de D58..D59 | I60: D60 | K60: =SUM(K58:K59) -> 10340 | L60: =SUM(L58:L59) -> 10340 | M60: =SUM(M58:M59) -> 112 | N60: =SUM(N58:N59) -> 112 | P60: =SUM(P58:P59) -> 10340
I61: D61
B62: 500 | C62: VALOR DOS EQUIPAMENTOS POR ANO | I62: D62
I63: D63
B64: 501 | C64: Sist. de Bilhetagem monitoramento/validação | D64: Anos | I64: D64
B65: 501 | C65: 0 a 1 ano | D65: 1 | F65: =CONCATENATE(I$58," x ",I32) -> D58 x D32 | I65: D65 | K65: =+K$58*K32 -> 616000 | L65: 616000 | M65: 8800 | N65: 8800 | P65: =VLOOKUP(I65,Base_d,calc_d,0) -> 616000
B66: 501 | C66: =CONCATENATE(D65," a ",D66," anos") -> 1 a 2 anos | D66: =+D65+1 -> 2 | F66: =CONCATENATE(I$58," x ",I33) -> D58 x D33 | I66: D66 | K66: 0 | L66: 0 | M66: 0 | N66: 0 | P66: =VLOOKUP(I66,Base_d,calc_d,0) -> 0
B67: 501 | C67: =CONCATENATE(D66," a ",D67," anos") -> 2 a 3 anos | D67: 3 | F67: D58 x D34 | I67: D67 | K67: 0 | L67: 0 | M67: 0 | N67: 0
B68: 501 | C68: 3 a 4 anos | D68: 4 | F68: D58 x D35 | I68: D68 | K68: 0 | L68: 0 | M68: 0 | N68: 0
B69: 501 | C69: 4 a 5 anos | D69: 5 | F69: D58 x D36 | I69: D69 | K69: 0 | L69: 0 | M69: 0 | N69: 0
B70: 501 | C70: 5 a 6 anos | D70: 6 | F70: D58 x D37 | I70: D70 | K70: 0 | L70: 0 | M70: 0 | N70: 0
B71: 501 | C71: 6 a 7 anos | D71: 7 | F71: D58 x D38 | I71: D71 | K71: 0 | L71: 0 | M71: 0 | N71: 0
B72: 501 | C72: 7 a 8 anos | D72: 8 | F72: D58 x D39 | I72: D72 | K72: 0 | L72: 0 | M72: 0 | N72: 0 | P72: =VLOOKUP(I72,Base_d,calc_d,0) -> 0
B73: 501 | C73: 8 a 9 anos | D73: 9 | F73: D58 x D40 | I73: D73 | K73: 0 | L73: 0 | M73: 0 | N73: 0 | P73: =VLOOKUP(I73,Base_d,calc_d,0) -> 0
B74: 501 | C74: acima de 10 anos | D74: 10 | F74: D58 x D41 | I74: D74 | K74: 0 | L74: 0 | M74: 0 | N74: 0 | P74: =VLOOKUP(I74,Base_d,calc_d,0) -> 0
C75: TOTAL | F75: =CONCATENATE("Soma de ",I65,"..",I74) -> Soma de D65..D74 | I75: D75 | K75: =SUM(K65:K74) -> 616000 | L75: =SUM(L65:L74) -> 616000 | M75: =SUM(M65:M74) -> 8800 | N75: =SUM(N65:N74) -> 8800 | P75: =SUM(P65:P74) -> 616000
I76: D76
B77: 502 | C77: Maquinas, Instalações e Equipamentos | D77: Anos | I77: =CONCATENATE("D",ROW()) -> D77
B78: 502 | C78: 0 a 1 ano | D78: 1 | F78: =CONCATENATE(I$59," x ",I45) -> D59 x D45 | I78: D78 | K78: =+K$59*K45 -> 293920 | L78: 293920 | M78: 1056 | N78: 1056 | P78: =VLOOKUP(I78,Base_d,calc_d,0) -> 293920
B79: 502 | C79: =CONCATENATE(D78," a ",D79," anos") -> 1 a 2 anos | D79: =+D78+1 -> 2 | F79: =CONCATENATE(I$59," x ",I46) -> D59 x D46 | I79: D79 | K79: 0 | L79: 0 | M79: 0 | N79: 0 | P79: =VLOOKUP(I79,Base_d,calc_d,0) -> 0
B80: 502 | C80: =CONCATENATE(D79," a ",D80," anos") -> 2 a 3 anos | D80: 3 | F80: D59 x D47 | I80: D80 | K80: 0 | L80: 0 | M80: 0 | N80: 0
B81: 502 | C81: 3 a 4 anos | D81: 4 | F81: D59 x D48 | I81: D81 | K81: 0 | L81: 0 | M81: 0 | N81: 0
B82: 502 | C82: 4 a 5 anos | D82: 5 | F82: D59 x D49 | I82: D82 | K82: 0 | L82: 0 | M82: 0 | N82: 0
B83: 502 | C83: 5 a 6 anos | D83: 6 | F83: D59 x D50 | I83: D83 | K83: 0 | L83: 0 | M83: 0 | N83: 0
B84: 502 | C84: 6 a 7 anos | D84: 7 | F84: D59 x D51 | I84: D84 | K84: 0 | L84: 0 | M84: 0 | N84: 0
B85: 502 | C85: 7 a 8 anos | D85: 8 | F85: D59 x D52 | I85: D85 | K85: 0 | L85: 0 | M85: 0 | N85: 0 | P85: =VLOOKUP(I85,Base_d,calc_d,0) -> 0
B86: 502 | C86: 8 a 9 anos | D86: 9 | F86: D59 x D53 | I86: D86 | K86: 0 | L86: 0 | M86: 0 | N86: 0 | P86: =VLOOKUP(I86,Base_d,calc_d,0) -> 0
B87: 502 | C87: acima de 10 anos | D87: 10 | F87: D59 x D54 | I87: D87 | K87: 0 | L87: 0 | M87: 0 | N87: 0 | P87: =VLOOKUP(I87,Base_d,calc_d,0) -> 0
C88: TOTAL | F88: =CONCATENATE("Soma de ",I78,"..",I87) -> Soma de D78..D87 | I88: D88 | K88: =SUM(K78:K87) -> 293920 | L88: =SUM(L78:L87) -> 293920 | M88: =SUM(M78:M87) -> 1056 | N88: =SUM(N78:N87) -> 1056 | P88: =SUM(P78:P87) -> 293920
I89: D89
B90: 600 | C90: FATORES DE DEPRECIAÇÃO | I90: D90
I91: D91
B92: 601 | C92: Sist. de Bilhetagem monitoramento/validação | D92: Anos | I92: D92 | K92: C depr anual | L92: C depr anual | M92: C depr anual | N92: C depr anual | P92: =VLOOKUP(I92,Base_d,calc_d,0) -> C depr anual | T92: Fat depr anual | U92: Fat depr anual
B93: 601 | C93: 0 a 1 ano | D93: 1 | G93: ? | I93: D93 | K93: =+L93 -> 0.2 | L93: 0.2 | M93: 0.2 | N93: =IF(Esc_calc_depr=2,T93,U93) -> 0.2 | P93: 0.2 | T93: =+Coeficientes!H117 -> 0.33333333 | U93: =+Coeficientes!O117 -> 0.2
B94: 601 | C94: =CONCATENATE(D93," a ",D94," anos") -> 1 a 2 anos | D94: =+D93+1 -> 2 | G94: ? | I94: D94 | K94: 0.2 | L94: 0.2 | M94: 0.2 | N94: 0.2 | P94: 0.2 | T94: =+Coeficientes!H118 -> 0.26666667 | U94: =+Coeficientes!O118 -> 0.2
B95: 601 | C95: =CONCATENATE(D94," a ",D95," anos") -> 2 a 3 anos | D95: 3 | G95: ? | I95: D95 | K95: 0.2 | L95: 0.2 | M95: 0.2 | N95: 0.2 | P95: 0.2 | T95: =+Coeficientes!H119 -> 0.2 | U95: =+Coeficientes!O119 -> 0.2
B96: 601 | C96: 3 a 4 anos | D96: 4 | G96: ? | I96: D96 | K96: 0.2 | L96: 0.2 | M96: 0.2 | N96: 0.2 | P96: 0.2 | T96: =+Coeficientes!H120 -> 0.13333333 | U96: =+Coeficientes!O120 -> 0.2
B97: 601 | C97: 4 a 5 anos | D97: 5 | G97: ? | I97: D97 | K97: 0.2 | L97: 0.2 | M97: 0.2 | N97: 0.2 | P97: 0.2 | T97: =+Coeficientes!H121 -> 0.06666667 | U97: =+Coeficientes!O121 -> 0.2
B98: 601 | C98: 5 a 6 anos | D98: 6 | G98: ? | I98: D98 | K98: 0 | L98: 0 | M98: 0 | N98: 0 | P98: 0 | T98: =+Coeficientes!H122 -> 0 | U98: =+Coeficientes!O122 -> 0
B99: 601 | C99: 6 a 7 anos | D99: 7 | G99: ? | I99: D99 | K99: 0 | L99: 0 | M99: 0 | N99: 0 | P99: 0 | T99: =+Coeficientes!H123 -> 0 | U99: =+Coeficientes!O123 -> 0
B100: 601 | C100: 7 a 8 anos | D100: 8 | G100: ? | I100: D100 | K100: 0 | L100: 0 | M100: 0 | N100: 0 | P100: 0 | T100: =+Coeficientes!H124 -> 0 | U100: =+Coeficientes!O124 -> 0
B101: 601 | C101: 8 a 9 anos | D101: 9 | G101: ? | I101: D101 | K101: 0 | L101: 0 | M101: 0 | N101: 0 | P101: 0 | T101: =+Coeficientes!H125 -> 0 | U101: =+Coeficientes!O125 -> 0
B102: 601 | C102: acima de 10 anos | D102: 10 | G102: ? | I102: D102 | K102: 0 | L102: 0 | M102: 0 | N102: 0 | P102: 0 | T102: =+Coeficientes!H126 -> 0 | U102: =+Coeficientes!O126 -> 0
B103: 601 | C103: TOTAL | F103: =CONCATENATE("Soma de ",I93,"..",I102) -> Soma de D93..D102 | I103: D103 | K103: =SUM(K93:K102) -> 1 | L103: =SUM(L93:L102) -> 1 | M103: =SUM(M93:M102) -> 1 | N103: =SUM(N93:N102) -> 1 | P103: =SUM(P93:P102) -> 1
I104: D104
B105: 602 | C105: Maquinas, Instalações e Equipamentos | D105: Anos | I105: D105 | K105: C depr anual | L105: C depr anual | M105: C depr anual | N105: C depr anual | P105: =VLOOKUP(I105,Base_d,calc_d,0) -> C depr anual | T105: Fat depr anual | U105: Fat depr anual
B106: 602 | C106: 0 a 1 ano | D106: 1 | G106: ? | I106: D106 | K106: =+L106 -> 0.1 | L106: 0.1 | M106: 0.1 | N106: =IF(Esc_calc_depr=2,T106,U106) -> 0.1 | P106: 0.1 | T106: =+Coeficientes!H140 -> 0.18181818 | U106: =+Coeficientes!O140 -> 0.1
B107: 602 | C107: =CONCATENATE(D106," a ",D107," anos") -> 1 a 2 anos | D107: =+D106+1 -> 2 | G107: ? | I107: D107 | K107: 0.1 | L107: 0.1 | M107: 0.1 | N107: 0.1 | P107: 0.1 | T107: =+Coeficientes!H141 -> 0.16363636 | U107: =+Coeficientes!O141 -> 0.1
B108: 602 | C108: =CONCATENATE(D107," a ",D108," anos") -> 2 a 3 anos | D108: 3 | G108: ? | I108: D108 | K108: 0.1 | L108: 0.1 | M108: 0.1 | N108: 0.1 | P108: 0.1 | T108: =+Coeficientes!H142 -> 0.14545455 | U108: =+Coeficientes!O142 -> 0.1
B109: 602 | C109: 3 a 4 anos | D109: 4 | G109: ? | I109: D109 | K109: 0.1 | L109: 0.1 | M109: 0.1 | N109: 0.1 | P109: 0.1 | T109: =+Coeficientes!H143 -> 0.12727273 | U109: =+Coeficientes!O143 -> 0.1
B110: 602 | C110: 4 a 5 anos | D110: 5 | G110: ? | I110: D110 | K110: 0.1 | L110: 0.1 | M110: 0.1 | N110: 0.1 | P110: 0.1 | T110: =+Coeficientes!H144 -> 0.10909091 | U110: =+Coeficientes!O144 -> 0.1
B111: 602 | C111: 5 a 6 anos | D111: 6 | G111: ? | I111: D111 | K111: 0.1 | L111: 0.1 | M111: 0.1 | N111: 0.1 | P111: 0.1 | T111: =+Coeficientes!H145 -> 0.09090909 | U111: =+Coeficientes!O145 -> 0.1
B112: 602 | C112: 6 a 7 anos | D112: 7 | G112: ? | I112: D112 | K112: 0.1 | L112: 0.1 | M112: 0.1 | N112: 0.1 | P112: 0.1 | T112: =+Coeficientes!H146 -> 0.07272727 | U112: =+Coeficientes!O146 -> 0.1
B113: 602 | C113: 7 a 8 anos | D113: 8 | G113: ? | I113: D113 | K113: 0.1 | L113: 0.1 | M113: 0.1 | N113: 0.1 | P113: 0.1 | T113: =+Coeficientes!H147 -> 0.05454545 | U113: =+Coeficientes!O147 -> 0.1
B114: 602 | C114: 8 a 9 anos | D114: 9 | G114: ? | I114: D114 | K114: 0.1 | L114: 0.1 | M114: 0.1 | N114: 0.1 | P114: 0.1 | T114: =+Coeficientes!H148 -> 0.03636364 | U114: =+Coeficientes!O148 -> 0.1
B115: 602 | C115: acima de 10 anos | D115: 10 | G115: ? | I115: D115 | K115: 0.1 | L115: 0.1 | M115: 0.1 | N115: 0.1 | P115: 0.1 | T115: =+Coeficientes!H149 -> 0.01818182 | U115: =+Coeficientes!O149 -> 0.1
B116: 602 | C116: TOTAL | F116: =CONCATENATE("Soma de ",I106,"..",I115) -> Soma de D106..D115 | I116: D116 | K116: =SUM(K106:K115) -> 1 | L116: =SUM(L106:L115) -> 1 | M116: =SUM(M106:M115) -> 1 | N116: =SUM(N106:N115) -> 1 | P116: =SUM(P106:P115) -> 1
I117: D117
B118: 700 | C118: DEPRECIAÇÃO ANUAL DE EQUIPAMENTOS | I118: D118
I119: D119
B120: 701 | C120: Sist. de Bilhetagem monitoramento/validação | D120: Anos | I120: D120
B121: 701 | C121: 0 a 1 ano | D121: 1 | F121: =CONCATENATE(I65," x ",I93) -> D65 x D93 | I121: D121 | K121: =ROUND(K65*K93,2) -> 123200 | L121: 123200 | M121: 1760 | N121: 1760 | P121: =VLOOKUP(I121,Base_d,calc_d,0) -> 123200
B122: 701 | C122: =CONCATENATE(D121," a ",D122," anos") -> 1 a 2 anos | D122: =+D121+1 -> 2 | F122: D66 x D94 | I122: D122 | K122: 0 | L122: 0 | M122: 0 | N122: 0 | P122: 0
B123: 701 | C123: =CONCATENATE(D122," a ",D123," anos") -> 2 a 3 anos | D123: 3 | F123: D67 x D95 | I123: D123 | K123: 0 | L123: 0 | M123: 0 | N123: 0 | P123: 0
B124: 701 | C124: 3 a 4 anos | D124: 4 | F124: D68 x D96 | I124: D124 | K124: 0 | L124: 0 | M124: 0 | N124: 0 | P124: 0
B125: 701 | C125: 4 a 5 anos | D125: 5 | F125: D69 x D97 | I125: D125 | K125: 0 | L125: 0 | M125: 0 | N125: 0 | P125: 0
B126: 701 | C126: 5 a 6 anos | D126: 6 | F126: D70 x D98 | I126: D126 | K126: 0 | L126: 0 | M126: 0 | N126: 0 | P126: 0
B127: 701 | C127: 6 a 7 anos | D127: 7 | F127: D71 x D99 | I127: D127 | K127: 0 | L127: 0 | M127: 0 | N127: 0 | P127: 0
B128: 701 | C128: 7 a 8 anos | D128: 8 | F128: D72 x D100 | I128: D128 | K128: 0 | L128: 0 | M128: 0 | N128: 0 | P128: 0
B129: 701 | C129: 8 a 9 anos | D129: 9 | F129: D73 x D101 | I129: D129 | K129: 0 | L129: 0 | M129: 0 | N129: 0 | P129: 0
B130: 701 | C130: acima de 10 anos | D130: 10 | F130: D74 x D102 | I130: D130 | K130: 0 | L130: 0 | M130: 0 | N130: 0 | P130: 0
B131: 701 | C131: TOTAL | F131: =CONCATENATE("Soma de ",I121,"..",I130) -> Soma de D121..D130 | I131: D131 | K131: =SUM(K121:K130) -> 123200 | L131: =SUM(L121:L130) -> 123200 | M131: =SUM(M121:M130) -> 1760 | N131: =SUM(N121:N130) -> 1760 | P131: =SUM(P121:P130) -> 123200
I132: D132
B133: 702 | C133: Maquinas, Instalações e Equipamentos | D133: Anos | I133: D133
B134: 702 | C134: 0 a 1 ano | D134: 1 | F134: =CONCATENATE(I78," x ",I106) -> D78 x D106 | I134: D134 | K134: =ROUND(K78*K106,2) -> 29392 | L134: 29392 | M134: 105.6 | N134: 105.6 | P134: =VLOOKUP(I134,Base_d,calc_d,0) -> 29392
B135: 702 | C135: =CONCATENATE(D134," a ",D135," anos") -> 1 a 2 anos | D135: =+D134+1 -> 2 | F135: D79 x D107 | I135: D135 | K135: 0 | L135: 0 | M135: 0 | N135: 0 | P135: 0
B136: 702 | C136: =CONCATENATE(D135," a ",D136," anos") -> 2 a 3 anos | D136: 3 | F136: D80 x D108 | I136: D136 | K136: 0 | L136: 0 | M136: 0 | N136: 0 | P136: 0
B137: 702 | C137: 3 a 4 anos | D137: 4 | F137: D81 x D109 | I137: D137 | K137: 0 | L137: 0 | M137: 0 | N137: 0 | P137: 0
B138: 702 | C138: 4 a 5 anos | D138: 5 | F138: D82 x D110 | I138: D138 | K138: 0 | L138: 0 | M138: 0 | N138: 0 | P138: 0
B139: 702 | C139: 5 a 6 anos | D139: 6 | F139: D83 x D111 | I139: D139 | K139: 0 | L139: 0 | M139: 0 | N139: 0 | P139: 0
B140: 702 | C140: 6 a 7 anos | D140: 7 | F140: D84 x D112 | I140: D140 | K140: 0 | L140: 0 | M140: 0 | N140: 0 | P140: 0
B141: 702 | C141: 7 a 8 anos | D141: 8 | F141: D85 x D113 | I141: =CONCATENATE("D",ROW()) -> D141 | K141: 0 | L141: 0 | M141: 0 | N141: 0 | P141: 0
B142: 702 | C142: 8 a 9 anos | D142: 9 | F142: D86 x D114 | I142: D142 | K142: 0 | L142: 0 | M142: 0 | N142: 0 | P142: 0
B143: 702 | C143: acima de 10 anos | D143: 10 | F143: D87 x D115 | I143: D143 | K143: 0 | L143: 0 | M143: 0 | N143: 0 | P143: 0
B144: 702 | C144: TOTAL | F144: =CONCATENATE("Soma de ",I134,"..",I143) -> Soma de D134..D143 | I144: D144 | K144: =SUM(K134:K143) -> 29392 | L144: =SUM(L134:L143) -> 29392 | M144: =SUM(M134:M143) -> 105.6 | N144: =SUM(N134:N143) -> 105.6 | P144: =SUM(P134:P143) -> 29392
I145: D145
B146: 703 | C146: DEPRECIAÇÃO ANUAL DE EQUIPAMENTOS | I146: D146
C147: Sistema de Monitoramento e Bilhetagem | F147: =CONCATENATE(" + ",I131) -> + D131 | I147: =CONCATENATE("D",ROW()) -> D147 | K147: =+K131 -> 123200 | L147: =+L131 -> 123200 | M147: =+M131 -> 1760 | N147: =+N131 -> 1760 | P147: =VLOOKUP(I147,Base_d,calc_d,0) -> 123200
C148: Maquinas, Instalações e Equipamentos | F148: =CONCATENATE(" + ",I144) -> + D144 | I148: D148 | K148: =+K144 -> 29392 | L148: =+L144 -> 29392 | M148: =+M144 -> 105.6 | N148: =+N144 -> 105.6 | P148: =VLOOKUP(I148,Base_d,calc_d,0) -> 29392
C149: TOTAL | F149: =CONCATENATE("Soma de ",I147,"..",I148) -> Soma de D147..D148 | I149: D149 | K149: =SUM(K147:K148) -> 152592 | L149: =SUM(L147:L148) -> 152592 | M149: =SUM(M147:M148) -> 1865.6 | N149: =SUM(N147:N148) -> 1865.6 | P149: =SUM(P147:P148) -> 152592
I150: D150
B151: 800 | C151: FATORES DE REMUNERAÇÃO | I151: D151
I152: D152
B153: 801 | C153: Sist. de Bilhetagem monitoramento/validação | D153: Anos | I153: =CONCATENATE("D",ROW()) -> D153 | K153: Fat Rem. Anual | L153: Fat Rem. Anual | M153: Fat Rem. Anual | N153: Fat Rem. Anual | P153: =VLOOKUP(I153,Base_d,calc_d,0) -> Fat Rem. Anual | T153: Fat Rem. Anual | U153: Fat Rem. Anual
B154: 801 | C154: 0 a 1 ano | D154: 1 | G154: ? | I154: D154 | K154: =+L154 -> 0.12 | L154: 0.12 | M154: 0.12 | N154: =IF(Esc_calc_depr=2,T154,U154) -> 0.12 | P154: 0.12 | T154: =+Coeficientes!M117 -> 0.12 | U154: =+Coeficientes!T117 -> 0.12
B155: 801 | C155: =CONCATENATE(D154," a ",D155," anos") -> 1 a 2 anos | D155: =+D154+1 -> 2 | G155: ? | I155: D155 | K155: 0.096 | L155: 0.096 | M155: 0.096 | N155: 0.096 | P155: 0.096 | T155: =+Coeficientes!M118 -> 0.08 | U155: =+Coeficientes!T118 -> 0.096
B156: 801 | C156: =CONCATENATE(D155," a ",D156," anos") -> 2 a 3 anos | D156: 3 | G156: ? | I156: D156 | K156: 0.072 | L156: 0.072 | M156: 0.072 | N156: 0.072 | P156: 0.072 | T156: =+Coeficientes!M119 -> 0.048 | U156: =+Coeficientes!T119 -> 0.072
B157: 801 | C157: 3 a 4 anos | D157: 4 | G157: ? | I157: D157 | K157: 0.048 | L157: 0.048 | M157: 0.048 | N157: 0.048 | P157: 0.048 | T157: =+Coeficientes!M120 -> 0.024 | U157: =+Coeficientes!T120 -> 0.048
B158: 801 | C158: 4 a 5 anos | D158: 5 | G158: ? | I158: D158 | K158: 0.024 | L158: 0.024 | M158: 0.024 | N158: 0.024 | P158: 0.024 | T158: =+Coeficientes!M121 -> 0.008 | U158: =+Coeficientes!T121 -> 0.024
B159: 801 | C159: 5 a 6 anos | D159: 6 | G159: ? | I159: D159 | K159: 0 | L159: 0 | M159: 0 | N159: 0 | P159: 0 | T159: =+Coeficientes!M122 -> 0 | U159: =+Coeficientes!T122 -> 0
B160: 801 | C160: 6 a 7 anos | D160: 7 | G160: ? | I160: D160 | K160: 0 | L160: 0 | M160: 0 | N160: 0 | P160: 0 | T160: =+Coeficientes!M123 -> 0 | U160: =+Coeficientes!T123 -> 0
B161: 801 | C161: 7 a 8 anos | D161: 8 | G161: ? | I161: D161 | K161: 0 | L161: 0 | M161: 0 | N161: 0 | P161: 0 | T161: =+Coeficientes!M124 -> 0 | U161: =+Coeficientes!T124 -> 0
B162: 801 | C162: 8 a 9 anos | D162: 9 | G162: ? | I162: D162 | K162: 0 | L162: 0 | M162: 0 | N162: 0 | P162: 0 | T162: =+Coeficientes!M125 -> 0 | U162: =+Coeficientes!T125 -> 0
B163: 801 | C163: acima de 10 anos | D163: 10 | G163: ? | I163: D163 | K163: 0 | L163: 0 | M163: 0 | N163: 0 | P163: 0 | T163: =+Coeficientes!M126 -> 0 | U163: =+Coeficientes!T126 -> 0
B165: 802 | C165: Maquinas, Instalações e Equipamentos | D165: Anos | I165: D165 | K165: Fat Rem. Anual | L165: Fat Rem. Anual | M165: Fat Rem. Anual | N165: Fat Rem. Anual | P165: =VLOOKUP(I165,Base_d,calc_d,0) -> Fat Rem. Anual | T165: Fat depr anual | U165: Fat depr anual
B166: 802 | C166: 0 a 1 ano | D166: 1 | G166: ? | I166: D166 | K166: =+L166 -> 0.12 | L166: =+M166 -> 0.12 | M166: =+N166 -> 0.12 | N166: =IF(Esc_calc_depr=2,T166,U166) -> 0.12 | P166: 0.12 | T166: =+Coeficientes!M140 -> 0.12 | U166: =+Coeficientes!T140 -> 0.12
B167: 802 | C167: =CONCATENATE(D166," a ",D167," anos") -> 1 a 2 anos | D167: =+D166+1 -> 2 | G167: ? | I167: D167 | K167: 0.108 | L167: 0.108 | M167: 0.108 | N167: 0.108 | P167: 0.108 | T167: =+Coeficientes!M141 -> 0.09818182 | U167: =+Coeficientes!T141 -> 0.108
B168: 802 | C168: =CONCATENATE(D167," a ",D168," anos") -> 2 a 3 anos | D168: 3 | G168: ? | I168: D168 | K168: 0.096 | L168: 0.096 | M168: 0.096 | N168: 0.096 | P168: 0.096 | T168: =+Coeficientes!M142 -> 0.07854546 | U168: =+Coeficientes!T142 -> 0.096
B169: 802 | C169: 3 a 4 anos | D169: 4 | G169: ? | I169: D169 | K169: 0.084 | L169: 0.084 | M169: 0.084 | N169: 0.084 | P169: 0.084 | T169: =+Coeficientes!M143 -> 0.06109091 | U169: =+Coeficientes!T143 -> 0.084
B170: 802 | C170: 4 a 5 anos | D170: 5 | G170: ? | I170: D170 | K170: 0.072 | L170: 0.072 | M170: 0.072 | N170: 0.072 | P170: 0.072 | T170: =+Coeficientes!M144 -> 0.04581818 | U170: =+Coeficientes!T144 -> 0.072
B171: 802 | C171: 5 a 6 anos | D171: 6 | G171: ? | I171: D171 | K171: 0.06 | L171: 0.06 | M171: 0.06 | N171: 0.06 | P171: 0.06 | T171: =+Coeficientes!M145 -> 0.03272727 | U171: =+Coeficientes!T145 -> 0.06
B172: 802 | C172: 6 a 7 anos | D172: 7 | G172: ? | I172: D172 | K172: 0.048 | L172: 0.048 | M172: 0.048 | N172: 0.048 | P172: 0.048 | T172: =+Coeficientes!M146 -> 0.02181818 | U172: =+Coeficientes!T146 -> 0.048
B173: 802 | C173: 7 a 8 anos | D173: 8 | G173: ? | I173: D173 | K173: 0.036 | L173: 0.036 | M173: 0.036 | N173: 0.036 | P173: 0.036 | T173: =+Coeficientes!M147 -> 0.01309091 | U173: =+Coeficientes!T147 -> 0.036
B174: 802 | C174: 8 a 9 anos | D174: 9 | G174: ? | I174: D174 | K174: 0.024 | L174: 0.024 | M174: 0.024 | N174: 0.024 | P174: 0.024 | T174: =+Coeficientes!M148 -> 0.00654546 | U174: =+Coeficientes!T148 -> 0.024
B175: 802 | C175: acima de 10 anos | D175: 10 | G175: ? | I175: D175 | K175: 0.012 | L175: 0.012 | M175: 0.012 | N175: 0.012 | P175: 0.012 | T175: =+Coeficientes!M149 -> 0.00218182 | U175: =+Coeficientes!T149 -> 0.012
B177: 900 | C177: REMUNERAÇÃO ANUAL DE EQUIPAMENTOS | I177: D177
I178: D178
B179: 901 | C179: Sist. de Bilhetagem monitoramento/validação | D179: Anos | I179: D179
B180: 901 | C180: 0 a 1 ano | D180: 1 | F180: =CONCATENATE(I65," x ",I154) -> D65 x D154 | I180: D180 | K180: =ROUND(+K65*K154,2) -> 73920 | L180: 73920 | M180: 1056 | N180: 1056 | P180: =VLOOKUP(I180,Base_d,calc_d,0) -> 73920
B181: 901 | C181: =CONCATENATE(D180," a ",D181," anos") -> 1 a 2 anos | D181: =+D180+1 -> 2 | F181: D66 x D155 | I181: D181 | K181: 0 | L181: 0 | M181: 0 | N181: 0 | P181: 0
B182: 901 | C182: =CONCATENATE(D181," a ",D182," anos") -> 2 a 3 anos | D182: 3 | F182: D67 x D156 | I182: D182 | K182: 0 | L182: 0 | M182: 0 | N182: 0 | P182: 0
B183: 901 | C183: 3 a 4 anos | D183: 4 | F183: D68 x D157 | I183: D183 | K183: 0 | L183: 0 | M183: 0 | N183: 0 | P183: 0
B184: 901 | C184: 4 a 5 anos | D184: 5 | F184: D69 x D158 | I184: D184 | K184: 0 | L184: 0 | M184: 0 | N184: 0 | P184: 0
B185: 901 | C185: 5 a 6 anos | D185: 6 | F185: D70 x D159 | I185: D185 | K185: 0 | L185: 0 | M185: 0 | N185: 0 | P185: 0
B186: 901 | C186: 6 a 7 anos | D186: 7 | F186: D71 x D160 | I186: D186 | K186: 0 | L186: 0 | M186: 0 | N186: 0 | P186: 0
B187: 901 | C187: 7 a 8 anos | D187: 8 | F187: D72 x D161 | I187: D187 | K187: 0 | L187: 0 | M187: 0 | N187: 0 | P187: 0
B188: 901 | C188: 8 a 9 anos | D188: 9 | F188: D73 x D162 | I188: D188 | K188: 0 | L188: 0 | M188: 0 | N188: 0 | P188: 0
B189: 901 | C189: acima de 10 anos | D189: 10 | F189: D74 x D163 | I189: D189 | K189: 0 | L189: 0 | M189: 0 | N189: 0 | P189: 0
B190: 901 | C190: TOTAL | F190: =CONCATENATE("Soma de ",I180,"..",I189) -> Soma de D180..D189 | I190: D190 | K190: =SUM(K180:K189) -> 73920 | L190: =SUM(L180:L189) -> 73920 | M190: =SUM(M180:M189) -> 1056 | N190: =SUM(N180:N189) -> 1056 | P190: =SUM(P180:P189) -> 73920
I191: D191
B192: 902 | C192: Maquinas, Instalações e Equipamentos | D192: Anos | I192: D192
B193: 902 | C193: 0 a 1 ano | D193: 1 | F193: =CONCATENATE(I78," x ",I166) -> D78 x D166 | I193: D193 | K193: =ROUND(+K78*K166,2) -> 35270.4 | L193: 35270.4 | M193: 126.72 | N193: 126.72 | P193: =VLOOKUP(I193,Base_d,calc_d,0) -> 35270.4
B194: 902 | C194: =CONCATENATE(D193," a ",D194," anos") -> 1 a 2 anos | D194: =+D193+1 -> 2 | F194: D79 x D167 | I194: D194 | K194: 0 | L194: 0 | M194: 0 | N194: 0 | P194: 0
B195: 902 | C195: =CONCATENATE(D194," a ",D195," anos") -> 2 a 3 anos | D195: 3 | F195: D80 x D168 | I195: D195 | K195: 0 | L195: 0 | M195: 0 | N195: 0 | P195: 0
B196: 902 | C196: 3 a 4 anos | D196: 4 | F196: D81 x D169 | I196: D196 | K196: 0 | L196: 0 | M196: 0 | N196: 0 | P196: 0
B197: 902 | C197: 4 a 5 anos | D197: 5 | F197: D82 x D170 | I197: D197 | K197: 0 | L197: 0 | M197: 0 | N197: 0 | P197: 0
B198: 902 | C198: 5 a 6 anos | D198: 6 | F198: D83 x D171 | I198: D198 | K198: 0 | L198: 0 | M198: 0 | N198: 0 | P198: 0
B199: 902 | C199: 6 a 7 anos | D199: 7 | F199: D84 x D172 | I199: D199 | K199: 0 | L199: 0 | M199: 0 | N199: 0 | P199: 0
B200: 902 | C200: 7 a 8 anos | D200: 8 | F200: D85 x D173 | I200: D200 | K200: 0 | L200: 0 | M200: 0 | N200: 0 | P200: 0
B201: 902 | C201: 8 a 9 anos | D201: 9 | F201: D86 x D174 | I201: D201 | K201: 0 | L201: 0 | M201: 0 | N201: 0 | P201: 0
B202: 902 | C202: acima de 10 anos | D202: 10 | F202: D87 x D175 | I202: D202 | K202: 0 | L202: 0 | M202: 0 | N202: 0 | P202: 0
B203: 902 | C203: TOTAL | F203: =CONCATENATE("Soma de ",I193,"..",I202) -> Soma de D193..D202 | I203: D203 | K203: =SUM(K193:K202) -> 35270.4 | L203: =SUM(L193:L202) -> 35270.4 | M203: =SUM(M193:M202) -> 126.72 | N203: =SUM(N193:N202) -> 126.72 | P203: =SUM(P193:P202) -> 35270.4
... 5 more rows

Sheet DR_Invest
K1: =+Tarifa!K27 -> 3.250020342 | L1: =+Tarifa!L27 -> 3.250020342 | M1: =+Tarifa!M27 -> 0.004320741671 | N1: =+Tarifa!N27 -> 0.003509621155
B2: DR_INVEST | I2: ÁREA DE DADOS E CÁLCULOS - NÃO INCLUIR COLUNA
A3: pedro milton golfe | B3: =+Titulo_01 -> PREFEITURA MUNICIPAL DE CHAPECO
A4: pedro milton golfe | B4: =+Titulo_02 -> CONTROLADORIA GERAL DO MUNICÍPIO
A5: pedro milton golfe | B5: =+Titulo_03 -> SISTEMA DE TRANSPORTE PÚBLICO DE PASSAGEIROS
B6: Cálculo Depreciação/Remuneração de Investimentos
B7: =CONCATENATE(+Cenario!$D$10," - ",+Cenario!$E$18) -> Cenário - Prefeitura Chapecó - Base Edital - base 10/17 - PROPOSTA | F7: =+Apura!$Z$11 -> Cenário 02 | K7: Tarifa base | L7: =IF(Esc_tarifa_base=1,"Antecipado","Embarcado") -> Embarcado
B9: ITEM | C9: DISCRIMINAÇÃO | F9: Referência | K9: =+Apura!U11 -> Cenário 01 | L9: =+Apura!V11 -> Cenário 02 | M9: =+Apura!W11 -> Cenário 03 | N9: =+Apura!X11 -> Cenário 04 | P9: CALC FC
F10: Data | I10: =CONCATENATE("E",ROW()) -> E10 | K10: =+Consumo!K10 -> 2017-10-31 | L10: =+Consumo!L10 -> 2017-10-31 | M10: =+Consumo!M10 -> 2018-08-31 | N10: =+Consumo!N10 -> 2018-08-31 | P10: =VLOOKUP(I10,Base_e,calc_d,0) -> 2017-10-31
I11: E11
B12: INVESTSIMENTOS | I12: E12
I13: E13
B14: 101 | C14: Deprecição/Amortização Mensal Investimentos | I14: E14
C15: Terrenos | I15: E15 | K15: =+K216 -> 0 | L15: 0 | M15: 0 | N15: 0 | P15: =VLOOKUP(I15,Base_e,calc_d,0) -> 0
C16: Construções | I16: E16 | K16: 5625 | L16: 5625 | M16: 20.83333333 | N16: 20.83333333 | P16: =VLOOKUP(I16,Base_e,calc_d,0) -> 5625
C17: Outorga | I17: E17 | K17: 23377.575 | L17: 23377.575 | M17: 41.66666667 | N17: 41.66666667 | P17: =VLOOKUP(I17,Base_e,calc_d,0) -> 23377.575
C18: TOTAL | F18: =CONCATENATE("Soma de ",I15,"..",I17) -> Soma de E15..E17 | I18: E18 | K18: =SUM(K15:K17) -> 29002.575 | L18: =SUM(L15:L17) -> 29002.575 | M18: =SUM(M15:M17) -> 62.5 | N18: =SUM(N15:N17) -> 62.5 | P18: =VLOOKUP(I18,Base_e,calc_d,0) -> 29002.575
I19: E19
B20: 102 | C20: Remuneração Mensal de Investimentos | I20: E20
C21: Terrenos | F21: =CONCATENATE(" + ",I418) -> + E418 | I21: E21 | K21: =+K418 -> 50000 | L21: 50000 | M21: 100 | N21: 100 | P21: =VLOOKUP(I21,Base_e,calc_d,0) -> 50000
C22: Construções | F22: =CONCATENATE(" + ",I419) -> + E419 | I22: E22 | K22: 27000 | L22: 27000 | M22: 100 | N22: 100 | P22: =VLOOKUP(I22,Base_e,calc_d,0) -> 27000
C23: Outorga | F23: =CONCATENATE(" + ",I420) -> + E420 | I23: E23 | K23: 56106.18 | L23: 56106.18 | M23: 100 | N23: 100 | P23: =VLOOKUP(I23,Base_e,calc_d,0) -> 56106.18
C24: TOTAL | F24: =CONCATENATE("Soma de ",I21,"..",I23) -> Soma de E21..E23 | I24: E24 | K24: =SUM(K21:K23) -> 133106.18 | L24: =SUM(L21:L23) -> 133106.18 | M24: =SUM(M21:M23) -> 300 | N24: =SUM(N21:N23) -> 300 | P24: =VLOOKUP(I24,Base_e,calc_d,0) -> 133106.18
I25: E25
B26: 104 | C26: Valor dos Investimentos Iniciais | I26: E26
C27: Terrenos | F27: CONSUMO | G27: =+Consumo!I376 -> B376 | I27: E27 | K27: =+Consumo!K376 -> 5000000 | L27: =+Consumo!L376 -> 5000000 | M27: =+Consumo!M376 -> 10000 | N27: =+Consumo!N376 -> 10000 | P27: =VLOOKUP(I27,Base_e,calc_d,0) -> 5000000
C28: Construções | F28: CONSUMO | G28: =+Consumo!I377 -> B377 | I28: E28 | K28: =+Consumo!K377 -> 2700000 | L28: =+Consumo!L377 -> 2700000 | M28: =+Consumo!M377 -> 10000 | N28: =+Consumo!N377 -> 10000 | P28: =VLOOKUP(I28,Base_e,calc_d,0) -> 2700000
C29: Outorga | F29: CONSUMO | G29: =+Consumo!I378 -> B378 | I29: E29 | K29: =+Consumo!K378 -> 5610618 | L29: =+Consumo!L378 -> 5610618 | M29: =+Consumo!M378 -> 10000 | N29: =+Consumo!N378 -> 10000 | P29: =VLOOKUP(I29,Base_e,calc_d,0) -> 5610618
C30: TOTAL | F30: =CONCATENATE("Soma de ",I27,"..",I29) -> Soma de E27..E29 | I30: E30 | K30: =SUM(K27:K29) -> 13310618 | L30: =SUM(L27:L29) -> 13310618 | M30: =SUM(M27:M29) -> 30000 | N30: =SUM(N27:N29) -> 30000 | P30: =VLOOKUP(I30,Base_e,calc_d,0) -> 13310618
I31: E31
B32: 106 | C32: VALOR RESIDUAL | I32: E32 | K32: % | L32: % | M32: % | N32: % | P32: =VLOOKUP(I32,Base_e,calc_d,0) -> %
C33: Terrenos | F33: CONSUMO | G33: =+Consumo!I382 -> B382 | I33: E33 | K33: =+Consumo!K382 -> 1 | L33: =+Consumo!L382 -> 1 | M33: =+Consumo!M382 -> 1 | N33: =+Consumo!N382 -> 1 | P33: =VLOOKUP(I33,Base_e,calc_d,0) -> 1
C34: Construções | F34: CONSUMO | G34: =+Consumo!I383 -> B383 | I34: E34 | K34: =+Consumo!K383 -> 0.5 | L34: =+Consumo!L383 -> 0.5 | M34: =+Consumo!M383 -> 0.5 | N34: =+Consumo!N383 -> 0.5 | P34: =VLOOKUP(I34,Base_e,calc_d,0) -> 0.5
C35: Outorga | F35: CONSUMO | G35: =+Consumo!I384 -> B384 | I35: E35 | K35: =+Consumo!K384 -> 0 | L35: =+Consumo!L384 -> 0 | M35: =+Consumo!M384 -> 0 | N35: =+Consumo!N384 -> 0 | P35: =VLOOKUP(I35,Base_e,calc_d,0) -> 0
I36: E36
B37: 105 | C37: VIDA UTIL | I37: E37 | K37: Anos | L37: Anos | M37: Anos | N37: Anos | P37: Anos
C38: Terrenos | F38: CONSUMO | G38: =+Consumo!I387 -> B387 | I38: E38 | K38: =+Consumo!K387 -> 0 | L38: =+Consumo!L387 -> 0 | M38: =+Consumo!M387 -> 0 | N38: =+Consumo!N387 -> 0 | P38: =VLOOKUP(I38,Base_e,calc_d,0) -> 0
C39: Construções | F39: CONSUMO | G39: =+Consumo!I388 -> B388 | I39: E39 | K39: =+Consumo!K388 -> 20 | L39: =+Consumo!L388 -> 20 | M39: =+Consumo!M388 -> 20 | N39: =+Consumo!N388 -> 20 | P39: =VLOOKUP(I39,Base_e,calc_d,0) -> 20
C40: Outorga | F40: CONSUMO | G40: =+Consumo!I389 -> B389 | I40: E40 | K40: =+Consumo!K389 -> 20 | L40: =+Consumo!L389 -> 20 | M40: =+Consumo!M389 -> 20 | N40: =+Consumo!N389 -> 20 | P40: =VLOOKUP(I40,Base_e,calc_d,0) -> 20
I41: E41
B42: 106 | C42: Valor dos investimentos iniciais | I42: E42
I43: E43
C44: Ano inicial (base contrato) | F44: CONSUMO | G44: =+Consumo!I372 -> B372 | I44: E44 | K44: =+Consumo!K372 -> 2018 | L44: =+Consumo!L372 -> 2018 | M44: =+Consumo!M372 -> 2018 | N44: =+Consumo!N372 -> 2018 | P44: =VLOOKUP(I44,Base_e,calc_d,0) -> 2018
C45: Ano atual | F45: CONSUMO | G45: =+Consumo!I373 -> B373 | I45: E45 | K45: =+Consumo!K373 -> 2018 | L45: =+Consumo!L373 -> 2018 | M45: =+Consumo!M373 -> 2018 | N45: =+Consumo!N373 -> 2018 | P45: =VLOOKUP(I45,Base_e,calc_d,0) -> 2018
I46: E46
B47: 10601 | C47: Terrenos | D47: Anos | I47: E47
C48: =CONCATENATE("Ano ",D48-1," a ",D48) -> Ano 2017 a 2018 | D48: 2018 | F48: =CONCATENATE(I$27," se igual ano atual") -> E27 se igual ano atual | I48: E48 | K48: =+IF(K$45=$D48,K$27,0) -> 5000000 | L48: 5000000 | M48: 10000 | N48: 10000 | P48: =VLOOKUP(I48,Base_e,calc_d,0) -> 5000000
C49: Ano 2018 a 2019 | D49: =+D48+1 -> 2019 | F49: =CONCATENATE(I$27," se igual ano atual") -> E27 se igual ano atual | I49: E49 | K49: 0 | L49: 0 | M49: 0 | N49: 0 | P49: 0
C50: Ano 2019 a 2020 | D50: =+D49+1 -> 2020 | F50: E27 se igual ano atual | I50: E50 | K50: 0 | L50: 0 | M50: 0 | N50: 0 | P50: 0
C51: Ano 2020 a 2021 | D51: =+D50+1 -> 2021 | F51: E27 se igual ano atual | I51: E51 | K51: 0 | L51: 0 | M51: 0 | N51: 0 | P51: 0
C52: Ano 2021 a 2022 | D52: =+D51+1 -> 2022 | F52: E27 se igual ano atual | I52: E52 | K52: 0 | L52: 0 | M52: 0 | N52: 0 | P52: 0
C53: Ano 2022 a 2023 | D53: 2023 | F53: E27 se igual ano atual | I53: E53 | K53: 0 | L53: 0 | M53: 0 | N53: 0 | P53: 0
C54: Ano 2023 a 2024 | D54: 2024 | F54: E27 se igual ano atual | I54: E54 | K54: 0 | L54: 0 | M54: 0 | N54: 0 | P54: 0
C55: Ano 2024 a 2025 | D55: 2025 | F55: E27 se igual ano atual | I55: E55 | K55: 0 | L55: 0 | M55: 0 | N55: 0 | P55: 0
C56: Ano 2025 a 2026 | D56: 2026 | F56: E27 se igual ano atual | I56: E56 | K56: 0 | L56: 0 | M56: 0 | N56: 0 | P56: 0
C57: Ano 2026 a 2027 | D57: 2027 | F57: E27 se igual ano atual | I57: E57 | K57: 0 | L57: 0 | M57: 0 | N57: 0 | P57: 0
C58: Ano 2027 a 2028 | D58: 2028 | F58: E27 se igual ano atual | I58: E58 | K58: 0 | L58: 0 | M58: 0 | N58: 0 | P58: 0
C59: Ano 2028 a 2029 | D59: 2029 | F59: E27 se igual ano atual | I59: E59 | K59: 0 | L59: 0 | M59: 0 | N59: 0 | P59: 0
C60: Ano 2029 a 2030 | D60: 2030 | F60: E27 se igual ano atual | I60: E60 | K60: 0 | L60: 0 | M60: 0 | N60: 0 | P60: 0
C61: Ano 2030 a 2031 | D61: 2031 | F61: E27 se igual ano atual | I61: E61 | K61: 0 | L61: 0 | M61: 0 | N61: 0 | P61: 0
C62: Ano 2031 a 2032 | D62: 2032 | F62: E27 se igual ano atual | I62: E62 | K62: 0 | L62: 0 | M62: 0 | N62: 0 | P62: 0
C63: Ano 2032 a 2033 | D63: 2033 | F63: E27 se igual ano atual | I63: E63 | K63: 0 | L63: 0 | M63: 0 | N63: 0 | P63: 0
C64: Ano 2033 a 2034 | D64: 2034 | F64: E27 se igual ano atual | I64: E64 | K64: 0 | L64: 0 | M64: 0 | N64: 0 | P64: 0
C65: Ano 2034 a 2035 | D65: 2035 | F65: E27 se igual ano atual | I65: E65 | K65: 0 | L65: 0 | M65: 0 | N65: 0 | P65: 0
C66: Ano 2035 a 2036 | D66: 2036 | F66: E27 se igual ano atual | I66: E66 | K66: 0 | L66: 0 | M66: 0 | N66: 0 | P66: 0
C67: Ano 2036 a 2037 | D67: 2037 | F67: E27 se igual ano atual | I67: E67 | K67: 0 | L67: 0 | M67: 0 | N67: 0 | P67: 0
I68: E68
B69: 10602 | C69: Construções | D69: Anos | I69: E69
C70: =CONCATENATE("Ano ",D70-1," a ",D70) -> Ano 2017 a 2018 | D70: 2018 | F70: =CONCATENATE(I$28," se igual ano atual") -> E28 se igual ano atual | I70: E70 | K70: =+IF(K$45=$D70,K$28,0) -> 2700000 | L70: 2700000 | M70: 10000 | N70: 10000 | P70: =VLOOKUP(I70,Base_e,calc_d,0) -> 2700000
C71: Ano 2018 a 2019 | D71: =+D70+1 -> 2019 | F71: =CONCATENATE(I$28," se igual ano atual") -> E28 se igual ano atual | I71: E71 | K71: 0 | L71: 0 | M71: 0 | N71: 0 | P71: 0
C72: Ano 2019 a 2020 | D72: =+D71+1 -> 2020 | F72: E28 se igual ano atual | I72: E72 | K72: 0 | L72: 0 | M72: 0 | N72: 0 | P72: 0
C73: Ano 2020 a 2021 | D73: =+D72+1 -> 2021 | F73: E28 se igual ano atual | I73: E73 | K73: 0 | L73: 0 | M73: 0 | N73: 0 | P73: 0
C74: Ano 2021 a 2022 | D74: =+D73+1 -> 2022 | F74: E28 se igual ano atual | I74: =CONCATENATE("E",ROW()) -> E74 | K74: 0 | L74: 0 | M74: 0 | N74: 0 | P74: 0
C75: Ano 2022 a 2023 | D75: 2023 | F75: E28 se igual ano atual | I75: E75 | K75: 0 | L75: 0 | M75: 0 | N75: 0 | P75: 0
C76: Ano 2023 a 2024 | D76: 2024 | F76: E28 se igual ano atual | I76: E76 | K76: 0 | L76: 0 | M76: 0 | N76: 0 | P76: 0
C77: Ano 2024 a 2025 | D77: 2025 | F77: E28 se igual ano atual | I77: E77 | K77: 0 | L77: 0 | M77: 0 | N77: 0 | P77: 0
C78: Ano 2025 a 2026 | D78: 2026 | F78: E28 se igual ano atual | I78: E78 | K78: 0 | L78: 0 | M78: 0 | N78: 0 | P78: 0
C79: Ano 2026 a 2027 | D79: 2027 | F79: E28 se igual ano atual | I79: E79 | K79: 0 | L79: 0 | M79: 0 | N79: 0 | P79: 0
C80: Ano 2027 a 2028 | D80: 2028 | F80: E28 se igual ano atual | I80: E80 | K80: 0 | L80: 0 | M80: 0 | N80: 0 | P80: 0
C81: Ano 2028 a 2029 | D81: 2029 | F81: E28 se igual ano atual | I81: E81 | K81: 0 | L81: 0 | M81: 0 | N81: 0 | P81: 0
C82: Ano 2029 a 2030 | D82: 2030 | F82: E28 se igual ano atual | I82: E82 | K82: 0 | L82: 0 | M82: 0 | N82: 0 | P82: 0
C83: Ano 2030 a 2031 | D83: 2031 | F83: E28 se igual ano atual | I83: E83 | K83: 0 | L83: 0 | M83: 0 | N83: 0 | P83: 0
C84: Ano 2031 a 2032 | D84: 2032 | F84: E28 se igual ano atual | I84: E84 | K84: 0 | L84: 0 | M84: 0 | N84: 0 | P84: 0
C85: Ano 2032 a 2033 | D85: 2033 | F85: E28 se igual ano atual | I85: E85 | K85: 0 | L85: 0 | M85: 0 | N85: 0 | P85: 0
C86: Ano 2033 a 2034 | D86: 2034 | F86: E28 se igual ano atual | I86: E86 | K86: 0 | L86: 0 | M86: 0 | N86: 0 | P86: 0
C87: Ano 2034 a 2035 | D87: 2035 | F87: E28 se igual ano atual | I87: E87 | K87: 0 | L87: 0 | M87: 0 | N87: 0 | P87: 0
C88: Ano 2035 a 2036 | D88: 2036 | F88: E28 se igual ano atual | I88: E88 | K88: 0 | L88: 0 | M88: 0 | N88: 0 | P88: 0
C89: Ano 2036 a 2037 | D89: 2037 | F89: E28 se igual ano atual | I89: E89 | K89: 0 | L89: 0 | M89: 0 | N89: 0 | P89: 0
I90: E90
B91: 10603 | C91: Outorga | D91: Anos | I91: E91
C92: =CONCATENATE("Ano ",D92-1," a ",D92) -> Ano 2017 a 2018 | D92: 2018 | F92: =CONCATENATE(I$29," se igual ano atual") -> E29 se igual ano atual | I92: E92 | K92: =+IF(K$45=$D92,K$29,0) -> 5610618 | L92: 5610618 | M92: 10000 | N92: 10000 | P92: =VLOOKUP(I92,Base_e,calc_d,0) -> 5610618
C93: Ano 2018 a 2019 | D93: =+D92+1 -> 2019 | F93: =CONCATENATE(I$29," se igual ano atual") -> E29 se igual ano atual | I93: E93 | K93: 0 | L93: 0 | M93: 0 | N93: 0 | P93: 0
C94: Ano 2019 a 2020 | D94: =+D93+1 -> 2020 | F94: E29 se igual ano atual | I94: E94 | K94: 0 | L94: 0 | M94: 0 | N94: 0 | P94: 0
C95: Ano 2020 a 2021 | D95: =+D94+1 -> 2021 | F95: E29 se igual ano atual | I95: E95 | K95: 0 | L95: 0 | M95: 0 | N95: 0 | P95: 0
C96: Ano 2021 a 2022 | D96: =+D95+1 -> 2022 | F96: E29 se igual ano atual | I96: E96 | K96: 0 | L96: 0 | M96: 0 | N96: 0 | P96: 0
C97: Ano 2022 a 2023 | D97: 2023 | F97: E29 se igual ano atual | I97: E97 | K97: 0 | L97: 0 | M97: 0 | N97: 0 | P97: 0
C98: Ano 2023 a 2024 | D98: 2024 | F98: E29 se igual ano atual | I98: E98 | K98: 0 | L98: 0 | M98: 0 | N98: 0 | P98: 0
C99: Ano 2024 a 2025 | D99: 2025 | F99: E29 se igual ano atual | I99: E99 | K99: 0 | L99: 0 | M99: 0 | N99: 0 | P99: 0
C100: Ano 2025 a 2026 | D100: 2026 | F100: E29 se igual ano atual | I100: E100 | K100: 0 | L100: 0 | M100: 0 | N100: 0 | P100: 0
C101: Ano 2026 a 2027 | D101: 2027 | F101: E29 se igual ano atual | I101: E101 | K101: 0 | L101: 0 | M101: 0 | N101: 0 | P101: 0
C102: Ano 2027 a 2028 | D102: 2028 | F102: E29 se igual ano atual | I102: E102 | K102: 0 | L102: 0 | M102: 0 | N102: 0 | P102: 0
C103: Ano 2028 a 2029 | D103: 2029 | F103: E29 se igual ano atual | I103: E103 | K103: 0 | L103: 0 | M103: 0 | N103: 0 | P103: 0
C104: Ano 2029 a 2030 | D104: 2030 | F104: E29 se igual ano atual | I104: E104 | K104: 0 | L104: 0 | M104: 0 | N104: 0 | P104: 0
C105: Ano 2030 a 2031 | D105: 2031 | F105: E29 se igual ano atual | I105: E105 | K105: 0 | L105: 0 | M105: 0 | N105: 0 | P105: 0
C106: Ano 2031 a 2032 | D106: 2032 | F106: E29 se igual ano atual | I106: E106 | K106: 0 | L106: 0 | M106: 0 | N106: 0 | P106: 0
C107: Ano 2032 a 2033 | D107: 2033 | F107: E29 se igual ano atual | I107: E107 | K107: 0 | L107: 0 | M107: 0 | N107: 0 | P107: 0
C108: Ano 2033 a 2034 | D108: 2034 | F108: E29 se igual ano atual | I108: E108 | K108: 0 | L108: 0 | M108: 0 | N108: 0 | P108: 0
C109: Ano 2034 a 2035 | D109: 2035 | F109: E29 se igual ano atual | I109: E109 | K109: 0 | L109: 0 | M109: 0 | N109: 0 | P109: 0
C110: Ano 2035 a 2036 | D110: 2036 | F110: E29 se igual ano atual | I110: E110 | K110: 0 | L110: 0 | M110: 0 | N110: 0 | P110: 0
C111: Ano 2036 a 2037 | D111: 2037 | F111: E29 se igual ano atual | I111: E111 | K111: 0 | L111: 0 | M111: 0 | N111: 0 | P111: 0
I112: E112
B113: 200 | C113: FATORES DE DEPRECIAÇÃO e AMORTIZAÇÃO | I113: E113
I114: E114
B115: 201 | C115: Construções | D115: Anos | I115: E115 | K115: C depr anual | L115: C depr anual | M115: C depr anual | N115: C depr anual | P115: Anos
C116: =CONCATENATE("Ano ",D116-1," a ",D116) -> Ano 0 a 1 | D116: 1 | F116: =CONCATENATE(" 1/ ",I$39," x (1-",I$34,")") -> 1/ E39 x (1-E34) | I116: E116 | K116: =1/K$39*(1-K$34) -> 0.025 | L116: 0.025 | M116: 0.025 | N116: 0.025 | P116: =VLOOKUP(I116,Base_e,calc_d,0) -> 0.025
C117: =CONCATENATE("Ano ",D117-1," a ",D117) -> Ano 1 a 2 | D117: =+D116+1 -> 2 | F117: 1/ E39 x (1-E34) | I117: E117 | K117: 0.025 | L117: 0.025 | M117: 0.025 | N117: 0.025 | P117: 0.025
C118: Ano 2 a 3 | D118: =+D117+1 -> 3 | F118: 1/ E39 x (1-E34) | I118: E118 | K118: 0.025 | L118: 0.025 | M118: 0.025 | N118: 0.025 | P118: 0.025
C119: Ano 3 a 4 | D119: =+D118+1 -> 4 | F119: 1/ E39 x (1-E34) | I119: E119 | K119: 0.025 | L119: 0.025 | M119: 0.025 | N119: 0.025 | P119: 0.025
C120: Ano 4 a 5 | D120: =+D119+1 -> 5 | F120: 1/ E39 x (1-E34) | I120: E120 | K120: 0.025 | L120: 0.025 | M120: 0.025 | N120: 0.025 | P120: 0.025
C121: Ano 5 a 6 | D121: 6 | F121: 1/ E39 x (1-E34) | I121: E121 | K121: 0.025 | L121: 0.025 | M121: 0.025 | N121: 0.025 | P121: 0.025
C122: Ano 6 a 7 | D122: 7 | F122: 1/ E39 x (1-E34) | I122: E122 | K122: 0.025 | L122: 0.025 | M122: 0.025 | N122: 0.025 | P122: 0.025
C123: Ano 7 a 8 | D123: 8 | F123: 1/ E39 x (1-E34) | I123: E123 | K123: 0.025 | L123: 0.025 | M123: 0.025 | N123: 0.025 | P123: 0.025
C124: Ano 8 a 9 | D124: 9 | F124: 1/ E39 x (1-E34) | I124: E124 | K124: 0.025 | L124: 0.025 | M124: 0.025 | N124: 0.025 | P124: 0.025
C125: Ano 9 a 10 | D125: 10 | F125: 1/ E39 x (1-E34) | I125: E125 | K125: 0.025 | L125: 0.025 | M125: 0.025 | N125: 0.025 | P125: 0.025
C126: Ano 10 a 11 | D126: 11 | F126: 1/ E39 x (1-E34) | I126: E126 | K126: 0.025 | L126: 0.025 | M126: 0.025 | N126: 0.025 | P126: 0.025
C127: Ano 11 a 12 | D127: 12 | F127: 1/ E39 x (1-E34) | I127: E127 | K127: 0.025 | L127: 0.025 | M127: 0.025 | N127: 0.025 | P127: 0.025
C128: Ano 12 a 13 | D128: 13 | F128: 1/ E39 x (1-E34) | I128: E128 | K128: 0.025 | L128: 0.025 | M128: 0.025 | N128: 0.025 | P128: 0.025
C129: Ano 13 a 14 | D129: 14 | F129: 1/ E39 x (1-E34) | I129: E129 | K129: 0.025 | L129: 0.025 | M129: 0.025 | N129: 0.025 | P129: 0.025
C130: Ano 14 a 15 | D130: 15 | F130: 1/ E39 x (1-E34) | I130: E130 | K130: 0.025 | L130: 0.025 | M130: 0.025 | N130: 0.025 | P130: 0.025
C131: Ano 15 a 16 | D131: 16 | F131: 1/ E39 x (1-E34) | I131: E131 | K131: 0.025 | L131: 0.025 | M131: 0.025 | N131: 0.025 | P131: 0.025
C132: Ano 16 a 17 | D132: 17 | F132: 1/ E39 x (1-E34) | I132: E132 | K132: 0.025 | L132: 0.025 | M132: 0.025 | N132: 0.025 | P132: 0.025
C133: Ano 17 a 18 | D133: 18 | F133: 1/ E39 x (1-E34) | I133: E133 | K133: 0.025 | L133: 0.025 | M133: 0.025 | N133: 0.025 | P133: 0.025
C134: Ano 18 a 19 | D134: 19 | F134: 1/ E39 x (1-E34) | I134: E134 | K134: 0.025 | L134: 0.025 | M134: 0.025 | N134: 0.025 | P134: 0.025
C135: Ano 19 a 20 | D135: 20 | F135: 1/ E39 x (1-E34) | I135: E135 | K135: 0.025 | L135: 0.025 | M135: 0.025 | N135: 0.025 | P135: 0.025
I136: E136
B137: 202 | C137: Outorga | D137: Anos | I137: E137 | K137: C depr anual | L137: C depr anual | M137: C depr anual | N137: C depr anual | P137: Anos
C138: =CONCATENATE("Ano ",D138-1," a ",D138) -> Ano 0 a 1 | D138: 1 | F138: =CONCATENATE(" 1/ ",I$40," x (1-",I$35,")") -> 1/ E40 x (1-E35) | I138: =CONCATENATE("E",ROW()) -> E138 | K138: =1/K$40*(1-K$35) -> 0.05 | L138: 0.05 | M138: 0.05 | N138: 0.05 | P138: =VLOOKUP(I138,Base_e,calc_d,0) -> 0.05
C139: Ano 1 a 2 | D139: =+D138+1 -> 2 | F139: 1/ E40 x (1-E35) | I139: E139 | K139: 0.05 | L139: 0.05 | M139: 0.05 | N139: 0.05 | P139: 0.05
C140: Ano 2 a 3 | D140: =+D139+1 -> 3 | F140: 1/ E40 x (1-E35) | I140: E140 | K140: 0.05 | L140: 0.05 | M140: 0.05 | N140: 0.05 | P140: 0.05
C141: Ano 3 a 4 | D141: 4 | F141: 1/ E40 x (1-E35) | I141: E141 | K141: 0.05 | L141: 0.05 | M141: 0.05 | N141: 0.05 | P141: 0.05
C142: Ano 4 a 5 | D142: 5 | F142: 1/ E40 x (1-E35) | I142: E142 | K142: 0.05 | L142: 0.05 | M142: 0.05 | N142: 0.05 | P142: 0.05
C143: Ano 5 a 6 | D143: 6 | F143: 1/ E40 x (1-E35) | I143: E143 | K143: 0.05 | L143: 0.05 | M143: 0.05 | N143: 0.05 | P143: 0.05
C144: Ano 6 a 7 | D144: 7 | F144: 1/ E40 x (1-E35) | I144: E144 | K144: 0.05 | L144: 0.05 | M144: 0.05 | N144: 0.05 | P144: 0.05
C145: Ano 7 a 8 | D145: 8 | F145: 1/ E40 x (1-E35) | I145: E145 | K145: 0.05 | L145: 0.05 | M145: 0.05 | N145: 0.05 | P145: 0.05
C146: Ano 8 a 9 | D146: 9 | F146: 1/ E40 x (1-E35) | I146: E146 | K146: 0.05 | L146: 0.05 | M146: 0.05 | N146: 0.05 | P146: 0.05
C147: Ano 9 a 10 | D147: 10 | F147: 1/ E40 x (1-E35) | I147: E147 | K147: 0.05 | L147: 0.05 | M147: 0.05 | N147: 0.05 | P147: 0.05
C148: Ano 10 a 11 | D148: 11 | F148: 1/ E40 x (1-E35) | I148: E148 | K148: 0.05 | L148: 0.05 | M148: 0.05 | N148: 0.05 | P148: 0.05
C149: Ano 11 a 12 | D149: 12 | F149: 1/ E40 x (1-E35) | I149: E149 | K149: 0.05 | L149: 0.05 | M149: 0.05 | N149: 0.05 | P149: 0.05
C150: Ano 12 a 13 | D150: 13 | F150: 1/ E40 x (1-E35) | I150: E150 | K150: 0.05 | L150: 0.05 | M150: 0.05 | N150: 0.05 | P150: 0.05
C151: Ano 13 a 14 | D151: 14 | F151: 1/ E40 x (1-E35) | I151: E151 | K151: 0.05 | L151: 0.05 | M151: 0.05 | N151: 0.05 | P151: 0.05
C152: Ano 14 a 15 | D152: 15 | F152: 1/ E40 x (1-E35) | I152: E152 | K152: 0.05 | L152: 0.05 | M152: 0.05 | N152: 0.05 | P152: 0.05
C153: Ano 15 a 16 | D153: 16 | F153: 1/ E40 x (1-E35) | I153: E153 | K153: 0.05 | L153: 0.05 | M153: 0.05 | N153: 0.05 | P153: 0.05
C154: Ano 16 a 17 | D154: 17 | F154: 1/ E40 x (1-E35) | I154: E154 | K154: 0.05 | L154: 0.05 | M154: 0.05 | N154: 0.05 | P154: 0.05
C155: Ano 17 a 18 | D155: 18 | F155: 1/ E40 x (1-E35) | I155: E155 | K155: 0.05 | L155: 0.05 | M155: 0.05 | N155: 0.05 | P155: 0.05
C156: Ano 18 a 19 | D156: 19 | F156: 1/ E40 x (1-E35) | I156: E156 | K156: 0.05 | L156: 0.05 | M156: 0.05 | N156: 0.05 | P156: 0.05
C157: Ano 19 a 20 | D157: 20 | F157: 1/ E40 x (1-E35) | I157: E157 | K157: 0.05 | L157: 0.05 | M157: 0.05 | N157: 0.05 | P157: 0.05
I158: E158
B159: 204 | C159: CÁLCULO DA DEPRECIAÇÃO ANUAL | I159: E159
I160: E160
B161: 20401 | C161: Terrenos | D161: Anos | F161: Sem depreciação | I161: E161 | K161: 0 | L161: 0 | M161: 0 | N161: 0 | P161: =VLOOKUP(I161,Base_e,calc_d,0) -> 0
I162: E162
B163: 20402 | C163: Edificações | D163: Anos | I163: E163
C164: =CONCATENATE("Ano ",D164-1," a ",D164) -> Ano 2017 a 2018 | D164: 2018 | F164: =CONCATENATE(I70," x ",I116) -> E70 x E116 | I164: E164 | K164: =+K70*K116 -> 67500 | L164: 67500 | M164: 250 | N164: 250 | P164: =VLOOKUP(I164,Base_e,calc_d,0) -> 67500
C165: Ano 2018 a 2019 | D165: =+D164+1 -> 2019 | F165: E71 x E117 | I165: E165 | K165: 0 | L165: 0 | M165: 0 | N165: 0 | P165: 0
C166: Ano 2019 a 2020 | D166: =+D165+1 -> 2020 | F166: E72 x E118 | I166: E166 | K166: 0 | L166: 0 | M166: 0 | N166: 0 | P166: 0
C167: Ano 2020 a 2021 | D167: =+D166+1 -> 2021 | F167: E73 x E119 | I167: E167 | K167: 0 | L167: 0 | M167: 0 | N167: 0 | P167: 0
C168: Ano 2021 a 2022 | D168: =+D167+1 -> 2022 | F168: E74 x E120 | I168: E168 | K168: 0 | L168: 0 | M168: 0 | N168: 0 | P168: 0
C169: Ano 2022 a 2023 | D169: 2023 | F169: E75 x E121 | I169: E169 | K169: 0 | L169: 0 | M169: 0 | N169: 0 | P169: 0
C170: Ano 2023 a 2024 | D170: 2024 | F170: E76 x E122 | I170: E170 | K170: 0 | L170: 0 | M170: 0 | N170: 0 | P170: 0
C171: Ano 2024 a 2025 | D171: 2025 | F171: E77 x E123 | I171: E171 | K171: 0 | L171: 0 | M171: 0 | N171: 0 | P171: 0
C172: Ano 2025 a 2026 | D172: 2026 | F172: E78 x E124 | I172: E172 | K172: 0 | L172: 0 | M172: 0 | N172: 0 | P172: 0
C173: Ano 2026 a 2027 | D173: 2027 | F173: E79 x E125 | I173: E173 | K173: 0 | L173: 0 | M173: 0 | N173: 0 | P173: 0
C174: Ano 2027 a 2028 | D174: 2028 | F174: E80 x E126 | I174: E174 | K174: 0 | L174: 0 | M174: 0 | N174: 0 | P174: 0
C175: Ano 2028 a 2029 | D175: 2029 | F175: E81 x E127 | I175: E175 | K175: 0 | L175: 0 | M175: 0 | N175: 0 | P175: 0
C176: Ano 2029 a 2030 | D176: 2030 | F176: E82 x E128 | I176: E176 | K176: 0 | L176: 0 | M176: 0 | N176: 0 | P176: 0
C177: Ano 2030 a 2031 | D177: 2031 | F177: E83 x E129 | I177: E177 | K177: 0 | L177: 0 | M177: 0 | N177: 0 | P177: 0
C178: Ano 2031 a 2032 | D178: 2032 | F178: E84 x E130 | I178: E178 | K178: 0 | L178: 0 | M178: 0 | N178: 0 | P178: 0
C179: Ano 2032 a 2033 | D179: 2033 | F179: E85 x E131 | I179: E179 | K179: 0 | L179: 0 | M179: 0 | N179: 0 | P179: 0
C180: Ano 2033 a 2034 | D180: 2034 | F180: E86 x E132 | I180: E180 | K180: 0 | L180: 0 | M180: 0 | N180: 0 | P180: 0
C181: Ano 2034 a 2035 | D181: 2035 | F181: E87 x E133 | I181: E181 | K181: 0 | L181: 0 | M181: 0 | N181: 0 | P181: 0
C182: Ano 2035 a 2036 | D182: 2036 | F182: E88 x E134 | I182: E182 | K182: 0 | L182: 0 | M182: 0 | N182: 0 | P182: 0
C183: Ano 2036 a 2037 | D183: 2037 | F183: E89 x E135 | I183: E183 | K183: 0 | L183: 0 | M183: 0 | N183: 0 | P183: 0
C184: TOTAL | F184: =CONCATENATE("Soma de ",I164,"..",I183) -> Soma de E164..E183 | I184: E184 | K184: =SUM(K164:K183) -> 67500 | L184: =SUM(L164:L183) -> 67500 | M184: =SUM(M164:M183) -> 250 | N184: =SUM(N164:N183) -> 250 | P184: 67500
I185: E185
B186: 20403 | C186: Outorga | D186: Anos | I186: E186
C187: =CONCATENATE("Ano ",D187-1," a ",D187) -> Ano 2017 a 2018 | D187: 2018 | F187: =CONCATENATE(I92," x ",I138) -> E92 x E138 | I187: E187 | K187: =+K92*K138 -> 280530.9 | L187: 280530.9 | M187: 500 | N187: 500 | P187: =VLOOKUP(I187,Base_e,calc_d,0) -> 280530.9
C188: Ano 2018 a 2019 | D188: =+D187+1 -> 2019 | F188: E93 x E139 | I188: E188 | K188: 0 | L188: 0 | M188: 0 | N188: 0 | P188: 0
C189: Ano 2019 a 2020 | D189: =+D188+1 -> 2020 | F189: E94 x E140 | I189: E189 | K189: 0 | L189: 0 | M189: 0 | N189: 0 | P189: 0
C190: Ano 2020 a 2021 | D190: =+D189+1 -> 2021 | F190: E95 x E141 | I190: E190 | K190: 0 | L190: 0 | M190: 0 | N190: 0 | P190: 0
C191: Ano 2021 a 2022 | D191: =+D190+1 -> 2022 | F191: E96 x E142 | I191: E191 | K191: 0 | L191: 0 | M191: 0 | N191: 0 | P191: 0
C192: Ano 2022 a 2023 | D192: 2023 | F192: E97 x E143 | I192: E192 | K192: 0 | L192: 0 | M192: 0 | N192: 0 | P192: 0
C193: Ano 2023 a 2024 | D193: 2024 | F193: E98 x E144 | I193: E193 | K193: 0 | L193: 0 | M193: 0 | N193: 0 | P193: 0
C194: Ano 2024 a 2025 | D194: 2025 | F194: E99 x E145 | I194: E194 | K194: 0 | L194: 0 | M194: 0 | N194: 0 | P194: 0
C195: Ano 2025 a 2026 | D195: 2026 | F195: E100 x E146 | I195: E195 | K195: 0 | L195: 0 | M195: 0 | N195: 0 | P195: 0
C196: Ano 2026 a 2027 | D196: 2027 | F196: E101 x E147 | I196: E196 | K196: 0 | L196: 0 | M196: 0 | N196: 0 | P196: 0
C197: Ano 2027 a 2028 | D197: 2028 | F197: E102 x E148 | I197: E197 | K197: 0 | L197: 0 | M197: 0 | N197: 0 | P197: 0
C198: Ano 2028 a 2029 | D198: 2029 | F198: E103 x E149 | I198: E198 | K198: 0 | L198: 0 | M198: 0 | N198: 0 | P198: 0
C199: Ano 2029 a 2030 | D199: 2030 | F199: E104 x E150 | I199: E199 | K199: 0 | L199: 0 | M199: 0 | N199: 0 | P199: 0
C200: Ano 2030 a 2031 | D200: 2031 | F200: E105 x E151 | I200: E200 | K200: 0 | L200: 0 | M200: 0 | N200: 0 | P200: 0
C201: Ano 2031 a 2032 | D201: 2032 | F201: E106 x E152 | I201: E201 | K201: 0 | L201: 0 | M201: 0 | N201: 0 | P201: 0
... 220 more rows

Sheet Renov_Frota
B2: RENOVÇÃO DA FROTA
A3: pedro milton golfe | B3: =+Titulo_01 -> PREFEITURA MUNICIPAL DE CHAPECO
A4: pedro milton golfe | B4: =+Titulo_02 -> CONTROLADORIA GERAL DO MUNICÍPIO
A5: pedro milton golfe | B5: =+Titulo_03 -> SISTEMA DE TRANSPORTE PÚBLICO DE PASSAGEIROS
B6: APURAÇÃO MOVIMENTO RENOVAÇÃO DA FROTA
B7: =CONCATENATE(+Cenario!$D$10," - ",+Cenario!$E$18) -> Cenário - Prefeitura Chapecó - Base Edital - base 10/17 - PROPOSTA | G7: =+Apura!$Z$11 -> Cenário 02 | L7: Tarifa base | M7: =IF(Esc_tarifa_base=1,"Antecipado","Embarcado") -> Embarcado
B9: ITEM | C9: DISCRIMINAÇÃO | E9: ANO | G9: REFERÊNIA | J9: ORDEM | L9: CATEGORIA DE VEICULO | P9: TOTAL | R9: M | S9: L | T9: P | U9: A | V9: T
B11: DADOS INICIAIS DA FROTA | L11: Micro Onibus | M11: Leve | N11: Pesado | O11: Articulado | P11: Total
B13: 101 | C13: Valor Veiculo Novo com Rodagem | G13: CONSUMO | H13: 501 | L13: =+Consumo!P261 -> 274000 | M13: =+Consumo!P262 -> 278340 | N13: =+Consumo!P263 -> 303890 | O13: =+Consumo!P264 -> 362700
B15: 102 | C15: Valor do Veiculo sem Rodagem | G15: CONSUMO | H15: 504 | L15: =+Consumo!P279 -> 270708.94 | M15: =+Consumo!P280 -> 269795.82 | N15: =+Consumo!P281 -> 294624.2 | O15: =+Consumo!P282 -> 347758.2
B17: 103 | C17: Vida Útil (anos) | G17: CONSUMO | H17: 502 | L17: =+Consumo!$P273 -> 8 | M17: =+Consumo!$P274 -> 8 | N17: =+Consumo!$P275 -> 10 | O17: =+Consumo!$P276 -> 10 | R17: =+L17 -> 8 | S17: =+M17 -> 8 | T17: =+N17 -> 10 | U17: =+O17 -> 10
B19: 103 | C19: Valor Residual | G19: CONSUMO | H19: 503 | L19: =+Consumo!$P267 -> 0.15 | M19: =+Consumo!$P268 -> 0.15 | N19: =+Consumo!$P269 -> 0.1 | O19: =+Consumo!$P270 -> 0.1
B21: COEFICIENTE DE DEPRECIAÇÃO
B23: 201 | C23: Coeficiente Deprec ano | D23: Anos
C24: 0 a 1 ano | D24: 0 | G24: DR_FROTA | H24: =+DR_Frota!I250 -> C250 | L24: =+DR_Frota!P250 -> 0.10625 | M24: =+DR_Frota!P270 -> 0.10625 | N24: =+DR_Frota!P290 -> 0.09 | O24: =+DR_Frota!P310 -> 0.09
C25: 1 a 2 anos | D25: =+D24+1 -> 1 | G25: DR_FROTA | H25: =+DR_Frota!I251 -> C251 | L25: =+DR_Frota!P251 -> 0.10625 | M25: =+DR_Frota!P271 -> 0.10625 | N25: =+DR_Frota!P291 -> 0.09 | O25: =+DR_Frota!P311 -> 0.09
C26: 2 a 3 anos | D26: =+D25+1 -> 2 | G26: DR_FROTA | H26: =+DR_Frota!I252 -> C252 | L26: =+DR_Frota!P252 -> 0.10625 | M26: =+DR_Frota!P272 -> 0.10625 | N26: =+DR_Frota!P292 -> 0.09 | O26: =+DR_Frota!P312 -> 0.09
C27: 3 a 4 anos | D27: 3 | G27: DR_FROTA | H27: =+DR_Frota!I253 -> C253 | L27: =+DR_Frota!P253 -> 0.10625 | M27: =+DR_Frota!P273 -> 0.10625 | N27: =+DR_Frota!P293 -> 0.09 | O27: =+DR_Frota!P313 -> 0.09
C28: 4 a 5 anos | D28: 4 | G28: DR_FROTA | H28: =+DR_Frota!I254 -> C254 | L28: =+DR_Frota!P254 -> 0.10625 | M28: =+DR_Frota!P274 -> 0.10625 | N28: =+DR_Frota!P294 -> 0.09 | O28: =+DR_Frota!P314 -> 0.09
C29: 5 a 6 anos | D29: 5 | G29: DR_FROTA | H29: =+DR_Frota!I255 -> C255 | L29: =+DR_Frota!P255 -> 0.10625 | M29: =+DR_Frota!P275 -> 0.10625 | N29: =+DR_Frota!P295 -> 0.09 | O29: =+DR_Frota!P315 -> 0.09
C30: 6 a 7 anos | D30: 6 | G30: DR_FROTA | H30: =+DR_Frota!I256 -> C256 | L30: =+DR_Frota!P256 -> 0.10625 | M30: =+DR_Frota!P276 -> 0.10625 | N30: =+DR_Frota!P296 -> 0.09 | O30: =+DR_Frota!P316 -> 0.09
C31: 7 a 8 anos | D31: 7 | G31: DR_FROTA | H31: =+DR_Frota!I257 -> C257 | L31: =+DR_Frota!P257 -> 0.10625 | M31: =+DR_Frota!P277 -> 0.10625 | N31: =+DR_Frota!P297 -> 0.09 | O31: =+DR_Frota!P317 -> 0.09
C32: 8 a 9 anos | D32: 8 | G32: DR_FROTA | H32: =+DR_Frota!I258 -> C258 | L32: =+DR_Frota!P258 -> 0 | M32: =+DR_Frota!P278 -> 0 | N32: =+DR_Frota!P298 -> 0.09 | O32: =+DR_Frota!P318 -> 0.09
C33: 9 a 10 anos | D33: 9 | G33: DR_FROTA | H33: =+DR_Frota!I259 -> C259 | L33: =+DR_Frota!P259 -> 0 | M33: =+DR_Frota!P279 -> 0 | N33: =+DR_Frota!P299 -> 0.09 | O33: =+DR_Frota!P319 -> 0.09
C34: 10 a 11 anos | D34: 10 | G34: DR_FROTA | H34: =+DR_Frota!I260 -> C260 | L34: =+DR_Frota!P260 -> 0 | M34: =+DR_Frota!P280 -> 0 | N34: =+DR_Frota!P300 -> 0 | O34: =+DR_Frota!P320 -> 0
C35: 11 a 12 anos | D35: 11 | G35: DR_FROTA | H35: =+DR_Frota!I261 -> C261 | L35: =+DR_Frota!P261 -> 0 | M35: =+DR_Frota!P281 -> 0 | N35: =+DR_Frota!P301 -> 0 | O35: =+DR_Frota!P321 -> 0
C36: 12 a 13 anos | D36: 12 | G36: DR_FROTA | H36: =+DR_Frota!I262 -> C262 | L36: =+DR_Frota!P262 -> 0 | M36: =+DR_Frota!P282 -> 0 | N36: =+DR_Frota!P302 -> 0 | O36: =+DR_Frota!P322 -> 0
C37: 13 a 14 anos | D37: 13 | G37: DR_FROTA | H37: =+DR_Frota!I263 -> C263 | L37: =+DR_Frota!P263 -> 0 | M37: =+DR_Frota!P283 -> 0 | N37: =+DR_Frota!P303 -> 0 | O37: =+DR_Frota!P323 -> 0
C38: 14 a 15 anos | D38: 14 | G38: DR_FROTA | H38: =+DR_Frota!I264 -> C264 | L38: =+DR_Frota!P264 -> 0 | M38: =+DR_Frota!P284 -> 0 | N38: =+DR_Frota!P304 -> 0 | O38: =+DR_Frota!P324 -> 0
C39: + de 15 anos | D39: 15 | G39: DR_FROTA | H39: =+DR_Frota!I265 -> C265 | L39: =+DR_Frota!P265 -> 0 | M39: =+DR_Frota!P285 -> 0 | N39: =+DR_Frota!P305 -> 0 | O39: =+DR_Frota!P325 -> 0
C40: TOTAL | H40: = | L40: =SUM(L24:L39) -> 0.85 | M40: =SUM(M24:M39) -> 0.85 | N40: =SUM(N24:N39) -> 0.9 | O40: =SUM(O24:O39) -> 0.9
B42: 202 | C42: Coeficiente Acumulado Inicio Ano | D42: Anos
C43: 0 a 1 ano | D43: 0 | H43: = | L43: =+L42+L23 -> 0 | M43: =+M42+M23 -> 0 | N43: 0 | O43: 0
C44: 1 a 2 anos | D44: =+D43+1 -> 1 | H44: = | L44: =+L43+L24 -> 0.10625 | M44: 0.10625 | N44: 0.09 | O44: 0.09
C45: 2 a 3 anos | D45: =+D44+1 -> 2 | H45: = | L45: 0.2125 | M45: 0.2125 | N45: 0.18 | O45: 0.18
C46: 3 a 4 anos | D46: 3 | H46: = | L46: 0.31875 | M46: 0.31875 | N46: 0.27 | O46: 0.27
C47: 4 a 5 anos | D47: 4 | H47: = | L47: 0.425 | M47: 0.425 | N47: 0.36 | O47: 0.36
C48: 5 a 6 anos | D48: 5 | H48: = | L48: 0.53125 | M48: 0.53125 | N48: 0.45 | O48: 0.45
C49: 6 a 7 anos | D49: 6 | H49: = | L49: 0.6375 | M49: 0.6375 | N49: 0.54 | O49: 0.54
C50: 7 a 8 anos | D50: 7 | H50: = | L50: 0.74375 | M50: 0.74375 | N50: 0.63 | O50: 0.63
C51: 8 a 9 anos | D51: 8 | H51: = | L51: 0.85 | M51: 0.85 | N51: 0.72 | O51: 0.72
C52: 9 a 10 anos | D52: 9 | H52: = | L52: 0.85 | M52: 0.85 | N52: 0.81 | O52: 0.81
C53: 10 a 11 anos | D53: 10 | H53: = | L53: 0.85 | M53: 0.85 | N53: 0.9 | O53: 0.9
C54: 11 a 12 anos | D54: 11 | H54: = | L54: 0.85 | M54: 0.85 | N54: 0.9 | O54: 0.9
C55: 12 a 13 anos | D55: 12 | H55: = | L55: 0.85 | M55: 0.85 | N55: 0.9 | O55: 0.9
C56: 13 a 14 anos | D56: 13 | H56: = | L56: 0.85 | M56: 0.85 | N56: 0.9 | O56: 0.9
C57: 14 a 15 anos | D57: 14 | H57: = | L57: 0.85 | M57: 0.85 | N57: 0.9 | O57: 0.9
C58: + de 15 anos | D58: 15 | H58: = | L58: 0.85 | M58: 0.85 | N58: 0.9 | O58: 0.9
B60: 202 | C60: Coeficiente Acumulado Final Ano | D60: Anos
C61: 0 a 1 ano | D61: 0 | H61: = | L61: =+L60+L24 -> 0.10625 | M61: =+M60+M24 -> 0.10625 | N61: =+N60+N24 -> 0.09 | O61: =+O60+O24 -> 0.09
C62: 1 a 2 anos | D62: =+D61+1 -> 1 | H62: = | L62: 0.2125 | M62: 0.2125 | N62: 0.18 | O62: 0.18
C63: 2 a 3 anos | D63: =+D62+1 -> 2 | H63: = | L63: 0.31875 | M63: 0.31875 | N63: 0.27 | O63: 0.27
C64: 3 a 4 anos | D64: 3 | H64: = | L64: 0.425 | M64: 0.425 | N64: 0.36 | O64: 0.36
C65: 4 a 5 anos | D65: 4 | H65: = | L65: 0.53125 | M65: 0.53125 | N65: 0.45 | O65: 0.45
C66: 5 a 6 anos | D66: 5 | H66: = | L66: 0.6375 | M66: 0.6375 | N66: 0.54 | O66: 0.54
C67: 6 a 7 anos | D67: 6 | H67: = | L67: 0.74375 | M67: 0.74375 | N67: 0.63 | O67: 0.63
C68: 7 a 8 anos | D68: 7 | H68: = | L68: 0.85 | M68: 0.85 | N68: 0.72 | O68: 0.72
C69: 8 a 9 anos | D69: 8 | H69: = | L69: 0.85 | M69: 0.85 | N69: 0.81 | O69: 0.81
C70: 9 a 10 anos | D70: 9 | H70: = | L70: 0.85 | M70: 0.85 | N70: 0.9 | O70: 0.9
C71: 10 a 11 anos | D71: 10 | H71: = | L71: 0.85 | M71: 0.85 | N71: 0.9 | O71: 0.9
C72: 11 a 12 anos | D72: 11 | H72: = | L72: 0.85 | M72: 0.85 | N72: 0.9 | O72: 0.9
C73: 12 a 13 anos | D73: 12 | H73: = | L73: 0.85 | M73: 0.85 | N73: 0.9 | O73: 0.9
C74: 13 a 14 anos | D74: 13 | H74: = | L74: 0.85 | M74: 0.85 | N74: 0.9 | O74: 0.9
C75: 14 a 15 anos | D75: 14 | H75: = | L75: 0.85 | M75: 0.85 | N75: 0.9 | O75: 0.9
C76: + de 15 anos | D76: 15 | H76: = | L76: 0.85 | M76: 0.85 | N76: 0.9 | O76: 0.9
B78: FROTA INICIAL | E78: 0 | L78: Micro Onibus | M78: Leve | N78: Pesado | O78: Articulado | P78: Total
B80: 302 | C80: Aquisição veiculos Ano | D80: Anos
B81: =+B80*100+E81 -> 30200 | C81: 0 a 1 ano | D81: 0 | E81: =+E78 -> 0 | H81: = | L81: =+L$15*L135 -> 0 | M81: 0 | N81: 0 | O81: 0 | P81: =SUM(L81:O81) -> 0
B82: =+B81 -> 30200 | C82: 1 a 2 anos | D82: =+D81+1 -> 1 | E82: =+E81 -> 0 | H82: = | L82: 0 | M82: 0 | N82: 0 | O82: 0 | P82: =SUM(L82:O82) -> 0
B83: =+B82 -> 30200 | C83: 2 a 3 anos | D83: =+D82+1 -> 2 | E83: =+E82 -> 0 | H83: = | L83: 0 | M83: 539591.64 | N83: 3535490.4 | O83: 0 | P83: 4075082.04
B84: 30200 | C84: 3 a 4 anos | D84: 3 | E84: 0 | H84: = | L84: 0 | M84: 809387.46 | N84: 3535490.4 | O84: 0 | P84: 4344877.86
B85: 30200 | C85: 4 a 5 anos | D85: 4 | E85: 0 | H85: = | L85: 0 | M85: 809387.46 | N85: 3535490.4 | O85: 347758.2 | P85: 4692636.06
B86: 30200 | C86: 5 a 6 anos | D86: 5 | E86: 0 | H86: = | L86: 0 | M86: 809387.46 | N86: 3535490.4 | O86: 0 | P86: 4344877.86
B87: 30200 | C87: 6 a 7 anos | D87: 6 | E87: 0 | H87: = | L87: 270708.94 | M87: 809387.46 | N87: 3535490.4 | O87: 0 | P87: 4615586.8
B88: 30200 | C88: 7 a 8 anos | D88: 7 | E88: 0 | H88: = | L88: 0 | M88: 0 | N88: 3535490.4 | O88: 0 | P88: 3535490.4
B89: 30200 | C89: 8 a 9 anos | D89: 8 | E89: 0 | H89: = | L89: 0 | M89: 0 | N89: 0 | O89: 0 | P89: 0
B90: 30200 | C90: 9 a 10 anos | D90: 9 | E90: 0 | H90: = | L90: 0 | M90: 0 | N90: 0 | O90: 0 | P90: 0
B91: 30200 | C91: 10 a 11 anos | D91: 10 | E91: 0 | H91: = | L91: 0 | M91: 0 | N91: 0 | O91: 0 | P91: 0
B92: 30200 | C92: 11 a 12 anos | D92: 11 | E92: 0 | H92: = | L92: 0 | M92: 0 | N92: 0 | O92: 0 | P92: 0
B93: 30200 | C93: 12 a 13 anos | D93: 12 | E93: 0 | H93: = | L93: 0 | M93: 0 | N93: 0 | O93: 0 | P93: 0
B94: 30200 | C94: 13 a 14 anos | D94: 13 | E94: 0 | H94: = | L94: 0 | M94: 0 | N94: 0 | O94: 0 | P94: 0
B95: 30200 | C95: 14 a 15 anos | D95: 14 | E95: 0 | H95: = | L95: 0 | M95: 0 | N95: 0 | O95: 0 | P95: 0
B96: 30200 | C96: + de 15 anos | D96: 15 | E96: 0 | H96: = | L96: 0 | M96: 0 | N96: 0 | O96: 0 | P96: 0
C97: TOTAL | H97: = | L97: =SUM(L81:L96) -> 270708.94 | M97: =SUM(M81:M96) -> 3777141.48 | N97: =SUM(N81:N96) -> 21212942.4 | O97: =SUM(O81:O96) -> 347758.2 | P97: =SUM(P81:P96) -> 25608551.02
B99: 303 | C99: Depreciação Acumulada Inicio do Ano | D99: Anos
B100: =+B99*100+E100 -> 30300 | C100: 0 a 1 ano | D100: 0 | E100: =+E96 -> 0 | H100: = | L100: =+L81*-L$43 -> 0 | M100: =+M81*-M43 -> 0 | N100: 0 | O100: 0 | P100: =SUM(L100:O100) -> 0
B101: =+B100 -> 30300 | C101: 1 a 2 anos | D101: =+D100+1 -> 1 | E101: =+E100 -> 0 | H101: = | L101: =+L82*-L$44 -> 0 | M101: 0 | N101: 0 | O101: 0 | P101: =SUM(L101:O101) -> 0
B102: =+B101 -> 30300 | C102: 2 a 3 anos | D102: =+D101+1 -> 2 | E102: =+E101 -> 0 | H102: = | L102: =+L83*-L$45 -> 0 | M102: -114663.2235 | N102: -636388.272 | O102: 0 | P102: -751051.4955
B103: 30300 | C103: 3 a 4 anos | D103: 3 | E103: 0 | H103: = | L103: =+L84*-L$46 -> 0 | M103: -257992.2529 | N103: -954582.408 | O103: 0 | P103: -1212574.661
B104: 30300 | C104: 4 a 5 anos | D104: 4 | E104: 0 | H104: = | L104: =+L85*-L$47 -> 0 | M104: -343989.6705 | N104: -1272776.544 | O104: -125192.952 | P104: -1741959.167
B105: 30300 | C105: 5 a 6 anos | D105: 5 | E105: 0 | H105: = | L105: =+L86*-L$48 -> 0 | M105: -429987.0881 | N105: -1590970.68 | O105: 0 | P105: -2020957.768
B106: 30300 | C106: 6 a 7 anos | D106: 6 | E106: 0 | H106: = | L106: =+L87*-L$49 -> -172576.9492 | M106: -515984.5057 | N106: -1909164.816 | O106: 0 | P106: -2597726.271
B107: 30300 | C107: 7 a 8 anos | D107: 7 | E107: 0 | H107: = | L107: =+L88*-L$50 -> 0 | M107: 0 | N107: -2227358.952 | O107: 0 | P107: -2227358.952
B108: 30300 | C108: 8 a 9 anos | D108: 8 | E108: 0 | H108: = | L108: =+L89*-L$51 -> 0 | M108: 0 | N108: 0 | O108: 0 | P108: 0
B109: 30300 | C109: 9 a 10 anos | D109: 9 | E109: 0 | H109: = | L109: =+L90*-L$52 -> 0 | M109: 0 | N109: 0 | O109: 0 | P109: 0
B110: 30300 | C110: 10 a 11 anos | D110: 10 | E110: 0 | H110: = | L110: =+L91*-L$53 -> 0 | M110: 0 | N110: 0 | O110: 0 | P110: 0
B111: 30300 | C111: 11 a 12 anos | D111: 11 | E111: 0 | H111: = | L111: =+L92*-L$54 -> 0 | M111: 0 | N111: 0 | O111: 0 | P111: 0
B112: 30300 | C112: 12 a 13 anos | D112: 12 | E112: 0 | H112: = | L112: =+L93*-L$55 -> 0 | M112: 0 | N112: 0 | O112: 0 | P112: 0
B113: 30300 | C113: 13 a 14 anos | D113: 13 | E113: 0 | H113: = | L113: =+L94*-L$56 -> 0 | M113: 0 | N113: 0 | O113: 0 | P113: 0
B114: 30300 | C114: 14 a 15 anos | D114: 14 | E114: 0 | H114: = | L114: =+L95*-L$57 -> 0 | M114: 0 | N114: 0 | O114: 0 | P114: 0
B115: 30300 | C115: + de 15 anos | D115: 15 | E115: 0 | H115: = | L115: =+L96*-L$58 -> 0 | M115: 0 | N115: 0 | O115: 0 | P115: 0
C116: TOTAL | H116: = | L116: =SUM(L100:L115) -> -172576.9492 | M116: =SUM(M100:M115) -> -1662616.741 | N116: =SUM(N100:N115) -> -8591241.672 | O116: =SUM(O100:O115) -> -125192.952 | P116: =SUM(P100:P115) -> -10551628.31
B118: 304 | C118: VALOR DA FROTA | E118: Ano
C119: Saldo inicial | E119: =+E115 -> 0 | L119: 0 | M119: 0 | N119: 0 | O119: 0 | P119: =SUM(L119:O119) -> 0
C120: Aquisições | E120: =+E119 -> 0 | L120: 0 | M120: 0 | N120: 0 | O120: 0 | P120: =SUM(L120:O120) -> 0
C121: Baixa | E121: =+E120 -> 0 | L121: 0 | M121: 0 | N121: 0 | O121: 0 | P121: =SUM(L121:O121) -> 0
C122: Saldo final | E122: 0 | L122: =+L97 -> 270708.94 | M122: =+M97 -> 3777141.48 | N122: =+N97 -> 21212942.4 | O122: =+O97 -> 347758.2 | P122: =SUM(L122:O122) -> 25608551.02
E123: 0
B124: 305 | C124: DEPRECIAÇÃO ACUMULADA | E124: 0
C125: Saldo inicial | E125: 0 | L125: =+L102 -> 0 | M125: =+M102 -> -114663.2235 | N125: =+N102 -> -636388.272 | O125: =+O102 -> 0 | P125: =SUM(L125:O125) -> -751051.4955
C126: Depreciação do Ano | E126: 0 | L126: =+L34 -> 0 | M126: 0 | N126: 0 | O126: 0 | P126: =SUM(L126:O126) -> 0
C127: Baixa Depreciação | E127: 0 | L127: 0 | M127: =+M124+M125+M126 -> -114663.2235 | N127: =+N124+N125+N126 -> -636388.272 | O127: =+O124+O125+O126 -> 0 | P127: =SUM(L127:O127) -> -751051.4955
C128: Saldo final da Depreciação | E128: 0 | L128: =+L116 -> -172576.9492 | M128: =+M116 -> -1662616.741 | N128: =+N116 -> -8591241.672 | O128: =+O116 -> -125192.952 | P128: =SUM(L128:O128) -> -10551628.31
E129: 0
B130: 306 | C130: VALOR LIQUIDO | E130: 0 | L130: =+L122+L128 -> 98131.99075 | M130: =+M122+M128 -> 2114524.739 | N130: =+N122+N128 -> 12621700.73 | O130: =+O122+O128 -> 222565.248 | P130: =SUM(L130:O130) -> 15056922.71
B132: FROTA DO ANO | E132: 1 | J132: =+E132*1000 -> 1000 | L132: Micro Onibus | M132: Leve | N132: Pesado | O132: Articulado | P132: Total
J133: =+J132+1 -> 1001
B134: 311 | C134: Distribuição da Frota por Ano | D134: Anos | E134: =+E132 -> 1 | J134: =+J133+1 -> 1002
B135: =+B134*100+E135 -> 31101 | C135: 0 a 1 ano | D135: 0 | E135: =+E134 -> 1 | G135: DR_FROTA | H135: =+DR_Frota!I17 -> C17 | J135: =+J134+1 -> 1003 | L135: =+DR_Frota!P17 -> 0 | M135: =+DR_Frota!P37 -> 0 | N135: =+DR_Frota!P57 -> 0 | O135: =+DR_Frota!P77 -> 0 | P135: =SUM(L135:O135) -> 0 | R135: =IF($D135>R$17-1,L135,0) -> 0 | S135: =IF($D135>S$17-1,M135,0) -> 0 | T135: =IF($D135>T$17-1,N135,0) -> 0 | U135: =IF($D135>U$17-1,O135,0) -> 0 | V135: =SUM(R135:U135) -> 0
B136: =+B135 -> 31101 | C136: 1 a 2 anos | D136: =+D135+1 -> 1 | E136: =+E135 -> 1 | G136: DR_FROTA | H136: =+DR_Frota!I18 -> C18 | J136: =+J135+1 -> 1004 | L136: =+DR_Frota!P18 -> 0 | M136: =+DR_Frota!P38 -> 0 | N136: =+DR_Frota!P58 -> 0 | O136: =+DR_Frota!P78 -> 0 | P136: =SUM(L136:O136) -> 0 | R136: 0 | S136: 0 | T136: 0 | U136: 0 | V136: =SUM(R136:U136) -> 0
B137: =+B136 -> 31101 | C137: 2 a 3 anos | D137: =+D136+1 -> 2 | E137: =+E136 -> 1 | G137: DR_FROTA | H137: =+DR_Frota!I19 -> C19 | J137: 1005 | L137: =+DR_Frota!P19 -> 0 | M137: =+DR_Frota!P39 -> 2 | N137: =+DR_Frota!P59 -> 12 | O137: =+DR_Frota!P79 -> 0 | P137: 14 | R137: 0 | S137: 0 | T137: 0 | U137: 0 | V137: 0
B138: 31101 | C138: 3 a 4 anos | D138: 3 | E138: 1 | G138: DR_FROTA | H138: =+DR_Frota!I20 -> C20 | J138: 1006 | L138: =+DR_Frota!P20 -> 0 | M138: =+DR_Frota!P40 -> 3 | N138: =+DR_Frota!P60 -> 12 | O138: =+DR_Frota!P80 -> 0 | P138: 15 | R138: 0 | S138: 0 | T138: 0 | U138: 0 | V138: 0
B139: 31101 | C139: 4 a 5 anos | D139: 4 | E139: 1 | G139: DR_FROTA | H139: =+DR_Frota!I21 -> C21 | J139: 1007 | L139: =+DR_Frota!P21 -> 0 | M139: =+DR_Frota!P41 -> 3 | N139: =+DR_Frota!P61 -> 12 | O139: =+DR_Frota!P81 -> 1 | P139: 16 | R139: 0 | S139: 0 | T139: 0 | U139: 0 | V139: 0
B140: 31101 | C140: 5 a 6 anos | D140: 5 | E140: 1 | G140: DR_FROTA | H140: =+DR_Frota!I22 -> C22 | J140: 1008 | L140: =+DR_Frota!P22 -> 0 | M140: =+DR_Frota!P42 -> 3 | N140: =+DR_Frota!P62 -> 12 | O140: =+DR_Frota!P82 -> 0 | P140: 15 | R140: 0 | S140: 0 | T140: 0 | U140: 0 | V140: 0
B141: 31101 | C141: 6 a 7 anos | D141: 6 | E141: 1 | G141: DR_FROTA | H141: =+DR_Frota!I23 -> C23 | J141: 1009 | L141: =+DR_Frota!P23 -> 1 | M141: =+DR_Frota!P43 -> 3 | N141: =+DR_Frota!P63 -> 12 | O141: =+DR_Frota!P83 -> 0 | P141: 16 | R141: 0 | S141: 0 | T141: 0 | U141: 0 | V141: 0
B142: 31101 | C142: 7 a 8 anos | D142: 7 | E142: 1 | G142: DR_FROTA | H142: =+DR_Frota!I24 -> C24 | J142: 1010 | L142: =+DR_Frota!P24 -> 0 | M142: =+DR_Frota!P44 -> 0 | N142: =+DR_Frota!P64 -> 12 | O142: =+DR_Frota!P84 -> 0 | P142: 12 | R142: 0 | S142: 0 | T142: 0 | U142: 0 | V142: 0
B143: 31101 | C143: 8 a 9 anos | D143: 8 | E143: 1 | G143: DR_FROTA | H143: =+DR_Frota!I25 -> C25 | J143: 1011 | L143: =+DR_Frota!P25 -> 0 | M143: =+DR_Frota!P45 -> 0 | N143: =+DR_Frota!P65 -> 0 | O143: =+DR_Frota!P85 -> 0 | P143: 0 | R143: 0 | S143: 0 | T143: 0 | U143: 0 | V143: 0
B144: 31101 | C144: 9 a 10 anos | D144: 9 | E144: 1 | G144: DR_FROTA | H144: =+DR_Frota!I26 -> C26 | J144: 1012 | L144: =+DR_Frota!P26 -> 0 | M144: =+DR_Frota!P46 -> 0 | N144: =+DR_Frota!P66 -> 0 | O144: =+DR_Frota!P86 -> 0 | P144: 0 | R144: 0 | S144: 0 | T144: 0 | U144: 0 | V144: 0
B145: 31101 | C145: 10 a 11 anos | D145: 10 | E145: 1 | G145: DR_FROTA | H145: =+DR_Frota!I27 -> C27 | J145: 1013 | L145: =+DR_Frota!P27 -> 0 | M145: =+DR_Frota!P47 -> 0 | N145: =+DR_Frota!P67 -> 0 | O145: =+DR_Frota!P87 -> 0 | P145: 0 | R145: 0 | S145: 0 | T145: 0 | U145: 0 | V145: 0
B146: 31101 | C146: 11 a 12 anos | D146: 11 | E146: 1 | G146: DR_FROTA | H146: =+DR_Frota!I28 -> C28 | J146: 1014 | L146: =+DR_Frota!P28 -> 0 | M146: =+DR_Frota!P48 -> 0 | N146: =+DR_Frota!P68 -> 0 | O146: =+DR_Frota!P88 -> 0 | P146: 0 | R146: 0 | S146: 0 | T146: 0 | U146: 0 | V146: 0
B147: 31101 | C147: 12 a 13 anos | D147: 12 | E147: 1 | G147: DR_FROTA | H147: =+DR_Frota!I29 -> C29 | J147: 1015 | L147: =+DR_Frota!P29 -> 0 | M147: =+DR_Frota!P49 -> 0 | N147: =+DR_Frota!P69 -> 0 | O147: =+DR_Frota!P89 -> 0 | P147: 0 | R147: 0 | S147: 0 | T147: 0 | U147: 0 | V147: 0
B148: 31101 | C148: 13 a 14 anos | D148: 13 | E148: 1 | G148: DR_FROTA | H148: =+DR_Frota!I30 -> C30 | J148: 1016 | L148: =+DR_Frota!P30 -> 0 | M148: =+DR_Frota!P50 -> 0 | N148: =+DR_Frota!P70 -> 0 | O148: =+DR_Frota!P90 -> 0 | P148: 0 | R148: 0 | S148: 0 | T148: 0 | U148: 0 | V148: 0
B149: 31101 | C149: 14 a 15 anos | D149: 14 | E149: 1 | G149: DR_FROTA | H149: =+DR_Frota!I31 -> C31 | J149: 1017 | L149: =+DR_Frota!P31 -> 0 | M149: =+DR_Frota!P51 -> 0 | N149: =+DR_Frota!P71 -> 0 | O149: =+DR_Frota!P91 -> 0 | P149: 0 | R149: 0 | S149: 0 | T149: 0 | U149: 0 | V149: 0
B150: 31101 | C150: + de 15 anos | D150: 15 | E150: 1 | G150: DR_FROTA | H150: =+DR_Frota!I32 -> C32 | J150: 1018 | L150: =+DR_Frota!P32 -> 0 | M150: =+DR_Frota!P52 -> 0 | N150: =+DR_Frota!P72 -> 0 | O150: =+DR_Frota!P92 -> 0 | P150: 0 | R150: 0 | S150: 0 | T150: 0 | U150: 0 | V150: 0
C151: TOTAL | H151: = | J151: 1019 | L151: =SUM(L135:L150) -> 1 | M151: =SUM(M135:M150) -> 14 | N151: =SUM(N135:N150) -> 72 | O151: =SUM(O135:O150) -> 1 | P151: =SUM(L151:O151) -> 88 | R151: =SUM(R135:R150) -> 0 | S151: =SUM(S135:S150) -> 0 | T151: =SUM(T135:T150) -> 0 | U151: =SUM(U135:U150) -> 0 | V151: 0
C152: Idade Total dos Veiculos (anos) | G152: Produto = Quantidade x Ano | H152: = | J152: 1020 | L152: =SUMPRODUCT($D135:$D150,L135:L150) -> 6 | M152: =SUMPRODUCT($D135:$D150,M135:M150) -> 58 | N152: =SUMPRODUCT($D135:$D150,N135:N150) -> 324 | O152: =SUMPRODUCT($D135:$D150,O135:O150) -> 4 | P152: =SUM(L152:O152) -> 392
C153: Idade Média dos Veiculos (anos) | H153: = | J153: 1021 | L153: =+L152/L151 -> 6 | M153: =+M152/M151 -> 4.142857143 | N153: =+N152/N151 -> 4.5 | O153: =+O152/O151 -> 4 | P153: =+P152/P151 -> 4.454545455
J154: 1022
B155: 312 | C155: Valor da Frota | D155: Anos | J155: 1023
B156: =+B155*100+E156 -> 31201 | C156: 0 a 1 ano | D156: 0 | E156: =+E150 -> 1 | H156: = | J156: 1024 | L156: =+L$15*L135 -> 0 | M156: 0 | N156: 0 | O156: 0 | P156: =SUM(L156:O156) -> 0
B157: =+B156 -> 31201 | C157: 1 a 2 anos | D157: =+D156+1 -> 1 | E157: =+E156 -> 1 | H157: = | J157: 1025 | L157: 0 | M157: 0 | N157: 0 | O157: 0 | P157: =SUM(L157:O157) -> 0
B158: =+B157 -> 31201 | C158: 2 a 3 anos | D158: =+D157+1 -> 2 | E158: =+E157 -> 1 | H158: = | J158: 1026 | L158: =+L$15*L137 -> 0 | M158: 539591.64 | N158: 3535490.4 | O158: 0 | P158: =SUM(L158:O158) -> 4075082.04
B159: 31201 | C159: 3 a 4 anos | D159: 3 | E159: 1 | H159: = | J159: 1027 | L159: 0 | M159: 809387.46 | N159: 3535490.4 | O159: 0 | P159: 4344877.86
B160: 31201 | C160: 4 a 5 anos | D160: 4 | E160: 1 | H160: = | J160: 1028 | L160: 0 | M160: 809387.46 | N160: 3535490.4 | O160: 347758.2 | P160: 4692636.06
B161: 31201 | C161: 5 a 6 anos | D161: 5 | E161: 1 | H161: = | J161: 1029 | L161: 0 | M161: 809387.46 | N161: 3535490.4 | O161: 0 | P161: 4344877.86
B162: 31201 | C162: 6 a 7 anos | D162: 6 | E162: 1 | H162: = | J162: 1030 | L162: 270708.94 | M162: 809387.46 | N162: 3535490.4 | O162: 0 | P162: 4615586.8
B163: 31201 | C163: 7 a 8 anos | D163: 7 | E163: 1 | H163: = | J163: 1031 | L163: 0 | M163: 0 | N163: 3535490.4 | O163: 0 | P163: 3535490.4
B164: 31201 | C164: 8 a 9 anos | D164: 8 | E164: 1 | H164: = | J164: 1032 | L164: 0 | M164: 0 | N164: 0 | O164: 0 | P164: 0
B165: 31201 | C165: 9 a 10 anos | D165: 9 | E165: 1 | H165: = | J165: 1033 | L165: 0 | M165: 0 | N165: 0 | O165: 0 | P165: 0
B166: 31201 | C166: 10 a 11 anos | D166: 10 | E166: 1 | H166: = | J166: 1034 | L166: 0 | M166: 0 | N166: 0 | O166: 0 | P166: 0
B167: 31201 | C167: 11 a 12 anos | D167: 11 | E167: 1 | H167: = | J167: 1035 | L167: 0 | M167: 0 | N167: 0 | O167: 0 | P167: 0
B168: 31201 | C168: 12 a 13 anos | D168: 12 | E168: 1 | H168: = | J168: 1036 | L168: 0 | M168: 0 | N168: 0 | O168: 0 | P168: 0
B169: 31201 | C169: 13 a 14 anos | D169: 13 | E169: 1 | H169: = | J169: 1037 | L169: 0 | M169: 0 | N169: 0 | O169: 0 | P169: 0
B170: 31201 | C170: 14 a 15 anos | D170: 14 | E170: 1 | H170: = | J170: 1038 | L170: 0 | M170: 0 | N170: 0 | O170: 0 | P170: 0
B171: 31201 | C171: + de 15 anos | D171: 15 | E171: 1 | H171: = | J171: 1039 | L171: 0 | M171: 0 | N171: 0 | O171: 0 | P171: 0
C172: TOTAL | H172: = | J172: 1040 | L172: =SUM(L156:L171) -> 270708.94 | M172: =SUM(M156:M171) -> 3777141.48 | N172: =SUM(N156:N171) -> 21212942.4 | O172: =SUM(O156:O171) -> 347758.2 | P172: =SUM(P156:P171) -> 25608551.02
J173: 1041
B174: 313 | C174: Depreciação do Ano | D174: Anos | J174: 1042
B175: =+B174*100+E175 -> 31301 | C175: 0 a 1 ano | D175: 0 | E175: =+E169 -> 1 | H175: = | J175: 1043 | L175: =+L156*-L$24 -> 0 | M175: =+M156*-M$24 -> 0 | N175: =+N156*-N$24 -> 0 | O175: =+O156*-O$24 -> 0 | P175: =SUM(L175:O175) -> 0
B176: =+B175 -> 31301 | C176: 1 a 2 anos | D176: =+D175+1 -> 1 | E176: =+E175 -> 1 | H176: = | J176: 1044 | L176: =+L157*-L$25 -> 0 | M176: =+M157*-M$25 -> 0 | N176: =+N157*-N$25 -> 0 | O176: =+O157*-O$25 -> 0 | P176: =SUM(L176:O176) -> 0
B177: =+B176 -> 31301 | C177: 2 a 3 anos | D177: =+D176+1 -> 2 | E177: =+E176 -> 1 | H177: = | J177: 1045 | L177: =+L158*-L$26 -> 0 | M177: =+M158*-M$26 -> -57331.61175 | N177: =+N158*-N$26 -> -318194.136 | O177: =+O158*-O$26 -> 0 | P177: -375525.7478
B178: 31301 | C178: 3 a 4 anos | D178: 3 | E178: 1 | H178: = | J178: 1046 | L178: =+L159*-L$27 -> 0 | M178: =+M159*-M$27 -> -85997.41762 | N178: =+N159*-N$27 -> -318194.136 | O178: =+O159*-O$27 -> 0 | P178: -404191.5536
B179: 31301 | C179: 4 a 5 anos | D179: 4 | E179: 1 | H179: = | J179: 1047 | L179: =+L160*-L$28 -> 0 | M179: =+M160*-M$28 -> -85997.41762 | N179: =+N160*-N$28 -> -318194.136 | O179: =+O160*-O$28 -> -31298.238 | P179: -435489.7916
B180: 31301 | C180: 5 a 6 anos | D180: 5 | E180: 1 | H180: = | J180: 1048 | L180: =+L161*-L$29 -> 0 | M180: =+M161*-M$29 -> -85997.41762 | N180: =+N161*-N$29 -> -318194.136 | O180: =+O161*-O$29 -> 0 | P180: -404191.5536
B181: 31301 | C181: 6 a 7 anos | D181: 6 | E181: 1 | H181: = | J181: 1049 | L181: =+L162*-L$30 -> -28762.82487 | M181: =+M162*-M$30 -> -85997.41762 | N181: =+N162*-N$30 -> -318194.136 | O181: =+O162*-O$30 -> 0 | P181: -432954.3785
B182: 31301 | C182: 7 a 8 anos | D182: 7 | E182: 1 | H182: = | J182: 1050 | L182: =+L163*-L$31 -> 0 | M182: =+M163*-M$31 -> 0 | N182: =+N163*-N$31 -> -318194.136 | O182: =+O163*-O$31 -> 0 | P182: -318194.136
B183: 31301 | C183: 8 a 9 anos | D183: 8 | E183: 1 | H183: = | J183: 1051 | L183: =+L164*-L$32 -> 0 | M183: =+M164*-M$32 -> 0 | N183: =+N164*-N$32 -> 0 | O183: =+O164*-O$32 -> 0 | P183: 0
B184: 31301 | C184: 9 a 10 anos | D184: 9 | E184: 1 | H184: = | J184: 1052 | L184: =+L165*-L$33 -> 0 | M184: =+M165*-M$33 -> 0 | N184: =+N165*-N$33 -> 0 | O184: =+O165*-O$33 -> 0 | P184: 0
B185: 31301 | C185: 10 a 11 anos | D185: 10 | E185: 1 | H185: = | J185: 1053 | L185: =+L166*-L$34 -> 0 | M185: =+M166*-M$34 -> 0 | N185: =+N166*-N$34 -> 0 | O185: =+O166*-O$34 -> 0 | P185: 0
B186: 31301 | C186: 11 a 12 anos | D186: 11 | E186: 1 | H186: = | J186: 1054 | L186: =+L167*-L$35 -> 0 | M186: =+M167*-M$35 -> 0 | N186: =+N167*-N$35 -> 0 | O186: =+O167*-O$35 -> 0 | P186: 0
B187: 31301 | C187: 12 a 13 anos | D187: 12 | E187: 1 | H187: = | J187: 1055 | L187: =+L168*-L$36 -> 0 | M187: =+M168*-M$36 -> 0 | N187: =+N168*-N$36 -> 0 | O187: =+O168*-O$36 -> 0 | P187: 0
B188: 31301 | C188: 13 a 14 anos | D188: 13 | E188: 1 | H188: = | J188: 1056 | L188: =+L169*-L$37 -> 0 | M188: =+M169*-M$37 -> 0 | N188: =+N169*-N$37 -> 0 | O188: =+O169*-O$37 -> 0 | P188: 0
B189: 31301 | C189: 14 a 15 anos | D189: 14 | E189: 1 | H189: = | J189: 1057 | L189: =+L170*-L$38 -> 0 | M189: =+M170*-M$38 -> 0 | N189: =+N170*-N$38 -> 0 | O189: =+O170*-O$38 -> 0 | P189: 0
B190: 31301 | C190: + de 15 anos | D190: 15 | E190: 1 | H190: = | J190: 1058 | L190: =+L171*-L$39 -> 0 | M190: =+M171*-M$39 -> 0 | N190: =+N171*-N$39 -> 0 | O190: =+O171*-O$39 -> 0 | P190: 0
C191: TOTAL | H191: = | J191: 1059 | L191: =SUM(L175:L190) -> -28762.82487 | M191: =SUM(M175:M190) -> -401321.2822 | N191: =SUM(N175:N190) -> -1909164.816 | O191: =SUM(O175:O190) -> -31298.238 | P191: =SUM(P175:P190) -> -2370547.161
J192: 1060
B193: 314 | C193: Depreciação Acumulada | D193: Anos | J193: 1061
B194: =+B193*100+E194 -> 31401 | C194: 0 a 1 ano | D194: 0 | E194: =+E171 -> 1 | H194: = | J194: 1062 | L194: =+L156*-L$61 -> 0 | M194: =+M156*-M$61 -> 0 | N194: =+N156*-N$61 -> 0 | O194: =+O156*-O$61 -> 0 | P194: =SUM(L194:O194) -> 0
B195: =+B194 -> 31401 | C195: 1 a 2 anos | D195: =+D194+1 -> 1 | E195: =+E194 -> 1 | H195: = | J195: 1063 | L195: =+L157*-L$62 -> 0 | M195: =+M157*-M$62 -> 0 | N195: =+N157*-N$62 -> 0 | O195: =+O157*-O$62 -> 0 | P195: =SUM(L195:O195) -> 0
B196: =+B195 -> 31401 | C196: 2 a 3 anos | D196: =+D195+1 -> 2 | E196: =+E195 -> 1 | H196: = | J196: 1064 | L196: =+L158*-L$63 -> 0 | M196: =+M158*-M$63 -> -171994.8353 | N196: =+N158*-N$63 -> -954582.408 | O196: =+O158*-O$63 -> 0 | P196: -1126577.243
B197: 31401 | C197: 3 a 4 anos | D197: 3 | E197: 1 | H197: = | J197: 1065 | L197: =+L159*-L$64 -> 0 | M197: =+M159*-M$64 -> -343989.6705 | N197: =+N159*-N$64 -> -1272776.544 | O197: =+O159*-O$64 -> 0 | P197: -1616766.215
B198: 31401 | C198: 4 a 5 anos | D198: 4 | E198: 1 | H198: = | J198: 1066 | L198: =+L160*-L$65 -> 0 | M198: =+M160*-M$65 -> -429987.0881 | N198: =+N160*-N$65 -> -1590970.68 | O198: =+O160*-O$65 -> -156491.19 | P198: -2177448.958
B199: 31401 | C199: 5 a 6 anos | D199: 5 | E199: 1 | H199: = | J199: 1067 | L199: =+L161*-L$66 -> 0 | M199: =+M161*-M$66 -> -515984.5057 | N199: =+N161*-N$66 -> -1909164.816 | O199: =+O161*-O$66 -> 0 | P199: -2425149.322
B200: 31401 | C200: 6 a 7 anos | D200: 6 | E200: 1 | H200: = | J200: =+J199+1 -> 1068 | L200: =+L162*-L$67 -> -201339.7741 | M200: =+M162*-M$67 -> -601981.9234 | N200: =+N162*-N$67 -> -2227358.952 | O200: =+O162*-O$67 -> 0 | P200: -3030680.65
B201: 31401 | C201: 7 a 8 anos | D201: 7 | E201: 1 | H201: = | J201: 1069 | L201: =+L163*-L$68 -> 0 | M201: =+M163*-M$68 -> 0 | N201: =+N163*-N$68 -> -2545553.088 | O201: =+O163*-O$68 -> 0 | P201: -2545553.088
B202: 31401 | C202: 8 a 9 anos | D202: 8 | E202: 1 | H202: = | J202: 1070 | L202: =+L164*-L$69 -> 0 | M202: =+M164*-M$69 -> 0 | N202: =+N164*-N$69 -> 0 | O202: =+O164*-O$69 -> 0 | P202: 0
B203: 31401 | C203: 9 a 10 anos | D203: 9 | E203: 1 | H203: = | J203: 1071 | L203: =+L165*-L$70 -> 0 | M203: =+M165*-M$70 -> 0 | N203: =+N165*-N$70 -> 0 | O203: =+O165*-O$70 -> 0 | P203: 0
B204: 31401 | C204: 10 a 11 anos | D204: 10 | E204: 1 | H204: = | J204: 1072 | L204: =+L166*-L$71 -> 0 | M204: =+M166*-M$71 -> 0 | N204: =+N166*-N$71 -> 0 | O204: =+O166*-O$71 -> 0 | P204: 0
B205: 31401 | C205: 11 a 12 anos | D205: 11 | E205: 1 | H205: = | J205: 1073 | L205: =+L167*-L$72 -> 0 | M205: =+M167*-M$72 -> 0 | N205: =+N167*-N$72 -> 0 | O205: =+O167*-O$72 -> 0 | P205: 0
B206: 31401 | C206: 12 a 13 anos | D206: 12 | E206: 1 | H206: = | J206: 1074 | L206: =+L168*-L$73 -> 0 | M206: =+M168*-M$73 -> 0 | N206: =+N168*-N$73 -> 0 | O206: =+O168*-O$73 -> 0 | P206: 0
B207: 31401 | C207: 13 a 14 anos | D207: 13 | E207: 1 | H207: = | J207: 1075 | L207: =+L169*-L$74 -> 0 | M207: =+M169*-M$74 -> 0 | N207: =+N169*-N$74 -> 0 | O207: =+O169*-O$74 -> 0 | P207: 0
B208: 31401 | C208: 14 a 15 anos | D208: 14 | E208: 1 | H208: = | J208: 1076 | L208: =+L170*-L$75 -> 0 | M208: =+M170*-M$75 -> 0 | N208: =+N170*-N$75 -> 0 | O208: =+O170*-O$75 -> 0 | P208: 0
B209: 31401 | C209: + de 15 anos | D209: 15 | E209: 1 | H209: = | J209: 1077 | L209: =+L171*-L$76 -> 0 | M209: =+M171*-M$76 -> 0 | N209: =+N171*-N$76 -> 0 | O209: =+O171*-O$76 -> 0 | P209: 0
C210: TOTAL | H210: = | J210: 1078 | L210: =SUM(L194:L209) -> -201339.7741 | M210: =SUM(M194:M209) -> -2063938.023 | N210: =SUM(N194:N209) -> -10500406.49 | O210: =SUM(O194:O209) -> -156491.19 | P210: =SUM(P194:P209) -> -12922175.48
J211: 1079
B212: 315 | C212: VALOR DA FROTA | E212: Ano | J212: 1080
B213: =+B212*100+E213 -> 31501 | C213: Saldo inicial | E213: =+E209 -> 1 | J213: 1081 | L213: =+L122 -> 270708.94 | M213: =+M122 -> 3777141.48 | N213: =+N122 -> 21212942.4 | O213: =+O122 -> 347758.2 | P213: =SUM(L213:O213) -> 25608551.02
B214: =+B213 -> 31501 | C214: Aquisições | E214: =+E213 -> 1 | J214: 1082 | L214: 0 | M214: 0 | N214: 0 | O214: 0 | P214: =SUM(L214:O214) -> 0
B215: =+B214 -> 31501 | C215: Baixa | E215: =+E214 -> 1 | J215: 1083 | L215: =-L213-L214+L216 -> 0 | M215: =-M213-M214+M216 -> 0 | N215: =-N213-N214+N216 -> 0 | O215: =-O213-O214+O216 -> 0 | P215: =SUM(L215:O215) -> 0
B216: =+B215 -> 31501 | C216: Saldo final | E216: 1 | J216: 1084 | L216: =+L172 -> 270708.94 | M216: =+M172 -> 3777141.48 | N216: =+N172 -> 21212942.4 | O216: =+O172 -> 347758.2 | P216: =SUM(L216:O216) -> 25608551.02
... 1962 more rows

Sheet Fx_caixa
C2: Fluxo_Caixa | K2: =+AE119 -> 0
A3: pedro milton golfe | C3: =+Titulo_01 -> PREFEITURA MUNICIPAL DE CHAPECO
A4: pedro milton golfe | C4: =+Titulo_02 -> CONTROLADORIA GERAL DO MUNICÍPIO
A5: pedro milton golfe | C5: =+Titulo_03 -> SISTEMA DE TRANSPORTE PÚBLICO DE PASSAGEIROS
C6: RESULTADO ECONOMICO E FLUXO DE CAIXA
C7: =CONCATENATE(+Cenario!$D$10," - ",+Cenario!$E$18) -> Cenário - Prefeitura Chapecó - Base Edital - base 10/17 - PROPOSTA | G7: =+Apura!$Z$11 -> Cenário 02 | K7: Tarifa base | L7: =IF(Esc_tarifa_base=1,"Antecipado","Embarcado") -> Embarcado
C9: ITEM | D9: DISCRIMINAÇÃO | G9: REFERÊNCIA | K9: 2018 | L9: =+K9+1 -> 2019 | M9: 2020 | N9: 2021 | O9: 2022 | P9: 2023 | Q9: 2024 | R9: 2025 | S9: 2026 | T9: 2027 | U9: 2028 | V9: 2029 | W9: 2030 | X9: =+W9+1 -> 2031 | Y9: =+X9+1 -> 2032 | Z9: 2033 | AA9: 2034 | AB9: =+AA9+1 -> 2035 | AC9: 2036 | AD9: 2037 | AE9: TOTAL
K10: 1 | L10: =+K10+1 -> 2 | M10: 3 | N10: 4 | O10: 5 | P10: 6 | Q10: 7 | R10: 8 | S10: 9 | T10: 10 | U10: 11 | V10: 12 | W10: 13 | X10: =+W10+1 -> 14 | Y10: =+X10+1 -> 15 | Z10: 16 | AA10: 17 | AB10: =+AA10+1 -> 18 | AC10: 19 | AD10: 20
B11: DRE | C11: RESULTADO ECONÔMICO
B12: DRE
B13: DRE | C13: 100 | D13: RECEITAS | G13: =CONCATENATE(I15," + ",I22) -> X15 + X22 | I13: =CONCATENATE("X",ROW()) -> X13 | K13: =+K15+K22 -> 29167152 | L13: =+L15+L22 -> 29167152 | M13: 29167152 | N13: 29167152 | O13: 29167152 | P13: 29167152 | Q13: 29167152 | R13: 29167152 | S13: 29167152 | T13: 29167152 | U13: 29167152 | V13: 29167152 | W13: 29167152 | X13: 29167152 | Y13: 29167152 | Z13: 29167152 | AA13: 29167152 | AB13: 29167152 | AC13: 29167152 | AD13: 29167152 | AE13: 583343040
B14: DRE | I14: X14
B15: DRE | C15: 101 | D15: Receita de Tarifa | G15: =CONCATENATE(I17," x ",I20) -> X17 x X20 | I15: X15 | K15: =+K17*K20 -> 29061552 | L15: =+L17*L20 -> 29061552 | M15: 29061552 | N15: 29061552 | O15: 29061552 | P15: 29061552 | Q15: 29061552 | R15: 29061552 | S15: 29061552 | T15: 29061552 | U15: 29061552 | V15: 29061552 | W15: 29061552 | X15: 29061552 | Y15: 29061552 | Z15: 29061552 | AA15: 29061552 | AB15: 29061552 | AC15: 29061552 | AD15: 29061552 | AE15: =SUM(K15:AD15) -> 581231040
B16: DRE | I16: X16
B17: DRE | D17: Número de Passageiros Equivalentes | E17: A | I17: X17 | K17: =+K18*12 -> 8942016 | L17: =+K17 -> 8942016 | M17: =+L17 -> 8942016 | N17: 8942016 | O17: 8942016 | P17: 8942016 | Q17: 8942016 | R17: 8942016 | S17: 8942016 | T17: 8942016 | U17: 8942016 | V17: 8942016 | W17: 8942016 | X17: =+W17 -> 8942016 | Y17: =+X17 -> 8942016 | Z17: 8942016 | AA17: 8942016 | AB17: =+AA17 -> 8942016 | AC17: 8942016 | AD17: 8942016 | AE17: =SUM(K17:AD17) -> 178840320
B18: DRE | D18: Número de Passageiros Equivalentes | E18: M | G18: TARIFA | H18: =+Tarifa!I84 -> T84 | I18: X18 | K18: =+Tarifa!P84 -> 745168
B19: DRE | I19: =CONCATENATE("X",ROW()) -> X19
B20: DRE | D20: Nova Tarifa | G20: TARIFA | H20: =+Tarifa!I44 -> T44 | I20: X20 | K20: =+Tarifa!P44 -> 3.25 | L20: =+K20 -> 3.25 | M20: =+L20 -> 3.25 | N20: =+M20 -> 3.25 | O20: =+N20 -> 3.25 | P20: 3.25 | Q20: 3.25 | R20: 3.25 | S20: 3.25 | T20: 3.25 | U20: 3.25 | V20: 3.25 | W20: 3.25 | X20: =+W20 -> 3.25 | Y20: =+X20 -> 3.25 | Z20: 3.25 | AA20: 3.25 | AB20: =+AA20 -> 3.25 | AC20: 3.25 | AD20: =+AC20 -> 3.25
B21: DRE | I21: X21
B22: DRE | C22: 102 | D22: Receitas Complementares | G22: APURA x 12 | H22: =+Apura!I294 -> A294 | I22: X22 | K22: =-Apura!AB294*12 -> 105600 | L22: =+$K22 -> 105600 | M22: =+$K22 -> 105600 | N22: =+$K22 -> 105600 | O22: 105600 | P22: 105600 | Q22: 105600 | R22: 105600 | S22: 105600 | T22: 105600 | U22: 105600 | V22: 105600 | W22: 105600 | X22: 105600 | Y22: 105600 | Z22: 105600 | AA22: 105600 | AB22: 105600 | AC22: 105600 | AD22: 105600 | AE22: =SUM(K22:AD22) -> 2112000
B23: DRE | I23: X23
B24: DRE | C24: 200 | D24: IMPOSTOS SOBRE VENDA | G24: =CONCATENATE(" + ",I28) -> + X28 | I24: X24 | K24: =+K28 -> -1458357.6 | L24: =+L28 -> -1458357.6 | M24: -1458357.6 | N24: -1458357.6 | O24: -1458357.6 | P24: -1458357.6 | Q24: -1458357.6 | R24: -1458357.6 | S24: -1458357.6 | T24: -1458357.6 | U24: -1458357.6 | V24: -1458357.6 | W24: -1458357.6 | X24: -1458357.6 | Y24: -1458357.6 | Z24: -1458357.6 | AA24: -1458357.6 | AB24: -1458357.6 | AC24: -1458357.6 | AD24: -1458357.6 | AE24: -29167152
B25: DRE | I25: X25
B26: DRE | C26: 201 | D26: Impostos sobre Vendas | I26: X26
B27: DRE | D27: % de Pis/Cofins ISS e CPRB | G27: Consumo | H27: =+Consumo!I397 -> B397 | I27: X27 | K27: =+Apura!AB323 -> 0.05 | L27: =+K27 -> 0.05 | M27: =+L27 -> 0.05 | N27: 0.05 | O27: 0.05 | P27: 0.05 | Q27: 0.05 | R27: 0.05 | S27: 0.05 | T27: 0.05 | U27: 0.05 | V27: 0.05 | W27: 0.05 | X27: =+W27 -> 0.05 | Y27: =+X27 -> 0.05 | Z27: 0.05 | AA27: 0.05 | AB27: =+AA27 -> 0.05 | AC27: 0.05 | AD27: 0.05
B28: DRE | D28: Valor de Pis/Cofins ISS e CPRB | I28: X28 | K28: =-K13*K27 -> -1458357.6 | L28: =-L13*L27 -> -1458357.6 | M28: -1458357.6 | N28: -1458357.6 | O28: -1458357.6 | P28: -1458357.6 | Q28: -1458357.6 | R28: -1458357.6 | S28: -1458357.6 | T28: -1458357.6 | U28: -1458357.6 | V28: -1458357.6 | W28: -1458357.6 | X28: -1458357.6 | Y28: -1458357.6 | Z28: -1458357.6 | AA28: -1458357.6 | AB28: -1458357.6 | AC28: -1458357.6 | AD28: -1458357.6 | AE28: =SUM(K28:AD28) -> -29167152
B29: DRE | I29: X29
B30: DRE | C30: 300 | D30: CUSTOS | G30: =CONCATENATE("Soma de ",I36,"..",I38) -> Soma de X36..X38 | I30: X30 | K30: =SUM(K36:K38) -> -21324501.78 | L30: =SUM(L36:L38) -> -21324501.78 | M30: =SUM(M36:M38) -> -21324501.78 | N30: -21324501.78 | O30: -21324501.78 | P30: -21324501.78 | Q30: -21324501.78 | R30: -21324501.78 | S30: -21324501.78 | T30: -21324501.78 | U30: -21324501.78 | V30: -21324501.78 | W30: -21324501.78 | X30: -21324501.78 | Y30: -21324501.78 | Z30: -21324501.78 | AA30: -21324501.78 | AB30: -21324501.78 | AC30: -21324501.78 | AD30: -21324501.78 | AE30: =SUM(K30:AD30) -> -426490035.6
B31: DRE | I31: X31
B32: DRE | C32: 301 | D32: Gastos Variáveis | E32: M | G32: APURA | H32: =+Apura!I302 -> A302 | I32: X32 | K32: =-Apura!AB302 -> -762628.446
B33: DRE | C33: 302 | D33: Custo com Pessoal | E33: M | G33: APURA | H33: =+Apura!I308 -> A308 | I33: X33 | K33: =-Apura!AB308 -> -877394.949
B34: DRE | C34: 303 | D34: Despesass Administrativas | E34: M | G34: APURA | H34: =+Apura!I312 -> A312 | I34: X34 | K34: =-Apura!AB312 -> -137018.42
B35: DRE | I35: X35
B36: DRE | C36: 304 | D36: Gastos Variáveis | E36: A | G36: =CONCATENATE(I32," x 12") -> X32 x 12 | I36: X36 | K36: =+K32*12 -> -9151541.352 | L36: =+K36 -> -9151541.352 | M36: =+L36 -> -9151541.352 | N36: -9151541.352 | O36: -9151541.352 | P36: -9151541.352 | Q36: -9151541.352 | R36: -9151541.352 | S36: -9151541.352 | T36: -9151541.352 | U36: -9151541.352 | V36: -9151541.352 | W36: -9151541.352 | X36: =+W36 -> -9151541.352 | Y36: -9151541.352 | Z36: -9151541.352 | AA36: -9151541.352 | AB36: =+AA36 -> -9151541.352 | AC36: -9151541.352 | AD36: -9151541.352
B37: DRE | C37: 305 | D37: Custo com Pessoal | E37: A | G37: =CONCATENATE(I33," x 12") -> X33 x 12 | I37: X37 | K37: =+K33*12 -> -10528739.39 | L37: =+K37 -> -10528739.39 | M37: =+L37 -> -10528739.39 | N37: -10528739.39 | O37: -10528739.39 | P37: -10528739.39 | Q37: -10528739.39 | R37: -10528739.39 | S37: -10528739.39 | T37: -10528739.39 | U37: -10528739.39 | V37: -10528739.39 | W37: -10528739.39 | X37: -10528739.39 | Y37: -10528739.39 | Z37: =+Y37 -> -10528739.39 | AA37: =+Z37 -> -10528739.39 | AB37: =+AA37 -> -10528739.39 | AC37: -10528739.39 | AD37: -10528739.39
B38: DRE | C38: 306 | D38: Despesass Administrativas | E38: A | G38: =CONCATENATE(I34," x 12") -> X34 x 12 | I38: X38 | K38: =+K34*12 -> -1644221.04 | L38: =+K38 -> -1644221.04 | M38: -1644221.04 | N38: -1644221.04 | O38: -1644221.04 | P38: -1644221.04 | Q38: -1644221.04 | R38: -1644221.04 | S38: -1644221.04 | T38: -1644221.04 | U38: -1644221.04 | V38: -1644221.04 | W38: -1644221.04 | X38: -1644221.04 | Y38: -1644221.04 | Z38: -1644221.04 | AA38: -1644221.04 | AB38: =+AA38 -> -1644221.04 | AC38: -1644221.04 | AD38: -1644221.04
B39: DRE | I39: X39
B40: DRE | C40: 400 | D40: DEPRECIAÇÃO | G40: =CONCATENATE("Soma de ",I42,"..",I45) -> Soma de X42..X45 | I40: X40 | K40: =SUM(K42:K45) -> -2871170.061 | L40: -2871170.061 | M40: -2871170.061 | N40: -2871170.061 | O40: -2871170.061 | P40: -2871170.061 | Q40: -2871170.061 | R40: -2871170.061 | S40: -2871170.061 | T40: -2871170.061 | U40: -2871170.061 | V40: -2871170.061 | W40: -2871170.061 | X40: -2871170.061 | Y40: -2871170.061 | Z40: -2871170.061 | AA40: -2871170.061 | AB40: -2871170.061 | AC40: -2871170.061 | AD40: -2871170.061 | AE40: =SUM(K40:AD40) -> -57423401.22
B41: DRE | I41: X41
B42: DRE | C42: 401 | D42: Depreciação da Frota | G42: Renov_Frota | H42: 402 | I42: X42 | K42: =+Renov_Frota!P2097 -> -2370547.161 | L42: =+Renov_Frota!P2098 -> -2370547.161 | M42: =+Renov_Frota!P2099 -> -2370547.161 | N42: =+Renov_Frota!P2100 -> -2370547.161 | O42: =+Renov_Frota!P2101 -> -2370547.161 | P42: =+Renov_Frota!P2102 -> -2370547.161 | Q42: =+Renov_Frota!P2103 -> -2370547.161 | R42: =+Renov_Frota!P2104 -> -2370547.161 | S42: =+Renov_Frota!P2105 -> -2370547.161 | T42: =+Renov_Frota!P2106 -> -2370547.161 | U42: =+Renov_Frota!P2107 -> -2370547.161 | V42: =+Renov_Frota!P2108 -> -2370547.161 | W42: =+Renov_Frota!P2109 -> -2370547.161 | X42: =+Renov_Frota!P2110 -> -2370547.161 | Y42: =+Renov_Frota!P2111 -> -2370547.161 | Z42: =+Renov_Frota!P2112 -> -2370547.161 | AA42: =+Renov_Frota!P2113 -> -2370547.161 | AB42: =+Renov_Frota!P2114 -> -2370547.161 | AC42: =+Renov_Frota!P2115 -> -2370547.161 | AD42: =+Renov_Frota!P2116 -> -2370547.161 | AE42: =SUM(K42:AD42) -> -47410943.22
B43: DRE | C43: =+C42+1 -> 402 | D43: Depreciação de Equipamentos | G43: APURA x 12 | H43: =+Apura!I102 -> A102 | I43: X43 | K43: =-Apura!AB102*12 -> -152592 | L43: =+K43 -> -152592 | M43: =+L43 -> -152592 | N43: -152592 | O43: -152592 | P43: -152592 | Q43: -152592 | R43: -152592 | S43: -152592 | T43: -152592 | U43: -152592 | V43: -152592 | W43: -152592 | X43: =+W43 -> -152592 | Y43: -152592 | Z43: -152592 | AA43: -152592 | AB43: =+AA43 -> -152592 | AC43: -152592 | AD43: -152592 | AE43: =SUM(K43:AD43) -> -3051840
B44: DRE | C44: =+C43+1 -> 403 | D44: Amortização Outorga | G44: APURA x 12 | H44: =+Apura!I116 -> A116 | I44: X44 | K44: =(-Apura!AB116)*12 -> -280530.9 | L44: =+K44 -> -280530.9 | M44: -280530.9 | N44: -280530.9 | O44: -280530.9 | P44: -280530.9 | Q44: -280530.9 | R44: -280530.9 | S44: -280530.9 | T44: -280530.9 | U44: -280530.9 | V44: -280530.9 | W44: -280530.9 | X44: -280530.9 | Y44: -280530.9 | Z44: -280530.9 | AA44: -280530.9 | AB44: =+AA44 -> -280530.9 | AC44: -280530.9 | AD44: -280530.9 | AE44: =SUM(K44:AD44) -> -5610618
B45: DRE | C45: =+C44+1 -> 404 | D45: Depreciação de Construções | G45: APURA x 12 | H45: =+Apura!I115 -> A115 | I45: X45 | K45: =(-Apura!AB115)*12 -> -67500 | L45: =+K45 -> -67500 | M45: -67500 | N45: -67500 | O45: -67500 | P45: -67500 | Q45: -67500 | R45: -67500 | S45: -67500 | T45: -67500 | U45: -67500 | V45: -67500 | W45: -67500 | X45: -67500 | Y45: -67500 | Z45: -67500 | AA45: -67500 | AB45: =+AA45 -> -67500 | AC45: -67500 | AD45: -67500 | AE45: =SUM(K45:AD45) -> -1350000
B46: DRE | I46: X46
B47: DRE | C47: 500 | D47: RESULTADO OPERACIONAL | G47: =CONCATENATE(I13,"+",I24,"+",I30,"+",I40) -> X13+X24+X30+X40 | I47: X47 | K47: =+K13+K24+K30+K40 -> 3513122.559 | L47: 3513122.559 | M47: 3513122.559 | N47: 3513122.559 | O47: 3513122.559 | P47: 3513122.559 | Q47: 3513122.559 | R47: 3513122.559 | S47: 3513122.559 | T47: 3513122.559 | U47: 3513122.559 | V47: 3513122.559 | W47: 3513122.559 | X47: 3513122.559 | Y47: 3513122.559 | Z47: 3513122.559 | AA47: 3513122.559 | AB47: 3513122.559 | AC47: 3513122.559 | AD47: 3513122.559 | AE47: =SUM(K47:AD47) -> 70262451.19
B48: DRE | I48: X48
B49: DRE | C49: 500 | D49: RESULTADO NÃO OPERACIONAL | G49: =CONCATENATE(I51," + ",I57) -> X51 + X57 | I49: X49 | K49: =+K51+K57 -> 0 | L49: 0 | M49: 0 | N49: 0 | O49: 0 | P49: 0 | Q49: 0 | R49: 0 | S49: 0 | T49: 0 | U49: 0 | V49: 0 | W49: 0 | X49: 0 | Y49: 0 | Z49: 0 | AA49: 0 | AB49: 0 | AC49: 0 | AD49: 0 | AE49: =SUM(K49:AD49) -> 0
B50: DRE | I50: X50
B51: DRE | D51: Venda de Ativo | G51: =CONCATENATE("Soma de ",I52,"..",I55) -> Soma de X52..X55 | I51: X51 | K51: =SUM(K52:K55) -> 0 | L51: 742452.984 | M51: 824918.91 | N51: 622269.259 | O51: 569236.903 | P51: 516204.547 | Q51: 348467.684 | R51: 324086.62 | S51: 353549.04 | T51: 0 | U51: 553864.646 | V51: 516204.547 | W51: 433709.771 | X51: 463172.191 | Y51: 366724.22 | Z51: 259269.296 | AA51: 350023.714 | AB51: 235699.36 | AC51: 515563.5 | AD51: 19696396.59 | AE51: 27691813.78
B52: DRE | D52: Renovação da frota | G52: Renov_Frota | H52: 403 | I52: X52 | K52: =+Renov_Frota!P2119 -> 0 | L52: =+Renov_Frota!P2120 -> 742452.984 | M52: =+Renov_Frota!P2121 -> 824918.91 | N52: =+Renov_Frota!P2122 -> 622269.259 | O52: =+Renov_Frota!P2123 -> 569236.903 | P52: =+Renov_Frota!P2124 -> 516204.547 | Q52: =+Renov_Frota!P2125 -> 348467.684 | R52: =+Renov_Frota!P2126 -> 324086.62 | S52: =+Renov_Frota!P2127 -> 353549.04 | T52: =+Renov_Frota!P2128 -> 0 | U52: =+Renov_Frota!P2129 -> 553864.646 | V52: =+Renov_Frota!P2130 -> 516204.547 | W52: =+Renov_Frota!P2131 -> 433709.771 | X52: =+Renov_Frota!P2132 -> 463172.191 | Y52: =+Renov_Frota!P2133 -> 366724.22 | Z52: =+Renov_Frota!P2134 -> 259269.296 | AA52: =+Renov_Frota!P2135 -> 350023.714 | AB52: =+Renov_Frota!P2136 -> 235699.36 | AC52: =+Renov_Frota!P2137 -> 515563.5 | AD52: =+Renov_Frota!P2138 -> 233365.315 | AE52: =SUM(K52:AD52) -> 8228782.507
B53: DRE | D53: Valor Residual da Frota | G53: Renov_Frota | H53: 405 | I53: X53 | AD53: =+Renov_Frota!P2067 -> 13113031.28 | AE53: =SUM(K53:AD53) -> 13113031.28
B54: DRE | D54: Valor Residual Terreno | G54: Fechamento | I54: X54 | AD54: =-AE102 -> 5000000 | AE54: =SUM(K54:AD54) -> 5000000
B55: DRE | D55: Valor Residual Construções | G55: Fechamento | I55: X55 | AD55: =-AE103+AE45 -> 1350000 | AE55: =SUM(K55:AD55) -> 1350000
B56: DRE | I56: X56
B57: DRE | D57: Custo venda de Imobilizado | G57: Renov_Frota | H57: 404 | I57: X57 | K57: =+Renov_Frota!$P2141 -> 0 | L57: =+Renov_Frota!$P2142 -> -742452.984 | M57: =+Renov_Frota!$P2143 -> -824918.91 | N57: =+Renov_Frota!$P2144 -> -622269.259 | O57: =+Renov_Frota!$P2145 -> -569236.903 | P57: =+Renov_Frota!$P2146 -> -516204.547 | Q57: =+Renov_Frota!$P2147 -> -348467.684 | R57: =+Renov_Frota!$P2148 -> -324086.62 | S57: =+Renov_Frota!$P2149 -> -353549.04 | T57: =+Renov_Frota!$P2150 -> 0 | U57: =+Renov_Frota!$P2151 -> -553864.646 | V57: =+Renov_Frota!$P2152 -> -516204.547 | W57: =+Renov_Frota!$P2153 -> -433709.771 | X57: =+Renov_Frota!$P2154 -> -463172.191 | Y57: =+Renov_Frota!$P2155 -> -366724.22 | Z57: =+Renov_Frota!$P2156 -> -259269.296 | AA57: =+Renov_Frota!$P2157 -> -350023.714 | AB57: =+Renov_Frota!$P2158 -> -235699.36 | AC57: =+Renov_Frota!$P2159 -> -515563.5 | AD57: =+Renov_Frota!$P2160-AD53-AD54-AD55 -> -19696396.59 | AE57: =-AE51 -> -27691813.78
B58: DRE | I58: X58
B59: DRE | C59: 600 | D59: RESULTADO ANTES IRENDA | G59: =CONCATENATE(I47," + ",I49) -> X47 + X49 | I59: X59 | K59: =+K47+K49 -> 3513122.559 | L59: 3513122.559 | M59: 3513122.559 | N59: 3513122.559 | O59: 3513122.559 | P59: 3513122.559 | Q59: 3513122.559 | R59: 3513122.559 | S59: 3513122.559 | T59: 3513122.559 | U59: 3513122.559 | V59: 3513122.559 | W59: 3513122.559 | X59: 3513122.559 | Y59: 3513122.559 | Z59: 3513122.559 | AA59: 3513122.559 | AB59: 3513122.559 | AC59: 3513122.559 | AD59: 3513122.559 | AE59: =SUM(K59:AD59) -> 70262451.19
B60: DRE | I60: X60
B61: DRE | C61: 700 | D61: IMPOSTO DE RENDA E CONTRIB SOCIAL | G61: =CONCATENATE("Soma de ",I75,"..",I77) -> Soma de X75..X77 | I61: X61 | K61: =-SUM(K75:K77) -> -1170461.67 | L61: =-SUM(L75:L77) -> -1170461.67 | M61: =-SUM(M75:M77) -> -1170461.67 | N61: -1170461.67 | O61: -1170461.67 | P61: -1170461.67 | Q61: -1170461.67 | R61: -1170461.67 | S61: -1170461.67 | T61: -1170461.67 | U61: -1170461.67 | V61: -1170461.67 | W61: -1170461.67 | X61: -1170461.67 | Y61: -1170461.67 | Z61: -1170461.67 | AA61: -1170461.67 | AB61: -1170461.67 | AC61: -1170461.67 | AD61: -1170461.67 | AE61: =SUM(K61:AD61) -> -23409233.4
B62: DRE | I62: X62
B63: DRE | C63: 701 | D63: Percentual - Impostos sobre Lucro | I63: X63
B64: DRE | D64: Contribuição social | G64: Consumo | H64: =+Consumo!I404 -> B404 | I64: X64 | K64: =+Consumo!P404 -> 0.09 | L64: 0.09 | M64: 0.09 | N64: 0.09 | O64: 0.09 | P64: 0.09 | Q64: 0.09 | R64: 0.09 | S64: 0.09 | T64: 0.09 | U64: 0.09 | V64: 0.09 | W64: 0.09 | X64: 0.09 | Y64: 0.09 | Z64: 0.09 | AA64: 0.09 | AB64: 0.09 | AC64: 0.09 | AD64: 0.09
B65: DRE | D65: Imposto de Renda | G65: Consumo | H65: =+Consumo!I405 -> B405 | I65: X65 | K65: =+Consumo!P405 -> 0.15 | L65: 0.15 | M65: 0.15 | N65: 0.15 | O65: 0.15 | P65: 0.15 | Q65: 0.15 | R65: 0.15 | S65: 0.15 | T65: 0.15 | U65: 0.15 | V65: 0.15 | W65: 0.15 | X65: 0.15 | Y65: 0.15 | Z65: 0.15 | AA65: 0.15 | AB65: 0.15 | AC65: 0.15 | AD65: 0.15
B66: DRE | D66: Adicional de Impost de Renda | G66: Consumo | H66: =+Consumo!I406 -> B406 | I66: X66 | K66: =+Consumo!P406 -> 0.1 | L66: 0.1 | M66: 0.1 | N66: 0.1 | O66: 0.1 | P66: 0.1 | Q66: 0.1 | R66: 0.1 | S66: 0.1 | T66: 0.1 | U66: 0.1 | V66: 0.1 | W66: 0.1 | X66: 0.1 | Y66: 0.1 | Z66: 0.1 | AA66: 0.1 | AB66: 0.1 | AC66: 0.1 | AD66: 0.1
B67: DRE | I67: X67
B68: DRE | C68: 702 | D68: Base de Cálculo - Impostos sobre Lucro | I68: X68
B69: DRE | D69: Da Contribuição social | G69: =CONCATENATE(" + ",I59) -> + X59 | I69: X69 | K69: =+K59 -> 3513122.559 | L69: =+L59 -> 3513122.559 | M69: =+M59 -> 3513122.559 | N69: 3513122.559 | O69: 3513122.559 | P69: 3513122.559 | Q69: 3513122.559 | R69: 3513122.559 | S69: 3513122.559 | T69: 3513122.559 | U69: 3513122.559 | V69: 3513122.559 | W69: 3513122.559 | X69: 3513122.559 | Y69: 3513122.559 | Z69: 3513122.559 | AA69: 3513122.559 | AB69: 3513122.559 | AC69: 3513122.559 | AD69: 3513122.559
B70: DRE | D70: Do Imposto de Renda | G70: =CONCATENATE(" + ",I60) -> + X60 | I70: X70 | K70: =+K59 -> 3513122.559 | L70: =+L59 -> 3513122.559 | M70: =+M59 -> 3513122.559 | N70: 3513122.559 | O70: 3513122.559 | P70: 3513122.559 | Q70: 3513122.559 | R70: 3513122.559 | S70: 3513122.559 | T70: 3513122.559 | U70: 3513122.559 | V70: 3513122.559 | W70: 3513122.559 | X70: 3513122.559 | Y70: 3513122.559 | Z70: 3513122.559 | AA70: 3513122.559 | AB70: 3513122.559 | AC70: 3513122.559 | AD70: 3513122.559
B71: DRE | D71: Do Adicional de Impost de Renda | G71: =CONCATENATE(" + ",I61," - ",I72) -> + X61 - X72 | I71: X71 | K71: =IF(K70<K72,0,+K70-K72) -> 3273122.559 | L71: =IF(L70<L72,0,+L70-L72) -> 3273122.559 | M71: =IF(M70<M72,0,+M70-M72) -> 3273122.559 | N71: 3273122.559 | O71: 3273122.559 | P71: 3273122.559 | Q71: 3273122.559 | R71: 3273122.559 | S71: 3273122.559 | T71: 3273122.559 | U71: 3273122.559 | V71: 3273122.559 | W71: 3273122.559 | X71: 3273122.559 | Y71: 3273122.559 | Z71: 3273122.559 | AA71: 3273122.559 | AB71: 3273122.559 | AC71: 3273122.559 | AD71: 3273122.559
B72: DRE | D72: Limite Adicional de Impost de Renda | G72: Consumo | H72: =+Consumo!I407 -> B407 | I72: X72 | K72: =+Consumo!P407 -> 240000 | L72: =+K72 -> 240000 | M72: =+L72 -> 240000 | N72: 240000 | O72: 240000 | P72: 240000 | Q72: 240000 | R72: 240000 | S72: 240000 | T72: 240000 | U72: 240000 | V72: 240000 | W72: 240000 | X72: 240000 | Y72: 240000 | Z72: 240000 | AA72: 240000 | AB72: 240000 | AC72: 240000 | AD72: 240000
B73: DRE | I73: X73
B74: DRE | C74: 703 | D74: Valor Impostos sobre Lucro | I74: X74
B75: DRE | D75: Contribuição social | G75: =CONCATENATE(" + ",I69," x ",I64) -> + X69 x X64 | I75: X75 | K75: =+K69*+K64 -> 316181.0303 | L75: 316181.0303 | M75: =+M69*+M64 -> 316181.0303 | N75: 316181.0303 | O75: 316181.0303 | P75: 316181.0303 | Q75: 316181.0303 | R75: 316181.0303 | S75: 316181.0303 | T75: 316181.0303 | U75: 316181.0303 | V75: 316181.0303 | W75: 316181.0303 | X75: 316181.0303 | Y75: 316181.0303 | Z75: 316181.0303 | AA75: 316181.0303 | AB75: 316181.0303 | AC75: 316181.0303 | AD75: 316181.0303 | AE75: =SUM(K75:AD75) -> 6323620.607
B76: DRE | D76: Imposto de Renda | G76: =CONCATENATE(" + ",I70," x ",I65) -> + X70 x X65 | I76: X76 | K76: 526968.3839 | L76: 526968.3839 | M76: =+M70*+M65 -> 526968.3839 | N76: 526968.3839 | O76: 526968.3839 | P76: 526968.3839 | Q76: 526968.3839 | R76: 526968.3839 | S76: 526968.3839 | T76: 526968.3839 | U76: 526968.3839 | V76: 526968.3839 | W76: 526968.3839 | X76: 526968.3839 | Y76: 526968.3839 | Z76: 526968.3839 | AA76: 526968.3839 | AB76: 526968.3839 | AC76: 526968.3839 | AD76: 526968.3839 | AE76: =SUM(K76:AD76) -> 10539367.68
B77: DRE | D77: Adicional de Impost de Renda | G77: =CONCATENATE(" + ",I71," x ",I66) -> + X71 x X66 | I77: X77 | K77: 327312.2559 | L77: 327312.2559 | M77: =+M71*+M66 -> 327312.2559 | N77: 327312.2559 | O77: 327312.2559 | P77: 327312.2559 | Q77: 327312.2559 | R77: 327312.2559 | S77: 327312.2559 | T77: 327312.2559 | U77: 327312.2559 | V77: 327312.2559 | W77: 327312.2559 | X77: 327312.2559 | Y77: 327312.2559 | Z77: 327312.2559 | AA77: 327312.2559 | AB77: 327312.2559 | AC77: 327312.2559 | AD77: 327312.2559 | AE77: =SUM(K77:AD77) -> 6546245.119
B78: DRE | I78: X78
B79: DRE | C79: 700 | D79: RESULTADO ECONÔMICO LÍQUIDO | G79: =CONCATENATE(I59," + ",I61) -> X59 + X61 | I79: X79 | K79: =+K59+K61 -> 2342660.889 | L79: =+L59+L61 -> 2342660.889 | M79: 2342660.889 | N79: 2342660.889 | O79: 2342660.889 | P79: 2342660.889 | Q79: 2342660.889 | R79: 2342660.889 | S79: 2342660.889 | T79: 2342660.889 | U79: 2342660.889 | V79: 2342660.889 | W79: 2342660.889 | X79: 2342660.889 | Y79: 2342660.889 | Z79: 2342660.889 | AA79: 2342660.889 | AB79: 2342660.889 | AC79: 2342660.889 | AD79: 2342660.889 | AE79: =SUM(K79:AD79) -> 46853217.78
I80: X80
B81: FC | C81: ITEM | D81: DISCRIMINAÇÃO | G81: REFERÊNCIA | I81: =CONCATENATE("X",ROW()) -> X81 | K81: 2018 | L81: =+K81+1 -> 2019 | M81: 2020 | N81: 2021 | O81: 2022 | P81: 2023 | Q81: 2024 | R81: 2025 | S81: 2026 | T81: 2027 | U81: 2028 | V81: 2029 | W81: 2030 | X81: =+W81+1 -> 2031 | Y81: =+X81+1 -> 2032 | Z81: 2033 | AA81: 2034 | AB81: =+AA81+1 -> 2035 | AC81: 2036 | AD81: 2037 | AE81: TOTAL
B82: FC | I82: X82 | K82: 1 | L82: =+K82+1 -> 2 | M82: 3 | N82: 4 | O82: 5 | P82: 6 | Q82: 7 | R82: 8 | S82: 9 | T82: 10 | U82: 11 | V82: 12 | W82: 13 | X82: =+W82+1 -> 14 | Y82: =+X82+1 -> 15 | Z82: 16 | AA82: 17 | AB82: =+AA82+1 -> 18 | AC82: 19 | AD82: 20
B83: FC | C83: FLUXO DE CAIXA | I83: X83
B84: FC | I84: X84
B85: FC | C85: 100 | D85: RECEITAS OPERACIONAL | G85: =CONCATENATE(I87," x ",I88) -> X87 x X88 | I85: X85 | K85: =+K87+K88 -> 29167152 | L85: =+L87+L88 -> 29167152 | M85: =+M87+M88 -> 29167152 | N85: 29167152 | O85: 29167152 | P85: 29167152 | Q85: 29167152 | R85: 29167152 | S85: 29167152 | T85: 29167152 | U85: 29167152 | V85: 29167152 | W85: 29167152 | X85: 29167152 | Y85: 29167152 | Z85: 29167152 | AA85: 29167152 | AB85: 29167152 | AC85: 29167152 | AD85: 29167152 | AE85: =SUM(K85:AD85) -> 583343040
B86: FC | I86: X86
B87: FC | D87: Receita de Tarifa | G87: =CONCATENATE(" + ",I15) -> + X15 | I87: X87 | K87: =+K15 -> 29061552 | L87: 29061552 | M87: 29061552 | N87: 29061552 | O87: 29061552 | P87: 29061552 | Q87: 29061552 | R87: 29061552 | S87: 29061552 | T87: 29061552 | U87: 29061552 | V87: 29061552 | W87: 29061552 | X87: 29061552 | Y87: 29061552 | Z87: 29061552 | AA87: 29061552 | AB87: 29061552 | AC87: 29061552 | AD87: 29061552 | AE87: =SUM(K87:AD87) -> 581231040
B88: FC | D88: Receitas Complementares | G88: =CONCATENATE(" + ",I22) -> + X22 | I88: X88 | K88: =+K22 -> 105600 | L88: 105600 | M88: 105600 | N88: 105600 | O88: 105600 | P88: 105600 | Q88: 105600 | R88: 105600 | S88: 105600 | T88: 105600 | U88: 105600 | V88: 105600 | W88: 105600 | X88: 105600 | Y88: 105600 | Z88: 105600 | AA88: 105600 | AB88: 105600 | AC88: 105600 | AD88: 105600 | AE88: =SUM(K88:AD88) -> 2112000
B89: FC | I89: X89
B90: FC | C90: 200 | D90: IMPOSTOS SOBRE VENDA | G90: =CONCATENATE(" + ",I24) -> + X24 | I90: X90 | K90: =+K24 -> -1458357.6 | L90: -1458357.6 | M90: -1458357.6 | N90: -1458357.6 | O90: -1458357.6 | P90: -1458357.6 | Q90: -1458357.6 | R90: -1458357.6 | S90: -1458357.6 | T90: -1458357.6 | U90: -1458357.6 | V90: -1458357.6 | W90: -1458357.6 | X90: -1458357.6 | Y90: -1458357.6 | Z90: -1458357.6 | AA90: -1458357.6 | AB90: -1458357.6 | AC90: -1458357.6 | AD90: -1458357.6 | AE90: =SUM(K90:AD90) -> -29167152
B91: FC | I91: X91
B92: FC | C92: 300 | D92: CUSTOS | G92: =CONCATENATE(" + ",I30) -> + X30 | I92: X92 | K92: =+K30 -> -21324501.78 | L92: -21324501.78 | M92: -21324501.78 | N92: -21324501.78 | O92: -21324501.78 | P92: -21324501.78 | Q92: -21324501.78 | R92: -21324501.78 | S92: -21324501.78 | T92: -21324501.78 | U92: -21324501.78 | V92: -21324501.78 | W92: -21324501.78 | X92: -21324501.78 | Y92: -21324501.78 | Z92: -21324501.78 | AA92: -21324501.78 | AB92: -21324501.78 | AC92: -21324501.78 | AD92: -21324501.78 | AE92: =SUM(K92:AD92) -> -426490035.6
B93: FC | I93: X93
B94: FC | C94: 400 | D94: FLUXO DE CAIXA OPERACIONAL | G94: =CONCATENATE(" + ",I85," + ",I90," + ",I92) -> + X85 + X90 + X92 | I94: X94 | K94: =+K85+K90+K92 -> 6384292.62 | L94: 6384292.62 | M94: 6384292.62 | N94: 6384292.62 | O94: 6384292.62 | P94: 6384292.62 | Q94: 6384292.62 | R94: 6384292.62 | S94: 6384292.62 | T94: 6384292.62 | U94: 6384292.62 | V94: 6384292.62 | W94: 6384292.62 | X94: 6384292.62 | Y94: 6384292.62 | Z94: 6384292.62 | AA94: 6384292.62 | AB94: 6384292.62 | AC94: 6384292.62 | AD94: 6384292.62 | AE94: =SUM(K94:AD94) -> 127685852.4
B95: FC | I95: X95
B96: FC | C96: 500 | D96: FLUXO DE CAIXA DE INVESTIMENTOS | G96: =CONCATENATE(" + ",I98," + ",I106," + ",I111) -> + X98 + X106 + X111 | I96: X96 | K96: =+K98+K106+K111 -> -29277460.71 | L96: -1909164.816 | M96: -2906795.29 | N96: -2544111.801 | O96: -2597144.157 | P96: -3266176.513 | Q96: -2601251.556 | R96: -2916779.58 | S96: -3181941.36 | T96: 0 | U96: -3498521.154 | V96: -2650176.513 | W96: -2438047.089 | X96: -2703208.869 | Y96: -2235236.82 | Z96: -2419100.104 | AA96: -2354728.086 | AB96: -2121294.24 | AC96: -4100023.3 | AD96: 18297760.73 | AE96: =SUM(K96:AD96) -> -57423401.22
B97: FC | I97: X97
B98: FC | C98: 501 | D98: Investimento Inicial | G98: =CONCATENATE("Soma de ",I99,"..",I104) -> Soma de X99..X104 | I98: X98 | K98: =SUM(K99:K104) -> -29277460.71 | L98: 0 | M98: 0 | N98: 0 | O98: 0 | P98: 0 | Q98: 0 | R98: 0 | S98: 0 | T98: 0 | U98: 0 | V98: 0 | W98: 0 | X98: 0 | Y98: 0 | Z98: 0 | AA98: 0 | AB98: 0 | AC98: 0 | AD98: 0 | AE98: =SUM(K98:AD98) -> -29277460.71
B99: FC | D99: Frota de Veiculos | G99: Renov_frota | H99: 306 | I99: X99 | K99: =-Renov_Frota!P130 -> -15056922.71 | AE99: -15056922.71
B100: FC | D100: Sist. Bilhet. Monitoramento/Valid. | G100: DR_Equip | H100: =+DR_Equip!I15 -> D15 | I100: X100 | K100: =-DR_Equip!P15 -> -616000 | AE100: -616000
B101: FC | D101: Maquinas, Instalações e Equipamentos | G101: DR_Equip | H101: =+DR_Equip!I16 -> D16 | I101: X101 | K101: =-DR_Equip!P16 -> -293920 | AE101: -293920
B102: FC | D102: Terrenos | G102: DR_Invest | H102: =+DR_Invest!I27 -> E27 | I102: X102 | K102: =-DR_Invest!P27 -> -5000000 | AE102: -5000000
B103: FC | D103: Construções | G103: DR_Invest | H103: =+DR_Invest!I28 -> E28 | I103: X103 | K103: =-DR_Invest!P28 -> -2700000 | AE103: -2700000
B104: FC | D104: Outorga | G104: DR_Invest | H104: =+DR_Invest!I29 -> E29 | I104: X104 | K104: =-DR_Invest!P29 -> -5610618 | AE104: -5610618
B105: FC | I105: X105
B106: FC | C106: 502 | D106: Investimento Anual | I106: X106 | K106: =SUM(K107:K109) -> 0 | L106: -2651617.8 | M106: -3731714.2 | N106: -3166381.06 | O106: -3166381.06 | P106: -3782381.06 | Q106: -2949719.24 | R106: -3240866.2 | S106: -3535490.4 | T106: 0 | U106: -4052385.8 | V106: -3166381.06 | W106: -2871756.86 | X106: -3166381.06 | Y106: -2601961.04 | Z106: -2678369.4 | AA106: -2704751.8 | AB106: -2356993.6 | AC106: -4615586.8 | AD106: -1398635.86 | AE106: -55837754.3
B107: FC | D107: Renovação da Frota | G107: Renov_frota | H107: 401 | I107: X107 | K107: =-Renov_Frota!O2076 -> 0 | L107: =-Renov_Frota!P2076 -> -2651617.8 | M107: =-Renov_Frota!P2077 -> -3731714.2 | N107: =-Renov_Frota!P2078 -> -3166381.06 | O107: =-Renov_Frota!P2079 -> -3166381.06 | P107: =-Renov_Frota!P2080 -> -3166381.06 | Q107: =-Renov_Frota!P2081 -> -2949719.24 | R107: =-Renov_Frota!P2082 -> -3240866.2 | S107: =-Renov_Frota!P2083 -> -3535490.4 | T107: =-Renov_Frota!P2084 -> 0 | U107: =-Renov_Frota!P2085 -> -3142465.8 | V107: =-Renov_Frota!P2086 -> -3166381.06 | W107: =-Renov_Frota!P2087 -> -2871756.86 | X107: =-Renov_Frota!P2088 -> -3166381.06 | Y107: =-Renov_Frota!P2089 -> -2601961.04 | Z107: =-Renov_Frota!P2090 -> -2062369.4 | AA107: =-Renov_Frota!P2091 -> -2704751.8 | AB107: =-Renov_Frota!P2092 -> -2356993.6 | AC107: =-Renov_Frota!P2093 -> -4615586.8 | AD107: =-Renov_Frota!P2094 -> -1398635.86 | AE107: =SUM(K107:AD107) -> -53695834.3
B108: FC | D108: Renov Sist. Bilhet. Monitoramento/Valid. | G108: Fechamento | I108: X108 | K108: 0 | L108: 0 | M108: 0 | N108: 0 | O108: 0 | P108: =+K100 -> -616000 | U108: =+P108 -> -616000 | Z108: =+U108 -> -616000 | AE108: =SUM(K108:AD108) -> -1848000
B109: FC | D109: Renov Maq. Instalações e Equipamentos | G109: Fechamento | I109: X109 | L109: 0 | M109: 0 | N109: 0 | O109: 0 | P109: 0 | U109: =+K101 -> -293920 | AE109: =SUM(K109:AD109) -> -293920
B110: FC | I110: X110
B111: FC | C111: 503 | D111: Venda de Imobilizado | G111: =CONCATENATE(" + ",I51) -> + X51 | I111: X111 | K111: =+K51 -> 0 | L111: 742452.984 | M111: 824918.91 | N111: 622269.259 | O111: 569236.903 | P111: 516204.547 | Q111: 348467.684 | R111: 324086.62 | S111: 353549.04 | T111: 0 | U111: 553864.646 | V111: 516204.547 | W111: 433709.771 | X111: 463172.191 | Y111: 366724.22 | Z111: 259269.296 | AA111: 350023.714 | AB111: 235699.36 | AC111: 515563.5 | AD111: 19696396.59 | AE111: =SUM(K111:AD111) -> 27691813.78
B112: FC | I112: X112
B113: FC | C113: 600 | D113: IMPOSTO DE RENDA E CONTRIB SOCIAL | G113: =CONCATENATE(" + ",I61) -> + X61 | I113: X113 | K113: =+K61 -> -1170461.67 | L113: -1170461.67 | M113: -1170461.67 | N113: -1170461.67 | O113: -1170461.67 | P113: -1170461.67 | Q113: -1170461.67 | R113: -1170461.67 | S113: -1170461.67 | T113: -1170461.67 | U113: -1170461.67 | V113: -1170461.67 | W113: -1170461.67 | X113: -1170461.67 | Y113: -1170461.67 | Z113: -1170461.67 | AA113: -1170461.67 | AB113: -1170461.67 | AC113: -1170461.67 | AD113: -1170461.67 | AE113: =SUM(K113:AD113) -> -23409233.4
B114: FC | I114: X114
B115: FC | C115: 700 | D115: SALDO DE CAIXA | G115: =CONCATENATE(" + ",I85," + ",I90," + ",I92," + ",I96," + ",I113) -> + X85 + X90 + X92 + X96 + X113 | I115: X115 | K115: =+K85+K90+K92+K96+K113 -> -24063629.76 | L115: 3304666.134 | M115: 2307035.66 | N115: 2669719.149 | O115: 2616686.793 | P115: 1947654.437 | Q115: 2612579.394 | R115: 2297051.37 | S115: 2031889.59 | T115: 5213830.95 | U115: 1715309.796 | V115: 2563654.437 | W115: 2775783.861 | X115: 2510622.081 | Y115: 2978594.13 | Z115: 2794730.846 | AA115: 2859102.864 | AB115: 3092536.71 | AC115: 1113807.65 | AD115: 23511591.68 | AE115: =SUM(K115:AD115) -> 46853217.78
B116: FC | I116: X116
B117: FC | C117: 800 | D117: SALDO ACUMULADO DE CAIXA | I117: X117 | K117: =+K115 -> -24063629.76 | L117: =+L115+K117 -> -20758963.62 | M117: -18451927.96 | N117: -15782208.81 | O117: -13165522.02 | P117: -11217867.58 | Q117: -8605288.187 | R117: -6308236.817 | S117: -4276347.227 | T117: 937483.7233 | U117: 2652793.52 | V117: 5216447.957 | W117: 7992231.818 | X117: =+X115+W117 -> 10502853.9 | Y117: =+Y115+X117 -> 13481448.03 | Z117: 16276178.88 | AA117: 19135281.74 | AB117: =+AB115+AA117 -> 22227818.45 | AC117: 23341626.1 | AD117: 46853217.78
I118: X118
C119: 900 | D119: INDICADORES | I119: X119 | AE119: =+AE115-AE79 -> 0
I120: X120
D121: Taxa de Desconto VPL - (% ao ano) | G121: Consumo | H121: =+Consumo!I411 -> B411 | I121: X121 | K121: =+Taxa_desconto -> 0.08
D122: VPL | G122: Fechamento | I122: X122 | K122: =NPV(K121,K115:AD115) -> 5783896.114
D123: TIR | G123: Fechamento | I123: X123 | K123: =IRR(K115:AD115) -> 0.1080474313
D127: SALDO INICIAL DE CAIXA | K127: =+K98 -> -29277460.71 | L127: =+K129 -> -24063629.76 | M127: =+L129 -> -20758963.62 | N127: =+M129 -> -18451927.96 | O127: =+N129 -> -15782208.81 | P127: =+O129 -> -13165522.02 | Q127: -11217867.58 | R127: -8605288.187 | S127: -6308236.817 | T127: -4276347.227 | U127: 937483.7233 | V127: 2652793.52 | W127: 5216447.957 | X127: 7992231.818 | Y127: 10502853.9 | Z127: 13481448.03 | AA127: 16276178.88 | AB127: 19135281.74 | AC127: 22227818.45 | AD127: 23341626.1
D128: GERAÇÃO DE CAIXA DO ANO | K128: =+K117-K127 -> 5213830.95 | L128: =+L115 -> 3304666.134 | M128: =+M115 -> 2307035.66 | N128: =+N115 -> 2669719.149 | O128: =+O115 -> 2616686.793 | P128: =+P115 -> 1947654.437 | Q128: 2612579.394 | R128: 2297051.37 | S128: 2031889.59 | T128: 5213830.95 | U128: 1715309.796 | V128: 2563654.437 | W128: 2775783.861 | X128: 2510622.081 | Y128: 2978594.13 | Z128: 2794730.846 | AA128: 2859102.864 | AB128: 3092536.71 | AC128: 1113807.65 | AD128: 23511591.68
D129: SALDO FINAL DE CAIXA | K129: =+K127+K128 -> -24063629.76 | L129: =+L127+L128 -> -20758963.62 | M129: =+M127+M128 -> -18451927.96 | N129: =+N127+N128 -> -15782208.81 | O129: =+O127+O128 -> -13165522.02 | P129: =+P127+P128 -> -11217867.58 | Q129: -8605288.187 | R129: -6308236.817 | S129: -4276347.227 | T129: 937483.7233 | U129: 2652793.52 | V129: 5216447.957 | W129: 7992231.818 | X129: 10502853.9 | Y129: 13481448.03 | Z129: 16276178.88 | AA129: 19135281.74 | AB129: 22227818.45 | AC129: 23341626.1 | AD129: 46853217.78

Sheet Reajuste
B2: REAJUSTE
A3: pedro milton golfe | B3: =+Titulo_01 -> PREFEITURA MUNICIPAL DE CHAPECO
A4: pedro milton golfe | B4: =+Titulo_02 -> CONTROLADORIA GERAL DO MUNICÍPIO
A5: pedro milton golfe | B5: =+Titulo_03 -> SISTEMA DE TRANSPORTE PÚBLICO DE PASSAGEIROS
B7: CÁLCULO DE REAJUSTE DA TARIFA | K7: Tarifa base | L7: =IF(Esc_tarifa_base=1,"Antecipado","Embarcado") -> Embarcado
B9: Item | C9: Discriminação | E9: Referência 1 | K9: Valores
B11: REAJUSTE | I11: =CONCATENATE("K",ROW()) -> K11 | K11: Anterior | L11: Atual
I12: K12
B13: 100 | C13: Coeficiente de Variação do IPK | E13: =CONCATENATE(I28," / ",I37) -> K28 / K37 | I13: K13 | K13: =+K28/K37 -> 1.708197412 | L13: =+L28/L37 -> 1.719065527
C14: Variação percentual do IPK | E14: =CONCATENATE(I10," atual / ",I10," anterior - 1") -> atual / anterior - 1 | I14: K14 | L14: =(ROUND((+K13-L13)/L13,6))+1 -> 0.993678
I15: K15
B16: 101 | C16: Valor da Tarifa vigente | I16: K16
C17: Tarifa base | E17: =IF(Esc_tarifa_base=1,"Antecipado","Embarcado") -> Embarcado | I17: K17 | K17: =+K19 -> 3.25 | L17: =+L19 -> 3.25
C18: Antecipado e vale transporte | G18: ? | I18: K18 | K18: 2.98 | L18: 2.98
C19: Embarcado | G19: ? | I19: K19 | K19: 3.25 | L19: 3.25
C20: Estudante | G20: ? | I20: K20 | K20: 1.1 | L20: 1.1
I21: K21
C22: Percentual Valor da Tarifa atual | E22: =IF(Esc_tarifa_base=1,"Antecipado","Embarcado") -> Embarcado | I22: K22
C23: Tarifa base | E23: =CONCATENATE(I17," / ",I$17," - 1") -> K17 / K17 - 1 | I23: K23 | K23: =+K17/K$17-1 -> 0 | L23: =+L17/L$17-1 -> 0
C24: Antecipado e vale transporte | E24: =CONCATENATE(I18," / ",I$17," - 1") -> K18 / K17 - 1 | I24: K24 | K24: =+K18/K$17-1 -> -0.08307692308 | L24: -0.08307692308
C25: Embarcado | E25: =CONCATENATE(I19," / ",I$17," - 1") -> K19 / K17 - 1 | I25: K25 | K25: 0 | L25: 0
C26: Estudante | E26: =CONCATENATE(I20," / ",I$17," - 1") -> K20 / K17 - 1 | I26: K26 | K26: -0.6615384615 | L26: -0.6615384615
I27: K27
B28: 102 | C28: Passageiros equivalentes | E28: =CONCATENATE("((",I31,"x",I18,") + ","(",I32,"x",I19,") + ","(",I33,"x",I20,") + ",,I34,"x",I18,")) / ",I18) -> ((K31xK18) + (K32xK19) + (K33xK20) + K34xK18)) / K18 | I28: K28 | K28: =(+K31*K18+K32*K19+K33*K20+K34*K18)/K17 -> 687788.6062 | L28: =(+L31*L18+L32*L19+L33*L20+L34*L18)/L17 -> 696221.5385
I29: K29
B30: 103 | C30: Media Passageiros (Ultimos 12 meses) | I30: K30 | K30: Anterior | L30: Atual
C31: Antecipado | G31: ? | I31: K31 | K31: 83916 | L31: 84000
C32: Embarcado | G32: ? | I32: K32 | K32: 218655 | L32: 220000
C33: Estudante | G33: ? | I33: K33 | K33: 144977 | L33: 150000
C34: Vale transporte | G34: ? | I34: K34 | K34: 374208 | L34: 380000
C35: Total | E35: =CONCATENATE("Soma de ",I31,"..",I34) -> Soma de K31..K34 | I35: K35 | K35: =SUM(K31:K34) -> 821756 | L35: =SUM(L31:L34) -> 834000
I36: K36
B37: 104 | C37: Percurso Mensal Programado em KM | I37: K37 | K37: 402640 | L37: 405000
I38: K38
B39: 200 | C39: Dados para Reajuste | I39: K39 | K39: Anterior | L39: Atual
I40: K40
C41: Valor do combustível | G41: ? | I41: K41 | K41: 2.82 | L41: 3
C42: Valor salário do motorista | G42: ? | I42: K42 | K42: 1720.78 | L42: =+K42 -> 1720.78
C43: Coeficiente do INPC | G43: ? | I43: K43 | K43: 1 | L43: 1.015
I44: K44
C45: Percentual de Reajuste Combustivel | E45: =CONCATENATE(I41," atual / ",I41," anterior - 1") -> K41 atual / K41 anterior - 1 | I45: K45 | L45: =+L41/K41-1 -> 0.06382978723
C46: Percentual de Reajuste Salario Motorista | E46: =CONCATENATE(I42," atual / ",I42," anterior - 1") -> K42 atual / K42 anterior - 1 | I46: K46 | L46: =+L42/K42-1 -> 0
C47: Coeficiente de Reajuste do INPC | E47: =CONCATENATE(I43," atual / ",I43," anterior - 1") -> K43 atual / K43 anterior - 1 | I47: K47 | L47: =+L43/K43-1 -> 0.015
I48: K48
B49: 201 | C49: Composição da tarifa | I49: K49 | L49: =SUM(L50:L52) -> 1
C50: Percentual do combustível | G50: ? | I50: K50 | L50: =+Apura!P377 -> 0.2234352452
C51: Percentual do Custo com pessoal | G51: ? | I51: K51 | L51: =+Apura!P378 -> 0.3622887549
C52: Percentual de outros itens | G52: ? | I52: K52 | L52: =+Apura!P379 -> 0.4142759999
I53: K53
B54: 300 | C54: Percentual de Reajuste | E54: =CONCATENATE("Soma de ",I55,"..",I57) -> Soma de K55..K57 | I54: K54 | L54: =SUM(L55:L57) -> 0.02034651512
C55: Combustível | E55: =CONCATENATE(I$14," x ",I45," x ",I50) -> K14 x K45 x K50 | I55: K55 | L55: =++L45*L50*L$14 -> 0.01417166091
C56: Custo com pessoal | E56: =CONCATENATE(I$14," x ",I46," x ",I51) -> K14 x K46 x K51 | I56: K56 | L56: =++L46*L51*L$14 -> 0
C57: Inflação | E57: =CONCATENATE(I$14," x ",I47," x ",I52) -> K14 x K47 x K52 | I57: K57 | L57: =++L47*L52*L$14 -> 0.006174854205
I58: K58
B59: 400 | C59: Nova Tarifa | I59: K59
C60: Tarifa base | E60: =CONCATENATE(I17," x (1+",I$54,")") -> K17 x (1+K54) | I60: K60 | L60: =ROUND(+L17*(1+L$54),2) -> 3.32
C61: Antecipado e vale transporte | E61: =CONCATENATE(I18," x (1+",I$54,")") -> K18 x (1+K54) | I61: K61 | L61: =ROUND(+L18*(1+L$54),2) -> 3.04
C62: Embarcado | E62: =CONCATENATE(I19," x (1+",I$54,")") -> K19 x (1+K54) | I62: K62 | L62: =ROUND(+L19*(1+L$54),2) -> 3.32
C63: Estudante | E63: =CONCATENATE(I20," x (1+",I$54,")") -> K20 x (1+K54) | I63: K63 | L63: =ROUND(+L20*(1+L$54),2) -> 1.12

Sheet Encargos
B2: Encargos Sociais
A3: pedro milton golfe | B3: =+Titulo_01 -> PREFEITURA MUNICIPAL DE CHAPECO
A4: pedro milton golfe | B4: =+Titulo_02 -> CONTROLADORIA GERAL DO MUNICÍPIO
A5: pedro milton golfe | B5: =+Titulo_03 -> SISTEMA DE TRANSPORTE PÚBLICO DE PASSAGEIROS
B7: DEMONSTRAÇÃO DOS ENCARGOS SOCIAIS
B9: Item | C9: Discriminação | F9: % | I9: Indice acumulado
B11: 101 | C11: Encargos Sociais do Grupo A | I11: 1
C12: INSS | F12: 0 | I12: =+I11+F12 -> 1
C13: Acidente de trabalho | F13: 0.03 | I13: 1.03
C14: Salário Educação | F14: 0.025 | I14: 1.055
C15: INCRA | F15: 0.002 | I15: 1.057
C16: SEST | F16: 0.015 | I16: 1.072
C17: SENAT | F17: 0.01 | I17: 1.082
C18: SEBRAE | F18: 0.006 | I18: 1.088
C19: FGTS | F19: 0.08 | I19: 1.168
C20: TOTAL | G20: =SUM(F12:F19) -> 0.168 | I20: =+I19+F20 -> 1.168
I21: =+I20+F21 -> 1.168
B22: 102 | C22: Encargos Sociais do Grupo B | I22: =+I21+F22 -> 1.168
C23: Férias | F23: 0 | I23: =+I22+F23 -> 1.168
C24: Abono de férias | F24: 0.0278 | I24: 1.1958
C25: Aviso prévio trabalhado | F25: 0.0006 | I25: 1.1964
C26: 13º salario | F26: 0.0833 | I26: 1.2797
C27: Adicional notorno | F27: 0.0194 | I27: 1.2991
C28: Adicional tempo de serviço | F28: 0.0512 | I28: 1.3503
C29: TOTAL | G29: =SUM(F23:F28) -> 0.1823 | I29: =+I28+F29 -> 1.3503
I30: =+I29+F30 -> 1.3503
B31: 103 | C31: Encargos Sociais do Grupo C | I31: =+I30+F31 -> 1.3503
C32: Deposito por rescisão | F32: 0.0473 | I32: =+I31+F32 -> 1.3976
C33: Aviso prévio indeizado | F33: 0.005 | I33: 1.4026
C34: Indenização adicional | F34: 0.0009 | I34: 1.4035
C35: TOTAL | G35: =SUM(F32:F34) -> 0.0532 | I35: 1.4035
I36: 1.4035
B37: 104 | C37: Encargos Sociais do Grupo D | I37: 1.4035
C38: Grupo A sobre B | F38: =ROUND(+G20*G29,4) -> 0.0306 | I38: 1.4341
C39: TOTAL | G39: =SUM(F38:F38) -> 0.0306 | I39: 1.4341
I40: 1.4341
B41: 105 | C41: Encargos Sociais do Grupo D | G41: =+G20+G29+G35+G39 -> 0.4341 | I41: 1.4341

Sheet CustoCapital
B2: Custo de capital
A3: pedro milton golfe | B3: =+Titulo_01 -> PREFEITURA MUNICIPAL DE CHAPECO
A4: pedro milton golfe | B4: =+Titulo_02 -> CONTROLADORIA GERAL DO MUNICÍPIO
A5: pedro milton golfe | B5: =+Titulo_03 -> SISTEMA DE TRANSPORTE PÚBLICO DE PASSAGEIROS
B6: Cálculo do Custo Médio Ponderado de Capital
B8: Retorno Esperado do Mercado | D8: Mês | E8: Anual | G8: Base - referencia
B9: SELIC Banco central do Brasil | D9: =(1+G9)^(1/12)-1 -> 0.00518300143 | E9: =(1+D9)^12-1 -> 0.064 | G9: 0.064
B10: POUPANÇA | D10: 0.005001750285 | E10: =(1+D10)^12-1 -> 0.0617 | G10: 0.0617
B11: CDB | D11: 0.005654145387 | E11: =(1+D11)^12-1 -> 0.07 | G11: 0.07
B12: CDI | D12: 0.006169614749 | E12: =(1+D12)^12-1 -> 0.0766 | G12: 0.0766
B13: TJLP | D13: 0.00534031942 | G13: 0.066
B14: Fundo de renda fixa indexados | D14: 0.009391096945 | G14: 0.1187
B15: Fundo de renda fixa Simples | D15: 0.006836957827 | E15: =(1+D15)^12-1 -> 0.0852 | G15: 0.0852
B16: IBOVESPA
B17: MEDIA | D17: =(1+G17)^(1/12)-1 -> 0 | E17: =AVERAGE(E9:E16) -> 0.0715
B18: Inflação - INPC 12 mês nov-2017 | D18: =(1+G18)^(1/12)-1 -> 0.001602467491 | E18: =(1+D18)^12-1 -> 0.0194 | G18: 0.0194 | H18: Portal finanças
B19: Média + inflação | E19: =ROUND((1+E17)*(1+E18)-1,4) -> 0.0923
B21: Custo do Capital Próprio | D21: Mês | E21: Anual
B22: Retorno do Ativo livre de risco | D22: =(1+0.06)^(1/12)-1 -> 0.004867550565 | E22: 0.06 | F22: Rf
B23: Retorno esperado do mercado | E23: =+E19 -> 0.0923 | F23: E(Rm)
B24: Risco do Negócio | E24: 1.35 | F24: beta
B25: Custo do Capital próprio | E25: =ROUND(((((1+E23)/(1+E22)-1)*E24)+1)*(1+E22)-1,4) -> 0.1036
B28: RE - Taxa de custo capital Próprio
B29: Rf - Retorno do ativo livre de risco
B30: E(Rm) - Retorno esperado do Mercado
B31: Beta - Risco do Negócio
B33: Custo do Capital de Terceiros
B34: TJLP | E34: 0.066
B35: Remuneração e intermediação BNDES - 2,1 + 2,0 | E35: 0.041
B36: Custo Capital de Terceiros | E36: =+E34+E35 -> 0.107
B38: Cálculo do Custo Médio Ponderado de Capital
B39: % Recursos Proprios | E39: 0.95 | F39: E
B40: % Recursos Terceiros | E40: =1-E39 -> 0.05 | F40: D
B41: Custo capital próprio | E41: =+E25 -> 0.1036 | F41: RE
B42: Custo capital de terceiros | E42: =+E36 -> 0.107 | F42: RD
B43: Imposto | E43: 0.34 | F43: T
B45: WACC - CMPC | E45: =+E41*E39/1+E42*E40/1*(1-E43) -> 0.101951
B49: E - Percentual de Capital Proprio
B50: E - Percentual de Capital Terceiros
B51: RE - Taxa de custo capital Próprio
B52: RD - Taxa de custo capital de terceiros
B53: T - Taxa de Imposto
B55: WACC - Weighted Average Capital Cost
B56: CMPC - CUSTO MÉDIO PONDERADO DE CAPITAL
B62: CIDADE | D62: TIR | E62: % | G62: TARIFA | H62: %
B63: BLUMENAU | D63: 0.0963 | E63: =+D63/D$70 -> 0.9887063655 | G63: 3.9 | H63: =+G63/G$70 -> 0.9693294229
B64: SÃO PAULO | D64: 0.0985 | E64: 1.011293634 | G64: 4 | H64: 0.9941840235
B65: CURITIBA | D65: 0.0895 | E65: 0.9188911704 | G65: 4.25 | H65: 1.056320525
B66: BELO HORIZONTE | D66: 0.0895 | E66: 0.9188911704 | G66: 4.05 | H66: 1.006611324
B67: FLORIANÓPOLIS | D67: 0.0861 | E67: 0.8839835729 | G67: 3.99 | H67: 0.9916985634
B68: MARINGA | D68: 0.1244 | E68: 1.277207392 | G68: 3.95 | H68: 0.9817567232
B70: MÉDIA | D70: =ROUNDUP(AVERAGE(D63:D68),4) -> 0.0974 | E70: =+D70/D$70 -> 1 | G70: =ROUNDUP(AVERAGE(G63:G68),4) -> 4.0234 | H70: =+G70/G$70 -> 1
B72: CHAPECÓ | D72: 0.108 | E72: =+D72/D$70 -> 1.108829569 | G72: 2.98 | H72: =+G72/G$70 -> 0.7406670975
B74: https://exame.abril.com.br/seu-dinheiro/os-melhores-e-os-piores-investimentos-de-2017/
B75: https://economia.estadao.com.br/blogs/regina-pitoscia/ranking-das-aplicacoes-em-2017-e-perspectivas-para-2018/
B76: http://www.portaldefinancas.com/ipca_completo.htm

Sheet Coeficientes
B2: COEFICIENTES | P2: =+Tarifa!K27 -> 3.250020342 | Q2: =+Tarifa!L27 -> 3.250020342 | R2: =+Tarifa!M27 -> 0.004320741671 | S2: =+Tarifa!N27 -> 0.003509621155
A3: pedro milton golfe | B3: =+Titulo_01 -> PREFEITURA MUNICIPAL DE CHAPECO
A4: pedro milton golfe | B4: =+Titulo_02 -> CONTROLADORIA GERAL DO MUNICÍPIO
A5: pedro milton golfe | B5: =+Titulo_03 -> SISTEMA DE TRANSPORTE PÚBLICO DE PASSAGEIROS
B7: CÁLCULO DOS COEFICIENTES DE DEPRECIAÇÃO E REMUNERAÇÃO
B9: Idade - Anos | C9: Seq | D9: Valor Residual | E9: Vida Util | F9: DEPRECIAÇÃO ACELERADA - COLE | L9: REMUNERAÇÃO | O9: DEPRECIAÇÃO LINEAR | S9: REMUNERAÇÃO
F10: Seq | G10: Seq Acum | H10: Coeficiente de Depreciação | I10: Coeficiente de Depr acum | J10: recuperação vlr residual | K10: Saldo Residual | L10: Saldo Inicial | M10: Coeficiente de remuneração | O10: Coeficiente de Depreciação | P10: Coeficiente de Depr acum | Q10: recuperação vlr residual | R10: Saldo Residual | S10: Saldo Inicial | T10: Coeficiente de remuneração
B13: Micro Onibus | C13: ? | D13: =+Consumo!K267 -> 0.15 | E13: =+Consumo!K273 -> 8
B14: Onibus Leve | C14: ? | D14: =+Consumo!K268 -> 0.15 | E14: =+Consumo!K274 -> 8
B15: Onibus Pesado | C15: ? | D15: =+Consumo!K269 -> 0.1 | E15: =+Consumo!K275 -> 10
B16: Onibus Articulado | C16: ? | D16: =+Consumo!K270 -> 0.1 | E16: =+Consumo!K276 -> 10
B20: Tipo de Bem | F20: MICRO ONIBUS | O20: =+F20 -> MICRO ONIBUS
B21: Vida Útil | F21: =+E$13 -> 8 | G21: ANOS
B22: Valor Residual | F22: =+D$13 -> 0.15 | Q22: =+J22 -> 0
B23: Taxa de Remuneração (% ao ano) | F23: =Taxa_remuner -> 0.12 | P23: =+P24-O23 -> 0.85 | Q23: 0
P24: =1*(1-F22) -> 0.85 | Q24: 0 | R24: 1
B25: 0 a 1 ano | C25: 1 | D25: =+F22 -> 0.15 | E25: =+F21 -> 8 | F25: =+E25 -> 8 | G25: =+E25*(1+E25)/2 -> 36 | H25: =ROUND((1-(1*D25))/G25*F25,8) -> 0.18888889 | I25: =+I24+H25 -> 0.18888889 | J25: =IF(F25=1,1*D25,0) -> 0 | K25: =1-I25 -> 0.81111111 | L25: 1 | M25: =ROUND(+L25*Taxa_remuner,8) -> 0.12 | O25: =IF(P24=0,0,+P24/F25) -> 0.10625 | P25: =+P24-O25 -> 0.74375 | Q25: 0 | R25: =+R24-O25-Q25 -> 0.89375 | S25: 1 | T25: =ROUND(+S25*Taxa_remuner,8) -> 0.12
B26: 1 a 2 anos | C26: =+C25+1 -> 2 | D26: =+D25 -> 0.15 | E26: =+E25 -> 8 | F26: =IF(F25<2,0,F25-1) -> 7 | G26: =+E26*(1+E26)/2 -> 36 | H26: =ROUND((1-(1*D26))/G26*F26,8) -> 0.16527778 | I26: 0.35416667 | J26: 0 | K26: 0.64583333 | L26: =+L25-H25-J26 -> 0.81111111 | M26: 0.09733333 | O26: 0.10625 | P26: 0.6375 | Q26: 0 | R26: =+R25-O26-Q26 -> 0.7875 | S26: =+S25-O25-Q25 -> 0.89375 | T26: 0.10725
B27: 2 a 3 anos | C27: 3 | D27: =+D26 -> 0.15 | E27: 8 | F27: 6 | G27: =+E27*(1+E27)/2 -> 36 | H27: =ROUND((1-(1*D27))/G27*F27,8) -> 0.14166667 | I27: 0.49583334 | J27: 0 | K27: 0.50416666 | L27: 0.64583333 | M27: 0.0775 | O27: 0.10625 | P27: 0.53125 | Q27: 0 | R27: 0.68125 | S27: 0.7875 | T27: 0.0945
B28: 3 a 4 anos | C28: 4 | D28: 0.15 | E28: 8 | F28: 5 | G28: 36 | H28: 0.11805556 | I28: 0.6138889 | J28: 0 | K28: 0.3861111 | L28: 0.50416666 | M28: 0.0605 | O28: 0.10625 | P28: 0.425 | Q28: 0 | R28: 0.575 | S28: 0.68125 | T28: 0.08175
B29: 4 a 5 anos | C29: 5 | D29: 0.15 | E29: 8 | F29: 4 | G29: 36 | H29: 0.09444444 | I29: 0.70833334 | J29: 0 | K29: 0.29166666 | L29: 0.3861111 | M29: 0.04633333 | O29: 0.10625 | P29: 0.31875 | Q29: 0 | R29: 0.46875 | S29: 0.575 | T29: 0.069
B30: 5 a 6 anos | C30: 6 | D30: 0.15 | E30: 8 | F30: 3 | G30: 36 | H30: 0.07083333 | I30: 0.77916667 | J30: 0 | K30: 0.22083333 | L30: 0.29166666 | M30: 0.035 | O30: 0.10625 | P30: 0.2125 | Q30: 0 | R30: 0.3625 | S30: 0.46875 | T30: 0.05625
B31: 6 a 7 anos | C31: 7 | D31: 0.15 | E31: 8 | F31: 2 | G31: 36 | H31: 0.04722222 | I31: 0.82638889 | J31: 0 | K31: =+K30-H31-J31 -> 0.17361111 | L31: 0.22083333 | M31: 0.0265 | O31: 0.10625 | P31: 0.10625 | Q31: 0 | R31: 0.25625 | S31: 0.3625 | T31: 0.0435
B32: 7 a 8 anos | C32: 8 | D32: 0.15 | E32: 8 | F32: 1 | G32: 36 | H32: 0.02361111 | I32: 0.85 | J32: 0.15 | K32: =+K31-H32-J32 -> 0 | L32: 0.02361111 | M32: 0.00283333 | O32: 0.10625 | P32: 0 | Q32: 0.15 | R32: 2.220446049e-16 | S32: 0.25625 | T32: 0.03075
B33: 8 a 9 anos | C33: 9 | D33: 0.15 | E33: 8 | F33: 0 | G33: 36 | H33: 0 | I33: 0.85 | J33: 0 | K33: =+K32-H33-J33 -> 0 | L33: -3.816391647e-17 | M33: 0 | O33: 0 | P33: 0 | Q33: 0 | R33: =+R32-O33-Q33 -> 2.220446049e-16 | S33: 2.220446049e-16 | T33: 0
B34: 9 a 10 anos | C34: 10 | D34: 0.15 | E34: 8 | F34: 0 | G34: 36 | H34: 0 | I34: 0.85 | J34: 0 | K34: 0 | L34: -3.816391647e-17 | M34: 0 | O34: 0 | P34: 0 | Q34: =+J34 -> 0 | R34: =+R33-O34-Q34 -> 2.220446049e-16 | S34: 2.220446049e-16 | T34: 0
B35: 10 a 11 anos | C35: 11 | D35: 0.15 | E35: 8 | F35: 0 | G35: 36 | H35: 0 | I35: 0.85 | J35: 0 | K35: 0 | L35: -3.816391647e-17 | M35: 0 | O35: =IF(P34=0,0,+P34/F35) -> 0 | P35: 0 | Q35: =+J35 -> 0 | R35: 2.220446049e-16 | S35: =+S34-O34-Q34 -> 2.220446049e-16 | T35: 0
B36: 11 a 12 anos | C36: 12 | D36: 0.15 | E36: 8 | F36: 0 | G36: 36 | H36: 0 | I36: 0.85 | J36: 0 | K36: 0 | L36: -3.816391647e-17 | M36: 0 | O36: 0 | P36: 0 | Q36: 0 | R36: 2.220446049e-16 | S36: =+S35-O35-Q35 -> 2.220446049e-16 | T36: 0
B37: 12 a 13 anos | C37: 13 | D37: 0.15 | E37: 8 | F37: 0 | G37: 36 | H37: 0 | I37: 0.85 | J37: 0 | K37: 0 | L37: -3.816391647e-17 | M37: 0 | O37: 0 | P37: =+P36-O37 -> 0 | Q37: 0 | R37: 2.220446049e-16 | S37: 2.220446049e-16 | T37: 0
B38: 13 a 14 anos | C38: 14 | D38: 0.15 | E38: 8 | F38: 0 | G38: 36 | H38: 0 | I38: 0.85 | J38: 0 | K38: 0 | L38: -3.816391647e-17 | M38: 0 | O38: 0 | P38: =+P37-O38 -> 0 | Q38: 0 | R38: 2.220446049e-16 | S38: 2.220446049e-16 | T38: 0
B39: 14 a 15 anos | C39: 15 | D39: 0.15 | E39: 8 | F39: 0 | G39: 36 | H39: 0 | I39: 0.85 | J39: 0 | K39: 0 | L39: -3.816391647e-17 | M39: 0 | O39: 0 | P39: =+P38-O39 -> 0 | Q39: 0 | R39: 2.220446049e-16 | S39: 2.220446049e-16 | T39: 0
B40: + de 15 anos | C40: 16 | D40: 0.15 | E40: 8 | F40: 0 | G40: 36 | H40: 0 | I40: 0.85 | J40: 0 | K40: 0 | L40: -3.816391647e-17 | M40: 0 | O40: 0 | P40: =+P39-O40 -> 0 | Q40: 0 | R40: 2.220446049e-16 | S40: 2.220446049e-16 | T40: 0
B43: Tipo de Bem | F43: ONIBUS LEVE | O43: =+F43 -> ONIBUS LEVE
B44: Vida Útil | F44: =+E$14 -> 8 | G44: ANOS
B45: Valor Residual | F45: =+D$14 -> 0.15 | Q45: =+J45 -> 0
B46: Taxa de Remuneração (% ao ano) | F46: =Taxa_remuner -> 0.12 | P46: =+P47-O46 -> 0.85 | Q46: 0
P47: =1*(1-F45) -> 0.85 | Q47: 0 | R47: 1
B48: 0 a 1 ano | C48: 1 | D48: =+F45 -> 0.15 | E48: =+F44 -> 8 | F48: =+E48 -> 8 | G48: =+E48*(1+E48)/2 -> 36 | H48: =ROUND((1-(1*D48))/G48*F48,8) -> 0.18888889 | I48: =+I47+H48 -> 0.18888889 | J48: =IF(F48=1,1*D48,0) -> 0 | K48: =1-I48 -> 0.81111111 | L48: 1 | M48: =ROUND(+L48*Taxa_remuner,8) -> 0.12 | O48: =IF(P47=0,0,+P47/F48) -> 0.10625 | P48: =+P47-O48 -> 0.74375 | Q48: 0 | R48: =+R47-O48-Q48 -> 0.89375 | S48: 1 | T48: =ROUND(+S48*Taxa_remuner,8) -> 0.12
B49: 1 a 2 anos | C49: =+C48+1 -> 2 | D49: =+D48 -> 0.15 | E49: =+E48 -> 8 | F49: =IF(F48<2,0,F48-1) -> 7 | G49: 36 | H49: 0.16527778 | I49: 0.35416667 | J49: 0 | K49: 0.64583333 | L49: =+L48-H48-J49 -> 0.81111111 | M49: 0.09733333 | O49: 0.10625 | P49: 0.6375 | Q49: 0 | R49: =+R48-O49-Q49 -> 0.7875 | S49: =+S48-O48-Q48 -> 0.89375 | T49: 0.10725
B50: 2 a 3 anos | C50: 3 | D50: 0.15 | E50: 8 | F50: 6 | G50: 36 | H50: 0.14166667 | I50: 0.49583334 | J50: 0 | K50: 0.50416666 | L50: 0.64583333 | M50: 0.0775 | O50: 0.10625 | P50: 0.53125 | Q50: 0 | R50: 0.68125 | S50: 0.7875 | T50: 0.0945
B51: 3 a 4 anos | C51: 4 | D51: 0.15 | E51: 8 | F51: 5 | G51: 36 | H51: 0.11805556 | I51: 0.6138889 | J51: 0 | K51: 0.3861111 | L51: 0.50416666 | M51: 0.0605 | O51: 0.10625 | P51: 0.425 | Q51: 0 | R51: 0.575 | S51: 0.68125 | T51: 0.08175
B52: 4 a 5 anos | C52: 5 | D52: 0.15 | E52: 8 | F52: 4 | G52: 36 | H52: 0.09444444 | I52: 0.70833334 | J52: 0 | K52: 0.29166666 | L52: 0.3861111 | M52: 0.04633333 | O52: 0.10625 | P52: 0.31875 | Q52: 0 | R52: 0.46875 | S52: 0.575 | T52: 0.069
B53: 5 a 6 anos | C53: 6 | D53: 0.15 | E53: 8 | F53: 3 | G53: 36 | H53: 0.07083333 | I53: 0.77916667 | J53: 0 | K53: 0.22083333 | L53: 0.29166666 | M53: 0.035 | O53: 0.10625 | P53: 0.2125 | Q53: 0 | R53: 0.3625 | S53: 0.46875 | T53: 0.05625
B54: 6 a 7 anos | C54: 7 | D54: 0.15 | E54: 8 | F54: 2 | G54: 36 | H54: 0.04722222 | I54: 0.82638889 | J54: 0 | K54: =+K53-H54-J54 -> 0.17361111 | L54: 0.22083333 | M54: 0.0265 | O54: 0.10625 | P54: 0.10625 | Q54: 0 | R54: 0.25625 | S54: 0.3625 | T54: 0.0435
B55: 7 a 8 anos | C55: 8 | D55: 0.15 | E55: 8 | F55: 1 | G55: 36 | H55: 0.02361111 | I55: 0.85 | J55: 0.15 | K55: 0 | L55: 0.02361111 | M55: 0.00283333 | O55: 0.10625 | P55: 0 | Q55: 0.15 | R55: 2.220446049e-16 | S55: 0.25625 | T55: 0.03075
B56: 8 a 9 anos | C56: 9 | D56: 0.15 | E56: 8 | F56: 0 | G56: 36 | H56: 0 | I56: 0.85 | J56: 0 | K56: 0 | L56: -3.816391647e-17 | M56: 0 | O56: 0 | P56: 0 | Q56: 0 | R56: =+R55-O56-Q56 -> 2.220446049e-16 | S56: 2.220446049e-16 | T56: 0
B57: 9 a 10 anos | C57: 10 | D57: 0.15 | E57: 8 | F57: 0 | G57: 36 | H57: 0 | I57: 0.85 | J57: 0 | K57: 0 | L57: -3.816391647e-17 | M57: 0 | O57: 0 | P57: 0 | Q57: =+J57 -> 0 | R57: =+R56-O57-Q57 -> 2.220446049e-16 | S57: 2.220446049e-16 | T57: 0
B58: 10 a 11 anos | C58: 11 | D58: 0.15 | E58: 8 | F58: 0 | G58: 36 | H58: 0 | I58: 0.85 | J58: 0 | K58: 0 | L58: -3.816391647e-17 | M58: 0 | O58: =IF(P57=0,0,+P57/F58) -> 0 | P58: 0 | Q58: =+J58 -> 0 | R58: 2.220446049e-16 | S58: 2.220446049e-16 | T58: 0
B59: 11 a 12 anos | C59: 12 | D59: 0.15 | E59: 8 | F59: 0 | G59: 36 | H59: 0 | I59: 0.85 | J59: 0 | K59: 0 | L59: -3.816391647e-17 | M59: 0 | O59: 0 | P59: 0 | Q59: 0 | R59: 2.220446049e-16 | S59: 2.220446049e-16 | T59: 0
B60: 12 a 13 anos | C60: 13 | D60: 0.15 | E60: 8 | F60: 0 | G60: 36 | H60: 0 | I60: 0.85 | J60: 0 | K60: 0 | L60: -3.816391647e-17 | M60: 0 | O60: 0 | P60: 0 | Q60: 0 | R60: 2.220446049e-16 | S60: 2.220446049e-16 | T60: 0
B61: 13 a 14 anos | C61: 14 | D61: 0.15 | E61: 8 | F61: 0 | G61: 36 | H61: 0 | I61: 0.85 | J61: 0 | K61: 0 | L61: -3.816391647e-17 | M61: 0 | O61: 0 | P61: 0 | Q61: 0 | R61: 2.220446049e-16 | S61: 2.220446049e-16 | T61: 0
B62: 14 a 15 anos | C62: 15 | D62: 0.15 | E62: 8 | F62: 0 | G62: 36 | H62: 0 | I62: 0.85 | J62: 0 | K62: 0 | L62: -3.816391647e-17 | M62: 0 | O62: 0 | P62: 0 | Q62: 0 | R62: 2.220446049e-16 | S62: 2.220446049e-16 | T62: 0
B63: + de 15 anos | C63: 16 | D63: 0.15 | E63: 8 | F63: 0 | G63: 36 | H63: 0 | I63: 0.85 | J63: 0 | K63: 0 | L63: -3.816391647e-17 | M63: 0 | O63: 0 | P63: 0 | Q63: 0 | R63: 2.220446049e-16 | S63: 2.220446049e-16 | T63: 0
B66: Tipo de Bem | F66: ONIBUS PESADO | O66: =+F66 -> ONIBUS PESADO
B67: Vida Útil | F67: =+E$15 -> 10 | G67: ANOS
B68: Valor Residual | F68: =+D$15 -> 0.1 | Q68: =+J68 -> 0
B69: Taxa de Remuneração (% ao ano) | F69: =Taxa_remuner -> 0.12 | P69: =+P70-O69 -> 0.9 | Q69: 0
P70: =1*(1-F68) -> 0.9 | Q70: 0 | R70: 1
B71: 0 a 1 ano | C71: 1 | D71: =+F68 -> 0.1 | E71: =+F67 -> 10 | F71: =+E71 -> 10 | G71: =+E71*(1+E71)/2 -> 55 | H71: =ROUND((1-(1*D71))/G71*F71,8) -> 0.16363636 | I71: =+I70+H71 -> 0.16363636 | J71: =IF(F71=1,1*D71,0) -> 0 | K71: =1-I71 -> 0.83636364 | L71: 1 | M71: =ROUND(+L71*Taxa_remuner,8) -> 0.12 | O71: =IF(P70=0,0,+P70/F71) -> 0.09 | P71: =+P70-O71 -> 0.81 | Q71: 0 | R71: =+R70-O71-Q71 -> 0.91 | S71: 1 | T71: =ROUND(+S71*Taxa_remuner,8) -> 0.12
B72: 1 a 2 anos | C72: =+C71+1 -> 2 | D72: =+D71 -> 0.1 | E72: =+E71 -> 10 | F72: =IF(F71<2,0,F71-1) -> 9 | G72: =+E72*(1+E72)/2 -> 55 | H72: =ROUND((1-(1*D72))/G72*F72,8) -> 0.14727273 | I72: 0.31090909 | J72: 0 | K72: 0.68909091 | L72: =+L71-H71-J72 -> 0.83636364 | M72: 0.10036364 | O72: 0.09 | P72: 0.72 | Q72: 0 | R72: =+R71-O72-Q72 -> 0.82 | S72: =+S71-O71-Q71 -> 0.91 | T72: 0.1092
B73: 2 a 3 anos | C73: 3 | D73: =+D72 -> 0.1 | E73: 10 | F73: 8 | G73: =+E73*(1+E73)/2 -> 55 | H73: =ROUND((1-(1*D73))/G73*F73,8) -> 0.13090909 | I73: 0.44181818 | J73: 0 | K73: 0.55818182 | L73: 0.68909091 | M73: 0.08269091 | O73: 0.09 | P73: 0.63 | Q73: 0 | R73: 0.73 | S73: 0.82 | T73: 0.0984
B74: 3 a 4 anos | C74: 4 | D74: 0.1 | E74: 10 | F74: 7 | G74: 55 | H74: 0.11454545 | I74: 0.55636363 | J74: 0 | K74: 0.44363637 | L74: 0.55818182 | M74: 0.06698182 | O74: 0.09 | P74: 0.54 | Q74: 0 | R74: 0.64 | S74: 0.73 | T74: 0.0876
B75: 4 a 5 anos | C75: 5 | D75: 0.1 | E75: 10 | F75: 6 | G75: 55 | H75: 0.09818182 | I75: 0.65454545 | J75: 0 | K75: 0.34545455 | L75: 0.44363637 | M75: 0.05323636 | O75: 0.09 | P75: 0.45 | Q75: 0 | R75: 0.55 | S75: 0.64 | T75: 0.0768
B76: 5 a 6 anos | C76: 6 | D76: 0.1 | E76: 10 | F76: 5 | G76: 55 | H76: 0.08181818 | I76: 0.73636363 | J76: 0 | K76: 0.26363637 | L76: 0.34545455 | M76: 0.04145455 | O76: 0.09 | P76: 0.36 | Q76: 0 | R76: 0.46 | S76: 0.55 | T76: 0.066
B77: 6 a 7 anos | C77: 7 | D77: 0.1 | E77: 10 | F77: 4 | G77: 55 | H77: 0.06545455 | I77: 0.80181818 | J77: 0 | K77: =+K76-H77-J77 -> 0.19818182 | L77: 0.26363637 | M77: 0.03163636 | O77: 0.09 | P77: 0.27 | Q77: 0 | R77: 0.37 | S77: 0.46 | T77: 0.0552
B78: 7 a 8 anos | C78: 8 | D78: 0.1 | E78: 10 | F78: 3 | G78: 55 | H78: 0.04909091 | I78: 0.85090909 | J78: 0 | K78: =+K77-H78-J78 -> 0.14909091 | L78: 0.19818182 | M78: 0.02378182 | O78: 0.09 | P78: 0.18 | Q78: 0 | R78: 0.28 | S78: 0.37 | T78: 0.0444
B79: 8 a 9 anos | C79: 9 | D79: 0.1 | E79: 10 | F79: 2 | G79: 55 | H79: 0.03272727 | I79: 0.88363636 | J79: 0 | K79: =+K78-H79-J79 -> 0.11636364 | L79: 0.14909091 | M79: 0.01789091 | O79: 0.09 | P79: 0.09 | Q79: 0 | R79: =+R78-O79-Q79 -> 0.19 | S79: 0.28 | T79: 0.0336
B80: 9 a 10 anos | C80: 10 | D80: 0.1 | E80: 10 | F80: 1 | G80: 55 | H80: 0.01636364 | I80: 0.9 | J80: 0.1 | K80: 0 | L80: 0.01636364 | M80: 0.00196364 | O80: 0.09 | P80: 0 | Q80: =+J80 -> 0.1 | R80: =+R79-O80-Q80 -> 0 | S80: 0.19 | T80: 0.0228
B81: 10 a 11 anos | C81: 11 | D81: 0.1 | E81: 10 | F81: 0 | G81: 55 | H81: 0 | I81: 0.9 | J81: 0 | K81: 0 | L81: -9.714451465e-17 | M81: 0 | O81: =IF(P80=0,0,+P80/F81) -> 0 | P81: 0 | Q81: =+J81 -> 0 | R81: 0 | S81: 0 | T81: 0
B82: 11 a 12 anos | C82: 12 | D82: 0.1 | E82: 10 | F82: 0 | G82: 55 | H82: 0 | I82: 0.9 | J82: 0 | K82: 0 | L82: -9.714451465e-17 | M82: 0 | O82: 0 | P82: 0 | Q82: 0 | R82: 0 | S82: 0 | T82: 0
B83: 12 a 13 anos | C83: 13 | D83: 0.1 | E83: 10 | F83: 0 | G83: 55 | H83: 0 | I83: 0.9 | J83: 0 | K83: 0 | L83: -9.714451465e-17 | M83: 0 | O83: 0 | P83: 0 | Q83: 0 | R83: 0 | S83: 0 | T83: 0
B84: 13 a 14 anos | C84: 14 | D84: 0.1 | E84: 10 | F84: 0 | G84: 55 | H84: 0 | I84: 0.9 | J84: 0 | K84: 0 | L84: -9.714451465e-17 | M84: 0 | O84: 0 | P84: 0 | Q84: 0 | R84: 0 | S84: 0 | T84: 0
B85: 14 a 15 anos | C85: 15 | D85: 0.1 | E85: 10 | F85: 0 | G85: 55 | H85: 0 | I85: 0.9 | J85: 0 | K85: 0 | L85: -9.714451465e-17 | M85: 0 | O85: 0 | P85: 0 | Q85: 0 | R85: 0 | S85: 0 | T85: 0
B86: + de 15 anos | C86: 16 | D86: 0.1 | E86: 10 | F86: 0 | G86: 55 | H86: 0 | I86: 0.9 | J86: 0 | K86: 0 | L86: -9.714451465e-17 | M86: 0 | O86: 0 | P86: 0 | Q86: 0 | R86: 0 | S86: 0 | T86: 0
B89: Tipo de Bem | F89: ONIBUS ARTICULADO | O89: =+F89 -> ONIBUS ARTICULADO
B90: Vida Útil | F90: =+E$16 -> 10 | G90: ANOS
B91: Valor Residual | F91: =+D$16 -> 0.1 | Q91: =+J91 -> 0
B92: Taxa de Remuneração (% ao ano) | F92: =Taxa_remuner -> 0.12 | P92: =+P93-O92 -> 0.9 | Q92: 0
P93: =1*(1-F91) -> 0.9 | Q93: 0 | R93: 1
B94: 0 a 1 ano | C94: 1 | D94: =+F91 -> 0.1 | E94: =+F90 -> 10 | F94: =+E94 -> 10 | G94: =+E94*(1+E94)/2 -> 55 | H94: =ROUND((1-(1*D94))/G94*F94,8) -> 0.16363636 | I94: =+I93+H94 -> 0.16363636 | J94: =IF(F94=1,1*D94,0) -> 0 | K94: =1-I94 -> 0.83636364 | L94: 1 | M94: =ROUND(+L94*Taxa_remuner,8) -> 0.12 | O94: =IF(P93=0,0,+P93/F94) -> 0.09 | P94: =+P93-O94 -> 0.81 | Q94: 0 | R94: =+R93-O94-Q94 -> 0.91 | S94: 1 | T94: =ROUND(+S94*Taxa_remuner,8) -> 0.12
B95: 1 a 2 anos | C95: =+C94+1 -> 2 | D95: =+D94 -> 0.1 | E95: =+E94 -> 10 | F95: =IF(F94<2,0,F94-1) -> 9 | G95: =+E95*(1+E95)/2 -> 55 | H95: =ROUND((1-(1*D95))/G95*F95,8) -> 0.14727273 | I95: 0.31090909 | J95: 0 | K95: 0.68909091 | L95: =+L94-H94-J95 -> 0.83636364 | M95: 0.10036364 | O95: 0.09 | P95: 0.72 | Q95: 0 | R95: =+R94-O95-Q95 -> 0.82 | S95: =+S94-O94-Q94 -> 0.91 | T95: 0.1092
B96: 2 a 3 anos | C96: 3 | D96: =+D95 -> 0.1 | E96: 10 | F96: 8 | G96: =+E96*(1+E96)/2 -> 55 | H96: =ROUND((1-(1*D96))/G96*F96,8) -> 0.13090909 | I96: 0.44181818 | J96: 0 | K96: 0.55818182 | L96: 0.68909091 | M96: 0.08269091 | O96: 0.09 | P96: 0.63 | Q96: 0 | R96: 0.73 | S96: 0.82 | T96: 0.0984
B97: 3 a 4 anos | C97: 4 | D97: 0.1 | E97: 10 | F97: 7 | G97: 55 | H97: 0.11454545 | I97: 0.55636363 | J97: 0 | K97: 0.44363637 | L97: 0.55818182 | M97: 0.06698182 | O97: 0.09 | P97: 0.54 | Q97: 0 | R97: 0.64 | S97: 0.73 | T97: 0.0876
B98: 4 a 5 anos | C98: 5 | D98: 0.1 | E98: 10 | F98: 6 | G98: 55 | H98: 0.09818182 | I98: 0.65454545 | J98: 0 | K98: 0.34545455 | L98: 0.44363637 | M98: 0.05323636 | O98: 0.09 | P98: 0.45 | Q98: 0 | R98: 0.55 | S98: 0.64 | T98: 0.0768
B99: 5 a 6 anos | C99: 6 | D99: 0.1 | E99: 10 | F99: 5 | G99: 55 | H99: 0.08181818 | I99: 0.73636363 | J99: 0 | K99: 0.26363637 | L99: 0.34545455 | M99: 0.04145455 | O99: 0.09 | P99: 0.36 | Q99: 0 | R99: 0.46 | S99: 0.55 | T99: 0.066
B100: 6 a 7 anos | C100: 7 | D100: 0.1 | E100: 10 | F100: 4 | G100: 55 | H100: 0.06545455 | I100: 0.80181818 | J100: 0 | K100: =+K99-H100-J100 -> 0.19818182 | L100: 0.26363637 | M100: 0.03163636 | O100: 0.09 | P100: 0.27 | Q100: 0 | R100: 0.37 | S100: 0.46 | T100: 0.0552
B101: 7 a 8 anos | C101: 8 | D101: 0.1 | E101: 10 | F101: 3 | G101: 55 | H101: 0.04909091 | I101: 0.85090909 | J101: 0 | K101: =+K100-H101-J101 -> 0.14909091 | L101: 0.19818182 | M101: 0.02378182 | O101: 0.09 | P101: 0.18 | Q101: 0 | R101: 0.28 | S101: 0.37 | T101: 0.0444
B102: 8 a 9 anos | C102: 9 | D102: 0.1 | E102: 10 | F102: 2 | G102: 55 | H102: 0.03272727 | I102: 0.88363636 | J102: 0 | K102: =+K101-H102-J102 -> 0.11636364 | L102: 0.14909091 | M102: 0.01789091 | O102: 0.09 | P102: 0.09 | Q102: 0 | R102: =+R101-O102-Q102 -> 0.19 | S102: 0.28 | T102: 0.0336
B103: 9 a 10 anos | C103: 10 | D103: 0.1 | E103: 10 | F103: 1 | G103: 55 | H103: 0.01636364 | I103: 0.9 | J103: 0.1 | K103: 0 | L103: 0.01636364 | M103: 0.00196364 | O103: 0.09 | P103: 0 | Q103: =+J103 -> 0.1 | R103: =+R102-O103-Q103 -> 0 | S103: 0.19 | T103: 0.0228
B104: 10 a 11 anos | C104: 11 | D104: 0.1 | E104: 10 | F104: 0 | G104: 55 | H104: 0 | I104: 0.9 | J104: 0 | K104: 0 | L104: -9.714451465e-17 | M104: 0 | O104: =IF(P103=0,0,+P103/F104) -> 0 | P104: 0 | Q104: =+J104 -> 0 | R104: 0 | S104: 0 | T104: 0
B105: 11 a 12 anos | C105: 12 | D105: 0.1 | E105: 10 | F105: 0 | G105: 55 | H105: 0 | I105: 0.9 | J105: 0 | K105: 0 | L105: -9.714451465e-17 | M105: 0 | O105: 0 | P105: 0 | Q105: 0 | R105: 0 | S105: 0 | T105: 0
B106: 12 a 13 anos | C106: 13 | D106: 0.1 | E106: 10 | F106: 0 | G106: 55 | H106: 0 | I106: 0.9 | J106: 0 | K106: 0 | L106: -9.714451465e-17 | M106: 0 | O106: 0 | P106: 0 | Q106: 0 | R106: 0 | S106: 0 | T106: 0
B107: 13 a 14 anos | C107: 14 | D107: 0.1 | E107: 10 | F107: 0 | G107: 55 | H107: 0 | I107: 0.9 | J107: 0 | K107: 0 | L107: -9.714451465e-17 | M107: 0 | O107: 0 | P107: 0 | Q107: 0 | R107: 0 | S107: 0 | T107: 0
B108: 14 a 15 anos | C108: 15 | D108: 0.1 | E108: 10 | F108: 0 | G108: 55 | H108: 0 | I108: 0.9 | J108: 0 | K108: 0 | L108: -9.714451465e-17 | M108: 0 | O108: 0 | P108: 0 | Q108: 0 | R108: 0 | S108: 0 | T108: 0
B109: + de 15 anos | C109: 16 | D109: 0.1 | E109: 10 | F109: 0 | G109: 55 | H109: 0 | I109: 0.9 | J109: 0 | K109: 0 | L109: -9.714451465e-17 | M109: 0 | O109: 0 | P109: 0 | Q109: 0 | R109: 0 | S109: 0 | T109: 0
B112: Tipo de Bem | F112: =+Consumo!C363 -> Sist. de Bilhetagem monitoramento/validação | O112: =+F112 -> Sist. de Bilhetagem monitoramento/validação
B113: Vida Útil | F113: =+Consumo!K367 -> 5 | G113: ANOS
B114: Valor Residual | F114: 0 | Q114: =+J114 -> 0
B115: Taxa de Remuneração (% ao ano) | F115: =Taxa_remuner -> 0.12 | P115: =+P116-O115 -> 1 | Q115: 0
P116: =1*(1-F114) -> 1 | Q116: 0 | R116: 1
B117: 0 a 1 ano | C117: 1 | D117: =+F114 -> 0 | E117: =+F113 -> 5 | F117: =+E117 -> 5 | G117: =+E117*(1+E117)/2 -> 15 | H117: =ROUND((1-(1*D117))/G117*F117,8) -> 0.33333333 | I117: =+I116+H117 -> 0.33333333 | J117: =IF(F117=1,1*D117,0) -> 0 | K117: =1-I117 -> 0.66666667 | L117: 1 | M117: =ROUND(+L117*Taxa_remuner,8) -> 0.12 | O117: =IF(P116=0,0,+P116/F117) -> 0.2 | P117: =+P116-O117 -> 0.8 | Q117: 0 | R117: =+R116-O117-Q117 -> 0.8 | S117: 1 | T117: =ROUND(+S117*Taxa_remuner,8) -> 0.12
B118: 1 a 2 anos | C118: =+C117+1 -> 2 | D118: =+D117 -> 0 | E118: =+E117 -> 5 | F118: =IF(F117<2,0,F117-1) -> 4 | G118: =+E118*(1+E118)/2 -> 15 | H118: =ROUND((1-(1*D118))/G118*F118,8) -> 0.26666667 | I118: 0.6 | J118: 0 | K118: 0.4 | L118: =+L117-H117-J118 -> 0.66666667 | M118: 0.08 | O118: 0.2 | P118: 0.6 | Q118: 0 | R118: =+R117-O118-Q118 -> 0.6 | S118: =+S117-O117-Q117 -> 0.8 | T118: 0.096
B119: 2 a 3 anos | C119: 3 | D119: =+D118 -> 0 | E119: 5 | F119: 3 | G119: =+E119*(1+E119)/2 -> 15 | H119: =ROUND((1-(1*D119))/G119*F119,8) -> 0.2 | I119: 0.8 | J119: 0 | K119: 0.2 | L119: 0.4 | M119: 0.048 | O119: 0.2 | P119: 0.4 | Q119: 0 | R119: 0.4 | S119: 0.6 | T119: 0.072
B120: 3 a 4 anos | C120: 4 | D120: 0 | E120: 5 | F120: 2 | G120: 15 | H120: 0.13333333 | I120: 0.93333333 | J120: 0 | K120: 0.06666667 | L120: 0.2 | M120: 0.024 | O120: 0.2 | P120: 0.2 | Q120: 0 | R120: 0.2 | S120: 0.4 | T120: 0.048
B121: 4 a 5 anos | C121: 5 | D121: 0 | E121: 5 | F121: 1 | G121: 15 | H121: 0.06666667 | I121: 1 | J121: 0 | K121: 0 | L121: 0.06666667 | M121: 0.008 | O121: 0.2 | P121: 0 | Q121: 0 | R121: 0 | S121: 0.2 | T121: 0.024
B122: 5 a 6 anos | C122: 6 | D122: 0 | E122: 5 | F122: 0 | G122: 15 | H122: 0 | I122: 1 | J122: 0 | K122: 0 | L122: 1.387778781e-17 | M122: 0 | O122: 0 | P122: 0 | Q122: 0 | R122: 0 | S122: 0 | T122: 0
B123: 6 a 7 anos | C123: 7 | D123: 0 | E123: 5 | F123: 0 | G123: 15 | H123: 0 | I123: 1 | J123: 0 | K123: =+K122-H123-J123 -> 0 | L123: 1.387778781e-17 | M123: 0 | O123: 0 | P123: 0 | Q123: 0 | R123: 0 | S123: 0 | T123: 0
B124: 7 a 8 anos | C124: 8 | D124: 0 | E124: 5 | F124: 0 | G124: 15 | H124: 0 | I124: 1 | J124: 0 | K124: =+K123-H124-J124 -> 0 | L124: 1.387778781e-17 | M124: 0 | O124: 0 | P124: 0 | Q124: 0 | R124: 0 | S124: 0 | T124: 0
B125: 8 a 9 anos | C125: 9 | D125: 0 | E125: 5 | F125: 0 | G125: 15 | H125: 0 | I125: 1 | J125: 0 | K125: =+K124-H125-J125 -> 0 | L125: 1.387778781e-17 | M125: 0 | O125: 0 | P125: 0 | Q125: 0 | R125: =+R124-O125-Q125 -> 0 | S125: 0 | T125: 0
B126: 9 a 10 anos | C126: 10 | D126: 0 | E126: 5 | F126: 0 | G126: 15 | H126: 0 | I126: 1 | J126: 0 | K126: 0 | L126: 1.387778781e-17 | M126: 0 | O126: 0 | P126: 0 | Q126: =+J126 -> 0 | R126: =+R125-O126-Q126 -> 0 | S126: 0 | T126: 0
B127: 10 a 11 anos | C127: 11 | D127: 0 | E127: 5 | F127: 0 | G127: 15 | H127: 0 | I127: 1 | J127: 0 | K127: 0 | L127: 1.387778781e-17 | M127: 0 | O127: =IF(P126=0,0,+P126/F127) -> 0 | P127: 0 | Q127: =+J127 -> 0 | R127: 0 | S127: 0 | T127: 0
B128: 11 a 12 anos | C128: 12 | D128: 0 | E128: 5 | F128: 0 | G128: 15 | H128: 0 | I128: 1 | J128: 0 | K128: 0 | L128: 1.387778781e-17 | M128: 0 | O128: 0 | P128: 0 | Q128: 0 | R128: 0 | S128: 0 | T128: 0
B129: 12 a 13 anos | C129: 13 | D129: 0 | E129: 5 | F129: 0 | G129: 15 | H129: 0 | I129: 1 | J129: 0 | K129: 0 | L129: 1.387778781e-17 | M129: 0 | O129: 0 | P129: 0 | Q129: 0 | R129: 0 | S129: 0 | T129: 0
B130: 13 a 14 anos | C130: 14 | D130: 0 | E130: 5 | F130: 0 | G130: 15 | H130: 0 | I130: 1 | J130: 0 | K130: 0 | L130: 1.387778781e-17 | M130: 0 | O130: 0 | P130: 0 | Q130: 0 | R130: 0 | S130: 0 | T130: 0
B131: 14 a 15 anos | C131: 15 | D131: 0 | E131: 5 | F131: 0 | G131: 15 | H131: 0 | I131: 1 | J131: 0 | K131: 0 | L131: 1.387778781e-17 | M131: 0 | O131: 0 | P131: 0 | Q131: 0 | R131: 0 | S131: 0 | T131: 0
B132: + de 15 anos | C132: 16 | D132: 0 | E132: 5 | F132: 0 | G132: 15 | H132: 0 | I132: 1 | J132: 0 | K132: 0 | L132: 1.387778781e-17 | M132: 0 | O132: 0 | P132: 0 | Q132: 0 | R132: 0 | S132: 0 | T132: 0
B135: Tipo de Bem | F135: =+Consumo!C364 -> Maquinas, Instalações e Equipamentos | O135: =+F135 -> Maquinas, Instalações e Equipamentos
B136: Vida Útil | F136: =+Consumo!K368 -> 10 | G136: ANOS
B137: Valor Residual | F137: =+Consumo!K364 -> 0 | Q137: =+J137 -> 0
B138: Taxa de Remuneração (% ao ano) | F138: =Taxa_remuner -> 0.12 | P138: =+P139-O138 -> 1 | Q138: 0
P139: =1*(1-F137) -> 1 | Q139: 0 | R139: 1
B140: 0 a 1 ano | C140: 1 | D140: =+F137 -> 0 | E140: =+F136 -> 10 | F140: =+E140 -> 10 | G140: =+E140*(1+E140)/2 -> 55 | H140: =ROUND((1-(1*D140))/G140*F140,8) -> 0.18181818 | I140: =+I139+H140 -> 0.18181818 | J140: =IF(F140=1,1*D140,0) -> 0 | K140: =1-I140 -> 0.81818182 | L140: 1 | M140: =ROUND(+L140*Taxa_remuner,8) -> 0.12 | O140: =IF(P139=0,0,+P139/F140) -> 0.1 | P140: =+P139-O140 -> 0.9 | Q140: 0 | R140: =+R139-O140-Q140 -> 0.9 | S140: 1 | T140: =ROUND(+S140*Taxa_remuner,8) -> 0.12
B141: 1 a 2 anos | C141: =+C140+1 -> 2 | D141: =+D140 -> 0 | E141: =+E140 -> 10 | F141: =IF(F140<2,0,F140-1) -> 9 | G141: =+E141*(1+E141)/2 -> 55 | H141: =ROUND((1-(1*D141))/G141*F141,8) -> 0.16363636 | I141: 0.34545454 | J141: 0 | K141: 0.65454546 | L141: =+L140-H140-J141 -> 0.81818182 | M141: 0.09818182 | O141: 0.1 | P141: 0.8 | Q141: 0 | R141: =+R140-O141-Q141 -> 0.8 | S141: =+S140-O140-Q140 -> 0.9 | T141: 0.108
B142: 2 a 3 anos | C142: 3 | D142: 0 | E142: 10 | F142: 8 | G142: =+E142*(1+E142)/2 -> 55 | H142: =ROUND((1-(1*D142))/G142*F142,8) -> 0.14545455 | I142: 0.49090909 | J142: 0 | K142: 0.50909091 | L142: 0.65454546 | M142: 0.07854546 | O142: 0.1 | P142: 0.7 | Q142: 0 | R142: 0.7 | S142: 0.8 | T142: 0.096
B143: 3 a 4 anos | C143: 4 | D143: 0 | E143: 10 | F143: 7 | G143: 55 | H143: 0.12727273 | I143: 0.61818182 | J143: 0 | K143: 0.38181818 | L143: 0.50909091 | M143: 0.06109091 | O143: 0.1 | P143: 0.6 | Q143: 0 | R143: 0.6 | S143: 0.7 | T143: 0.084
B144: 4 a 5 anos | C144: 5 | D144: 0 | E144: 10 | F144: 6 | G144: 55 | H144: 0.10909091 | I144: 0.72727273 | J144: 0 | K144: 0.27272727 | L144: 0.38181818 | M144: 0.04581818 | O144: 0.1 | P144: 0.5 | Q144: 0 | R144: 0.5 | S144: 0.6 | T144: 0.072
B145: 5 a 6 anos | C145: 6 | D145: 0 | E145: 10 | F145: 5 | G145: 55 | H145: 0.09090909 | I145: 0.81818182 | J145: 0 | K145: 0.18181818 | L145: 0.27272727 | M145: 0.03272727 | O145: 0.1 | P145: 0.4 | Q145: 0 | R145: 0.4 | S145: 0.5 | T145: 0.06
B146: 6 a 7 anos | C146: 7 | D146: 0 | E146: 10 | F146: 4 | G146: 55 | H146: 0.07272727 | I146: 0.89090909 | J146: 0 | K146: =+K145-H146-J146 -> 0.10909091 | L146: 0.18181818 | M146: 0.02181818 | O146: 0.1 | P146: 0.3 | Q146: 0 | R146: 0.3 | S146: 0.4 | T146: 0.048
B147: 7 a 8 anos | C147: 8 | D147: 0 | E147: 10 | F147: 3 | G147: 55 | H147: 0.05454545 | I147: 0.94545454 | J147: 0 | K147: =+K146-H147-J147 -> 0.05454546 | L147: 0.10909091 | M147: 0.01309091 | O147: 0.1 | P147: 0.2 | Q147: 0 | R147: 0.2 | S147: 0.3 | T147: 0.036
B148: 8 a 9 anos | C148: 9 | D148: 0 | E148: 10 | F148: 2 | G148: 55 | H148: 0.03636364 | I148: 0.98181818 | J148: 0 | K148: =+K147-H148-J148 -> 0.01818182 | L148: 0.05454546 | M148: 0.00654546 | O148: 0.1 | P148: 0.1 | Q148: 0 | R148: =+R147-O148-Q148 -> 0.1 | S148: 0.2 | T148: 0.024
B149: 9 a 10 anos | C149: 10 | D149: 0 | E149: 10 | F149: 1 | G149: 55 | H149: 0.01818182 | I149: 1 | J149: 0 | K149: -6.245004514e-17 | L149: 0.01818182 | M149: 0.00218182 | O149: 0.1 | P149: 0 | Q149: =+J149 -> 0 | R149: =+R148-O149-Q149 -> 0 | S149: 0.1 | T149: 0.012
B150: 10 a 11 anos | C150: 11 | D150: 0 | E150: 10 | F150: 0 | G150: 55 | H150: 0 | I150: 1 | J150: 0 | K150: -6.245004514e-17 | L150: -3.469446952e-17 | M150: 0 | O150: =IF(P149=0,0,+P149/F150) -> 0 | P150: 0 | Q150: =+J150 -> 0 | R150: 0 | S150: 0 | T150: 0
B151: 11 a 12 anos | C151: 12 | D151: 0 | E151: 10 | F151: 0 | G151: 55 | H151: 0 | I151: 1 | J151: 0 | K151: -6.245004514e-17 | L151: -3.469446952e-17 | M151: 0 | O151: 0 | P151: 0 | Q151: 0 | R151: 0 | S151: 0 | T151: 0
B152: 12 a 13 anos | C152: 13 | D152: 0 | E152: 10 | F152: 0 | G152: 55 | H152: 0 | I152: 1 | J152: 0 | K152: -6.245004514e-17 | L152: -3.469446952e-17 | M152: 0 | O152: 0 | P152: 0 | Q152: 0 | R152: 0 | S152: 0 | T152: 0
B153: 13 a 14 anos | C153: 14 | D153: 0 | E153: 10 | F153: 0 | G153: 55 | H153: 0 | I153: 1 | J153: 0 | K153: -6.245004514e-17 | L153: -3.469446952e-17 | M153: 0 | O153: 0 | P153: 0 | Q153: 0 | R153: 0 | S153: 0 | T153: 0
B154: 14 a 15 anos | C154: 15 | D154: 0 | E154: 10 | F154: 0 | G154: 55 | H154: 0 | I154: 1 | J154: 0 | K154: -6.245004514e-17 | L154: -3.469446952e-17 | M154: 0 | O154: 0 | P154: 0 | Q154: 0 | R154: 0 | S154: 0 | T154: 0
B155: + de 15 anos | C155: 16 | D155: 0 | E155: 10 | F155: 0 | G155: 55 | H155: 0 | I155: 1 | J155: 0 | K155: -6.245004514e-17 | L155: -3.469446952e-17 | M155: 0 | O155: 0 | P155: 0 | Q155: 0 | R155: 0 | S155: 0 | T155: 0
B158: Tipo de Bem | F158: CONSTRUÇÕES
B159: Vida Útil | F159: 20 | G159: ANOS
B160: Valor Residual | F160: 0.5 | G160: DEPRECIAÇÃO LINEAR
B161: Taxa de Remuneração (% ao ano) | F161: =Taxa_remuner -> 0.12
B163: =CONCATENATE("",C163-1," a ",C163," anos") -> 0 a 1 anos | C163: 1 | D163: =+F160 -> 0.5 | E163: =+F159 -> 20 | F163: =+F159 -> 20 | H163: =IF(F163=0,0,(1-(1*D163))/E163) -> 0.025 | I163: =+I162+H163 -> 0.025 | J163: =IF(F163=1,1*D163,0) -> 0 | K163: =1-I163 -> 0.975 | L163: 1 | M163: =ROUND(+L163*Taxa_remuner,8) -> 0.12
B164: 1 a 2 anos | C164: =+C163+1 -> 2 | D164: =+D163 -> 0.5 | E164: =+E163 -> 20 | F164: =IF(F163<2,0,F163-1) -> 19 | H164: =IF(F164=0,0,(1-(1*D164))/E164) -> 0.025 | I164: 0.05 | J164: 0 | K164: 0.95 | L164: =+L163-H163-J163 -> 0.975 | M164: 0.117
B165: 2 a 3 anos | C165: 3 | D165: 0.5 | E165: 20 | F165: 18 | H165: =IF(F165=0,0,(1-(1*D165))/E165) -> 0.025 | I165: 0.075 | J165: 0 | K165: 0.925 | L165: =+L164-H164-J164 -> 0.95 | M165: 0.114
B166: 3 a 4 anos | C166: 4 | D166: 0.5 | E166: 20 | F166: 17 | H166: =IF(F166=0,0,(1-(1*D166))/E166) -> 0.025 | I166: 0.1 | J166: 0 | K166: 0.9 | L166: 0.925 | M166: 0.111
B167: 4 a 5 anos | C167: 5 | D167: 0.5 | E167: 20 | F167: 16 | H167: =IF(F167=0,0,(1-(1*D167))/E167) -> 0.025 | I167: 0.125 | J167: 0 | K167: 0.875 | L167: 0.9 | M167: 0.108
B168: 5 a 6 anos | C168: 6 | D168: 0.5 | E168: 20 | F168: 15 | H168: 0.025 | I168: 0.15 | J168: 0 | K168: 0.85 | L168: 0.875 | M168: 0.105
B169: 6 a 7 anos | C169: 7 | D169: 0.5 | E169: 20 | F169: 14 | H169: 0.025 | I169: 0.175 | J169: 0 | K169: =+K168-H169-J169 -> 0.825 | L169: 0.85 | M169: 0.102
B170: 7 a 8 anos | C170: 8 | D170: 0.5 | E170: 20 | F170: 13 | H170: 0.025 | I170: 0.2 | J170: 0 | K170: =+K169-H170-J170 -> 0.8 | L170: 0.825 | M170: 0.099
B171: =CONCATENATE("",C171-1," a ",C171," anos") -> 8 a 9 anos | C171: 9 | D171: 0.5 | E171: 20 | F171: 12 | H171: 0.025 | I171: =+I170+H171 -> 0.225 | J171: =IF(F171=1,1*D171,0) -> 0 | K171: =+K170-H171-J171 -> 0.775 | L171: 0.8 | M171: 0.096
B172: 9 a 10 anos | C172: 10 | D172: 0.5 | E172: 20 | F172: 11 | H172: 0.025 | I172: 0.25 | J172: 0 | K172: 0.75 | L172: 0.775 | M172: 0.093
B173: 10 a 11 anos | C173: 11 | D173: 0.5 | E173: 20 | F173: 10 | H173: 0.025 | I173: 0.275 | J173: 0 | K173: 0.725 | L173: 0.75 | M173: 0.09
B174: 11 a 12 anos | C174: 12 | D174: 0.5 | E174: 20 | F174: 9 | H174: 0.025 | I174: 0.3 | J174: 0 | K174: 0.7 | L174: 0.725 | M174: 0.087
B175: 12 a 13 anos | C175: 13 | D175: 0.5 | E175: 20 | F175: 8 | H175: 0.025 | I175: 0.325 | J175: 0 | K175: 0.675 | L175: 0.7 | M175: 0.084
B176: 13 a 14 anos | C176: 14 | D176: 0.5 | E176: 20 | F176: 7 | H176: 0.025 | I176: 0.35 | J176: 0 | K176: 0.65 | L176: 0.675 | M176: 0.081
B177: 14 a 15 anos | C177: 15 | D177: 0.5 | E177: 20 | F177: 6 | H177: 0.025 | I177: 0.375 | J177: 0 | K177: 0.625 | L177: 0.65 | M177: 0.078
B178: 15 a 16 anos | C178: 16 | D178: 0.5 | E178: 20 | F178: 5 | H178: 0.025 | I178: 0.4 | J178: 0 | K178: 0.6 | L178: 0.625 | M178: 0.075
B179: 16 a 17 anos | C179: 17 | D179: 0.5 | E179: 20 | F179: 4 | H179: 0.025 | I179: 0.425 | J179: 0 | K179: 0.575 | L179: 0.6 | M179: 0.072
B180: 17 a 18 anos | C180: 18 | D180: 0.5 | E180: 20 | F180: 3 | H180: 0.025 | I180: 0.45 | J180: 0 | K180: 0.55 | L180: 0.575 | M180: 0.069
B181: 18 a 19 anos | C181: 19 | D181: 0.5 | E181: 20 | F181: 2 | H181: 0.025 | I181: 0.475 | J181: 0 | K181: 0.525 | L181: 0.55 | M181: 0.066
